Workbook

Sheet Index
E1: Worksheet Index | I1: DESCRIPTION OF WORKSHEETS. Also see write-up in Appendix B of the Ozone Transport Policy Analysis Proposed Supplemental Rule TSD and the Ozone Transport Policy Analysis Final Rule TSD from the Good Neighbor Plan.
I2: Note: In the following worksheets, results created during the original federal Good Neighbor Plan are labeled with a suffix of “_gnp”, while results created for this proposed supplemental rule are labeled “_sup.”
E4: 2026_DV_summary_sup | I4: Summary of estimated design values for various scenarios and configurations for 2026.
E5: 2026_DV_summary_shortlist_sup | I5: Summary of estimated design values for various scenarios and configurations for 2026. Similar to the "2026_DV_summary" worksheet, but examining only the receptors remaining in 2026.
E6: 2023_DV_summary_modeled_sup | I6: Summary of estimated design values for various scenarios and configurations for 2023 for Modeled monitor receptors.
E7: 2023_DV_summary_violating_sup | I7: Summary of estimated design values for various scenarios and configurations for 2023 for Violating monitor receptors.
E8: 2023_DV_summary_sup | I8: Summary of estimated design values for various scenarios and configurations for 2023 for Violating monitor and Modeled monitor receptors.
E9: 2026_linkages_linked_states_sup | I9: Summary of estimated air quality contributions for various scenarios and configurations for 2026 for various aggregations of receptors for the linked states.
E10: 2023_linkages_linked_states_sup | I10: Summary of estimated air quality contributions for various scenarios and configurations for 2023 for various aggregations of receptors for the linked states.
E11: 2023_gf_links_wflag_sup | I11: 2023 static air quality contribution estimates for all 2023 receptors for linked states from the final federal Good Neighbor Plan air quality modeling base case. Contains the information within the "2023_gf_links_sup" worksheet, with an additional column labeling receptors to which the Supplemental states are linked to.
E12: 2026_linkages_sup | I12: Summary of estimated air quality contributions for various scenarios and configurations for 2026 for various aggregations of receptors.
E13: 2023_linkages_sup | I13: Summary of estimated air quality contributions for various scenarios and configurations for 2023 for various aggregations of receptors.
E14: 2026_EA_gnp | I14: Copy of the 2026 EGU engineering analysis emissions from the final federal Good Neighbor Plan.
E15: 2023_EA_gnp | I15: Copy of the 2023 EGU engineering analysis emissions from the final federal Good Neighbor Plan.
... 18 more rows

Sheet 2026_DV_summary_sup
M1: Sum of the DVs | P1: =SUM(P85,P77:P79,P66:P67,P60,P53:P54,P37:P38,P33:P35,P27) -> 1061.70 | Q1: =SUM(Q85,Q77:Q79,Q66:Q67,Q60,Q53:Q54,Q37:Q38,Q33:Q35,Q27) -> 1064.70 | R1: 1064.14 | S1: 1064.07 | T1: 1064.06 | U1: 1063.99 | V1: 1057.65 | W1: 1054.81 | X1: 1061.15 | Y1: 1064.70 | Z1: 1055.19 | AB1: 1080.60 | AC1: 1083.67 | AD1: 1083.10 | AE1: 1083.03 | AF1: 1083.01 | AG1: 1082.95 | AH1: 1076.49 | AI1: 1073.60 | AJ1: 1080.06 | AK1: 1083.67 | AL1: 1073.98
M2: Average DV value | P2: =AVERAGE(P85,P77:P79,P66:P67,P60,P53:P54,P37:P38,P33:P35,P27) -> 70.78 | Q2: =AVERAGE(Q85,Q77:Q79,Q66:Q67,Q60,Q53:Q54,Q37:Q38,Q33:Q35,Q27) -> 70.98 | R2: 70.94 | S2: 70.94 | T2: 70.94 | U2: 70.93 | V2: 70.51 | W2: 70.32 | X2: 70.74 | Y2: 70.98 | Z2: 70.35 | AB2: =AVERAGE(AB85,AB77:AB79,AB66:AB67,AB60,AB53:AB54,AB37:AB38,AB33:AB35,AB27) -> 72.04 | AC2: =AVERAGE(AC85,AC77:AC79,AC66:AC67,AC60,AC53:AC54,AC37:AC38,AC33:AC35,AC27) -> 72.24 | AD2: 72.21 | AE2: 72.20 | AF2: 72.20 | AG2: 72.20 | AH2: 71.77 | AI2: 71.57 | AJ2: 72.00 | AK2: 72.24 | AL2: 71.60
M3: Change in DV | Q3: =$Q2-Q2 -> 0.00 | R3: =$Q2-R2 -> 0.04 | S3: 0.04 | T3: 0.04 | U3: 0.05 | V3: 0.47 | W3: 0.66 | X3: 0.24 | Y3: -0.00 | Z3: 0.63
P4: Avg. DV | Q4: Avg. DV | R4: Avg. DV | S4: Avg. DV | T4: Avg. DV | U4: Avg. DV | V4: Avg. DV | W4: Avg. DV | X4: Avg. DV | Y4: Avg. DV | Z4: Avg. DV | AB4: Max. DV | AC4: Max. DV | AD4: Max. DV | AE4: Max. DV | AF4: Max. DV | AG4: Max. DV | AH4: Max. DV | AI4: Max. DV | AJ4: Max. DV | AK4: Max. DV | AL4: Max. DV | AN4: Avg. DV | AO4: Avg. DV | AP4: Max. DV | AQ4: Max. DV | AT4: Avg. DV | AU4: Avg. DV | AV4: Avg. DV | AW4: Avg. DV | AX4: Avg. DV | AY4: Avg. DV | AZ4: Avg. DV | BA4: Avg. DV | BB4: Avg. DV | BC4: Avg. DV | BE4: Max. DV | BF4: Max. DV | BG4: Max. DV | BH4: Max. DV | BI4: Max. DV | BJ4: Max. DV | BK4: Max. DV | BL4: Max. DV | BM4: Max. DV | BN4: Max. DV
A5: Site ID | B5: State | C5: County | D5: 2016-Centered Avg | E5: 2016-Centered Max | F5: 2023gf Avg | G5: 2023gf Max | H5: 2021 DV | I5: 2022 DV | J5: 2021 4th | K5: 2022 4th | L5: Violating Monitor Flag (1) | M5: Modeling Receptor Flag (2) | N5: Modeling 2026 receptor Flag (3) | O5: offset rows | P5: 2026_gf | Q5: 2026_step3_base | R5: 2026_step3_SCRopt | S5: 2026_step3_SCRoptwCC | T5: 2026_step3_SNCRopt | U5: 2026_step3_SNCRoptwCC | V5: 2026_step3_newSCR | W5: 2026_step3_newSCRand nonEGU | X5: 2026_step3_nonEGU1st_supp | Y5: 2026_step3_base_wIRA | Z5: 2026_step3_newSCR_wIRA | AB5: 2026_gf | AC5: 2026_step3_base | AD5: 2026_step3_SCRopt | AE5: 2026_step3_SCRoptwCC | AF5: 2026_step3_SNCRopt | AG5: 2026_step3_SNCRoptwCC | AH5: 2026_step3_newSCR | AI5: 2026_step3_newSCRand nonEGU | AJ5: 2026_step3_nonEGU1st_supp | AK5: 2026_step3_base_wIRA | AL5: 2026_step3_newSCR_wIRA | AN5: 2026_step3_base | AO5: 2026_step3_SNCRoptwCC | AP5: 2026_step3_base | AQ5: 2026_step3_SNCRoptwCC | AT5: 2026_full_geo_base | AU5: 2026_full_geo_SCRopt | AV5: 2026_full_geo_SCRoptwCC | AW5: 2026_full_geo_SNCRopt | AX5: 2026_full_geo_SNCRoptwCC | AY5: 2026_full_geo_newSCR | AZ5: 2026_full_geo_newSCRand nonEGU | BA5: 2026_full_geo_nonEGU1st_supp | BB5: 2026_full_geo_base_wIRA | BC5: 2026_full_geo_newSCR_wIRA | BE5: 2026_full_geo_base | BF5: 2026_full_geo_SCRopt | BG5: 2026_full_geo_SCRoptwCC | BH5: 2026_full_geo_SNCRopt | BI5: 2026_full_geo_SNCRoptwCC | BJ5: 2026_full_geo_newSCR | BK5: 2026_full_geo_newSCRand nonEGU | BL5: 2026_full_geo_nonEGU1st_supp | BM5: 2026_full_geo_base_wIRA | BN5: 2026_full_geo_newSCR_wIRA
A6: 40070010 | B6: Arizona | C6: Gila | D6: 72.3 | E6: 74 | F6: 67.9 | G6: 69.5 | H6: 77 | I6: 76 | J6: 75 | K6: 74 | L6: 1 | O6: =MATCH($A6,'2026_step3_eng_base_gnp'!$A$7:$A$736,FALSE) -> 20 | P6: =OFFSET('2026gf_All_gnp'!$F$1,$O6,0) -> 66.50 | Q6: =OFFSET('2026_step3_eng_base_gnp'!$BX$6,$O6,0) -> 66.68 | R6: =OFFSET('2026_step3_SCRopt_gnp'!$BX$6,$O6,0) -> 66.68 | S6: =OFFSET('2026_step3_SCRoptwCC_gnp'!$BX$6,$O6,0) -> 66.67 | T6: =OFFSET('2026_step3_SNCRopt_gnp'!$BX$6,$O6,0) -> 66.67 | U6: =OFFSET('2026_step3_SNCRoptwCC_gnp'!$BX$6,$O6,0) -> 66.66 | V6: =OFFSET('2026_step3_newSCR_gnp'!$BX$6,$O6,0) -> 66.53 | W6: =OFFSET('2026_step3_newSCRwnon_sup'!$BX$6,$O6,0) -> 66.50 | X6: =OFFSET('2026_step3_nonegu1st_sup'!$BX$6,$O6,0) -> 66.62 | Y6: =OFFSET('2026_step3_base_wIRA_gnp'!$BX$6,$O6,0) -> 66.75 | Z6: =OFFSET('2026_step3_SCRnon_IRA_sup'!$BX$6,$O6,0) -> 66.55 | AB6: =OFFSET('2026gf_All_gnp'!$G$1,$O6,0) -> 68.10 | AC6: =OFFSET('2026_step3_eng_base_gnp'!$BX$6,$O6,1) -> 68.29 | AD6: =OFFSET('2026_step3_SCRopt_gnp'!$BX$6,$O6,1) -> 68.28 | AE6: =OFFSET('2026_step3_SCRoptwCC_gnp'!$BX$6,$O6,1) -> 68.27 | AF6: =OFFSET('2026_step3_SNCRopt_gnp'!$BX$6,$O6,1) -> 68.27 | AG6: =OFFSET('2026_step3_SNCRoptwCC_gnp'!$BX$6,$O6,1) -> 68.26 | AH6: =OFFSET('2026_step3_newSCR_gnp'!$BX$6,$O6,1) -> 68.14 | AI6: =OFFSET('2026_step3_newSCRwnon_sup'!$BX$6,$O6,1) -> 68.10 | AJ6: =OFFSET('2026_step3_nonegu1st_sup'!$BX$6,$O6,1) -> 68.23 | AK6: =OFFSET('2026_step3_base_wIRA_gnp'!$BX$6,$O6,1) -> 68.36 | AL6: =OFFSET('2026_step3_SCRnon_IRA_sup'!$BX$6,$O6,1) -> 68.15 | AN6: =Q6 -> 66.68 | AO6: =W6 -> 66.50 | AP6: =AC6 -> 68.29 | AQ6: =AI6 -> 68.10 | AT6: =OFFSET('2026_full_geo_base_sup'!$BX$6,$O6,0) -> 66.68 | AU6: =OFFSET('2026_full_geo_SCRopt_sup'!$BX$6,$O6,0) -> 66.67 | AV6: =OFFSET('2026_full_geo_SCRoptCC_sup'!$BX$6,$O6,0) -> 66.67 | AW6: =OFFSET('2026_full_geo_SNCRopt_sup'!$BX$6,$O6,0) -> 66.67 | AX6: =OFFSET('2026_full_geo_SNCRoptCC_sup'!$BX$6,$O6,0) -> 66.66 | AY6: =OFFSET('2026_full_geo_newSCR_sup'!$BX$6,$O6,0) -> 66.44 | AZ6: =OFFSET('2026_full_geo_newSCRnon_sup'!$BX$6,$O6,0) -> 66.40 | BA6: =OFFSET('2026_full_geo_nonEGU1st_sup'!$BX$6,$O6,0) -> 66.62 | BB6: =OFFSET('2026_full_geo_IRA_base_sup'!$BX$6,$O6,0) -> 66.75 | BC6: =OFFSET('2026_full_geo_IRA_SCR_sup'!$BX$6,$O6,0) -> 66.50 | BE6: =OFFSET('2026_full_geo_base_sup'!$BX$6,$O6,1) -> 68.29 | BF6: =OFFSET('2026_full_geo_SCRopt_sup'!$BX$6,$O6,1) -> 68.28 | BG6: =OFFSET('2026_full_geo_SCRoptCC_sup'!$BX$6,$O6,1) -> 68.27 | BH6: =OFFSET('2026_full_geo_SNCRopt_sup'!$BX$6,$O6,1) -> 68.27 | BI6: =OFFSET('2026_full_geo_SNCRoptCC_sup'!$BX$6,$O6,1) -> 68.26 | BJ6: =OFFSET('2026_full_geo_newSCR_sup'!$BX$6,$O6,1) -> 68.04 | BK6: =OFFSET('2026_full_geo_newSCRnon_sup'!$BX$6,$O6,1) -> 68.00 | BL6: =OFFSET('2026_full_geo_nonEGU1st_sup'!$BX$6,$O6,1) -> 68.22 | BM6: =OFFSET('2026_full_geo_IRA_base_sup'!$BX$6,$O6,1) -> 68.36 | BN6: =OFFSET('2026_full_geo_IRA_SCR_sup'!$BX$6,$O6,1) -> 68.10
A7: 40130019 | B7: Arizona | C7: Maricopa | D7: 73.7 | E7: 74 | F7: 69.8 | G7: 70.0 | H7: 75 | I7: 77 | J7: 78 | K7: 76 | L7: 1 | O7: =MATCH($A7,'2026_step3_eng_base_gnp'!$A$7:$A$736,FALSE) -> 21 | P7: =OFFSET('2026gf_All_gnp'!$F$1,$O7,0) -> 68.50 | Q7: =OFFSET('2026_step3_eng_base_gnp'!$BX$6,$O7,0) -> 68.77 | R7: =OFFSET('2026_step3_SCRopt_gnp'!$BX$6,$O7,0) -> 68.75 | S7: =OFFSET('2026_step3_SCRoptwCC_gnp'!$BX$6,$O7,0) -> 68.75 | T7: =OFFSET('2026_step3_SNCRopt_gnp'!$BX$6,$O7,0) -> 68.74 | U7: =OFFSET('2026_step3_SNCRoptwCC_gnp'!$BX$6,$O7,0) -> 68.73 | V7: =OFFSET('2026_step3_newSCR_gnp'!$BX$6,$O7,0) -> 68.56 | W7: =OFFSET('2026_step3_newSCRwnon_sup'!$BX$6,$O7,0) -> 68.52 | X7: =OFFSET('2026_step3_nonegu1st_sup'!$BX$6,$O7,0) -> 68.69 | Y7: =OFFSET('2026_step3_base_wIRA_gnp'!$BX$6,$O7,0) -> 68.86 | Z7: =OFFSET('2026_step3_SCRnon_IRA_sup'!$BX$6,$O7,0) -> 68.59 | AB7: =OFFSET('2026gf_All_gnp'!$G$1,$O7,0) -> 68.80 | AC7: =OFFSET('2026_step3_eng_base_gnp'!$BX$6,$O7,1) -> 69.07 | AD7: =OFFSET('2026_step3_SCRopt_gnp'!$BX$6,$O7,1) -> 69.05 | AE7: =OFFSET('2026_step3_SCRoptwCC_gnp'!$BX$6,$O7,1) -> 69.05 | AF7: =OFFSET('2026_step3_SNCRopt_gnp'!$BX$6,$O7,1) -> 69.04 | AG7: =OFFSET('2026_step3_SNCRoptwCC_gnp'!$BX$6,$O7,1) -> 69.04 | AH7: =OFFSET('2026_step3_newSCR_gnp'!$BX$6,$O7,1) -> 68.86 | AI7: =OFFSET('2026_step3_newSCRwnon_sup'!$BX$6,$O7,1) -> 68.82 | AJ7: =OFFSET('2026_step3_nonegu1st_sup'!$BX$6,$O7,1) -> 68.99 | AK7: =OFFSET('2026_step3_base_wIRA_gnp'!$BX$6,$O7,1) -> 69.16 | AL7: =OFFSET('2026_step3_SCRnon_IRA_sup'!$BX$6,$O7,1) -> 68.89 | AN7: =Q7 -> 68.77 | AO7: =W7 -> 68.52 | AP7: =AC7 -> 69.07 | AQ7: =AI7 -> 68.82 | AT7: =OFFSET('2026_full_geo_base_sup'!$BX$6,$O7,0) -> 68.77 | AU7: =OFFSET('2026_full_geo_SCRopt_sup'!$BX$6,$O7,0) -> 68.75 | AV7: =OFFSET('2026_full_geo_SCRoptCC_sup'!$BX$6,$O7,0) -> 68.75 | AW7: =OFFSET('2026_full_geo_SNCRopt_sup'!$BX$6,$O7,0) -> 68.74 | AX7: =OFFSET('2026_full_geo_SNCRoptCC_sup'!$BX$6,$O7,0) -> 68.73 | AY7: =OFFSET('2026_full_geo_newSCR_sup'!$BX$6,$O7,0) -> 68.48 | AZ7: =OFFSET('2026_full_geo_newSCRnon_sup'!$BX$6,$O7,0) -> 68.43 | BA7: =OFFSET('2026_full_geo_nonEGU1st_sup'!$BX$6,$O7,0) -> 68.68 | BB7: =OFFSET('2026_full_geo_IRA_base_sup'!$BX$6,$O7,0) -> 68.86 | BC7: =OFFSET('2026_full_geo_IRA_SCR_sup'!$BX$6,$O7,0) -> 68.56 | BE7: =OFFSET('2026_full_geo_base_sup'!$BX$6,$O7,1) -> 69.07 | BF7: =OFFSET('2026_full_geo_SCRopt_sup'!$BX$6,$O7,1) -> 69.05 | BG7: =OFFSET('2026_full_geo_SCRoptCC_sup'!$BX$6,$O7,1) -> 69.05 | BH7: =OFFSET('2026_full_geo_SNCRopt_sup'!$BX$6,$O7,1) -> 69.04 | BI7: =OFFSET('2026_full_geo_SNCRoptCC_sup'!$BX$6,$O7,1) -> 69.03 | BJ7: =OFFSET('2026_full_geo_newSCR_sup'!$BX$6,$O7,1) -> 68.78 | BK7: =OFFSET('2026_full_geo_newSCRnon_sup'!$BX$6,$O7,1) -> 68.73 | BL7: =OFFSET('2026_full_geo_nonEGU1st_sup'!$BX$6,$O7,1) -> 68.98 | BM7: =OFFSET('2026_full_geo_IRA_base_sup'!$BX$6,$O7,1) -> 69.16 | BN7: =OFFSET('2026_full_geo_IRA_SCR_sup'!$BX$6,$O7,1) -> 68.86
A8: 40131003 | B8: Arizona | C8: Maricopa | D8: 75.3 | E8: 76 | F8: 70.1 | G8: 70.7 | H8: 80 | I8: 80 | J8: 83 | K8: 78 | L8: 1 | O8: =MATCH($A8,'2026_step3_eng_base_gnp'!$A$7:$A$736,FALSE) -> 22 | P8: =OFFSET('2026gf_All_gnp'!$F$1,$O8,0) -> 68.70 | Q8: =OFFSET('2026_step3_eng_base_gnp'!$BX$6,$O8,0) -> 69.04 | R8: =OFFSET('2026_step3_SCRopt_gnp'!$BX$6,$O8,0) -> 69.03 | S8: =OFFSET('2026_step3_SCRoptwCC_gnp'!$BX$6,$O8,0) -> 69.02 | T8: =OFFSET('2026_step3_SNCRopt_gnp'!$BX$6,$O8,0) -> 69.01 | U8: =OFFSET('2026_step3_SNCRoptwCC_gnp'!$BX$6,$O8,0) -> 69.00 | V8: =OFFSET('2026_step3_newSCR_gnp'!$BX$6,$O8,0) -> 68.76 | W8: =OFFSET('2026_step3_newSCRwnon_sup'!$BX$6,$O8,0) -> 68.70 | X8: =OFFSET('2026_step3_nonegu1st_sup'!$BX$6,$O8,0) -> 68.93 | Y8: =OFFSET('2026_step3_base_wIRA_gnp'!$BX$6,$O8,0) -> 69.17 | Z8: =OFFSET('2026_step3_SCRnon_IRA_sup'!$BX$6,$O8,0) -> 68.80 | AB8: =OFFSET('2026gf_All_gnp'!$G$1,$O8,0) -> 69.30 | AC8: =OFFSET('2026_step3_eng_base_gnp'!$BX$6,$O8,1) -> 69.65 | AD8: =OFFSET('2026_step3_SCRopt_gnp'!$BX$6,$O8,1) -> 69.63 | AE8: =OFFSET('2026_step3_SCRoptwCC_gnp'!$BX$6,$O8,1) -> 69.62 | AF8: =OFFSET('2026_step3_SNCRopt_gnp'!$BX$6,$O8,1) -> 69.61 | AG8: =OFFSET('2026_step3_SNCRoptwCC_gnp'!$BX$6,$O8,1) -> 69.60 | AH8: =OFFSET('2026_step3_newSCR_gnp'!$BX$6,$O8,1) -> 69.36 | AI8: =OFFSET('2026_step3_newSCRwnon_sup'!$BX$6,$O8,1) -> 69.30 | AJ8: =OFFSET('2026_step3_nonegu1st_sup'!$BX$6,$O8,1) -> 69.53 | AK8: =OFFSET('2026_step3_base_wIRA_gnp'!$BX$6,$O8,1) -> 69.77 | AL8: =OFFSET('2026_step3_SCRnon_IRA_sup'!$BX$6,$O8,1) -> 69.40 | AN8: 69.04 | AO8: 68.70 | AP8: 69.65 | AQ8: 69.30 | AT8: =OFFSET('2026_full_geo_base_sup'!$BX$6,$O8,0) -> 69.04 | AU8: =OFFSET('2026_full_geo_SCRopt_sup'!$BX$6,$O8,0) -> 69.03 | AV8: =OFFSET('2026_full_geo_SCRoptCC_sup'!$BX$6,$O8,0) -> 69.02 | AW8: =OFFSET('2026_full_geo_SNCRopt_sup'!$BX$6,$O8,0) -> 69.01 | AX8: =OFFSET('2026_full_geo_SNCRoptCC_sup'!$BX$6,$O8,0) -> 69.00 | AY8: =OFFSET('2026_full_geo_newSCR_sup'!$BX$6,$O8,0) -> 68.67 | AZ8: =OFFSET('2026_full_geo_newSCRnon_sup'!$BX$6,$O8,0) -> 68.60 | BA8: =OFFSET('2026_full_geo_nonEGU1st_sup'!$BX$6,$O8,0) -> 68.93 | BB8: =OFFSET('2026_full_geo_IRA_base_sup'!$BX$6,$O8,0) -> 69.17 | BC8: =OFFSET('2026_full_geo_IRA_SCR_sup'!$BX$6,$O8,0) -> 68.78 | BE8: =OFFSET('2026_full_geo_base_sup'!$BX$6,$O8,1) -> 69.65 | BF8: =OFFSET('2026_full_geo_SCRopt_sup'!$BX$6,$O8,1) -> 69.63 | BG8: =OFFSET('2026_full_geo_SCRoptCC_sup'!$BX$6,$O8,1) -> 69.62 | BH8: =OFFSET('2026_full_geo_SNCRopt_sup'!$BX$6,$O8,1) -> 69.61 | BI8: =OFFSET('2026_full_geo_SNCRoptCC_sup'!$BX$6,$O8,1) -> 69.60 | BJ8: =OFFSET('2026_full_geo_newSCR_sup'!$BX$6,$O8,1) -> 69.27 | BK8: =OFFSET('2026_full_geo_newSCRnon_sup'!$BX$6,$O8,1) -> 69.20 | BL8: =OFFSET('2026_full_geo_nonEGU1st_sup'!$BX$6,$O8,1) -> 69.53 | BM8: =OFFSET('2026_full_geo_IRA_base_sup'!$BX$6,$O8,1) -> 69.77 | BN8: =OFFSET('2026_full_geo_IRA_SCR_sup'!$BX$6,$O8,1) -> 69.38
A9: 40131004 | B9: Arizona | C9: Maricopa | D9: 75.3 | E9: 76 | F9: 70.2 | G9: 70.8 | H9: 80 | I9: 81 | J9: 81 | K9: 77 | L9: 1 | O9: =MATCH($A9,'2026_step3_eng_base_gnp'!$A$7:$A$736,FALSE) -> 23 | P9: =OFFSET('2026gf_All_gnp'!$F$1,$O9,0) -> 68.80 | Q9: =OFFSET('2026_step3_eng_base_gnp'!$BX$6,$O9,0) -> 69.12 | R9: =OFFSET('2026_step3_SCRopt_gnp'!$BX$6,$O9,0) -> 69.10 | S9: =OFFSET('2026_step3_SCRoptwCC_gnp'!$BX$6,$O9,0) -> 69.10 | T9: =OFFSET('2026_step3_SNCRopt_gnp'!$BX$6,$O9,0) -> 69.09 | U9: =OFFSET('2026_step3_SNCRoptwCC_gnp'!$BX$6,$O9,0) -> 69.08 | V9: =OFFSET('2026_step3_newSCR_gnp'!$BX$6,$O9,0) -> 68.87 | W9: =OFFSET('2026_step3_newSCRwnon_sup'!$BX$6,$O9,0) -> 68.82 | X9: =OFFSET('2026_step3_nonegu1st_sup'!$BX$6,$O9,0) -> 69.03 | Y9: =OFFSET('2026_step3_base_wIRA_gnp'!$BX$6,$O9,0) -> 69.23 | Z9: =OFFSET('2026_step3_SCRnon_IRA_sup'!$BX$6,$O9,0) -> 68.91 | AB9: =OFFSET('2026gf_All_gnp'!$G$1,$O9,0) -> 69.40 | AC9: =OFFSET('2026_step3_eng_base_gnp'!$BX$6,$O9,1) -> 69.72 | AD9: =OFFSET('2026_step3_SCRopt_gnp'!$BX$6,$O9,1) -> 69.71 | AE9: =OFFSET('2026_step3_SCRoptwCC_gnp'!$BX$6,$O9,1) -> 69.70 | AF9: =OFFSET('2026_step3_SNCRopt_gnp'!$BX$6,$O9,1) -> 69.69 | AG9: =OFFSET('2026_step3_SNCRoptwCC_gnp'!$BX$6,$O9,1) -> 69.68 | AH9: =OFFSET('2026_step3_newSCR_gnp'!$BX$6,$O9,1) -> 69.47 | AI9: =OFFSET('2026_step3_newSCRwnon_sup'!$BX$6,$O9,1) -> 69.42 | AJ9: =OFFSET('2026_step3_nonegu1st_sup'!$BX$6,$O9,1) -> 69.63 | AK9: =OFFSET('2026_step3_base_wIRA_gnp'!$BX$6,$O9,1) -> 69.83 | AL9: =OFFSET('2026_step3_SCRnon_IRA_sup'!$BX$6,$O9,1) -> 69.51 | AN9: 69.12 | AO9: 68.82 | AP9: 69.72 | AQ9: 69.42 | AT9: =OFFSET('2026_full_geo_base_sup'!$BX$6,$O9,0) -> 69.12 | AU9: =OFFSET('2026_full_geo_SCRopt_sup'!$BX$6,$O9,0) -> 69.10 | AV9: =OFFSET('2026_full_geo_SCRoptCC_sup'!$BX$6,$O9,0) -> 69.10 | AW9: =OFFSET('2026_full_geo_SNCRopt_sup'!$BX$6,$O9,0) -> 69.09 | AX9: =OFFSET('2026_full_geo_SNCRoptCC_sup'!$BX$6,$O9,0) -> 69.08 | AY9: =OFFSET('2026_full_geo_newSCR_sup'!$BX$6,$O9,0) -> 68.79 | AZ9: =OFFSET('2026_full_geo_newSCRnon_sup'!$BX$6,$O9,0) -> 68.73 | BA9: =OFFSET('2026_full_geo_nonEGU1st_sup'!$BX$6,$O9,0) -> 69.02 | BB9: =OFFSET('2026_full_geo_IRA_base_sup'!$BX$6,$O9,0) -> 69.23 | BC9: =OFFSET('2026_full_geo_IRA_SCR_sup'!$BX$6,$O9,0) -> 68.88 | BE9: =OFFSET('2026_full_geo_base_sup'!$BX$6,$O9,1) -> 69.72 | BF9: =OFFSET('2026_full_geo_SCRopt_sup'!$BX$6,$O9,1) -> 69.71 | BG9: =OFFSET('2026_full_geo_SCRoptCC_sup'!$BX$6,$O9,1) -> 69.70 | BH9: =OFFSET('2026_full_geo_SNCRopt_sup'!$BX$6,$O9,1) -> 69.69 | BI9: =OFFSET('2026_full_geo_SNCRoptCC_sup'!$BX$6,$O9,1) -> 69.68 | BJ9: =OFFSET('2026_full_geo_newSCR_sup'!$BX$6,$O9,1) -> 69.39 | BK9: =OFFSET('2026_full_geo_newSCRnon_sup'!$BX$6,$O9,1) -> 69.33 | BL9: =OFFSET('2026_full_geo_nonEGU1st_sup'!$BX$6,$O9,1) -> 69.62 | BM9: =OFFSET('2026_full_geo_IRA_base_sup'!$BX$6,$O9,1) -> 69.83 | BN9: =OFFSET('2026_full_geo_IRA_SCR_sup'!$BX$6,$O9,1) -> 69.48
A10: 40131010 | B10: Arizona | C10: Maricopa | D10: 74.0 | E10: 75 | F10: 68.3 | G10: 69.2 | H10: 79 | I10: 80 | J10: 80 | K10: 78 | L10: 1 | O10: =MATCH($A10,'2026_step3_eng_base_gnp'!$A$7:$A$736,FALSE) -> 24 | P10: =OFFSET('2026gf_All_gnp'!$F$1,$O10,0) -> 66.80 | Q10: =OFFSET('2026_step3_eng_base_gnp'!$BX$6,$O10,0) -> 67.30 | R10: =OFFSET('2026_step3_SCRopt_gnp'!$BX$6,$O10,0) -> 67.28 | S10: =OFFSET('2026_step3_SCRoptwCC_gnp'!$BX$6,$O10,0) -> 67.27 | T10: =OFFSET('2026_step3_SNCRopt_gnp'!$BX$6,$O10,0) -> 67.25 | U10: =OFFSET('2026_step3_SNCRoptwCC_gnp'!$BX$6,$O10,0) -> 67.24 | V10: =OFFSET('2026_step3_newSCR_gnp'!$BX$6,$O10,0) -> 66.91 | W10: =OFFSET('2026_step3_newSCRwnon_sup'!$BX$6,$O10,0) -> 66.82 | X10: =OFFSET('2026_step3_nonegu1st_sup'!$BX$6,$O10,0) -> 67.16 | Y10: =OFFSET('2026_step3_base_wIRA_gnp'!$BX$6,$O10,0) -> 67.47 | Z10: =OFFSET('2026_step3_SCRnon_IRA_sup'!$BX$6,$O10,0) -> 66.97 | AB10: =OFFSET('2026gf_All_gnp'!$G$1,$O10,0) -> 67.70 | AC10: =OFFSET('2026_step3_eng_base_gnp'!$BX$6,$O10,1) -> 68.21 | AD10: =OFFSET('2026_step3_SCRopt_gnp'!$BX$6,$O10,1) -> 68.18 | AE10: =OFFSET('2026_step3_SCRoptwCC_gnp'!$BX$6,$O10,1) -> 68.17 | AF10: =OFFSET('2026_step3_SNCRopt_gnp'!$BX$6,$O10,1) -> 68.16 | AG10: =OFFSET('2026_step3_SNCRoptwCC_gnp'!$BX$6,$O10,1) -> 68.15 | AH10: =OFFSET('2026_step3_newSCR_gnp'!$BX$6,$O10,1) -> 67.81 | AI10: =OFFSET('2026_step3_newSCRwnon_sup'!$BX$6,$O10,1) -> 67.72 | AJ10: =OFFSET('2026_step3_nonegu1st_sup'!$BX$6,$O10,1) -> 68.06 | AK10: =OFFSET('2026_step3_base_wIRA_gnp'!$BX$6,$O10,1) -> 68.38 | AL10: =OFFSET('2026_step3_SCRnon_IRA_sup'!$BX$6,$O10,1) -> 67.87 | AN10: 67.30 | AO10: 66.82 | AP10: 68.21 | AQ10: 67.72 | AT10: =OFFSET('2026_full_geo_base_sup'!$BX$6,$O10,0) -> 67.30 | AU10: =OFFSET('2026_full_geo_SCRopt_sup'!$BX$6,$O10,0) -> 67.28 | AV10: =OFFSET('2026_full_geo_SCRoptCC_sup'!$BX$6,$O10,0) -> 67.27 | AW10: =OFFSET('2026_full_geo_SNCRopt_sup'!$BX$6,$O10,0) -> 67.25 | AX10: =OFFSET('2026_full_geo_SNCRoptCC_sup'!$BX$6,$O10,0) -> 67.24 | AY10: =OFFSET('2026_full_geo_newSCR_sup'!$BX$6,$O10,0) -> 66.82 | AZ10: =OFFSET('2026_full_geo_newSCRnon_sup'!$BX$6,$O10,0) -> 66.73 | BA10: =OFFSET('2026_full_geo_nonEGU1st_sup'!$BX$6,$O10,0) -> 67.15 | BB10: =OFFSET('2026_full_geo_IRA_base_sup'!$BX$6,$O10,0) -> 67.47 | BC10: =OFFSET('2026_full_geo_IRA_SCR_sup'!$BX$6,$O10,0) -> 66.97 | BE10: =OFFSET('2026_full_geo_base_sup'!$BX$6,$O10,1) -> 68.21 | BF10: =OFFSET('2026_full_geo_SCRopt_sup'!$BX$6,$O10,1) -> 68.18 | BG10: =OFFSET('2026_full_geo_SCRoptCC_sup'!$BX$6,$O10,1) -> 68.17 | BH10: =OFFSET('2026_full_geo_SNCRopt_sup'!$BX$6,$O10,1) -> 68.16 | BI10: =OFFSET('2026_full_geo_SNCRoptCC_sup'!$BX$6,$O10,1) -> 68.15 | BJ10: =OFFSET('2026_full_geo_newSCR_sup'!$BX$6,$O10,1) -> 67.72 | BK10: =OFFSET('2026_full_geo_newSCRnon_sup'!$BX$6,$O10,1) -> 67.63 | BL10: =OFFSET('2026_full_geo_nonEGU1st_sup'!$BX$6,$O10,1) -> 68.06 | BM10: =OFFSET('2026_full_geo_IRA_base_sup'!$BX$6,$O10,1) -> 68.38 | BN10: =OFFSET('2026_full_geo_IRA_SCR_sup'!$BX$6,$O10,1) -> 67.87
A11: 40132001 | B11: Arizona | C11: Maricopa | D11: 67.7 | E11: 68 | F11: 63.8 | G11: 64.1 | H11: 74 | I11: 78 | J11: 79 | K11: 81 | L11: 1 | O11: =MATCH($A11,'2026_step3_eng_base_gnp'!$A$7:$A$736,FALSE) -> 25 | P11: =OFFSET('2026gf_All_gnp'!$F$1,$O11,0) -> 62.70 | Q11: =OFFSET('2026_step3_eng_base_gnp'!$BX$6,$O11,0) -> 62.98 | R11: =OFFSET('2026_step3_SCRopt_gnp'!$BX$6,$O11,0) -> 62.96 | S11: =OFFSET('2026_step3_SCRoptwCC_gnp'!$BX$6,$O11,0) -> 62.96 | T11: =OFFSET('2026_step3_SNCRopt_gnp'!$BX$6,$O11,0) -> 62.95 | U11: =OFFSET('2026_step3_SNCRoptwCC_gnp'!$BX$6,$O11,0) -> 62.94 | V11: =OFFSET('2026_step3_newSCR_gnp'!$BX$6,$O11,0) -> 62.76 | W11: =OFFSET('2026_step3_newSCRwnon_sup'!$BX$6,$O11,0) -> 62.72 | X11: =OFFSET('2026_step3_nonegu1st_sup'!$BX$6,$O11,0) -> 62.90 | Y11: =OFFSET('2026_step3_base_wIRA_gnp'!$BX$6,$O11,0) -> 63.07 | Z11: =OFFSET('2026_step3_SCRnon_IRA_sup'!$BX$6,$O11,0) -> 62.79 | AB11: =OFFSET('2026gf_All_gnp'!$G$1,$O11,0) -> 62.90 | AC11: =OFFSET('2026_step3_eng_base_gnp'!$BX$6,$O11,1) -> 63.18 | AD11: =OFFSET('2026_step3_SCRopt_gnp'!$BX$6,$O11,1) -> 63.16 | AE11: =OFFSET('2026_step3_SCRoptwCC_gnp'!$BX$6,$O11,1) -> 63.16 | AF11: =OFFSET('2026_step3_SNCRopt_gnp'!$BX$6,$O11,1) -> 63.15 | AG11: =OFFSET('2026_step3_SNCRoptwCC_gnp'!$BX$6,$O11,1) -> 63.14 | AH11: =OFFSET('2026_step3_newSCR_gnp'!$BX$6,$O11,1) -> 62.96 | AI11: =OFFSET('2026_step3_newSCRwnon_sup'!$BX$6,$O11,1) -> 62.92 | AJ11: =OFFSET('2026_step3_nonegu1st_sup'!$BX$6,$O11,1) -> 63.10 | AK11: =OFFSET('2026_step3_base_wIRA_gnp'!$BX$6,$O11,1) -> 63.27 | AL11: =OFFSET('2026_step3_SCRnon_IRA_sup'!$BX$6,$O11,1) -> 63.00 | AN11: 62.98 | AO11: 62.72 | AP11: 63.18 | AQ11: 62.92 | AT11: =OFFSET('2026_full_geo_base_sup'!$BX$6,$O11,0) -> 62.98 | AU11: =OFFSET('2026_full_geo_SCRopt_sup'!$BX$6,$O11,0) -> 62.96 | AV11: =OFFSET('2026_full_geo_SCRoptCC_sup'!$BX$6,$O11,0) -> 62.96 | AW11: =OFFSET('2026_full_geo_SNCRopt_sup'!$BX$6,$O11,0) -> 62.95 | AX11: =OFFSET('2026_full_geo_SNCRoptCC_sup'!$BX$6,$O11,0) -> 62.94 | AY11: =OFFSET('2026_full_geo_newSCR_sup'!$BX$6,$O11,0) -> 62.69 | AZ11: =OFFSET('2026_full_geo_newSCRnon_sup'!$BX$6,$O11,0) -> 62.63 | BA11: =OFFSET('2026_full_geo_nonEGU1st_sup'!$BX$6,$O11,0) -> 62.89 | BB11: =OFFSET('2026_full_geo_IRA_base_sup'!$BX$6,$O11,0) -> 63.07 | BC11: =OFFSET('2026_full_geo_IRA_SCR_sup'!$BX$6,$O11,0) -> 62.77 | BE11: =OFFSET('2026_full_geo_base_sup'!$BX$6,$O11,1) -> 63.18 | BF11: =OFFSET('2026_full_geo_SCRopt_sup'!$BX$6,$O11,1) -> 63.16 | BG11: =OFFSET('2026_full_geo_SCRoptCC_sup'!$BX$6,$O11,1) -> 63.16 | BH11: =OFFSET('2026_full_geo_SNCRopt_sup'!$BX$6,$O11,1) -> 63.15 | BI11: =OFFSET('2026_full_geo_SNCRoptCC_sup'!$BX$6,$O11,1) -> 63.14 | BJ11: =OFFSET('2026_full_geo_newSCR_sup'!$BX$6,$O11,1) -> 62.89 | BK11: =OFFSET('2026_full_geo_newSCRnon_sup'!$BX$6,$O11,1) -> 62.83 | BL11: =OFFSET('2026_full_geo_nonEGU1st_sup'!$BX$6,$O11,1) -> 63.09 | BM11: =OFFSET('2026_full_geo_IRA_base_sup'!$BX$6,$O11,1) -> 63.27 | BN11: =OFFSET('2026_full_geo_IRA_SCR_sup'!$BX$6,$O11,1) -> 62.97
A12: 40132005 | B12: Arizona | C12: Maricopa | D12: 76.0 | E12: 77 | F12: 69.6 | G12: 70.5 | H12: 78 | I12: 79 | J12: 79 | K12: 77 | L12: 1 | O12: =MATCH($A12,'2026_step3_eng_base_gnp'!$A$7:$A$736,FALSE) -> 26 | P12: =OFFSET('2026gf_All_gnp'!$F$1,$O12,0) -> 67.90 | Q12: =OFFSET('2026_step3_eng_base_gnp'!$BX$6,$O12,0) -> 68.23 | R12: =OFFSET('2026_step3_SCRopt_gnp'!$BX$6,$O12,0) -> 68.21 | S12: =OFFSET('2026_step3_SCRoptwCC_gnp'!$BX$6,$O12,0) -> 68.20 | T12: =OFFSET('2026_step3_SNCRopt_gnp'!$BX$6,$O12,0) -> 68.20 | U12: =OFFSET('2026_step3_SNCRoptwCC_gnp'!$BX$6,$O12,0) -> 68.19 | V12: =OFFSET('2026_step3_newSCR_gnp'!$BX$6,$O12,0) -> 67.97 | W12: =OFFSET('2026_step3_newSCRwnon_sup'!$BX$6,$O12,0) -> 67.92 | X12: =OFFSET('2026_step3_nonegu1st_sup'!$BX$6,$O12,0) -> 68.13 | Y12: =OFFSET('2026_step3_base_wIRA_gnp'!$BX$6,$O12,0) -> 68.34 | Z12: =OFFSET('2026_step3_SCRnon_IRA_sup'!$BX$6,$O12,0) -> 68.01 | AB12: =OFFSET('2026gf_All_gnp'!$G$1,$O12,0) -> 68.80 | AC12: =OFFSET('2026_step3_eng_base_gnp'!$BX$6,$O12,1) -> 69.13 | AD12: =OFFSET('2026_step3_SCRopt_gnp'!$BX$6,$O12,1) -> 69.12 | AE12: =OFFSET('2026_step3_SCRoptwCC_gnp'!$BX$6,$O12,1) -> 69.11 | AF12: =OFFSET('2026_step3_SNCRopt_gnp'!$BX$6,$O12,1) -> 69.10 | AG12: =OFFSET('2026_step3_SNCRoptwCC_gnp'!$BX$6,$O12,1) -> 69.09 | AH12: =OFFSET('2026_step3_newSCR_gnp'!$BX$6,$O12,1) -> 68.87 | AI12: =OFFSET('2026_step3_newSCRwnon_sup'!$BX$6,$O12,1) -> 68.82 | AJ12: =OFFSET('2026_step3_nonegu1st_sup'!$BX$6,$O12,1) -> 69.04 | AK12: =OFFSET('2026_step3_base_wIRA_gnp'!$BX$6,$O12,1) -> 69.24 | AL12: =OFFSET('2026_step3_SCRnon_IRA_sup'!$BX$6,$O12,1) -> 68.91 | AN12: 68.23 | AO12: 67.92 | AP12: 69.13 | AQ12: 68.82 | AT12: =OFFSET('2026_full_geo_base_sup'!$BX$6,$O12,0) -> 68.23 | AU12: =OFFSET('2026_full_geo_SCRopt_sup'!$BX$6,$O12,0) -> 68.21 | AV12: =OFFSET('2026_full_geo_SCRoptCC_sup'!$BX$6,$O12,0) -> 68.20 | AW12: =OFFSET('2026_full_geo_SNCRopt_sup'!$BX$6,$O12,0) -> 68.20 | AX12: =OFFSET('2026_full_geo_SNCRoptCC_sup'!$BX$6,$O12,0) -> 68.19 | AY12: =OFFSET('2026_full_geo_newSCR_sup'!$BX$6,$O12,0) -> 67.88 | AZ12: =OFFSET('2026_full_geo_newSCRnon_sup'!$BX$6,$O12,0) -> 67.82 | BA12: =OFFSET('2026_full_geo_nonEGU1st_sup'!$BX$6,$O12,0) -> 68.13 | BB12: =OFFSET('2026_full_geo_IRA_base_sup'!$BX$6,$O12,0) -> 68.34 | BC12: =OFFSET('2026_full_geo_IRA_SCR_sup'!$BX$6,$O12,0) -> 67.98 | BE12: =OFFSET('2026_full_geo_base_sup'!$BX$6,$O12,1) -> 69.13 | BF12: =OFFSET('2026_full_geo_SCRopt_sup'!$BX$6,$O12,1) -> 69.12 | BG12: =OFFSET('2026_full_geo_SCRoptCC_sup'!$BX$6,$O12,1) -> 69.11 | BH12: =OFFSET('2026_full_geo_SNCRopt_sup'!$BX$6,$O12,1) -> 69.10 | BI12: =OFFSET('2026_full_geo_SNCRoptCC_sup'!$BX$6,$O12,1) -> 69.09 | BJ12: =OFFSET('2026_full_geo_newSCR_sup'!$BX$6,$O12,1) -> 68.78 | BK12: =OFFSET('2026_full_geo_newSCRnon_sup'!$BX$6,$O12,1) -> 68.72 | BL12: =OFFSET('2026_full_geo_nonEGU1st_sup'!$BX$6,$O12,1) -> 69.03 | BM12: =OFFSET('2026_full_geo_IRA_base_sup'!$BX$6,$O12,1) -> 69.24 | BN12: =OFFSET('2026_full_geo_IRA_SCR_sup'!$BX$6,$O12,1) -> 68.88
A13: 40133002 | B13: Arizona | C13: Maricopa | D13: 70.0 | E13: 70 | F13: 65.8 | G13: 65.8 | H13: 75 | I13: 75 | J13: 81 | K13: 72 | L13: 1 | O13: =MATCH($A13,'2026_step3_eng_base_gnp'!$A$7:$A$736,FALSE) -> 27 | P13: =OFFSET('2026gf_All_gnp'!$F$1,$O13,0) -> 64.60 | Q13: =OFFSET('2026_step3_eng_base_gnp'!$BX$6,$O13,0) -> 64.85 | R13: =OFFSET('2026_step3_SCRopt_gnp'!$BX$6,$O13,0) -> 64.84 | S13: =OFFSET('2026_step3_SCRoptwCC_gnp'!$BX$6,$O13,0) -> 64.83 | T13: =OFFSET('2026_step3_SNCRopt_gnp'!$BX$6,$O13,0) -> 64.83 | U13: =OFFSET('2026_step3_SNCRoptwCC_gnp'!$BX$6,$O13,0) -> 64.82 | V13: =OFFSET('2026_step3_newSCR_gnp'!$BX$6,$O13,0) -> 64.65 | W13: =OFFSET('2026_step3_newSCRwnon_sup'!$BX$6,$O13,0) -> 64.61 | X13: =OFFSET('2026_step3_nonegu1st_sup'!$BX$6,$O13,0) -> 64.78 | Y13: =OFFSET('2026_step3_base_wIRA_gnp'!$BX$6,$O13,0) -> 64.94 | Z13: =OFFSET('2026_step3_SCRnon_IRA_sup'!$BX$6,$O13,0) -> 64.68 | AB13: =OFFSET('2026gf_All_gnp'!$G$1,$O13,0) -> 64.60 | AC13: =OFFSET('2026_step3_eng_base_gnp'!$BX$6,$O13,1) -> 64.85 | AD13: =OFFSET('2026_step3_SCRopt_gnp'!$BX$6,$O13,1) -> 64.84 | AE13: =OFFSET('2026_step3_SCRoptwCC_gnp'!$BX$6,$O13,1) -> 64.83 | AF13: =OFFSET('2026_step3_SNCRopt_gnp'!$BX$6,$O13,1) -> 64.83 | AG13: =OFFSET('2026_step3_SNCRoptwCC_gnp'!$BX$6,$O13,1) -> 64.82 | AH13: =OFFSET('2026_step3_newSCR_gnp'!$BX$6,$O13,1) -> 64.65 | AI13: =OFFSET('2026_step3_newSCRwnon_sup'!$BX$6,$O13,1) -> 64.61 | AJ13: =OFFSET('2026_step3_nonegu1st_sup'!$BX$6,$O13,1) -> 64.78 | AK13: =OFFSET('2026_step3_base_wIRA_gnp'!$BX$6,$O13,1) -> 64.94 | AL13: =OFFSET('2026_step3_SCRnon_IRA_sup'!$BX$6,$O13,1) -> 64.68 | AN13: 64.85 | AO13: 64.61 | AP13: 64.85 | AQ13: 64.61 | AT13: =OFFSET('2026_full_geo_base_sup'!$BX$6,$O13,0) -> 64.85 | AU13: =OFFSET('2026_full_geo_SCRopt_sup'!$BX$6,$O13,0) -> 64.84 | AV13: =OFFSET('2026_full_geo_SCRoptCC_sup'!$BX$6,$O13,0) -> 64.83 | AW13: =OFFSET('2026_full_geo_SNCRopt_sup'!$BX$6,$O13,0) -> 64.83 | AX13: =OFFSET('2026_full_geo_SNCRoptCC_sup'!$BX$6,$O13,0) -> 64.82 | AY13: =OFFSET('2026_full_geo_newSCR_sup'!$BX$6,$O13,0) -> 64.58 | AZ13: =OFFSET('2026_full_geo_newSCRnon_sup'!$BX$6,$O13,0) -> 64.54 | BA13: =OFFSET('2026_full_geo_nonEGU1st_sup'!$BX$6,$O13,0) -> 64.77 | BB13: =OFFSET('2026_full_geo_IRA_base_sup'!$BX$6,$O13,0) -> 64.94 | BC13: =OFFSET('2026_full_geo_IRA_SCR_sup'!$BX$6,$O13,0) -> 64.66 | BE13: =OFFSET('2026_full_geo_base_sup'!$BX$6,$O13,1) -> 64.85 | BF13: =OFFSET('2026_full_geo_SCRopt_sup'!$BX$6,$O13,1) -> 64.84 | BG13: =OFFSET('2026_full_geo_SCRoptCC_sup'!$BX$6,$O13,1) -> 64.83 | BH13: =OFFSET('2026_full_geo_SNCRopt_sup'!$BX$6,$O13,1) -> 64.83 | BI13: =OFFSET('2026_full_geo_SNCRoptCC_sup'!$BX$6,$O13,1) -> 64.82 | BJ13: =OFFSET('2026_full_geo_newSCR_sup'!$BX$6,$O13,1) -> 64.58 | BK13: =OFFSET('2026_full_geo_newSCRnon_sup'!$BX$6,$O13,1) -> 64.54 | BL13: =OFFSET('2026_full_geo_nonEGU1st_sup'!$BX$6,$O13,1) -> 64.77 | BM13: =OFFSET('2026_full_geo_IRA_base_sup'!$BX$6,$O13,1) -> 64.94 | BN13: =OFFSET('2026_full_geo_IRA_SCR_sup'!$BX$6,$O13,1) -> 64.66
A14: 40134004 | B14: Arizona | C14: Maricopa | D14: 70.0 | E14: 71 | F14: 65.7 | G14: 66.6 | H14: 73 | I14: 73 | J14: 73 | K14: 71 | L14: 1 | O14: =MATCH($A14,'2026_step3_eng_base_gnp'!$A$7:$A$736,FALSE) -> 30 | P14: =OFFSET('2026gf_All_gnp'!$F$1,$O14,0) -> 64.50 | Q14: =OFFSET('2026_step3_eng_base_gnp'!$BX$6,$O14,0) -> 64.49 | R14: =OFFSET('2026_step3_SCRopt_gnp'!$BX$6,$O14,0) -> 64.48 | S14: =OFFSET('2026_step3_SCRoptwCC_gnp'!$BX$6,$O14,0) -> 64.48 | T14: =OFFSET('2026_step3_SNCRopt_gnp'!$BX$6,$O14,0) -> 64.48 | U14: =OFFSET('2026_step3_SNCRoptwCC_gnp'!$BX$6,$O14,0) -> 64.48 | V14: =OFFSET('2026_step3_newSCR_gnp'!$BX$6,$O14,0) -> 64.47 | W14: =OFFSET('2026_step3_newSCRwnon_sup'!$BX$6,$O14,0) -> 64.44 | X14: =OFFSET('2026_step3_nonegu1st_sup'!$BX$6,$O14,0) -> 64.45 | Y14: =OFFSET('2026_step3_base_wIRA_gnp'!$BX$6,$O14,0) -> 64.50 | Z14: =OFFSET('2026_step3_SCRnon_IRA_sup'!$BX$6,$O14,0) -> 64.45 | AB14: =OFFSET('2026gf_All_gnp'!$G$1,$O14,0) -> 65.40 | AC14: =OFFSET('2026_step3_eng_base_gnp'!$BX$6,$O14,1) -> 65.39 | AD14: =OFFSET('2026_step3_SCRopt_gnp'!$BX$6,$O14,1) -> 65.38 | AE14: =OFFSET('2026_step3_SCRoptwCC_gnp'!$BX$6,$O14,1) -> 65.38 | AF14: =OFFSET('2026_step3_SNCRopt_gnp'!$BX$6,$O14,1) -> 65.38 | AG14: =OFFSET('2026_step3_SNCRoptwCC_gnp'!$BX$6,$O14,1) -> 65.38 | AH14: =OFFSET('2026_step3_newSCR_gnp'!$BX$6,$O14,1) -> 65.37 | AI14: =OFFSET('2026_step3_newSCRwnon_sup'!$BX$6,$O14,1) -> 65.34 | AJ14: =OFFSET('2026_step3_nonegu1st_sup'!$BX$6,$O14,1) -> 65.35 | AK14: =OFFSET('2026_step3_base_wIRA_gnp'!$BX$6,$O14,1) -> 65.40 | AL14: =OFFSET('2026_step3_SCRnon_IRA_sup'!$BX$6,$O14,1) -> 65.35 | AN14: 64.49 | AO14: 64.44 | AP14: 65.39 | AQ14: 65.34 | AT14: =OFFSET('2026_full_geo_base_sup'!$BX$6,$O14,0) -> 64.49 | AU14: =OFFSET('2026_full_geo_SCRopt_sup'!$BX$6,$O14,0) -> 64.48 | AV14: =OFFSET('2026_full_geo_SCRoptCC_sup'!$BX$6,$O14,0) -> 64.48 | AW14: =OFFSET('2026_full_geo_SNCRopt_sup'!$BX$6,$O14,0) -> 64.48 | AX14: =OFFSET('2026_full_geo_SNCRoptCC_sup'!$BX$6,$O14,0) -> 64.48 | AY14: =OFFSET('2026_full_geo_newSCR_sup'!$BX$6,$O14,0) -> 64.39 | AZ14: =OFFSET('2026_full_geo_newSCRnon_sup'!$BX$6,$O14,0) -> 64.36 | BA14: =OFFSET('2026_full_geo_nonEGU1st_sup'!$BX$6,$O14,0) -> 64.45 | BB14: =OFFSET('2026_full_geo_IRA_base_sup'!$BX$6,$O14,0) -> 64.50 | BC14: =OFFSET('2026_full_geo_IRA_SCR_sup'!$BX$6,$O14,0) -> 64.41 | BE14: =OFFSET('2026_full_geo_base_sup'!$BX$6,$O14,1) -> 65.39 | BF14: =OFFSET('2026_full_geo_SCRopt_sup'!$BX$6,$O14,1) -> 65.38 | BG14: =OFFSET('2026_full_geo_SCRoptCC_sup'!$BX$6,$O14,1) -> 65.38 | BH14: =OFFSET('2026_full_geo_SNCRopt_sup'!$BX$6,$O14,1) -> 65.38 | BI14: =OFFSET('2026_full_geo_SNCRoptCC_sup'!$BX$6,$O14,1) -> 65.38 | BJ14: =OFFSET('2026_full_geo_newSCR_sup'!$BX$6,$O14,1) -> 65.29 | BK14: =OFFSET('2026_full_geo_newSCRnon_sup'!$BX$6,$O14,1) -> 65.26 | BL14: =OFFSET('2026_full_geo_nonEGU1st_sup'!$BX$6,$O14,1) -> 65.35 | BM14: =OFFSET('2026_full_geo_IRA_base_sup'!$BX$6,$O14,1) -> 65.40 | BN14: =OFFSET('2026_full_geo_IRA_SCR_sup'!$BX$6,$O14,1) -> 65.31
A15: 40134005 | B15: Arizona | C15: Maricopa | D15: 67.0 | E15: 67 | F15: 62.3 | G15: 62.3 | H15: 73 | I15: 75 | J15: 79 | K15: 73 | L15: 1 | O15: =MATCH($A15,'2026_step3_eng_base_gnp'!$A$7:$A$736,FALSE) -> 31 | P15: =OFFSET('2026gf_All_gnp'!$F$1,$O15,0) -> 61.10 | Q15: =OFFSET('2026_step3_eng_base_gnp'!$BX$6,$O15,0) -> 61.36 | R15: =OFFSET('2026_step3_SCRopt_gnp'!$BX$6,$O15,0) -> 61.35 | S15: =OFFSET('2026_step3_SCRoptwCC_gnp'!$BX$6,$O15,0) -> 61.34 | T15: =OFFSET('2026_step3_SNCRopt_gnp'!$BX$6,$O15,0) -> 61.34 | U15: =OFFSET('2026_step3_SNCRoptwCC_gnp'!$BX$6,$O15,0) -> 61.33 | V15: =OFFSET('2026_step3_newSCR_gnp'!$BX$6,$O15,0) -> 61.15 | W15: =OFFSET('2026_step3_newSCRwnon_sup'!$BX$6,$O15,0) -> 61.09 | X15: =OFFSET('2026_step3_nonegu1st_sup'!$BX$6,$O15,0) -> 61.28 | Y15: =OFFSET('2026_step3_base_wIRA_gnp'!$BX$6,$O15,0) -> 61.46 | Z15: =OFFSET('2026_step3_SCRnon_IRA_sup'!$BX$6,$O15,0) -> 61.17 | AB15: =OFFSET('2026gf_All_gnp'!$G$1,$O15,0) -> 61.10 | AC15: =OFFSET('2026_step3_eng_base_gnp'!$BX$6,$O15,1) -> 61.36 | AD15: =OFFSET('2026_step3_SCRopt_gnp'!$BX$6,$O15,1) -> 61.35 | AE15: =OFFSET('2026_step3_SCRoptwCC_gnp'!$BX$6,$O15,1) -> 61.34 | AF15: =OFFSET('2026_step3_SNCRopt_gnp'!$BX$6,$O15,1) -> 61.34 | AG15: =OFFSET('2026_step3_SNCRoptwCC_gnp'!$BX$6,$O15,1) -> 61.33 | AH15: =OFFSET('2026_step3_newSCR_gnp'!$BX$6,$O15,1) -> 61.15 | AI15: =OFFSET('2026_step3_newSCRwnon_sup'!$BX$6,$O15,1) -> 61.09 | AJ15: =OFFSET('2026_step3_nonegu1st_sup'!$BX$6,$O15,1) -> 61.28 | AK15: =OFFSET('2026_step3_base_wIRA_gnp'!$BX$6,$O15,1) -> 61.46 | AL15: =OFFSET('2026_step3_SCRnon_IRA_sup'!$BX$6,$O15,1) -> 61.17 | AN15: 61.36 | AO15: 61.09 | AP15: 61.36 | AQ15: 61.09 | AT15: =OFFSET('2026_full_geo_base_sup'!$BX$6,$O15,0) -> 61.36 | AU15: =OFFSET('2026_full_geo_SCRopt_sup'!$BX$6,$O15,0) -> 61.35 | AV15: =OFFSET('2026_full_geo_SCRoptCC_sup'!$BX$6,$O15,0) -> 61.34 | AW15: =OFFSET('2026_full_geo_SNCRopt_sup'!$BX$6,$O15,0) -> 61.34 | AX15: =OFFSET('2026_full_geo_SNCRoptCC_sup'!$BX$6,$O15,0) -> 61.33 | AY15: =OFFSET('2026_full_geo_newSCR_sup'!$BX$6,$O15,0) -> 61.07 | AZ15: =OFFSET('2026_full_geo_newSCRnon_sup'!$BX$6,$O15,0) -> 61.01 | BA15: =OFFSET('2026_full_geo_nonEGU1st_sup'!$BX$6,$O15,0) -> 61.27 | BB15: =OFFSET('2026_full_geo_IRA_base_sup'!$BX$6,$O15,0) -> 61.46 | BC15: =OFFSET('2026_full_geo_IRA_SCR_sup'!$BX$6,$O15,0) -> 61.15 | BE15: =OFFSET('2026_full_geo_base_sup'!$BX$6,$O15,1) -> 61.36 | BF15: =OFFSET('2026_full_geo_SCRopt_sup'!$BX$6,$O15,1) -> 61.35 | BG15: =OFFSET('2026_full_geo_SCRoptCC_sup'!$BX$6,$O15,1) -> 61.34 | BH15: =OFFSET('2026_full_geo_SNCRopt_sup'!$BX$6,$O15,1) -> 61.34 | BI15: =OFFSET('2026_full_geo_SNCRoptCC_sup'!$BX$6,$O15,1) -> 61.33 | BJ15: =OFFSET('2026_full_geo_newSCR_sup'!$BX$6,$O15,1) -> 61.07 | BK15: =OFFSET('2026_full_geo_newSCRnon_sup'!$BX$6,$O15,1) -> 61.01 | BL15: =OFFSET('2026_full_geo_nonEGU1st_sup'!$BX$6,$O15,1) -> 61.27 | BM15: =OFFSET('2026_full_geo_IRA_base_sup'!$BX$6,$O15,1) -> 61.46 | BN15: =OFFSET('2026_full_geo_IRA_SCR_sup'!$BX$6,$O15,1) -> 61.15
... 18 more rows

Sheet 2026_DV_summary_shortlist_sup
M1: Sum of the DVs | P1: =SUM(P22,P19:P21,P17:P18,P16,P12:P13,P10:P11,P7:P9,P6) -> 1061.70 | Q1: 1064.70 | R1: 1064.14 | S1: 1064.07 | T1: 1064.06 | U1: 1063.99 | V1: 1057.65 | W1: 1054.81 | X1: 1061.15 | Y1: 1064.70 | Z1: 1055.19 | AB1: =SUM(AB22,AB19:AB21,AB17:AB18,AB16,AB12:AB13,AB10:AB11,AB7:AB9,AB6) -> 1080.60 | AC1: 1083.67 | AD1: 1083.10 | AE1: 1083.03 | AF1: 1083.01 | AG1: 1082.95 | AH1: 1076.49 | AI1: 1073.60 | AJ1: 1080.06 | AK1: 1083.67 | AL1: 1073.98
M2: Average DV value | P2: =AVERAGE(P22,P19:P21,P17:P18,P16,P12:P13,P10:P11,P7:P9,P6) -> 70.78 | Q2: 70.98 | R2: 70.94 | S2: 70.94 | T2: 70.94 | U2: 70.93 | V2: 70.51 | W2: 70.32 | X2: 70.74 | Y2: 70.98 | Z2: 70.35 | AB2: =AVERAGE(AB22,AB19:AB21,AB17:AB18,AB16,AB12:AB13,AB10:AB11,AB7:AB9,AB6) -> 72.04 | AC2: 72.24 | AD2: 72.21 | AE2: 72.20 | AF2: 72.20 | AG2: 72.20 | AH2: 71.77 | AI2: 71.57 | AJ2: 72.00 | AK2: 72.24 | AL2: 71.60
M3: Change in DV | Q3: =$Q2-Q2 -> 0.00 | R3: =$Q2-R2 -> 0.04 | S3: 0.04 | T3: 0.04 | U3: 0.05 | V3: 0.47 | W3: 0.66 | X3: 0.24 | Y3: -0.00 | Z3: 0.63
P4: Avg. DV | Q4: Avg. DV | R4: Avg. DV | S4: Avg. DV | T4: Avg. DV | U4: Avg. DV | V4: Avg. DV | W4: Avg. DV | X4: Avg. DV | Y4: Avg. DV | Z4: Avg. DV | AB4: Max DV | AC4: Max DV | AD4: Max DV | AE4: Max DV | AF4: Max DV | AG4: Max DV | AH4: Max DV | AI4: Max DV | AJ4: Max DV | AK4: Max DV | AL4: Max DV | AN4: Avg. DV | AO4: Avg. DV | AP4: Max DV | AQ4: Max DV | AT4: Avg. DV | AU4: Avg. DV | AV4: Avg. DV | AW4: Avg. DV | AX4: Avg. DV | AY4: Avg. DV | AZ4: Avg. DV | BA4: Avg. DV | BB4: Avg. DV | BC4: Avg. DV | BE4: Max DV | BF4: Max DV | BG4: Max DV | BH4: Max DV | BI4: Max DV | BJ4: Max DV | BK4: Max DV | BL4: Max DV | BM4: Max DV | BN4: Max DV | BP4: Avg. DV | BQ4: Avg. DV | BR4: Avg. DV | BS4: Avg. DV | BU4: Max DV | BV4: Max DV | BW4: Max DV | BX4: Max DV
A5: Site ID | B5: State | C5: County | D5: 2016-Centered Avg | E5: 2016-Centered Max | F5: 2023gf Avg | G5: 2023gf Max | H5: 2021 DV | I5: 2022 DV | J5: 2021 4th | K5: 2022 4th | L5: Violating Monitor Flag (1) | M5: Modeling Receptor Flag (2) | N5: Modeling 2026 receptor Flag (3) | O5: offset rows | P5: 2026_gf | Q5: 2026_step3_base | R5: 2026_step3_SCRopt | S5: 2026_step3_SCRoptwCC | T5: 2026_step3_SNCRopt | U5: 2026_step3_SNCRoptwCC | V5: 2026_step3_newSCR | W5: 2026_step3_newSCRand nonEGU | X5: 2026_step3_nonEGU1st_supp | Y5: 2026_step3_base_wIRA | Z5: 2026_step3_newSCR_wIRA | AB5: 2026_gf | AC5: 2026_step3_base | AD5: 2026_step3_SCRopt | AE5: 2026_step3_SCRoptwCC | AF5: 2026_step3_SNCRopt | AG5: 2026_step3_SNCRoptwCC | AH5: 2026_step3_newSCR | AI5: 2026_step3_newSCRand nonEGU | AJ5: 2026_step3_nonEGU1st_supp | AK5: 2026_step3_base_wIRA | AL5: 2026_step3_newSCR_wIRA | AN5: 2026_step3_base | AO5: 2026_step3_SNCRoptwCC | AP5: 2026_step3_base | AQ5: 2026_step3_SNCRoptwCC | AT5: 2026_full_geo_base | AU5: 2026_full_geo_SCRopt | AV5: 2026_full_geo_SCRoptwCC | AW5: 2026_full_geo_SNCRopt | AX5: 2026_full_geo_SNCRoptwCC | AY5: 2026_full_geo_newSCR | AZ5: 2026_full_geo_newSCRand nonEGU | BA5: 2026_full_geo_nonEGU1st_supp | BB5: 2026_full_geo_base_wIRA | BC5: 2026_full_geo_newSCR_wIRA | BE5: 2026_full_geo_base | BF5: 2026_full_geo_SCRopt | BG5: 2026_full_geo_SCRoptwCC | BH5: 2026_full_geo_SNCRopt | BI5: 2026_full_geo_SNCRoptwCC | BJ5: 2026_full_geo_newSCR | BK5: 2026_full_geo_newSCRand nonEGU | BL5: 2026_full_geo_nonEGU1st_supp | BM5: 2026_full_geo_base_wIRA | BN5: 2026_full_geo_newSCR_wIRA | BP5: =Q5 -> 2026_step3_base | BQ5: =X5 -> 2026_step3_nonEGU1st_supp | BR5: =W5 -> 2026_step3_newSCRand nonEGU | BS5: =Z5 -> 2026_step3_newSCR_wIRA | BU5: =AC5 -> 2026_step3_base | BV5: =AK5 -> 2026_step3_base_wIRA | BW5: =AI5 -> 2026_step3_newSCRand nonEGU | BX5: =AL5 -> 2026_step3_newSCR_wIRA
A6: 40278011 | B6: Arizona | C6: Yuma | D6: 72.3 | E6: 74 | F6: 70.4 | G6: 72.1 | H6: 67 | I6: 68 | J6: 70 | K6: 68 | M6: 2 | N6: 3 | O6: =MATCH($A6,'2026_step3_eng_base_gnp'!$A$7:$A$736,FALSE) -> 60 | P6: =OFFSET('2026gf_All_gnp'!$F$1,$O6,0) -> 69.90 | Q6: =OFFSET('2026_step3_eng_base_gnp'!$BX$6,$O6,0) -> 69.87 | R6: =OFFSET('2026_step3_SCRopt_gnp'!$BX$6,$O6,0) -> 69.86 | S6: =OFFSET('2026_step3_SCRoptwCC_gnp'!$BX$6,$O6,0) -> 69.86 | T6: =OFFSET('2026_step3_SNCRopt_gnp'!$BX$6,$O6,0) -> 69.86 | U6: =OFFSET('2026_step3_SNCRoptwCC_gnp'!$BX$6,$O6,0) -> 69.86 | V6: =OFFSET('2026_step3_newSCR_gnp'!$BX$6,$O6,0) -> 69.84 | W6: =OFFSET('2026_step3_newSCRwnon_sup'!$BX$6,$O6,0) -> 69.80 | X6: =OFFSET('2026_step3_nonegu1st_sup'!$BX$6,$O6,0) -> 69.82 | Y6: =OFFSET('2026_step3_base_wIRA_gnp'!$BX$6,$O6,0) -> 69.89 | Z6: =OFFSET('2026_step3_SCRnon_IRA_sup'!$BX$6,$O6,0) -> 69.81 | AB6: =OFFSET('2026gf_All_gnp'!$G$1,$O6,0) -> 71.50 | AC6: =OFFSET('2026_step3_eng_base_gnp'!$BX$6,$O6,1) -> 71.47 | AD6: =OFFSET('2026_step3_SCRopt_gnp'!$BX$6,$O6,1) -> 71.46 | AE6: =OFFSET('2026_step3_SCRoptwCC_gnp'!$BX$6,$O6,1) -> 71.46 | AF6: =OFFSET('2026_step3_SNCRopt_gnp'!$BX$6,$O6,1) -> 71.46 | AG6: =OFFSET('2026_step3_SNCRoptwCC_gnp'!$BX$6,$O6,1) -> 71.46 | AH6: =OFFSET('2026_step3_newSCR_gnp'!$BX$6,$O6,1) -> 71.44 | AI6: =OFFSET('2026_step3_newSCRwnon_sup'!$BX$6,$O6,1) -> 71.39 | AJ6: =OFFSET('2026_step3_nonegu1st_sup'!$BX$6,$O6,1) -> 71.42 | AK6: =OFFSET('2026_step3_base_wIRA_gnp'!$BX$6,$O6,1) -> 71.49 | AL6: =OFFSET('2026_step3_SCRnon_IRA_sup'!$BX$6,$O6,1) -> 71.41 | AN6: =Q6 -> 69.87 | AO6: =W6 -> 69.80 | AP6: =AC6 -> 71.47 | AQ6: =AI6 -> 71.39 | AT6: =OFFSET('2026_full_geo_base_sup'!$BX$6,$O6,0) -> 69.87 | AU6: =OFFSET('2026_full_geo_SCRopt_sup'!$BX$6,$O6,0) -> 69.86 | AV6: =OFFSET('2026_full_geo_SCRoptCC_sup'!$BX$6,$O6,0) -> 69.86 | AW6: =OFFSET('2026_full_geo_SNCRopt_sup'!$BX$6,$O6,0) -> 69.86 | AX6: =OFFSET('2026_full_geo_SNCRoptCC_sup'!$BX$6,$O6,0) -> 69.86 | AY6: =OFFSET('2026_full_geo_newSCR_sup'!$BX$6,$O6,0) -> 69.82 | AZ6: =OFFSET('2026_full_geo_newSCRnon_sup'!$BX$6,$O6,0) -> 69.77 | BA6: =OFFSET('2026_full_geo_nonEGU1st_sup'!$BX$6,$O6,0) -> 69.82 | BB6: =OFFSET('2026_full_geo_IRA_base_sup'!$BX$6,$O6,0) -> 69.89 | BC6: =OFFSET('2026_full_geo_IRA_SCR_sup'!$BX$6,$O6,0) -> 69.83 | BE6: =OFFSET('2026_full_geo_base_sup'!$BX$6,$O6,1) -> 71.47 | BF6: =OFFSET('2026_full_geo_SCRopt_sup'!$BX$6,$O6,1) -> 71.46 | BG6: =OFFSET('2026_full_geo_SCRoptCC_sup'!$BX$6,$O6,1) -> 71.46 | BH6: =OFFSET('2026_full_geo_SNCRopt_sup'!$BX$6,$O6,1) -> 71.46 | BI6: =OFFSET('2026_full_geo_SNCRoptCC_sup'!$BX$6,$O6,1) -> 71.46 | BJ6: =OFFSET('2026_full_geo_newSCR_sup'!$BX$6,$O6,1) -> 71.41 | BK6: =OFFSET('2026_full_geo_newSCRnon_sup'!$BX$6,$O6,1) -> 71.37 | BL6: =OFFSET('2026_full_geo_nonEGU1st_sup'!$BX$6,$O6,1) -> 71.41 | BM6: =OFFSET('2026_full_geo_IRA_base_sup'!$BX$6,$O6,1) -> 71.49 | BN6: =OFFSET('2026_full_geo_IRA_SCR_sup'!$BX$6,$O6,1) -> 71.43 | BP6: =Q6 -> 69.87 | BQ6: =X6 -> 69.82 | BR6: =W6 -> 69.80 | BS6: =Z6 -> 69.81 | BU6: =AC6 -> 71.47 | BV6: =AK6 -> 71.49 | BW6: =AI6 -> 71.39 | BX6: =AL6 -> 71.41
A7: 80590006 | B7: Colorado | C7: Jefferson | D7: 77.3 | E7: 78 | F7: 72.8 | G7: 73.5 | H7: 81 | I7: 83 | J7: 87 | K7: 78 | M7: 2 | N7: 3 | O7: =MATCH($A7,'2026_step3_eng_base_gnp'!$A$7:$A$736,FALSE) -> 181 | P7: =OFFSET('2026gf_All_gnp'!$F$1,$O7,0) -> 72.00 | Q7: =OFFSET('2026_step3_eng_base_gnp'!$BX$6,$O7,0) -> 71.70 | R7: =OFFSET('2026_step3_SCRopt_gnp'!$BX$6,$O7,0) -> 71.69 | S7: =OFFSET('2026_step3_SCRoptwCC_gnp'!$BX$6,$O7,0) -> 71.69 | T7: =OFFSET('2026_step3_SNCRopt_gnp'!$BX$6,$O7,0) -> 71.69 | U7: =OFFSET('2026_step3_SNCRoptwCC_gnp'!$BX$6,$O7,0) -> 71.69 | V7: =OFFSET('2026_step3_newSCR_gnp'!$BX$6,$O7,0) -> 71.36 | W7: =OFFSET('2026_step3_newSCRwnon_sup'!$BX$6,$O7,0) -> 71.34 | X7: =OFFSET('2026_step3_nonegu1st_sup'!$BX$6,$O7,0) -> 71.67 | Y7: =OFFSET('2026_step3_base_wIRA_gnp'!$BX$6,$O7,0) -> 71.73 | Z7: =OFFSET('2026_step3_SCRnon_IRA_sup'!$BX$6,$O7,0) -> 71.38 | AB7: =OFFSET('2026gf_All_gnp'!$G$1,$O7,0) -> 72.60 | AC7: =OFFSET('2026_step3_eng_base_gnp'!$BX$6,$O7,1) -> 72.30 | AD7: =OFFSET('2026_step3_SCRopt_gnp'!$BX$6,$O7,1) -> 72.29 | AE7: =OFFSET('2026_step3_SCRoptwCC_gnp'!$BX$6,$O7,1) -> 72.29 | AF7: =OFFSET('2026_step3_SNCRopt_gnp'!$BX$6,$O7,1) -> 72.29 | AG7: =OFFSET('2026_step3_SNCRoptwCC_gnp'!$BX$6,$O7,1) -> 72.29 | AH7: =OFFSET('2026_step3_newSCR_gnp'!$BX$6,$O7,1) -> 71.95 | AI7: =OFFSET('2026_step3_newSCRwnon_sup'!$BX$6,$O7,1) -> 71.93 | AJ7: =OFFSET('2026_step3_nonegu1st_sup'!$BX$6,$O7,1) -> 72.26 | AK7: =OFFSET('2026_step3_base_wIRA_gnp'!$BX$6,$O7,1) -> 72.33 | AL7: =OFFSET('2026_step3_SCRnon_IRA_sup'!$BX$6,$O7,1) -> 71.97 | AN7: 71.70 | AO7: 71.34 | AP7: 72.30 | AQ7: 71.93 | AT7: =OFFSET('2026_full_geo_base_sup'!$BX$6,$O7,0) -> 71.70 | AU7: =OFFSET('2026_full_geo_SCRopt_sup'!$BX$6,$O7,0) -> 71.70 | AV7: =OFFSET('2026_full_geo_SCRoptCC_sup'!$BX$6,$O7,0) -> 71.70 | AW7: =OFFSET('2026_full_geo_SNCRopt_sup'!$BX$6,$O7,0) -> 71.70 | AX7: =OFFSET('2026_full_geo_SNCRoptCC_sup'!$BX$6,$O7,0) -> 71.69 | AY7: =OFFSET('2026_full_geo_newSCR_sup'!$BX$6,$O7,0) -> 71.52 | AZ7: =OFFSET('2026_full_geo_newSCRnon_sup'!$BX$6,$O7,0) -> 71.50 | BA7: =OFFSET('2026_full_geo_nonEGU1st_sup'!$BX$6,$O7,0) -> 71.67 | BB7: =OFFSET('2026_full_geo_IRA_base_sup'!$BX$6,$O7,0) -> 71.73 | BC7: =OFFSET('2026_full_geo_IRA_SCR_sup'!$BX$6,$O7,0) -> 71.56 | BE7: =OFFSET('2026_full_geo_base_sup'!$BX$6,$O7,1) -> 72.30 | BF7: =OFFSET('2026_full_geo_SCRopt_sup'!$BX$6,$O7,1) -> 72.29 | BG7: =OFFSET('2026_full_geo_SCRoptCC_sup'!$BX$6,$O7,1) -> 72.29 | BH7: =OFFSET('2026_full_geo_SNCRopt_sup'!$BX$6,$O7,1) -> 72.29 | BI7: =OFFSET('2026_full_geo_SNCRoptCC_sup'!$BX$6,$O7,1) -> 72.29 | BJ7: =OFFSET('2026_full_geo_newSCR_sup'!$BX$6,$O7,1) -> 72.12 | BK7: =OFFSET('2026_full_geo_newSCRnon_sup'!$BX$6,$O7,1) -> 72.09 | BL7: =OFFSET('2026_full_geo_nonEGU1st_sup'!$BX$6,$O7,1) -> 72.27 | BM7: =OFFSET('2026_full_geo_IRA_base_sup'!$BX$6,$O7,1) -> 72.33 | BN7: =OFFSET('2026_full_geo_IRA_SCR_sup'!$BX$6,$O7,1) -> 72.15 | BP7: =Q7 -> 71.70 | BQ7: =X7 -> 71.67 | BR7: =W7 -> 71.34 | BS7: =Z7 -> 71.38 | BU7: =AC7 -> 72.30 | BV7: =AK7 -> 72.33 | BW7: =AI7 -> 71.93 | BX7: =AL7 -> 71.97
A8: 80590011 | B8: Colorado | C8: Jefferson | D8: 79.3 | E8: 80 | F8: 73.5 | G8: 74.1 | H8: 83 | I8: 84 | J8: 89 | K8: 77 | M8: 2 | N8: 3 | O8: =MATCH($A8,'2026_step3_eng_base_gnp'!$A$7:$A$736,FALSE) -> 182 | P8: =OFFSET('2026gf_All_gnp'!$F$1,$O8,0) -> 72.40 | Q8: =OFFSET('2026_step3_eng_base_gnp'!$BX$6,$O8,0) -> 72.06 | R8: =OFFSET('2026_step3_SCRopt_gnp'!$BX$6,$O8,0) -> 72.05 | S8: =OFFSET('2026_step3_SCRoptwCC_gnp'!$BX$6,$O8,0) -> 72.05 | T8: =OFFSET('2026_step3_SNCRopt_gnp'!$BX$6,$O8,0) -> 72.05 | U8: =OFFSET('2026_step3_SNCRoptwCC_gnp'!$BX$6,$O8,0) -> 72.05 | V8: =OFFSET('2026_step3_newSCR_gnp'!$BX$6,$O8,0) -> 71.59 | W8: =OFFSET('2026_step3_newSCRwnon_sup'!$BX$6,$O8,0) -> 71.57 | X8: =OFFSET('2026_step3_nonegu1st_sup'!$BX$6,$O8,0) -> 72.02 | Y8: =OFFSET('2026_step3_base_wIRA_gnp'!$BX$6,$O8,0) -> 72.10 | Z8: =OFFSET('2026_step3_SCRnon_IRA_sup'!$BX$6,$O8,0) -> 71.62 | AB8: =OFFSET('2026gf_All_gnp'!$G$1,$O8,0) -> 73.00 | AC8: =OFFSET('2026_step3_eng_base_gnp'!$BX$6,$O8,1) -> 72.66 | AD8: =OFFSET('2026_step3_SCRopt_gnp'!$BX$6,$O8,1) -> 72.65 | AE8: =OFFSET('2026_step3_SCRoptwCC_gnp'!$BX$6,$O8,1) -> 72.65 | AF8: =OFFSET('2026_step3_SNCRopt_gnp'!$BX$6,$O8,1) -> 72.65 | AG8: =OFFSET('2026_step3_SNCRoptwCC_gnp'!$BX$6,$O8,1) -> 72.65 | AH8: =OFFSET('2026_step3_newSCR_gnp'!$BX$6,$O8,1) -> 72.19 | AI8: =OFFSET('2026_step3_newSCRwnon_sup'!$BX$6,$O8,1) -> 72.16 | AJ8: =OFFSET('2026_step3_nonegu1st_sup'!$BX$6,$O8,1) -> 72.62 | AK8: =OFFSET('2026_step3_base_wIRA_gnp'!$BX$6,$O8,1) -> 72.70 | AL8: =OFFSET('2026_step3_SCRnon_IRA_sup'!$BX$6,$O8,1) -> 72.21 | AN8: 72.06 | AO8: 71.57 | AP8: 72.66 | AQ8: 72.16 | AT8: =OFFSET('2026_full_geo_base_sup'!$BX$6,$O8,0) -> 72.06 | AU8: =OFFSET('2026_full_geo_SCRopt_sup'!$BX$6,$O8,0) -> 72.06 | AV8: =OFFSET('2026_full_geo_SCRoptCC_sup'!$BX$6,$O8,0) -> 72.06 | AW8: =OFFSET('2026_full_geo_SNCRopt_sup'!$BX$6,$O8,0) -> 72.06 | AX8: =OFFSET('2026_full_geo_SNCRoptCC_sup'!$BX$6,$O8,0) -> 72.06 | AY8: =OFFSET('2026_full_geo_newSCR_sup'!$BX$6,$O8,0) -> 71.79 | AZ8: =OFFSET('2026_full_geo_newSCRnon_sup'!$BX$6,$O8,0) -> 71.76 | BA8: =OFFSET('2026_full_geo_nonEGU1st_sup'!$BX$6,$O8,0) -> 72.03 | BB8: =OFFSET('2026_full_geo_IRA_base_sup'!$BX$6,$O8,0) -> 72.10 | BC8: =OFFSET('2026_full_geo_IRA_SCR_sup'!$BX$6,$O8,0) -> 71.83 | BE8: =OFFSET('2026_full_geo_base_sup'!$BX$6,$O8,1) -> 72.66 | BF8: =OFFSET('2026_full_geo_SCRopt_sup'!$BX$6,$O8,1) -> 72.66 | BG8: =OFFSET('2026_full_geo_SCRoptCC_sup'!$BX$6,$O8,1) -> 72.66 | BH8: =OFFSET('2026_full_geo_SNCRopt_sup'!$BX$6,$O8,1) -> 72.65 | BI8: =OFFSET('2026_full_geo_SNCRoptCC_sup'!$BX$6,$O8,1) -> 72.65 | BJ8: =OFFSET('2026_full_geo_newSCR_sup'!$BX$6,$O8,1) -> 72.38 | BK8: =OFFSET('2026_full_geo_newSCRnon_sup'!$BX$6,$O8,1) -> 72.35 | BL8: =OFFSET('2026_full_geo_nonEGU1st_sup'!$BX$6,$O8,1) -> 72.62 | BM8: =OFFSET('2026_full_geo_IRA_base_sup'!$BX$6,$O8,1) -> 72.70 | BN8: =OFFSET('2026_full_geo_IRA_SCR_sup'!$BX$6,$O8,1) -> 72.43 | BP8: 72.06 | BQ8: 72.02 | BR8: 71.57 | BS8: 71.62 | BU8: 72.66 | BV8: 72.70 | BW8: 72.16 | BX8: 72.21
A9: 80690011 | B9: Colorado | C9: Larimer | D9: 75.7 | E9: 77 | F9: 70.9 | G9: 72.1 | H9: 77 | I9: 77 | J9: 85 | K9: 73 | M9: 2 | N9: 3 | O9: =MATCH($A9,'2026_step3_eng_base_gnp'!$A$7:$A$736,FALSE) -> 188 | P9: =OFFSET('2026gf_All_gnp'!$F$1,$O9,0) -> 70.00 | Q9: =OFFSET('2026_step3_eng_base_gnp'!$BX$6,$O9,0) -> 69.84 | R9: =OFFSET('2026_step3_SCRopt_gnp'!$BX$6,$O9,0) -> 69.83 | S9: =OFFSET('2026_step3_SCRoptwCC_gnp'!$BX$6,$O9,0) -> 69.83 | T9: =OFFSET('2026_step3_SNCRopt_gnp'!$BX$6,$O9,0) -> 69.83 | U9: =OFFSET('2026_step3_SNCRoptwCC_gnp'!$BX$6,$O9,0) -> 69.83 | V9: =OFFSET('2026_step3_newSCR_gnp'!$BX$6,$O9,0) -> 69.54 | W9: =OFFSET('2026_step3_newSCRwnon_sup'!$BX$6,$O9,0) -> 69.53 | X9: =OFFSET('2026_step3_nonegu1st_sup'!$BX$6,$O9,0) -> 69.81 | Y9: =OFFSET('2026_step3_base_wIRA_gnp'!$BX$6,$O9,0) -> 69.87 | Z9: =OFFSET('2026_step3_SCRnon_IRA_sup'!$BX$6,$O9,0) -> 69.56 | AB9: =OFFSET('2026gf_All_gnp'!$G$1,$O9,0) -> 71.20 | AC9: =OFFSET('2026_step3_eng_base_gnp'!$BX$6,$O9,1) -> 71.04 | AD9: =OFFSET('2026_step3_SCRopt_gnp'!$BX$6,$O9,1) -> 71.03 | AE9: =OFFSET('2026_step3_SCRoptwCC_gnp'!$BX$6,$O9,1) -> 71.03 | AF9: =OFFSET('2026_step3_SNCRopt_gnp'!$BX$6,$O9,1) -> 71.03 | AG9: =OFFSET('2026_step3_SNCRoptwCC_gnp'!$BX$6,$O9,1) -> 71.03 | AH9: =OFFSET('2026_step3_newSCR_gnp'!$BX$6,$O9,1) -> 70.73 | AI9: =OFFSET('2026_step3_newSCRwnon_sup'!$BX$6,$O9,1) -> 70.72 | AJ9: =OFFSET('2026_step3_nonegu1st_sup'!$BX$6,$O9,1) -> 71.01 | AK9: =OFFSET('2026_step3_base_wIRA_gnp'!$BX$6,$O9,1) -> 71.07 | AL9: =OFFSET('2026_step3_SCRnon_IRA_sup'!$BX$6,$O9,1) -> 70.75 | AN9: 69.84 | AO9: 69.53 | AP9: 71.04 | AQ9: 70.72 | AT9: =OFFSET('2026_full_geo_base_sup'!$BX$6,$O9,0) -> 69.84 | AU9: =OFFSET('2026_full_geo_SCRopt_sup'!$BX$6,$O9,0) -> 69.84 | AV9: =OFFSET('2026_full_geo_SCRoptCC_sup'!$BX$6,$O9,0) -> 69.84 | AW9: =OFFSET('2026_full_geo_SNCRopt_sup'!$BX$6,$O9,0) -> 69.84 | AX9: =OFFSET('2026_full_geo_SNCRoptCC_sup'!$BX$6,$O9,0) -> 69.84 | AY9: =OFFSET('2026_full_geo_newSCR_sup'!$BX$6,$O9,0) -> 69.66 | AZ9: =OFFSET('2026_full_geo_newSCRnon_sup'!$BX$6,$O9,0) -> 69.64 | BA9: =OFFSET('2026_full_geo_nonEGU1st_sup'!$BX$6,$O9,0) -> 69.81 | BB9: =OFFSET('2026_full_geo_IRA_base_sup'!$BX$6,$O9,0) -> 69.87 | BC9: =OFFSET('2026_full_geo_IRA_SCR_sup'!$BX$6,$O9,0) -> 69.70 | BE9: =OFFSET('2026_full_geo_base_sup'!$BX$6,$O9,1) -> 71.04 | BF9: =OFFSET('2026_full_geo_SCRopt_sup'!$BX$6,$O9,1) -> 71.04 | BG9: =OFFSET('2026_full_geo_SCRoptCC_sup'!$BX$6,$O9,1) -> 71.03 | BH9: =OFFSET('2026_full_geo_SNCRopt_sup'!$BX$6,$O9,1) -> 71.03 | BI9: =OFFSET('2026_full_geo_SNCRoptCC_sup'!$BX$6,$O9,1) -> 71.03 | BJ9: =OFFSET('2026_full_geo_newSCR_sup'!$BX$6,$O9,1) -> 70.86 | BK9: =OFFSET('2026_full_geo_newSCRnon_sup'!$BX$6,$O9,1) -> 70.84 | BL9: =OFFSET('2026_full_geo_nonEGU1st_sup'!$BX$6,$O9,1) -> 71.01 | BM9: =OFFSET('2026_full_geo_IRA_base_sup'!$BX$6,$O9,1) -> 71.07 | BN9: =OFFSET('2026_full_geo_IRA_SCR_sup'!$BX$6,$O9,1) -> 70.89 | BP9: 69.84 | BQ9: 69.81 | BR9: 69.53 | BS9: 69.56 | BU9: 71.04 | BV9: 71.07 | BW9: 70.72 | BX9: 70.75
A10: 90013007 | B10: Connecticut | C10: Fairfield | D10: 82.0 | E10: 83 | F10: 72.9 | G10: 73.8 | H10: 81 | I10: 81 | J10: 86 | K10: 81 | M10: 2 | N10: 3 | O10: =MATCH($A10,'2026_step3_eng_base_gnp'!$A$7:$A$736,FALSE) -> 199 | P10: =OFFSET('2026gf_All_gnp'!$F$1,$O10,0) -> 70.90 | Q10: =OFFSET('2026_step3_eng_base_gnp'!$BX$6,$O10,0) -> 71.25 | R10: =OFFSET('2026_step3_SCRopt_gnp'!$BX$6,$O10,0) -> 71.20 | S10: =OFFSET('2026_step3_SCRoptwCC_gnp'!$BX$6,$O10,0) -> 71.18 | T10: =OFFSET('2026_step3_SNCRopt_gnp'!$BX$6,$O10,0) -> 71.18 | U10: =OFFSET('2026_step3_SNCRoptwCC_gnp'!$BX$6,$O10,0) -> 71.17 | V10: =OFFSET('2026_step3_newSCR_gnp'!$BX$6,$O10,0) -> 70.98 | W10: =OFFSET('2026_step3_newSCRwnon_sup'!$BX$6,$O10,0) -> 70.66 | X10: =OFFSET('2026_step3_nonegu1st_sup'!$BX$6,$O10,0) -> 70.85 | Y10: =OFFSET('2026_step3_base_wIRA_gnp'!$BX$6,$O10,0) -> 71.18 | Z10: =OFFSET('2026_step3_SCRnon_IRA_sup'!$BX$6,$O10,0) -> 70.63 | AB10: =OFFSET('2026gf_All_gnp'!$G$1,$O10,0) -> 71.70 | AC10: =OFFSET('2026_step3_eng_base_gnp'!$BX$6,$O10,1) -> 72.06 | AD10: =OFFSET('2026_step3_SCRopt_gnp'!$BX$6,$O10,1) -> 72.00 | AE10: =OFFSET('2026_step3_SCRoptwCC_gnp'!$BX$6,$O10,1) -> 71.98 | AF10: =OFFSET('2026_step3_SNCRopt_gnp'!$BX$6,$O10,1) -> 71.99 | AG10: =OFFSET('2026_step3_SNCRoptwCC_gnp'!$BX$6,$O10,1) -> 71.97 | AH10: =OFFSET('2026_step3_newSCR_gnp'!$BX$6,$O10,1) -> 71.78 | AI10: =OFFSET('2026_step3_newSCRwnon_sup'!$BX$6,$O10,1) -> 71.46 | AJ10: =OFFSET('2026_step3_nonegu1st_sup'!$BX$6,$O10,1) -> 71.65 | AK10: =OFFSET('2026_step3_base_wIRA_gnp'!$BX$6,$O10,1) -> 71.99 | AL10: =OFFSET('2026_step3_SCRnon_IRA_sup'!$BX$6,$O10,1) -> 71.42 | AN10: 71.25 | AO10: 70.66 | AP10: 72.06 | AQ10: 71.46 | AT10: =OFFSET('2026_full_geo_base_sup'!$BX$6,$O10,0) -> 71.25 | AU10: =OFFSET('2026_full_geo_SCRopt_sup'!$BX$6,$O10,0) -> 71.17 | AV10: =OFFSET('2026_full_geo_SCRoptCC_sup'!$BX$6,$O10,0) -> 71.15 | AW10: =OFFSET('2026_full_geo_SNCRopt_sup'!$BX$6,$O10,0) -> 71.16 | AX10: =OFFSET('2026_full_geo_SNCRoptCC_sup'!$BX$6,$O10,0) -> 71.14 | AY10: =OFFSET('2026_full_geo_newSCR_sup'!$BX$6,$O10,0) -> 70.89 | AZ10: =OFFSET('2026_full_geo_newSCRnon_sup'!$BX$6,$O10,0) -> 70.52 | BA10: =OFFSET('2026_full_geo_nonEGU1st_sup'!$BX$6,$O10,0) -> 70.77 | BB10: =OFFSET('2026_full_geo_IRA_base_sup'!$BX$6,$O10,0) -> 71.18 | BC10: =OFFSET('2026_full_geo_IRA_SCR_sup'!$BX$6,$O10,0) -> 70.85 | BE10: =OFFSET('2026_full_geo_base_sup'!$BX$6,$O10,1) -> 72.06 | BF10: =OFFSET('2026_full_geo_SCRopt_sup'!$BX$6,$O10,1) -> 71.97 | BG10: =OFFSET('2026_full_geo_SCRoptCC_sup'!$BX$6,$O10,1) -> 71.95 | BH10: =OFFSET('2026_full_geo_SNCRopt_sup'!$BX$6,$O10,1) -> 71.96 | BI10: =OFFSET('2026_full_geo_SNCRoptCC_sup'!$BX$6,$O10,1) -> 71.94 | BJ10: =OFFSET('2026_full_geo_newSCR_sup'!$BX$6,$O10,1) -> 71.69 | BK10: =OFFSET('2026_full_geo_newSCRnon_sup'!$BX$6,$O10,1) -> 71.31 | BL10: =OFFSET('2026_full_geo_nonEGU1st_sup'!$BX$6,$O10,1) -> 71.57 | BM10: =OFFSET('2026_full_geo_IRA_base_sup'!$BX$6,$O10,1) -> 71.99 | BN10: =OFFSET('2026_full_geo_IRA_SCR_sup'!$BX$6,$O10,1) -> 71.65 | BP10: 71.25 | BQ10: 70.85 | BR10: 70.66 | BS10: 70.63 | BU10: 72.06 | BV10: 71.99 | BW10: 71.46 | BX10: 71.42
A11: 90019003 | B11: Connecticut | C11: Fairfield | D11: 82.7 | E11: 83 | F11: 73.3 | G11: 73.6 | H11: 80 | I11: 80 | J11: 86 | K11: 81 | M11: 2 | N11: 3 | O11: =MATCH($A11,'2026_step3_eng_base_gnp'!$A$7:$A$736,FALSE) -> 200 | P11: =OFFSET('2026gf_All_gnp'!$F$1,$O11,0) -> 71.30 | Q11: =OFFSET('2026_step3_eng_base_gnp'!$BX$6,$O11,0) -> 71.58 | R11: =OFFSET('2026_step3_SCRopt_gnp'!$BX$6,$O11,0) -> 71.53 | S11: =OFFSET('2026_step3_SCRoptwCC_gnp'!$BX$6,$O11,0) -> 71.52 | T11: =OFFSET('2026_step3_SNCRopt_gnp'!$BX$6,$O11,0) -> 71.52 | U11: =OFFSET('2026_step3_SNCRoptwCC_gnp'!$BX$6,$O11,0) -> 71.51 | V11: =OFFSET('2026_step3_newSCR_gnp'!$BX$6,$O11,0) -> 71.34 | W11: =OFFSET('2026_step3_newSCRwnon_sup'!$BX$6,$O11,0) -> 71.06 | X11: =OFFSET('2026_step3_nonegu1st_sup'!$BX$6,$O11,0) -> 71.23 | Y11: =OFFSET('2026_step3_base_wIRA_gnp'!$BX$6,$O11,0) -> 71.51 | Z11: =OFFSET('2026_step3_SCRnon_IRA_sup'!$BX$6,$O11,0) -> 71.03 | AB11: =OFFSET('2026gf_All_gnp'!$G$1,$O11,0) -> 71.50 | AC11: =OFFSET('2026_step3_eng_base_gnp'!$BX$6,$O11,1) -> 71.78 | AD11: =OFFSET('2026_step3_SCRopt_gnp'!$BX$6,$O11,1) -> 71.73 | AE11: =OFFSET('2026_step3_SCRoptwCC_gnp'!$BX$6,$O11,1) -> 71.72 | AF11: =OFFSET('2026_step3_SNCRopt_gnp'!$BX$6,$O11,1) -> 71.72 | AG11: =OFFSET('2026_step3_SNCRoptwCC_gnp'!$BX$6,$O11,1) -> 71.71 | AH11: =OFFSET('2026_step3_newSCR_gnp'!$BX$6,$O11,1) -> 71.54 | AI11: =OFFSET('2026_step3_newSCRwnon_sup'!$BX$6,$O11,1) -> 71.26 | AJ11: =OFFSET('2026_step3_nonegu1st_sup'!$BX$6,$O11,1) -> 71.43 | AK11: =OFFSET('2026_step3_base_wIRA_gnp'!$BX$6,$O11,1) -> 71.71 | AL11: =OFFSET('2026_step3_SCRnon_IRA_sup'!$BX$6,$O11,1) -> 71.23 | AN11: 71.58 | AO11: 71.06 | AP11: 71.78 | AQ11: 71.26 | AT11: =OFFSET('2026_full_geo_base_sup'!$BX$6,$O11,0) -> 71.58 | AU11: =OFFSET('2026_full_geo_SCRopt_sup'!$BX$6,$O11,0) -> 71.51 | AV11: =OFFSET('2026_full_geo_SCRoptCC_sup'!$BX$6,$O11,0) -> 71.49 | AW11: =OFFSET('2026_full_geo_SNCRopt_sup'!$BX$6,$O11,0) -> 71.50 | AX11: =OFFSET('2026_full_geo_SNCRoptCC_sup'!$BX$6,$O11,0) -> 71.48 | AY11: =OFFSET('2026_full_geo_newSCR_sup'!$BX$6,$O11,0) -> 71.25 | AZ11: =OFFSET('2026_full_geo_newSCRnon_sup'!$BX$6,$O11,0) -> 70.93 | BA11: =OFFSET('2026_full_geo_nonEGU1st_sup'!$BX$6,$O11,0) -> 71.16 | BB11: =OFFSET('2026_full_geo_IRA_base_sup'!$BX$6,$O11,0) -> 71.51 | BC11: =OFFSET('2026_full_geo_IRA_SCR_sup'!$BX$6,$O11,0) -> 71.22 | BE11: =OFFSET('2026_full_geo_base_sup'!$BX$6,$O11,1) -> 71.78 | BF11: =OFFSET('2026_full_geo_SCRopt_sup'!$BX$6,$O11,1) -> 71.71 | BG11: =OFFSET('2026_full_geo_SCRoptCC_sup'!$BX$6,$O11,1) -> 71.69 | BH11: =OFFSET('2026_full_geo_SNCRopt_sup'!$BX$6,$O11,1) -> 71.70 | BI11: =OFFSET('2026_full_geo_SNCRoptCC_sup'!$BX$6,$O11,1) -> 71.68 | BJ11: =OFFSET('2026_full_geo_newSCR_sup'!$BX$6,$O11,1) -> 71.45 | BK11: =OFFSET('2026_full_geo_newSCRnon_sup'!$BX$6,$O11,1) -> 71.13 | BL11: =OFFSET('2026_full_geo_nonEGU1st_sup'!$BX$6,$O11,1) -> 71.36 | BM11: =OFFSET('2026_full_geo_IRA_base_sup'!$BX$6,$O11,1) -> 71.71 | BN11: =OFFSET('2026_full_geo_IRA_SCR_sup'!$BX$6,$O11,1) -> 71.42 | BP11: 71.58 | BQ11: 71.23 | BR11: 71.06 | BS11: 71.03 | BU11: 71.78 | BV11: 71.71 | BW11: 71.26 | BX11: 71.23
A12: 350130021 | B12: New Mexico | C12: Dona Ana | D12: 72.7 | E12: 74 | F12: 70.8 | G12: 72.1 | H12: 80 | I12: 81 | J12: 86 | K12: 80 | M12: 2 | N12: 3 | O12: =MATCH($A12,'2026_step3_eng_base_gnp'!$A$7:$A$736,FALSE) -> 447 | P12: =OFFSET('2026gf_All_gnp'!$F$1,$O12,0) -> 69.90 | Q12: =OFFSET('2026_step3_eng_base_gnp'!$BX$6,$O12,0) -> 70.06 | R12: =OFFSET('2026_step3_SCRopt_gnp'!$BX$6,$O12,0) -> 70.05 | S12: =OFFSET('2026_step3_SCRoptwCC_gnp'!$BX$6,$O12,0) -> 70.05 | T12: =OFFSET('2026_step3_SNCRopt_gnp'!$BX$6,$O12,0) -> 70.05 | U12: =OFFSET('2026_step3_SNCRoptwCC_gnp'!$BX$6,$O12,0) -> 70.05 | V12: =OFFSET('2026_step3_newSCR_gnp'!$BX$6,$O12,0) -> 69.89 | W12: =OFFSET('2026_step3_newSCRwnon_sup'!$BX$6,$O12,0) -> 69.86 | X12: =OFFSET('2026_step3_nonegu1st_sup'!$BX$6,$O12,0) -> 70.01 | Y12: =OFFSET('2026_step3_base_wIRA_gnp'!$BX$6,$O12,0) -> 70.08 | Z12: =OFFSET('2026_step3_SCRnon_IRA_sup'!$BX$6,$O12,0) -> 69.88 | AB12: =OFFSET('2026gf_All_gnp'!$G$1,$O12,0) -> 71.20 | AC12: =OFFSET('2026_step3_eng_base_gnp'!$BX$6,$O12,1) -> 71.36 | AD12: =OFFSET('2026_step3_SCRopt_gnp'!$BX$6,$O12,1) -> 71.35 | AE12: =OFFSET('2026_step3_SCRoptwCC_gnp'!$BX$6,$O12,1) -> 71.35 | AF12: =OFFSET('2026_step3_SNCRopt_gnp'!$BX$6,$O12,1) -> 71.35 | AG12: =OFFSET('2026_step3_SNCRoptwCC_gnp'!$BX$6,$O12,1) -> 71.35 | AH12: =OFFSET('2026_step3_newSCR_gnp'!$BX$6,$O12,1) -> 71.19 | AI12: =OFFSET('2026_step3_newSCRwnon_sup'!$BX$6,$O12,1) -> 71.16 | AJ12: =OFFSET('2026_step3_nonegu1st_sup'!$BX$6,$O12,1) -> 71.31 | AK12: =OFFSET('2026_step3_base_wIRA_gnp'!$BX$6,$O12,1) -> 71.38 | AL12: =OFFSET('2026_step3_SCRnon_IRA_sup'!$BX$6,$O12,1) -> 71.18 | AN12: 70.06 | AO12: 69.86 | AP12: 71.36 | AQ12: 71.16 | AT12: =OFFSET('2026_full_geo_base_sup'!$BX$6,$O12,0) -> 70.06 | AU12: =OFFSET('2026_full_geo_SCRopt_sup'!$BX$6,$O12,0) -> 70.05 | AV12: =OFFSET('2026_full_geo_SCRoptCC_sup'!$BX$6,$O12,0) -> 70.05 | AW12: =OFFSET('2026_full_geo_SNCRopt_sup'!$BX$6,$O12,0) -> 70.05 | AX12: =OFFSET('2026_full_geo_SNCRoptCC_sup'!$BX$6,$O12,0) -> 70.05 | AY12: =OFFSET('2026_full_geo_newSCR_sup'!$BX$6,$O12,0) -> 69.88 | AZ12: =OFFSET('2026_full_geo_newSCRnon_sup'!$BX$6,$O12,0) -> 69.83 | BA12: =OFFSET('2026_full_geo_nonEGU1st_sup'!$BX$6,$O12,0) -> 70.00 | BB12: =OFFSET('2026_full_geo_IRA_base_sup'!$BX$6,$O12,0) -> 70.08 | BC12: =OFFSET('2026_full_geo_IRA_SCR_sup'!$BX$6,$O12,0) -> 69.90 | BE12: =OFFSET('2026_full_geo_base_sup'!$BX$6,$O12,1) -> 71.36 | BF12: =OFFSET('2026_full_geo_SCRopt_sup'!$BX$6,$O12,1) -> 71.36 | BG12: =OFFSET('2026_full_geo_SCRoptCC_sup'!$BX$6,$O12,1) -> 71.35 | BH12: =OFFSET('2026_full_geo_SNCRopt_sup'!$BX$6,$O12,1) -> 71.35 | BI12: =OFFSET('2026_full_geo_SNCRoptCC_sup'!$BX$6,$O12,1) -> 71.35 | BJ12: =OFFSET('2026_full_geo_newSCR_sup'!$BX$6,$O12,1) -> 71.18 | BK12: =OFFSET('2026_full_geo_newSCRnon_sup'!$BX$6,$O12,1) -> 71.13 | BL12: =OFFSET('2026_full_geo_nonEGU1st_sup'!$BX$6,$O12,1) -> 71.30 | BM12: =OFFSET('2026_full_geo_IRA_base_sup'!$BX$6,$O12,1) -> 71.38 | BN12: =OFFSET('2026_full_geo_IRA_SCR_sup'!$BX$6,$O12,1) -> 71.20 | BP12: 70.06 | BQ12: 70.01 | BR12: 69.86 | BS12: 69.88 | BU12: 71.36 | BV12: 71.38 | BW12: 71.16 | BX12: 71.18
A13: 350130022 | B13: New Mexico | C13: Dona Ana | D13: 71.3 | E13: 74 | F13: 69.7 | G13: 72.4 | H13: 75 | I13: 75 | J13: 79 | K13: 75 | M13: 2 | N13: 3 | O13: =MATCH($A13,'2026_step3_eng_base_gnp'!$A$7:$A$736,FALSE) -> 448 | P13: =OFFSET('2026gf_All_gnp'!$F$1,$O13,0) -> 69.00 | Q13: =OFFSET('2026_step3_eng_base_gnp'!$BX$6,$O13,0) -> 69.17 | R13: =OFFSET('2026_step3_SCRopt_gnp'!$BX$6,$O13,0) -> 69.16 | S13: =OFFSET('2026_step3_SCRoptwCC_gnp'!$BX$6,$O13,0) -> 69.15 | T13: =OFFSET('2026_step3_SNCRopt_gnp'!$BX$6,$O13,0) -> 69.15 | U13: =OFFSET('2026_step3_SNCRoptwCC_gnp'!$BX$6,$O13,0) -> 69.15 | V13: =OFFSET('2026_step3_newSCR_gnp'!$BX$6,$O13,0) -> 69.00 | W13: =OFFSET('2026_step3_newSCRwnon_sup'!$BX$6,$O13,0) -> 68.95 | X13: =OFFSET('2026_step3_nonegu1st_sup'!$BX$6,$O13,0) -> 69.11 | Y13: =OFFSET('2026_step3_base_wIRA_gnp'!$BX$6,$O13,0) -> 69.19 | Z13: =OFFSET('2026_step3_SCRnon_IRA_sup'!$BX$6,$O13,0) -> 68.98 | AB13: =OFFSET('2026gf_All_gnp'!$G$1,$O13,0) -> 71.60 | AC13: =OFFSET('2026_step3_eng_base_gnp'!$BX$6,$O13,1) -> 71.77 | AD13: =OFFSET('2026_step3_SCRopt_gnp'!$BX$6,$O13,1) -> 71.76 | AE13: =OFFSET('2026_step3_SCRoptwCC_gnp'!$BX$6,$O13,1) -> 71.76 | AF13: =OFFSET('2026_step3_SNCRopt_gnp'!$BX$6,$O13,1) -> 71.76 | AG13: =OFFSET('2026_step3_SNCRoptwCC_gnp'!$BX$6,$O13,1) -> 71.76 | AH13: =OFFSET('2026_step3_newSCR_gnp'!$BX$6,$O13,1) -> 71.60 | AI13: =OFFSET('2026_step3_newSCRwnon_sup'!$BX$6,$O13,1) -> 71.55 | AJ13: =OFFSET('2026_step3_nonegu1st_sup'!$BX$6,$O13,1) -> 71.71 | AK13: =OFFSET('2026_step3_base_wIRA_gnp'!$BX$6,$O13,1) -> 71.79 | AL13: =OFFSET('2026_step3_SCRnon_IRA_sup'!$BX$6,$O13,1) -> 71.57 | AN13: 69.17 | AO13: 68.95 | AP13: 71.77 | AQ13: 71.55 | AT13: =OFFSET('2026_full_geo_base_sup'!$BX$6,$O13,0) -> 69.17 | AU13: =OFFSET('2026_full_geo_SCRopt_sup'!$BX$6,$O13,0) -> 69.16 | AV13: =OFFSET('2026_full_geo_SCRoptCC_sup'!$BX$6,$O13,0) -> 69.15 | AW13: =OFFSET('2026_full_geo_SNCRopt_sup'!$BX$6,$O13,0) -> 69.15 | AX13: =OFFSET('2026_full_geo_SNCRoptCC_sup'!$BX$6,$O13,0) -> 69.15 | AY13: =OFFSET('2026_full_geo_newSCR_sup'!$BX$6,$O13,0) -> 68.98 | AZ13: =OFFSET('2026_full_geo_newSCRnon_sup'!$BX$6,$O13,0) -> 68.93 | BA13: =OFFSET('2026_full_geo_nonEGU1st_sup'!$BX$6,$O13,0) -> 69.10 | BB13: =OFFSET('2026_full_geo_IRA_base_sup'!$BX$6,$O13,0) -> 69.19 | BC13: =OFFSET('2026_full_geo_IRA_SCR_sup'!$BX$6,$O13,0) -> 69.00 | BE13: =OFFSET('2026_full_geo_base_sup'!$BX$6,$O13,1) -> 71.77 | BF13: =OFFSET('2026_full_geo_SCRopt_sup'!$BX$6,$O13,1) -> 71.76 | BG13: =OFFSET('2026_full_geo_SCRoptCC_sup'!$BX$6,$O13,1) -> 71.76 | BH13: =OFFSET('2026_full_geo_SNCRopt_sup'!$BX$6,$O13,1) -> 71.76 | BI13: =OFFSET('2026_full_geo_SNCRoptCC_sup'!$BX$6,$O13,1) -> 71.76 | BJ13: =OFFSET('2026_full_geo_newSCR_sup'!$BX$6,$O13,1) -> 71.58 | BK13: =OFFSET('2026_full_geo_newSCRnon_sup'!$BX$6,$O13,1) -> 71.53 | BL13: =OFFSET('2026_full_geo_nonEGU1st_sup'!$BX$6,$O13,1) -> 71.71 | BM13: =OFFSET('2026_full_geo_IRA_base_sup'!$BX$6,$O13,1) -> 71.79 | BN13: =OFFSET('2026_full_geo_IRA_SCR_sup'!$BX$6,$O13,1) -> 71.60 | BP13: 69.17 | BQ13: 69.11 | BR13: 68.95 | BS13: 68.98 | BU13: 71.77 | BV13: 71.79 | BW13: 71.55 | BX13: 71.57
A14: 350151005 | B14: New Mexico | C14: Eddy | D14: 69.7 | E14: 74 | F14: 69.7 | G14: 74.1 | H14: 77 | I14: 77 | J14: 80 | K14: 79 | M14: 2 | N14: 3 | O14: =MATCH($A14,'2026_step3_eng_base_gnp'!$A$7:$A$736,FALSE) -> 450 | P14: =OFFSET('2026gf_All_gnp'!$F$1,$O14,0) -> 69.10 | Q14: =OFFSET('2026_step3_eng_base_gnp'!$BX$6,$O14,0) -> 0.00 | R14: =OFFSET('2026_step3_SCRopt_gnp'!$BX$6,$O14,0) -> 0.00 | S14: =OFFSET('2026_step3_SCRoptwCC_gnp'!$BX$6,$O14,0) -> 0.00 | T14: =OFFSET('2026_step3_SNCRopt_gnp'!$BX$6,$O14,0) -> 0.00 | U14: =OFFSET('2026_step3_SNCRoptwCC_gnp'!$BX$6,$O14,0) -> 0.00 | V14: =OFFSET('2026_step3_newSCR_gnp'!$BX$6,$O14,0) -> 0.00 | W14: =OFFSET('2026_step3_newSCRwnon_sup'!$BX$6,$O14,0) -> 0.00 | X14: =OFFSET('2026_step3_nonegu1st_sup'!$BX$6,$O14,0) -> 0.00 | Y14: =OFFSET('2026_step3_base_wIRA_gnp'!$BX$6,$O14,0) -> 0.00 | Z14: =OFFSET('2026_step3_SCRnon_IRA_sup'!$BX$6,$O14,0) -> 0.00 | AB14: =OFFSET('2026gf_All_gnp'!$G$1,$O14,0) -> 73.40 | AC14: =OFFSET('2026_step3_eng_base_gnp'!$BX$6,$O14,1) -> 0.00 | AD14: =OFFSET('2026_step3_SCRopt_gnp'!$BX$6,$O14,1) -> 0.00 | AE14: =OFFSET('2026_step3_SCRoptwCC_gnp'!$BX$6,$O14,1) -> 0.00 | AF14: =OFFSET('2026_step3_SNCRopt_gnp'!$BX$6,$O14,1) -> 0.00 | AG14: =OFFSET('2026_step3_SNCRoptwCC_gnp'!$BX$6,$O14,1) -> 0.00 | AH14: =OFFSET('2026_step3_newSCR_gnp'!$BX$6,$O14,1) -> 0.00 | AI14: =OFFSET('2026_step3_newSCRwnon_sup'!$BX$6,$O14,1) -> 0.00 | AJ14: =OFFSET('2026_step3_nonegu1st_sup'!$BX$6,$O14,1) -> 0.00 | AK14: =OFFSET('2026_step3_base_wIRA_gnp'!$BX$6,$O14,1) -> 0.00 | AL14: =OFFSET('2026_step3_SCRnon_IRA_sup'!$BX$6,$O14,1) -> 0.00 | AN14: 0.00 | AO14: 0.00 | AP14: 0.00 | AQ14: 0.00 | AT14: =OFFSET('2026_full_geo_base_sup'!$BX$6,$O14,0) -> 0.00 | AU14: =OFFSET('2026_full_geo_SCRopt_sup'!$BX$6,$O14,0) -> 0.00 | AV14: =OFFSET('2026_full_geo_SCRoptCC_sup'!$BX$6,$O14,0) -> 0.00 | AW14: =OFFSET('2026_full_geo_SNCRopt_sup'!$BX$6,$O14,0) -> 0.00 | AX14: =OFFSET('2026_full_geo_SNCRoptCC_sup'!$BX$6,$O14,0) -> 0.00 | AY14: =OFFSET('2026_full_geo_newSCR_sup'!$BX$6,$O14,0) -> 0.00 | AZ14: =OFFSET('2026_full_geo_newSCRnon_sup'!$BX$6,$O14,0) -> 0.00 | BA14: =OFFSET('2026_full_geo_nonEGU1st_sup'!$BX$6,$O14,0) -> 0.00 | BB14: =OFFSET('2026_full_geo_IRA_base_sup'!$BX$6,$O14,0) -> 0.00 | BC14: =OFFSET('2026_full_geo_IRA_SCR_sup'!$BX$6,$O14,0) -> 0.00 | BE14: =OFFSET('2026_full_geo_base_sup'!$BX$6,$O14,1) -> 0.00 | BF14: =OFFSET('2026_full_geo_SCRopt_sup'!$BX$6,$O14,1) -> 0.00 | BG14: =OFFSET('2026_full_geo_SCRoptCC_sup'!$BX$6,$O14,1) -> 0.00 | BH14: =OFFSET('2026_full_geo_SNCRopt_sup'!$BX$6,$O14,1) -> 0.00 | BI14: =OFFSET('2026_full_geo_SNCRoptCC_sup'!$BX$6,$O14,1) -> 0.00 | BJ14: =OFFSET('2026_full_geo_newSCR_sup'!$BX$6,$O14,1) -> 0.00 | BK14: =OFFSET('2026_full_geo_newSCRnon_sup'!$BX$6,$O14,1) -> 0.00 | BL14: =OFFSET('2026_full_geo_nonEGU1st_sup'!$BX$6,$O14,1) -> 0.00 | BM14: =OFFSET('2026_full_geo_IRA_base_sup'!$BX$6,$O14,1) -> 0.00 | BN14: =OFFSET('2026_full_geo_IRA_SCR_sup'!$BX$6,$O14,1) -> 0.00 | BP14: 0.00 | BQ14: 0.00 | BR14: 0.00 | BS14: 0.00 | BU14: 0.00 | BV14: 0.00 | BW14: 0.00 | BX14: 0.00
A15: 350250008 | B15: New Mexico | C15: Lea | D15: 67.7 | E15: 70 | F15: 69.8 | G15: 72.2 | H15: 66 | I15: 66 | J15: 68 | K15: 72 | M15: 2 | N15: 3 | O15: =MATCH($A15,'2026_step3_eng_base_gnp'!$A$7:$A$736,FALSE) -> 452 | P15: =OFFSET('2026gf_All_gnp'!$F$1,$O15,0) -> 69.20 | Q15: =OFFSET('2026_step3_eng_base_gnp'!$BX$6,$O15,0) -> 0.00 | R15: =OFFSET('2026_step3_SCRopt_gnp'!$BX$6,$O15,0) -> 0.00 | S15: =OFFSET('2026_step3_SCRoptwCC_gnp'!$BX$6,$O15,0) -> 0.00 | T15: =OFFSET('2026_step3_SNCRopt_gnp'!$BX$6,$O15,0) -> 0.00 | U15: =OFFSET('2026_step3_SNCRoptwCC_gnp'!$BX$6,$O15,0) -> 0.00 | V15: =OFFSET('2026_step3_newSCR_gnp'!$BX$6,$O15,0) -> 0.00 | W15: =OFFSET('2026_step3_newSCRwnon_sup'!$BX$6,$O15,0) -> 0.00 | X15: =OFFSET('2026_step3_nonegu1st_sup'!$BX$6,$O15,0) -> 0.00 | Y15: =OFFSET('2026_step3_base_wIRA_gnp'!$BX$6,$O15,0) -> 0.00 | Z15: =OFFSET('2026_step3_SCRnon_IRA_sup'!$BX$6,$O15,0) -> 0.00 | AB15: =OFFSET('2026gf_All_gnp'!$G$1,$O15,0) -> 71.60 | AC15: =OFFSET('2026_step3_eng_base_gnp'!$BX$6,$O15,1) -> 0.00 | AD15: =OFFSET('2026_step3_SCRopt_gnp'!$BX$6,$O15,1) -> 0.00 | AE15: =OFFSET('2026_step3_SCRoptwCC_gnp'!$BX$6,$O15,1) -> 0.00 | AF15: =OFFSET('2026_step3_SNCRopt_gnp'!$BX$6,$O15,1) -> 0.00 | AG15: =OFFSET('2026_step3_SNCRoptwCC_gnp'!$BX$6,$O15,1) -> 0.00 | AH15: =OFFSET('2026_step3_newSCR_gnp'!$BX$6,$O15,1) -> 0.00 | AI15: =OFFSET('2026_step3_newSCRwnon_sup'!$BX$6,$O15,1) -> 0.00 | AJ15: =OFFSET('2026_step3_nonegu1st_sup'!$BX$6,$O15,1) -> 0.00 | AK15: =OFFSET('2026_step3_base_wIRA_gnp'!$BX$6,$O15,1) -> 0.00 | AL15: =OFFSET('2026_step3_SCRnon_IRA_sup'!$BX$6,$O15,1) -> 0.00 | AN15: 0.00 | AO15: 0.00 | AP15: 0.00 | AQ15: 0.00 | AT15: =OFFSET('2026_full_geo_base_sup'!$BX$6,$O15,0) -> 0.00 | AU15: =OFFSET('2026_full_geo_SCRopt_sup'!$BX$6,$O15,0) -> 0.00 | AV15: =OFFSET('2026_full_geo_SCRoptCC_sup'!$BX$6,$O15,0) -> 0.00 | AW15: =OFFSET('2026_full_geo_SNCRopt_sup'!$BX$6,$O15,0) -> 0.00 | AX15: =OFFSET('2026_full_geo_SNCRoptCC_sup'!$BX$6,$O15,0) -> 0.00 | AY15: =OFFSET('2026_full_geo_newSCR_sup'!$BX$6,$O15,0) -> 0.00 | AZ15: =OFFSET('2026_full_geo_newSCRnon_sup'!$BX$6,$O15,0) -> 0.00 | BA15: =OFFSET('2026_full_geo_nonEGU1st_sup'!$BX$6,$O15,0) -> 0.00 | BB15: =OFFSET('2026_full_geo_IRA_base_sup'!$BX$6,$O15,0) -> 0.00 | BC15: =OFFSET('2026_full_geo_IRA_SCR_sup'!$BX$6,$O15,0) -> 0.00 | BE15: =OFFSET('2026_full_geo_base_sup'!$BX$6,$O15,1) -> 0.00 | BF15: =OFFSET('2026_full_geo_SCRopt_sup'!$BX$6,$O15,1) -> 0.00 | BG15: =OFFSET('2026_full_geo_SCRoptCC_sup'!$BX$6,$O15,1) -> 0.00 | BH15: =OFFSET('2026_full_geo_SNCRopt_sup'!$BX$6,$O15,1) -> 0.00 | BI15: =OFFSET('2026_full_geo_SNCRoptCC_sup'!$BX$6,$O15,1) -> 0.00 | BJ15: =OFFSET('2026_full_geo_newSCR_sup'!$BX$6,$O15,1) -> 0.00 | BK15: =OFFSET('2026_full_geo_newSCRnon_sup'!$BX$6,$O15,1) -> 0.00 | BL15: =OFFSET('2026_full_geo_nonEGU1st_sup'!$BX$6,$O15,1) -> 0.00 | BM15: =OFFSET('2026_full_geo_IRA_base_sup'!$BX$6,$O15,1) -> 0.00 | BN15: =OFFSET('2026_full_geo_IRA_SCR_sup'!$BX$6,$O15,1) -> 0.00 | BP15: 0.00 | BQ15: 0.00 | BR15: 0.00 | BS15: 0.00 | BU15: 0.00 | BV15: 0.00 | BW15: 0.00 | BX15: 0.00
A16: 480391004 | B16: Texas | C16: Brazoria | D16: 74.7 | E16: 77 | F16: 70.4 | G16: 72.5 | H16: 75 | I16: 73 | J16: 77 | K16: 72 | M16: 2 | N16: 3 | O16: =MATCH($A16,'2026_step3_eng_base_gnp'!$A$7:$A$736,FALSE) -> 622 | P16: =OFFSET('2026gf_All_gnp'!$F$1,$O16,0) -> 69.10 | Q16: =OFFSET('2026_step3_eng_base_gnp'!$BX$6,$O16,0) -> 69.89 | R16: =OFFSET('2026_step3_SCRopt_gnp'!$BX$6,$O16,0) -> 69.84 | S16: =OFFSET('2026_step3_SCRoptwCC_gnp'!$BX$6,$O16,0) -> 69.84 | T16: =OFFSET('2026_step3_SNCRopt_gnp'!$BX$6,$O16,0) -> 69.82 | U16: =OFFSET('2026_step3_SNCRoptwCC_gnp'!$BX$6,$O16,0) -> 69.82 | V16: =OFFSET('2026_step3_newSCR_gnp'!$BX$6,$O16,0) -> 68.96 | W16: =OFFSET('2026_step3_newSCRwnon_sup'!$BX$6,$O16,0) -> 68.50 | X16: =OFFSET('2026_step3_nonegu1st_sup'!$BX$6,$O16,0) -> 69.36 | Y16: =OFFSET('2026_step3_base_wIRA_gnp'!$BX$6,$O16,0) -> 69.90 | Z16: =OFFSET('2026_step3_SCRnon_IRA_sup'!$BX$6,$O16,0) -> 68.54 | AB16: =OFFSET('2026gf_All_gnp'!$G$1,$O16,0) -> 71.20 | AC16: =OFFSET('2026_step3_eng_base_gnp'!$BX$6,$O16,1) -> 72.02 | AD16: =OFFSET('2026_step3_SCRopt_gnp'!$BX$6,$O16,1) -> 71.96 | AE16: =OFFSET('2026_step3_SCRoptwCC_gnp'!$BX$6,$O16,1) -> 71.96 | AF16: =OFFSET('2026_step3_SNCRopt_gnp'!$BX$6,$O16,1) -> 71.95 | AG16: =OFFSET('2026_step3_SNCRoptwCC_gnp'!$BX$6,$O16,1) -> 71.95 | AH16: =OFFSET('2026_step3_newSCR_gnp'!$BX$6,$O16,1) -> 71.06 | AI16: =OFFSET('2026_step3_newSCRwnon_sup'!$BX$6,$O16,1) -> 70.58 | AJ16: =OFFSET('2026_step3_nonegu1st_sup'!$BX$6,$O16,1) -> 71.47 | AK16: =OFFSET('2026_step3_base_wIRA_gnp'!$BX$6,$O16,1) -> 72.02 | AL16: =OFFSET('2026_step3_SCRnon_IRA_sup'!$BX$6,$O16,1) -> 70.63 | AN16: 69.89 | AO16: 68.50 | AP16: 72.02 | AQ16: 70.58 | AT16: =OFFSET('2026_full_geo_base_sup'!$BX$6,$O16,0) -> 69.89 | AU16: =OFFSET('2026_full_geo_SCRopt_sup'!$BX$6,$O16,0) -> 69.81 | AV16: =OFFSET('2026_full_geo_SCRoptCC_sup'!$BX$6,$O16,0) -> 69.80 | AW16: =OFFSET('2026_full_geo_SNCRopt_sup'!$BX$6,$O16,0) -> 69.80 | AX16: =OFFSET('2026_full_geo_SNCRoptCC_sup'!$BX$6,$O16,0) -> 69.79 | AY16: =OFFSET('2026_full_geo_newSCR_sup'!$BX$6,$O16,0) -> 68.85 | AZ16: =OFFSET('2026_full_geo_newSCRnon_sup'!$BX$6,$O16,0) -> 68.32 | BA16: =OFFSET('2026_full_geo_nonEGU1st_sup'!$BX$6,$O16,0) -> 69.26 | BB16: =OFFSET('2026_full_geo_IRA_base_sup'!$BX$6,$O16,0) -> 69.90 | BC16: =OFFSET('2026_full_geo_IRA_SCR_sup'!$BX$6,$O16,0) -> 68.89 | BE16: =OFFSET('2026_full_geo_base_sup'!$BX$6,$O16,1) -> 72.02 | BF16: =OFFSET('2026_full_geo_SCRopt_sup'!$BX$6,$O16,1) -> 71.94 | BG16: =OFFSET('2026_full_geo_SCRoptCC_sup'!$BX$6,$O16,1) -> 71.92 | BH16: =OFFSET('2026_full_geo_SNCRopt_sup'!$BX$6,$O16,1) -> 71.92 | BI16: =OFFSET('2026_full_geo_SNCRoptCC_sup'!$BX$6,$O16,1) -> 71.91 | BJ16: =OFFSET('2026_full_geo_newSCR_sup'!$BX$6,$O16,1) -> 70.94 | BK16: =OFFSET('2026_full_geo_newSCRnon_sup'!$BX$6,$O16,1) -> 70.39 | BL16: =OFFSET('2026_full_geo_nonEGU1st_sup'!$BX$6,$O16,1) -> 71.36 | BM16: =OFFSET('2026_full_geo_IRA_base_sup'!$BX$6,$O16,1) -> 72.02 | BN16: =OFFSET('2026_full_geo_IRA_SCR_sup'!$BX$6,$O16,1) -> 70.99 | BP16: 69.89 | BQ16: 69.36 | BR16: 68.50 | BS16: 68.54 | BU16: 72.02 | BV16: 72.02 | BW16: 70.58 | BX16: 70.63
A17: 481671034 | B17: Texas | C17: Galveston | D17: 75.7 | E17: 77 | F17: 71.5 | G17: 72.8 | H17: 72 | I17: 70 | J17: 70 | K17: 73 | M17: 2 | N17: 3 | O17: =MATCH($A17,'2026_step3_eng_base_gnp'!$A$7:$A$736,FALSE) -> 636 | P17: =OFFSET('2026gf_All_gnp'!$F$1,$O17,0) -> 70.20 | Q17: =OFFSET('2026_step3_eng_base_gnp'!$BX$6,$O17,0) -> 71.29 | R17: =OFFSET('2026_step3_SCRopt_gnp'!$BX$6,$O17,0) -> 71.22 | S17: =OFFSET('2026_step3_SCRoptwCC_gnp'!$BX$6,$O17,0) -> 71.19 | T17: =OFFSET('2026_step3_SNCRopt_gnp'!$BX$6,$O17,0) -> 71.20 | U17: =OFFSET('2026_step3_SNCRoptwCC_gnp'!$BX$6,$O17,0) -> 71.17 | V17: =OFFSET('2026_step3_newSCR_gnp'!$BX$6,$O17,0) -> 70.02 | W17: =OFFSET('2026_step3_newSCRwnon_sup'!$BX$6,$O17,0) -> 69.28 | X17: =OFFSET('2026_step3_nonegu1st_sup'!$BX$6,$O17,0) -> 70.43 | Y17: =OFFSET('2026_step3_base_wIRA_gnp'!$BX$6,$O17,0) -> 71.28 | Z17: =OFFSET('2026_step3_SCRnon_IRA_sup'!$BX$6,$O17,0) -> 69.33 | AB17: =OFFSET('2026gf_All_gnp'!$G$1,$O17,0) -> 71.40 | AC17: =OFFSET('2026_step3_eng_base_gnp'!$BX$6,$O17,1) -> 72.51 | AD17: =OFFSET('2026_step3_SCRopt_gnp'!$BX$6,$O17,1) -> 72.44 | AE17: =OFFSET('2026_step3_SCRoptwCC_gnp'!$BX$6,$O17,1) -> 72.41 | AF17: =OFFSET('2026_step3_SNCRopt_gnp'!$BX$6,$O17,1) -> 72.42 | AG17: =OFFSET('2026_step3_SNCRoptwCC_gnp'!$BX$6,$O17,1) -> 72.39 | AH17: =OFFSET('2026_step3_newSCR_gnp'!$BX$6,$O17,1) -> 71.22 | AI17: =OFFSET('2026_step3_newSCRwnon_sup'!$BX$6,$O17,1) -> 70.47 | AJ17: =OFFSET('2026_step3_nonegu1st_sup'!$BX$6,$O17,1) -> 71.64 | AK17: =OFFSET('2026_step3_base_wIRA_gnp'!$BX$6,$O17,1) -> 72.50 | AL17: =OFFSET('2026_step3_SCRnon_IRA_sup'!$BX$6,$O17,1) -> 70.52 | AN17: 71.29 | AO17: 69.28 | AP17: 72.51 | AQ17: 70.47 | AT17: =OFFSET('2026_full_geo_base_sup'!$BX$6,$O17,0) -> 71.29 | AU17: =OFFSET('2026_full_geo_SCRopt_sup'!$BX$6,$O17,0) -> 71.19 | AV17: =OFFSET('2026_full_geo_SCRoptCC_sup'!$BX$6,$O17,0) -> 71.16 | AW17: =OFFSET('2026_full_geo_SNCRopt_sup'!$BX$6,$O17,0) -> 71.18 | AX17: =OFFSET('2026_full_geo_SNCRoptCC_sup'!$BX$6,$O17,0) -> 71.15 | AY17: =OFFSET('2026_full_geo_newSCR_sup'!$BX$6,$O17,0) -> 69.95 | AZ17: =OFFSET('2026_full_geo_newSCRnon_sup'!$BX$6,$O17,0) -> 69.17 | BA17: =OFFSET('2026_full_geo_nonEGU1st_sup'!$BX$6,$O17,0) -> 70.37 | BB17: =OFFSET('2026_full_geo_IRA_base_sup'!$BX$6,$O17,0) -> 71.28 | BC17: =OFFSET('2026_full_geo_IRA_SCR_sup'!$BX$6,$O17,0) -> 70.00 | BE17: =OFFSET('2026_full_geo_base_sup'!$BX$6,$O17,1) -> 72.51 | BF17: =OFFSET('2026_full_geo_SCRopt_sup'!$BX$6,$O17,1) -> 72.41 | BG17: =OFFSET('2026_full_geo_SCRoptCC_sup'!$BX$6,$O17,1) -> 72.38 | BH17: =OFFSET('2026_full_geo_SNCRopt_sup'!$BX$6,$O17,1) -> 72.39 | BI17: =OFFSET('2026_full_geo_SNCRoptCC_sup'!$BX$6,$O17,1) -> 72.36 | BJ17: =OFFSET('2026_full_geo_newSCR_sup'!$BX$6,$O17,1) -> 71.15 | BK17: =OFFSET('2026_full_geo_newSCRnon_sup'!$BX$6,$O17,1) -> 70.35 | BL17: =OFFSET('2026_full_geo_nonEGU1st_sup'!$BX$6,$O17,1) -> 71.57 | BM17: =OFFSET('2026_full_geo_IRA_base_sup'!$BX$6,$O17,1) -> 72.50 | BN17: =OFFSET('2026_full_geo_IRA_SCR_sup'!$BX$6,$O17,1) -> 71.20 | BP17: 71.29 | BQ17: 70.43 | BR17: 69.28 | BS17: 69.33 | BU17: 72.51 | BV17: 72.50 | BW17: 70.47 | BX17: 70.52
A18: 482010024 | B18: Texas | C18: Harris | D18: 79.3 | E18: 81 | F18: 75.1 | G18: 76.7 | H18: 74 | I18: 69 | J18: 75 | K18: 64 | M18: 2 | N18: 3 | O18: =MATCH($A18,'2026_step3_eng_base_gnp'!$A$7:$A$736,FALSE) -> 638 | P18: =OFFSET('2026gf_All_gnp'!$F$1,$O18,0) -> 73.90 | Q18: =OFFSET('2026_step3_eng_base_gnp'!$BX$6,$O18,0) -> 74.83 | R18: =OFFSET('2026_step3_SCRopt_gnp'!$BX$6,$O18,0) -> 74.77 | S18: =OFFSET('2026_step3_SCRoptwCC_gnp'!$BX$6,$O18,0) -> 74.77 | T18: =OFFSET('2026_step3_SNCRopt_gnp'!$BX$6,$O18,0) -> 74.76 | U18: =OFFSET('2026_step3_SNCRoptwCC_gnp'!$BX$6,$O18,0) -> 74.76 | V18: =OFFSET('2026_step3_newSCR_gnp'!$BX$6,$O18,0) -> 73.86 | W18: =OFFSET('2026_step3_newSCRwnon_sup'!$BX$6,$O18,0) -> 73.39 | X18: =OFFSET('2026_step3_nonegu1st_sup'!$BX$6,$O18,0) -> 74.29 | Y18: =OFFSET('2026_step3_base_wIRA_gnp'!$BX$6,$O18,0) -> 74.85 | Z18: =OFFSET('2026_step3_SCRnon_IRA_sup'!$BX$6,$O18,0) -> 73.45 | AB18: =OFFSET('2026gf_All_gnp'!$G$1,$O18,0) -> 75.50 | AC18: =OFFSET('2026_step3_eng_base_gnp'!$BX$6,$O18,1) -> 76.45 | AD18: =OFFSET('2026_step3_SCRopt_gnp'!$BX$6,$O18,1) -> 76.39 | AE18: =OFFSET('2026_step3_SCRoptwCC_gnp'!$BX$6,$O18,1) -> 76.39 | AF18: =OFFSET('2026_step3_SNCRopt_gnp'!$BX$6,$O18,1) -> 76.38 | AG18: =OFFSET('2026_step3_SNCRoptwCC_gnp'!$BX$6,$O18,1) -> 76.38 | AH18: =OFFSET('2026_step3_newSCR_gnp'!$BX$6,$O18,1) -> 75.46 | AI18: =OFFSET('2026_step3_newSCRwnon_sup'!$BX$6,$O18,1) -> 74.98 | AJ18: =OFFSET('2026_step3_nonegu1st_sup'!$BX$6,$O18,1) -> 75.90 | AK18: =OFFSET('2026_step3_base_wIRA_gnp'!$BX$6,$O18,1) -> 76.47 | AL18: =OFFSET('2026_step3_SCRnon_IRA_sup'!$BX$6,$O18,1) -> 75.04 | AN18: 74.83 | AO18: 73.39 | AP18: 76.45 | AQ18: 74.98 | AT18: =OFFSET('2026_full_geo_base_sup'!$BX$6,$O18,0) -> 74.83 | AU18: =OFFSET('2026_full_geo_SCRopt_sup'!$BX$6,$O18,0) -> 74.76 | AV18: =OFFSET('2026_full_geo_SCRoptCC_sup'!$BX$6,$O18,0) -> 74.75 | AW18: =OFFSET('2026_full_geo_SNCRopt_sup'!$BX$6,$O18,0) -> 74.75 | AX18: =OFFSET('2026_full_geo_SNCRoptCC_sup'!$BX$6,$O18,0) -> 74.74 | AY18: =OFFSET('2026_full_geo_newSCR_sup'!$BX$6,$O18,0) -> 73.74 | AZ18: =OFFSET('2026_full_geo_newSCRnon_sup'!$BX$6,$O18,0) -> 73.22 | BA18: =OFFSET('2026_full_geo_nonEGU1st_sup'!$BX$6,$O18,0) -> 74.22 | BB18: =OFFSET('2026_full_geo_IRA_base_sup'!$BX$6,$O18,0) -> 74.85 | BC18: =OFFSET('2026_full_geo_IRA_SCR_sup'!$BX$6,$O18,0) -> 73.80 | BE18: =OFFSET('2026_full_geo_base_sup'!$BX$6,$O18,1) -> 76.45 | BF18: =OFFSET('2026_full_geo_SCRopt_sup'!$BX$6,$O18,1) -> 76.38 | BG18: =OFFSET('2026_full_geo_SCRoptCC_sup'!$BX$6,$O18,1) -> 76.37 | BH18: =OFFSET('2026_full_geo_SNCRopt_sup'!$BX$6,$O18,1) -> 76.36 | BI18: =OFFSET('2026_full_geo_SNCRoptCC_sup'!$BX$6,$O18,1) -> 76.35 | BJ18: =OFFSET('2026_full_geo_newSCR_sup'!$BX$6,$O18,1) -> 75.33 | BK18: =OFFSET('2026_full_geo_newSCRnon_sup'!$BX$6,$O18,1) -> 74.80 | BL18: =OFFSET('2026_full_geo_nonEGU1st_sup'!$BX$6,$O18,1) -> 75.82 | BM18: =OFFSET('2026_full_geo_IRA_base_sup'!$BX$6,$O18,1) -> 76.47 | BN18: =OFFSET('2026_full_geo_IRA_SCR_sup'!$BX$6,$O18,1) -> 75.39 | BP18: 74.83 | BQ18: 74.29 | BR18: 73.39 | BS18: 73.45 | BU18: 76.45 | BV18: 76.47 | BW18: 74.98 | BX18: 75.04
A19: 490110004 | B19: Utah | C19: Davis | D19: 75.7 | E19: 78 | F19: 72.0 | G19: 74.2 | H19: 78 | I19: 79 | J19: 82 | K19: 75 | M19: 2 | N19: 3 | O19: =MATCH($A19,'2026_step3_eng_base_gnp'!$A$7:$A$736,FALSE) -> 672 | P19: =OFFSET('2026gf_All_gnp'!$F$1,$O19,0) -> 69.90 | Q19: =OFFSET('2026_step3_eng_base_gnp'!$BX$6,$O19,0) -> 69.90 | R19: =OFFSET('2026_step3_SCRopt_gnp'!$BX$6,$O19,0) -> 69.90 | S19: =OFFSET('2026_step3_SCRoptwCC_gnp'!$BX$6,$O19,0) -> 69.90 | T19: =OFFSET('2026_step3_SNCRopt_gnp'!$BX$6,$O19,0) -> 69.90 | U19: =OFFSET('2026_step3_SNCRoptwCC_gnp'!$BX$6,$O19,0) -> 69.90 | V19: =OFFSET('2026_step3_newSCR_gnp'!$BX$6,$O19,0) -> 69.34 | W19: =OFFSET('2026_step3_newSCRwnon_sup'!$BX$6,$O19,0) -> 69.28 | X19: =OFFSET('2026_step3_nonegu1st_sup'!$BX$6,$O19,0) -> 69.84 | Y19: =OFFSET('2026_step3_base_wIRA_gnp'!$BX$6,$O19,0) -> 69.91 | Z19: =OFFSET('2026_step3_SCRnon_IRA_sup'!$BX$6,$O19,0) -> 69.33 | AB19: =OFFSET('2026gf_All_gnp'!$G$1,$O19,0) -> 72.10 | AC19: =OFFSET('2026_step3_eng_base_gnp'!$BX$6,$O19,1) -> 72.10 | AD19: =OFFSET('2026_step3_SCRopt_gnp'!$BX$6,$O19,1) -> 72.10 | AE19: =OFFSET('2026_step3_SCRoptwCC_gnp'!$BX$6,$O19,1) -> 72.10 | AF19: =OFFSET('2026_step3_SNCRopt_gnp'!$BX$6,$O19,1) -> 72.10 | AG19: =OFFSET('2026_step3_SNCRoptwCC_gnp'!$BX$6,$O19,1) -> 72.10 | AH19: =OFFSET('2026_step3_newSCR_gnp'!$BX$6,$O19,1) -> 71.52 | AI19: =OFFSET('2026_step3_newSCRwnon_sup'!$BX$6,$O19,1) -> 71.46 | AJ19: =OFFSET('2026_step3_nonegu1st_sup'!$BX$6,$O19,1) -> 72.04 | AK19: =OFFSET('2026_step3_base_wIRA_gnp'!$BX$6,$O19,1) -> 72.11 | AL19: =OFFSET('2026_step3_SCRnon_IRA_sup'!$BX$6,$O19,1) -> 71.51 | AN19: 69.90 | AO19: 69.28 | AP19: =AC19 -> 72.10 | AQ19: =AI19 -> 71.46 | AT19: =OFFSET('2026_full_geo_base_sup'!$BX$6,$O19,0) -> 69.90 | AU19: =OFFSET('2026_full_geo_SCRopt_sup'!$BX$6,$O19,0) -> 69.90 | AV19: =OFFSET('2026_full_geo_SCRoptCC_sup'!$BX$6,$O19,0) -> 69.89 | AW19: =OFFSET('2026_full_geo_SNCRopt_sup'!$BX$6,$O19,0) -> 69.89 | AX19: =OFFSET('2026_full_geo_SNCRoptCC_sup'!$BX$6,$O19,0) -> 69.89 | AY19: =OFFSET('2026_full_geo_newSCR_sup'!$BX$6,$O19,0) -> 69.32 | AZ19: =OFFSET('2026_full_geo_newSCRnon_sup'!$BX$6,$O19,0) -> 69.26 | BA19: =OFFSET('2026_full_geo_nonEGU1st_sup'!$BX$6,$O19,0) -> 69.83 | BB19: =OFFSET('2026_full_geo_IRA_base_sup'!$BX$6,$O19,0) -> 69.91 | BC19: =OFFSET('2026_full_geo_IRA_SCR_sup'!$BX$6,$O19,0) -> 69.36 | BE19: =OFFSET('2026_full_geo_base_sup'!$BX$6,$O19,1) -> 72.10 | BF19: =OFFSET('2026_full_geo_SCRopt_sup'!$BX$6,$O19,1) -> 72.10 | BG19: =OFFSET('2026_full_geo_SCRoptCC_sup'!$BX$6,$O19,1) -> 72.09 | BH19: =OFFSET('2026_full_geo_SNCRopt_sup'!$BX$6,$O19,1) -> 72.09 | BI19: =OFFSET('2026_full_geo_SNCRoptCC_sup'!$BX$6,$O19,1) -> 72.09 | BJ19: =OFFSET('2026_full_geo_newSCR_sup'!$BX$6,$O19,1) -> 71.50 | BK19: =OFFSET('2026_full_geo_newSCRnon_sup'!$BX$6,$O19,1) -> 71.44 | BL19: =OFFSET('2026_full_geo_nonEGU1st_sup'!$BX$6,$O19,1) -> 72.03 | BM19: =OFFSET('2026_full_geo_IRA_base_sup'!$BX$6,$O19,1) -> 72.11 | BN19: =OFFSET('2026_full_geo_IRA_SCR_sup'!$BX$6,$O19,1) -> 71.55 | BP19: 69.90 | BQ19: 69.84 | BR19: 69.28 | BS19: 69.33 | BU19: 72.10 | BV19: 72.11 | BW19: 71.46 | BX19: 71.51
A20: 490353006 | B20: Utah | C20: Salt Lake | D20: 76.3 | E20: 78 | F20: 72.6 | G20: 74.2 | H20: 76 | I20: 76 | J20: 81 | K20: 72 | M20: 2 | N20: 3 | O20: =MATCH($A20,'2026_step3_eng_base_gnp'!$A$7:$A$736,FALSE) -> 673 | P20: =OFFSET('2026gf_All_gnp'!$F$1,$O20,0) -> 70.50 | Q20: =OFFSET('2026_step3_eng_base_gnp'!$BX$6,$O20,0) -> 70.50 | R20: =OFFSET('2026_step3_SCRopt_gnp'!$BX$6,$O20,0) -> 70.49 | S20: =OFFSET('2026_step3_SCRoptwCC_gnp'!$BX$6,$O20,0) -> 70.49 | T20: =OFFSET('2026_step3_SNCRopt_gnp'!$BX$6,$O20,0) -> 70.49 | U20: =OFFSET('2026_step3_SNCRoptwCC_gnp'!$BX$6,$O20,0) -> 70.49 | V20: =OFFSET('2026_step3_newSCR_gnp'!$BX$6,$O20,0) -> 69.96 | W20: =OFFSET('2026_step3_newSCRwnon_sup'!$BX$6,$O20,0) -> 69.91 | X20: =OFFSET('2026_step3_nonegu1st_sup'!$BX$6,$O20,0) -> 70.43 | Y20: =OFFSET('2026_step3_base_wIRA_gnp'!$BX$6,$O20,0) -> 70.50 | Z20: =OFFSET('2026_step3_SCRnon_IRA_sup'!$BX$6,$O20,0) -> 69.95 | AB20: =OFFSET('2026gf_All_gnp'!$G$1,$O20,0) -> 72.10 | AC20: =OFFSET('2026_step3_eng_base_gnp'!$BX$6,$O20,1) -> 72.10 | AD20: =OFFSET('2026_step3_SCRopt_gnp'!$BX$6,$O20,1) -> 72.09 | AE20: =OFFSET('2026_step3_SCRoptwCC_gnp'!$BX$6,$O20,1) -> 72.09 | AF20: =OFFSET('2026_step3_SNCRopt_gnp'!$BX$6,$O20,1) -> 72.09 | AG20: =OFFSET('2026_step3_SNCRoptwCC_gnp'!$BX$6,$O20,1) -> 72.09 | AH20: =OFFSET('2026_step3_newSCR_gnp'!$BX$6,$O20,1) -> 71.55 | AI20: =OFFSET('2026_step3_newSCRwnon_sup'!$BX$6,$O20,1) -> 71.50 | AJ20: =OFFSET('2026_step3_nonegu1st_sup'!$BX$6,$O20,1) -> 72.03 | AK20: =OFFSET('2026_step3_base_wIRA_gnp'!$BX$6,$O20,1) -> 72.10 | AL20: =OFFSET('2026_step3_SCRnon_IRA_sup'!$BX$6,$O20,1) -> 71.54 | AN20: 70.50 | AO20: 69.91 | AP20: 72.10 | AQ20: 71.50 | AT20: =OFFSET('2026_full_geo_base_sup'!$BX$6,$O20,0) -> 70.50 | AU20: =OFFSET('2026_full_geo_SCRopt_sup'!$BX$6,$O20,0) -> 70.49 | AV20: =OFFSET('2026_full_geo_SCRoptCC_sup'!$BX$6,$O20,0) -> 70.49 | AW20: =OFFSET('2026_full_geo_SNCRopt_sup'!$BX$6,$O20,0) -> 70.49 | AX20: =OFFSET('2026_full_geo_SNCRoptCC_sup'!$BX$6,$O20,0) -> 70.49 | AY20: =OFFSET('2026_full_geo_newSCR_sup'!$BX$6,$O20,0) -> 69.94 | AZ20: =OFFSET('2026_full_geo_newSCRnon_sup'!$BX$6,$O20,0) -> 69.89 | BA20: =OFFSET('2026_full_geo_nonEGU1st_sup'!$BX$6,$O20,0) -> 70.43 | BB20: =OFFSET('2026_full_geo_IRA_base_sup'!$BX$6,$O20,0) -> 70.50 | BC20: =OFFSET('2026_full_geo_IRA_SCR_sup'!$BX$6,$O20,0) -> 69.99 | BE20: =OFFSET('2026_full_geo_base_sup'!$BX$6,$O20,1) -> 72.10 | BF20: =OFFSET('2026_full_geo_SCRopt_sup'!$BX$6,$O20,1) -> 72.09 | BG20: =OFFSET('2026_full_geo_SCRoptCC_sup'!$BX$6,$O20,1) -> 72.09 | BH20: =OFFSET('2026_full_geo_SNCRopt_sup'!$BX$6,$O20,1) -> 72.09 | BI20: =OFFSET('2026_full_geo_SNCRoptCC_sup'!$BX$6,$O20,1) -> 72.08 | BJ20: =OFFSET('2026_full_geo_newSCR_sup'!$BX$6,$O20,1) -> 71.53 | BK20: =OFFSET('2026_full_geo_newSCRnon_sup'!$BX$6,$O20,1) -> 71.47 | BL20: =OFFSET('2026_full_geo_nonEGU1st_sup'!$BX$6,$O20,1) -> 72.03 | BM20: =OFFSET('2026_full_geo_IRA_base_sup'!$BX$6,$O20,1) -> 72.10 | BN20: =OFFSET('2026_full_geo_IRA_SCR_sup'!$BX$6,$O20,1) -> 71.58 | BP20: 70.50 | BQ20: 70.43 | BR20: 69.91 | BS20: 69.95 | BU20: 72.10 | BV20: 72.10 | BW20: 71.50 | BX20: 71.54
A21: 490353013 | B21: Utah | C21: Salt Lake | D21: 76.5 | E21: 77 | F21: 73.3 | G21: 73.8 | H21: 76 | I21: 77 | J21: 87 | K21: 71 | M21: 2 | N21: 3 | O21: =MATCH($A21,'2026_step3_eng_base_gnp'!$A$7:$A$736,FALSE) -> 674 | P21: =OFFSET('2026gf_All_gnp'!$F$1,$O21,0) -> 71.90 | Q21: =OFFSET('2026_step3_eng_base_gnp'!$BX$6,$O21,0) -> 71.91 | R21: =OFFSET('2026_step3_SCRopt_gnp'!$BX$6,$O21,0) -> 71.91 | S21: =OFFSET('2026_step3_SCRoptwCC_gnp'!$BX$6,$O21,0) -> 71.91 | T21: =OFFSET('2026_step3_SNCRopt_gnp'!$BX$6,$O21,0) -> 71.91 | U21: =OFFSET('2026_step3_SNCRoptwCC_gnp'!$BX$6,$O21,0) -> 71.91 | V21: =OFFSET('2026_step3_newSCR_gnp'!$BX$6,$O21,0) -> 71.45 | W21: =OFFSET('2026_step3_newSCRwnon_sup'!$BX$6,$O21,0) -> 71.40 | X21: =OFFSET('2026_step3_nonegu1st_sup'!$BX$6,$O21,0) -> 71.86 | Y21: =OFFSET('2026_step3_base_wIRA_gnp'!$BX$6,$O21,0) -> 71.92 | Z21: =OFFSET('2026_step3_SCRnon_IRA_sup'!$BX$6,$O21,0) -> 71.44 | AB21: =OFFSET('2026gf_All_gnp'!$G$1,$O21,0) -> 72.30 | AC21: =OFFSET('2026_step3_eng_base_gnp'!$BX$6,$O21,1) -> 72.31 | AD21: =OFFSET('2026_step3_SCRopt_gnp'!$BX$6,$O21,1) -> 72.31 | AE21: =OFFSET('2026_step3_SCRoptwCC_gnp'!$BX$6,$O21,1) -> 72.31 | AF21: =OFFSET('2026_step3_SNCRopt_gnp'!$BX$6,$O21,1) -> 72.31 | AG21: =OFFSET('2026_step3_SNCRoptwCC_gnp'!$BX$6,$O21,1) -> 72.31 | AH21: =OFFSET('2026_step3_newSCR_gnp'!$BX$6,$O21,1) -> 71.84 | AI21: =OFFSET('2026_step3_newSCRwnon_sup'!$BX$6,$O21,1) -> 71.80 | AJ21: =OFFSET('2026_step3_nonegu1st_sup'!$BX$6,$O21,1) -> 72.26 | AK21: =OFFSET('2026_step3_base_wIRA_gnp'!$BX$6,$O21,1) -> 72.32 | AL21: =OFFSET('2026_step3_SCRnon_IRA_sup'!$BX$6,$O21,1) -> 71.84 | AN21: 71.91 | AO21: 71.40 | AP21: 72.31 | AQ21: 71.80 | AT21: =OFFSET('2026_full_geo_base_sup'!$BX$6,$O21,0) -> 71.91 | AU21: =OFFSET('2026_full_geo_SCRopt_sup'!$BX$6,$O21,0) -> 71.90 | AV21: =OFFSET('2026_full_geo_SCRoptCC_sup'!$BX$6,$O21,0) -> 71.90 | AW21: =OFFSET('2026_full_geo_SNCRopt_sup'!$BX$6,$O21,0) -> 71.90 | AX21: =OFFSET('2026_full_geo_SNCRoptCC_sup'!$BX$6,$O21,0) -> 71.90 | AY21: =OFFSET('2026_full_geo_newSCR_sup'!$BX$6,$O21,0) -> 71.43 | AZ21: =OFFSET('2026_full_geo_newSCRnon_sup'!$BX$6,$O21,0) -> 71.38 | BA21: =OFFSET('2026_full_geo_nonEGU1st_sup'!$BX$6,$O21,0) -> 71.86 | BB21: =OFFSET('2026_full_geo_IRA_base_sup'!$BX$6,$O21,0) -> 71.92 | BC21: =OFFSET('2026_full_geo_IRA_SCR_sup'!$BX$6,$O21,0) -> 71.47 | BE21: =OFFSET('2026_full_geo_base_sup'!$BX$6,$O21,1) -> 72.31 | BF21: =OFFSET('2026_full_geo_SCRopt_sup'!$BX$6,$O21,1) -> 72.30 | BG21: =OFFSET('2026_full_geo_SCRoptCC_sup'!$BX$6,$O21,1) -> 72.30 | BH21: =OFFSET('2026_full_geo_SNCRopt_sup'!$BX$6,$O21,1) -> 72.30 | BI21: =OFFSET('2026_full_geo_SNCRoptCC_sup'!$BX$6,$O21,1) -> 72.30 | BJ21: =OFFSET('2026_full_geo_newSCR_sup'!$BX$6,$O21,1) -> 71.83 | BK21: =OFFSET('2026_full_geo_newSCRnon_sup'!$BX$6,$O21,1) -> 71.78 | BL21: =OFFSET('2026_full_geo_nonEGU1st_sup'!$BX$6,$O21,1) -> 72.26 | BM21: =OFFSET('2026_full_geo_IRA_base_sup'!$BX$6,$O21,1) -> 72.32 | BN21: =OFFSET('2026_full_geo_IRA_SCR_sup'!$BX$6,$O21,1) -> 71.87 | BP21: 71.91 | BQ21: 71.86 | BR21: 71.40 | BS21: 71.44 | BU21: 72.31 | BV21: 72.32 | BW21: 71.80 | BX21: 71.84
A22: 551170006 | B22: Wisconsin | C22: Sheboygan | D22: 80.0 | E22: 81 | F22: 72.7 | G22: 73.6 | H22: 72 | I22: 75 | J22: 73 | K22: 77 | M22: 2 | N22: 3 | O22: =MATCH($A22,'2026_step3_eng_base_gnp'!$A$7:$A$736,FALSE) -> 714 | P22: =OFFSET('2026gf_All_gnp'!$F$1,$O22,0) -> 70.80 | Q22: =OFFSET('2026_step3_eng_base_gnp'!$BX$6,$O22,0) -> 70.83 | R22: =OFFSET('2026_step3_SCRopt_gnp'!$BX$6,$O22,0) -> 70.66 | S22: =OFFSET('2026_step3_SCRoptwCC_gnp'!$BX$6,$O22,0) -> 70.66 | T22: =OFFSET('2026_step3_SNCRopt_gnp'!$BX$6,$O22,0) -> 70.65 | U22: =OFFSET('2026_step3_SNCRoptwCC_gnp'!$BX$6,$O22,0) -> 70.65 | V22: =OFFSET('2026_step3_newSCR_gnp'!$BX$6,$O22,0) -> 70.51 | W22: =OFFSET('2026_step3_newSCRwnon_sup'!$BX$6,$O22,0) -> 70.27 | X22: =OFFSET('2026_step3_nonegu1st_sup'!$BX$6,$O22,0) -> 70.41 | Y22: =OFFSET('2026_step3_base_wIRA_gnp'!$BX$6,$O22,0) -> 70.80 | Z22: =OFFSET('2026_step3_SCRnon_IRA_sup'!$BX$6,$O22,0) -> 70.27 | AB22: =OFFSET('2026gf_All_gnp'!$G$1,$O22,0) -> 71.70 | AC22: =OFFSET('2026_step3_eng_base_gnp'!$BX$6,$O22,1) -> 71.73 | AD22: =OFFSET('2026_step3_SCRopt_gnp'!$BX$6,$O22,1) -> 71.55 | AE22: =OFFSET('2026_step3_SCRoptwCC_gnp'!$BX$6,$O22,1) -> 71.55 | AF22: =OFFSET('2026_step3_SNCRopt_gnp'!$BX$6,$O22,1) -> 71.55 | AG22: =OFFSET('2026_step3_SNCRoptwCC_gnp'!$BX$6,$O22,1) -> 71.55 | AH22: =OFFSET('2026_step3_newSCR_gnp'!$BX$6,$O22,1) -> 71.41 | AI22: =OFFSET('2026_step3_newSCRwnon_sup'!$BX$6,$O22,1) -> 71.17 | AJ22: =OFFSET('2026_step3_nonegu1st_sup'!$BX$6,$O22,1) -> 71.31 | AK22: =OFFSET('2026_step3_base_wIRA_gnp'!$BX$6,$O22,1) -> 71.70 | AL22: =OFFSET('2026_step3_SCRnon_IRA_sup'!$BX$6,$O22,1) -> 71.17 | AN22: 70.83 | AO22: 70.27 | AP22: 71.73 | AQ22: 71.17 | AT22: =OFFSET('2026_full_geo_base_sup'!$BX$6,$O22,0) -> 70.83 | AU22: =OFFSET('2026_full_geo_SCRopt_sup'!$BX$6,$O22,0) -> 70.65 | AV22: =OFFSET('2026_full_geo_SCRoptCC_sup'!$BX$6,$O22,0) -> 70.64 | AW22: =OFFSET('2026_full_geo_SNCRopt_sup'!$BX$6,$O22,0) -> 70.64 | AX22: =OFFSET('2026_full_geo_SNCRoptCC_sup'!$BX$6,$O22,0) -> 70.64 | AY22: =OFFSET('2026_full_geo_newSCR_sup'!$BX$6,$O22,0) -> 70.39 | AZ22: =OFFSET('2026_full_geo_newSCRnon_sup'!$BX$6,$O22,0) -> 70.07 | BA22: =OFFSET('2026_full_geo_nonEGU1st_sup'!$BX$6,$O22,0) -> 70.32 | BB22: =OFFSET('2026_full_geo_IRA_base_sup'!$BX$6,$O22,0) -> 70.80 | BC22: =OFFSET('2026_full_geo_IRA_SCR_sup'!$BX$6,$O22,0) -> 70.39 | BE22: =OFFSET('2026_full_geo_base_sup'!$BX$6,$O22,1) -> 71.73 | BF22: =OFFSET('2026_full_geo_SCRopt_sup'!$BX$6,$O22,1) -> 71.55 | BG22: =OFFSET('2026_full_geo_SCRoptCC_sup'!$BX$6,$O22,1) -> 71.54 | BH22: =OFFSET('2026_full_geo_SNCRopt_sup'!$BX$6,$O22,1) -> 71.54 | BI22: =OFFSET('2026_full_geo_SNCRoptCC_sup'!$BX$6,$O22,1) -> 71.53 | BJ22: =OFFSET('2026_full_geo_newSCR_sup'!$BX$6,$O22,1) -> 71.29 | BK22: =OFFSET('2026_full_geo_newSCRnon_sup'!$BX$6,$O22,1) -> 70.96 | BL22: =OFFSET('2026_full_geo_nonEGU1st_sup'!$BX$6,$O22,1) -> 71.21 | BM22: =OFFSET('2026_full_geo_IRA_base_sup'!$BX$6,$O22,1) -> 71.70 | BN22: =OFFSET('2026_full_geo_IRA_SCR_sup'!$BX$6,$O22,1) -> 71.29 | BP22: 70.83 | BQ22: 70.41 | BR22: 70.27 | BS22: 70.27 | BU22: 71.73 | BV22: 71.70 | BW22: 71.17 | BX22: 71.17

Sheet 2023_DV_summary_modeled_sup
M1: Sum of the DVs | Q1: =SUM(Q7:Q20,Q23:Q36) -> 1988.90 | R1: 1989.35 | S1: 1988.06 | T1: 1987.92 | U1: 1987.90 | V1: 1987.77 | W1: 1972.92 | X1: 1989.31 | Y1: 1974.98
M2: Average DV value | Q2: =AVERAGE(Q7:Q20,Q23:Q36) -> 71.03 | R2: 71.05 | S2: 71.00 | T2: 71.00 | U2: 71.00 | V2: 70.99 | W2: 70.46 | X2: 71.05 | Y2: 70.53 | BT2: Step 3 approach | BU2: Step 3 approach | BV2: Step 3 approach | BW2: Step 3 approach | BX2: Step 3 approach | BY2: Step 3 approach | CA2: Step 3 approach | CB2: Step 3 approach | CC2: Step 3 approach | CD2: Step 3 approach | CE2: Step 3 approach | CF2: Step 3 approach | CI2: Full Geography approach | CJ2: Full Geography approach | CK2: Full Geography approach | CL2: Full Geography approach | CM2: Full Geography approach | CN2: Full Geography approach | CP2: Full Geography approach | CQ2: Full Geography approach | CR2: Full Geography approach | CS2: Full Geography approach | CT2: Full Geography approach | CU2: Full Geography approach
M3: Change in DV | R3: =$R2-R2 -> 0.00 | S3: =$R2-S2 -> 0.05 | T3: 0.05 | U3: 0.05 | V3: 0.06 | W3: 0.59 | X3: 0.00 | Y3: 0.51 | BT3: 2021 DVs with relative change from AQAT | CA3: 2022 DVs with relative change from AQAT | CI3: 2021 DVs with relative change from AQAT | CP3: 2022 DVs with relative change from AQAT
M4: Change in DV looking only at receptors for the supplemental states | R4: =AVERAGEIFS('2023_DV_summary_sup'!$R7:$R86,'2023_gf_links_wflag_sup'!$N7:$N86,4)-AVERAGEIFS('2023_DV_summary_sup'!R7:R86,'2023_gf_links_wflag_sup'!$N7:$N86,4) -> 0.00 | S4: =AVERAGEIFS('2023_DV_summary_sup'!$R7:$R86,'2023_gf_links_wflag_sup'!$N7:$N86,4)-AVERAGEIFS('2023_DV_summary_sup'!S7:S86,'2023_gf_links_wflag_sup'!$N7:$N86,4) -> 0.04 | T4: =AVERAGEIFS('2023_DV_summary_sup'!$R7:$R86,'2023_gf_links_wflag_sup'!$N7:$N86,4)-AVERAGEIFS('2023_DV_summary_sup'!T7:T86,'2023_gf_links_wflag_sup'!$N7:$N86,4) -> 0.04 | U4: =AVERAGEIFS('2023_DV_summary_sup'!$R7:$R86,'2023_gf_links_wflag_sup'!$N7:$N86,4)-AVERAGEIFS('2023_DV_summary_sup'!U7:U86,'2023_gf_links_wflag_sup'!$N7:$N86,4) -> 0.04 | V4: =AVERAGEIFS('2023_DV_summary_sup'!$R7:$R86,'2023_gf_links_wflag_sup'!$N7:$N86,4)-AVERAGEIFS('2023_DV_summary_sup'!V7:V86,'2023_gf_links_wflag_sup'!$N7:$N86,4) -> 0.04 | W4: =AVERAGEIFS('2023_DV_summary_sup'!$R7:$R86,'2023_gf_links_wflag_sup'!$N7:$N86,4)-AVERAGEIFS('2023_DV_summary_sup'!W7:W86,'2023_gf_links_wflag_sup'!$N7:$N86,4) -> 0.31 | X4: =AVERAGEIFS('2023_DV_summary_sup'!$R7:$R86,'2023_gf_links_wflag_sup'!$N7:$N86,4)-AVERAGEIFS('2023_DV_summary_sup'!X7:X86,'2023_gf_links_wflag_sup'!$N7:$N86,4) -> -0.00 | Y4: =AVERAGEIFS('2023_DV_summary_sup'!$R7:$R86,'2023_gf_links_wflag_sup'!$N7:$N86,4)-AVERAGEIFS('2023_DV_summary_sup'!Y7:Y86,'2023_gf_links_wflag_sup'!$N7:$N86,4) -> 0.28 | AK4: Avg. DV | AL4: Max. DV | AM4: Avg. DV | AN4: Max. DV | AQ4: Avg. DV | AR4: Avg. DV | AS4: Avg. DV | AT4: Avg. DV | AU4: Avg. DV | AV4: Avg. DV | AW4: Avg. DV | AX4: Avg. DV | AZ4: Max. DV | BA4: Max. DV | BB4: Max. DV | BC4: Max. DV | BD4: Max. DV | BE4: Max. DV | BF4: Max. DV | BG4: Max. DV | BT4: 2023_step3_base | BU4: 2023_step3_SCRopt | BV4: 2023_step3_SCRoptwCC | BW4: 2023_step3_SNCRopt | BX4: 2023_step3_SNCRoptwCC | BY4: 2023_step3_newSCR | CA4: 2023_step3_base | CB4: 2023_step3_SCRopt | CC4: 2023_step3_SCRoptwCC | CD4: 2023_step3_SNCRopt | CE4: 2023_step3_SNCRoptwCC | CF4: 2023_step3_newSCR | CI4: 2023_step3_base | CJ4: 2023_step3_SCRopt | CK4: 2023_step3_SCRoptwCC | CL4: 2023_step3_SNCRopt | CM4: 2023_step3_SNCRoptwCC | CN4: 2023_step3_newSCR | CP4: 2023_step3_base | CQ4: 2023_step3_SCRopt | CR4: 2023_step3_SCRoptwCC | CS4: 2023_step3_SNCRopt | CT4: 2023_step3_SNCRoptwCC | CU4: 2023_step3_newSCR
Q5: Avg. DV | R5: Avg. DV | S5: Avg. DV | T5: Avg. DV | U5: Avg. DV | V5: Avg. DV | W5: Avg. DV | X5: Avg. DV | Y5: Avg. DV | AA5: Max. DV | AB5: Max. DV | AC5: Max. DV | AD5: Max. DV | AE5: Max. DV | AF5: Max. DV | AG5: Max. DV | AH5: Max. DV | AI5: Max. DV
A6: Site ID | B6: State | C6: County | D6: 2016-Centered Avg | E6: 2016-Centered Max | F6: 2023gf Avg | G6: 2023gf Max | H6: 2021 DV | I6: 2022 DV | J6: 2021 4th | K6: 2022 4th | L6: Violating Monitor Flag (1) | M6: Modeling Receptor Flag (2) | N6: Receptor for Supplemental States (4) | O6: match to list of receptors | P6: 2023_step3_base | Q6: 2023_gf | R6: 2023_step3_base | S6: 2023_step3_SCRopt | T6: 2023_step3_SCRoptwCC | U6: 2023_step3_SNCRopt | V6: 2023_step3_SNCRoptwCC | W6: 2023_step3_newSCR | X6: 2023_step3_base_wIRA | Y6: 2023_step3_newSCR_wIRA | AA6: 2023_gf | AB6: 2023_step3_base | AC6: 2023_step3_SCRopt | AD6: 2023_step3_SCRoptwCC | AE6: 2023_step3_SNCRopt | AF6: 2023_step3_SNCRoptwCC | AG6: 2023_step3_newSCR | AH6: 2023_step3_base_wIRA | AI6: 2023_step3_newSCR_wIRA | AK6: 2023_step3_base | AL6: 2023_step3_SNCRoptwCC | AM6: 2023_step3_base | AN6: 2023_step3_SNCRoptwCC | AQ6: 2023_full_geo_base | AR6: 2023_full_geo_SCRopt | AS6: 2023_full_geo_SCRoptwCC | AT6: 2023_full_geo_SNCRopt | AU6: 2023_full_geo_SNCRoptwCC | AV6: 2023_full_geo_newSCR | AW6: 2023_full_geo_base_wIRA | AX6: 2023_full_geo_newSCR_wIRA | AZ6: 2023_full_geo_base | BA6: 2023_full_geo_SCRopt | BB6: 2023_full_geo_SCRoptwCC | BC6: 2023_full_geo_SNCRopt | BD6: 2023_full_geo_SNCRoptwCC | BE6: 2023_full_geo_newSCR | BF6: 2023_full_geo_base_wIRA | BG6: 2023_full_geo_newSCR_wIRA | BJ6: 2021 DV | BK6: 2022 DV | BL6: 2021 4th | BM6: 2022 4th | BN6: AQ delta percent improvement (EA base minus step3_SNCRoptwCC/EA base) | BO6: 2021 DV adjusted by AQ delta | BP6: 2022 DV adjusted by AQ delta | BQ6: 2021 4th adjusted by AQ delta | BR6: 2022 4th adjusted by AQ delta | BT6: 2021 DV | BU6: 2021 DV | BV6: 2021 DV | BW6: 2021 DV | BX6: 2021 DV | BY6: 2021 DV | CA6: 2022 DV | CB6: 2022 DV | CC6: 2022 DV | CD6: 2022 DV | CE6: 2022 DV | CF6: 2022 DV | CI6: 2021 DV | CJ6: 2021 DV | CK6: 2021 DV | CL6: 2021 DV | CM6: 2021 DV | CN6: 2021 DV | CP6: 2022 DV | CQ6: 2022 DV | CR6: 2022 DV | CS6: 2022 DV | CT6: 2022 DV | CU6: 2022 DV
A7: 40278011 | B7: Arizona | C7: Yuma | D7: 72.3 | E7: 74 | F7: 70.4 | G7: 72.1 | H7: 67 | I7: 68 | J7: 70 | K7: 68 | M7: 2 | N7: =IF(OFFSET('2023_gf_links_wflag_sup'!$N$6,O7,0)=0,"",OFFSET('2023_gf_links_wflag_sup'!$N$6,O7,0)) ->  | O7: =MATCH(A7,'2023_gf_links_wflag_sup'!$A$7:$A$86,FALSE) -> 22 | P7: =MATCH($A7,'2023_step3_base_gnp'!$A$7:$A$736,FALSE) -> 60 | Q7: =OFFSET('2023gf_All_gnp'!$F$1,$P7,0) -> 70.40 | R7: =OFFSET('2023_step3_base_gnp'!$BX$6,$P7,0) -> 70.36 | S7: =OFFSET('2023_step3_SCRopt_gnp'!$BX$6,$P7,0) -> 70.35 | T7: =OFFSET('2023_step3_SCRoptwCC_gnp'!$BX$6,$P7,0) -> 70.34 | U7: =OFFSET('2023_step3_SNCRopt_gnp'!$BX$6,$P7,0) -> 70.34 | V7: =OFFSET('2023_step3_SNCRoptwCC_gnp'!$BX$6,$P7,0) -> 70.34 | W7: =OFFSET('2023_step3_newSCR_gnp'!$BX$6,$P7,0) -> 70.30 | X7: =OFFSET('2023_step3_base_wIRA_gnp'!$BX$6,$P7,0) -> 70.36 | Y7: =OFFSET('2023_step3_newSCR_wIRA_gnp'!$BX$6,$P7,0) -> 70.31 | AA7: =OFFSET('2023gf_All_gnp'!$G$1,$P7,0) -> 72.10 | AB7: =OFFSET('2023_step3_base_gnp'!$BX$6,$P7,1) -> 72.05 | AC7: =OFFSET('2023_step3_SCRopt_gnp'!$BX$6,$P7,1) -> 72.04 | AD7: =OFFSET('2023_step3_SCRoptwCC_gnp'!$BX$6,$P7,1) -> 72.04 | AE7: =OFFSET('2023_step3_SNCRopt_gnp'!$BX$6,$P7,1) -> 72.04 | AF7: =OFFSET('2023_step3_SNCRoptwCC_gnp'!$BX$6,$P7,1) -> 72.04 | AG7: =OFFSET('2023_step3_newSCR_gnp'!$BX$6,$P7,1) -> 71.99 | AH7: =OFFSET('2023_step3_base_wIRA_gnp'!$BX$6,$P7,1) -> 72.06 | AI7: =OFFSET('2023_step3_newSCR_wIRA_gnp'!$BX$6,$P7,1) -> 72.01 | AK7: =R7 -> 70.36 | AL7: =V7 -> 70.34 | AM7: =AB7 -> 72.05 | AN7: =AF7 -> 72.04 | AQ7: =OFFSET('2023_full_geo_base_sup'!$BX$6,$P7,0) -> 70.36 | AR7: =OFFSET('2023_full_geo_SCRopt_sup'!$BX$6,$P7,0) -> 70.35 | AS7: =OFFSET('2023_full_geo_SCRoptCC_sup'!$BX$6,$P7,0) -> 70.34 | AT7: =OFFSET('2023_full_geo_SNCRopt_sup'!$BX$6,$P7,0) -> 70.34 | AU7: =OFFSET('2023_full_geo_SNCRoptCC_sup'!$BX$6,$P7,0) -> 70.34 | AV7: =OFFSET('2023_full_geo_newSCR_sup'!$BX$6,$P7,0) -> 70.25 | AW7: =OFFSET('2023_full_geo_IRA_base_sup'!$BX$6,$P7,0) -> 70.36 | AX7: =OFFSET('2023_full_geo_IRA_SCR_sup'!$BX$6,$P7,0) -> 70.27 | AZ7: =OFFSET('2023_full_geo_base_sup'!$BX$6,$P7,1) -> 72.05 | BA7: =OFFSET('2023_full_geo_SCRopt_sup'!$BX$6,$P7,1) -> 72.04 | BB7: =OFFSET('2023_full_geo_SCRoptCC_sup'!$BX$6,$P7,1) -> 72.04 | BC7: =OFFSET('2023_full_geo_SNCRopt_sup'!$BX$6,$P7,1) -> 72.04 | BD7: =OFFSET('2023_full_geo_SNCRoptCC_sup'!$BX$6,$P7,1) -> 72.04 | BE7: =OFFSET('2023_full_geo_newSCR_sup'!$BX$6,$P7,1) -> 71.95 | BF7: =OFFSET('2023_full_geo_IRA_base_sup'!$BX$6,$P7,1) -> 72.06 | BG7: =OFFSET('2023_full_geo_IRA_SCR_sup'!$BX$6,$P7,1) -> 71.97 | BJ7: 67 | BK7: 68 | BL7: 70 | BM7: 68 | BN7: =($R7-$V7)/$R7 -> 0.00 | BO7: =H7-H7*($BN7) -> 66.99 | BP7: 67.99 | BQ7: 69.99 | BR7: 67.99 | BT7: =$H7-($H7*($R7-R7)/$R7) -> 67.00 | BU7: 66.99 | BV7: 66.99 | BW7: 66.99 | BX7: 66.99 | BY7: 66.94 | CA7: =$I7-($I7*($R7-R7)/$R7) -> 68.00 | CB7: 67.99 | CC7: 67.99 | CD7: 67.99 | CE7: 67.99 | CF7: 67.94 | CI7: =$H7-($H7*($AQ7-AQ7)/$AQ7) -> 67.00 | CJ7: 66.99 | CK7: 66.99 | CL7: 66.99 | CM7: 66.99 | CN7: 66.90 | CP7: =$I7-($I7*($AQ7-AQ7)/$AQ7) -> 68.00 | CQ7: 67.99 | CR7: 67.99 | CS7: 67.99 | CT7: 67.99 | CU7: 67.90
A8: 80350004 | B8: Colorado | C8: Douglas | D8: 77.3 | E8: 78 | F8: 71.3 | G8: 71.9 | H8: 83 | I8: 83 | J8: 89 | K8: 78 | M8: 2 | N8: =IF(OFFSET('2023_gf_links_wflag_sup'!$N$6,O8,0)=0,"",OFFSET('2023_gf_links_wflag_sup'!$N$6,O8,0)) ->  | O8: =MATCH(A8,'2023_gf_links_wflag_sup'!$A$7:$A$86,FALSE) -> 27 | P8: =MATCH($A8,'2023_step3_base_gnp'!$A$7:$A$736,FALSE) -> 175 | Q8: =OFFSET('2023gf_All_gnp'!$F$1,$P8,0) -> 71.30 | R8: =OFFSET('2023_step3_base_gnp'!$BX$6,$P8,0) -> 71.12 | S8: =OFFSET('2023_step3_SCRopt_gnp'!$BX$6,$P8,0) -> 71.10 | T8: =OFFSET('2023_step3_SCRoptwCC_gnp'!$BX$6,$P8,0) -> 71.10 | U8: =OFFSET('2023_step3_SNCRopt_gnp'!$BX$6,$P8,0) -> 71.10 | V8: =OFFSET('2023_step3_SNCRoptwCC_gnp'!$BX$6,$P8,0) -> 71.10 | W8: =OFFSET('2023_step3_newSCR_gnp'!$BX$6,$P8,0) -> 70.34 | X8: =OFFSET('2023_step3_base_wIRA_gnp'!$BX$6,$P8,0) -> 71.17 | Y8: =OFFSET('2023_step3_newSCR_wIRA_gnp'!$BX$6,$P8,0) -> 70.49 | AA8: =OFFSET('2023gf_All_gnp'!$G$1,$P8,0) -> 71.90 | AB8: =OFFSET('2023_step3_base_gnp'!$BX$6,$P8,1) -> 71.71 | AC8: =OFFSET('2023_step3_SCRopt_gnp'!$BX$6,$P8,1) -> 71.70 | AD8: =OFFSET('2023_step3_SCRoptwCC_gnp'!$BX$6,$P8,1) -> 71.70 | AE8: =OFFSET('2023_step3_SNCRopt_gnp'!$BX$6,$P8,1) -> 71.70 | AF8: =OFFSET('2023_step3_SNCRoptwCC_gnp'!$BX$6,$P8,1) -> 71.70 | AG8: =OFFSET('2023_step3_newSCR_gnp'!$BX$6,$P8,1) -> 70.93 | AH8: =OFFSET('2023_step3_base_wIRA_gnp'!$BX$6,$P8,1) -> 71.77 | AI8: =OFFSET('2023_step3_newSCR_wIRA_gnp'!$BX$6,$P8,1) -> 71.09 | AK8: 71.12 | AL8: 71.10 | AM8: 71.71 | AN8: 71.70 | AQ8: =OFFSET('2023_full_geo_base_sup'!$BX$6,$P8,0) -> 71.12 | AR8: =OFFSET('2023_full_geo_SCRopt_sup'!$BX$6,$P8,0) -> 71.11 | AS8: =OFFSET('2023_full_geo_SCRoptCC_sup'!$BX$6,$P8,0) -> 71.11 | AT8: =OFFSET('2023_full_geo_SNCRopt_sup'!$BX$6,$P8,0) -> 71.11 | AU8: =OFFSET('2023_full_geo_SNCRoptCC_sup'!$BX$6,$P8,0) -> 71.11 | AV8: =OFFSET('2023_full_geo_newSCR_sup'!$BX$6,$P8,0) -> 70.67 | AW8: =OFFSET('2023_full_geo_IRA_base_sup'!$BX$6,$P8,0) -> 71.17 | AX8: =OFFSET('2023_full_geo_IRA_SCR_sup'!$BX$6,$P8,0) -> 70.81 | AZ8: =OFFSET('2023_full_geo_base_sup'!$BX$6,$P8,1) -> 71.71 | BA8: =OFFSET('2023_full_geo_SCRopt_sup'!$BX$6,$P8,1) -> 71.71 | BB8: =OFFSET('2023_full_geo_SCRoptCC_sup'!$BX$6,$P8,1) -> 71.71 | BC8: =OFFSET('2023_full_geo_SNCRopt_sup'!$BX$6,$P8,1) -> 71.71 | BD8: =OFFSET('2023_full_geo_SNCRoptCC_sup'!$BX$6,$P8,1) -> 71.70 | BE8: =OFFSET('2023_full_geo_newSCR_sup'!$BX$6,$P8,1) -> 71.26 | BF8: =OFFSET('2023_full_geo_IRA_base_sup'!$BX$6,$P8,1) -> 71.77 | BG8: =OFFSET('2023_full_geo_IRA_SCR_sup'!$BX$6,$P8,1) -> 71.41 | BJ8: 83 | BK8: 83 | BL8: 89 | BM8: 78 | BN8: 0.00 | BO8: 82.98 | BP8: 82.98 | BQ8: 88.98 | BR8: 77.98 | BT8: 83.00 | BU8: 82.98 | BV8: 82.98 | BW8: 82.98 | BX8: 82.98 | BY8: 82.09 | CA8: 83.00 | CB8: 82.98 | CC8: 82.98 | CD8: 82.98 | CE8: 82.98 | CF8: 82.09 | CI8: 83.00 | CJ8: 82.99 | CK8: 82.99 | CL8: 82.99 | CM8: 82.99 | CN8: 82.48 | CP8: 83.00 | CQ8: 82.99 | CR8: 82.99 | CS8: 82.99 | CT8: 82.99 | CU8: 82.48
A9: 80590006 | B9: Colorado | C9: Jefferson | D9: 77.3 | E9: 78 | F9: 72.8 | G9: 73.5 | H9: 81 | I9: 83 | J9: 87 | K9: 78 | M9: 2 | N9: =IF(OFFSET('2023_gf_links_wflag_sup'!$N$6,O9,0)=0,"",OFFSET('2023_gf_links_wflag_sup'!$N$6,O9,0)) ->  | O9: =MATCH(A9,'2023_gf_links_wflag_sup'!$A$7:$A$86,FALSE) -> 28 | P9: =MATCH($A9,'2023_step3_base_gnp'!$A$7:$A$736,FALSE) -> 181 | Q9: =OFFSET('2023gf_All_gnp'!$F$1,$P9,0) -> 72.80 | R9: =OFFSET('2023_step3_base_gnp'!$BX$6,$P9,0) -> 72.63 | S9: =OFFSET('2023_step3_SCRopt_gnp'!$BX$6,$P9,0) -> 72.61 | T9: =OFFSET('2023_step3_SCRoptwCC_gnp'!$BX$6,$P9,0) -> 72.61 | U9: =OFFSET('2023_step3_SNCRopt_gnp'!$BX$6,$P9,0) -> 72.61 | V9: =OFFSET('2023_step3_SNCRoptwCC_gnp'!$BX$6,$P9,0) -> 72.61 | W9: =OFFSET('2023_step3_newSCR_gnp'!$BX$6,$P9,0) -> 71.99 | X9: =OFFSET('2023_step3_base_wIRA_gnp'!$BX$6,$P9,0) -> 72.67 | Y9: =OFFSET('2023_step3_newSCR_wIRA_gnp'!$BX$6,$P9,0) -> 72.12 | AA9: =OFFSET('2023gf_All_gnp'!$G$1,$P9,0) -> 73.50 | AB9: =OFFSET('2023_step3_base_gnp'!$BX$6,$P9,1) -> 73.32 | AC9: =OFFSET('2023_step3_SCRopt_gnp'!$BX$6,$P9,1) -> 73.31 | AD9: =OFFSET('2023_step3_SCRoptwCC_gnp'!$BX$6,$P9,1) -> 73.31 | AE9: =OFFSET('2023_step3_SNCRopt_gnp'!$BX$6,$P9,1) -> 73.31 | AF9: =OFFSET('2023_step3_SNCRoptwCC_gnp'!$BX$6,$P9,1) -> 73.31 | AG9: =OFFSET('2023_step3_newSCR_gnp'!$BX$6,$P9,1) -> 72.68 | AH9: =OFFSET('2023_step3_base_wIRA_gnp'!$BX$6,$P9,1) -> 73.37 | AI9: =OFFSET('2023_step3_newSCR_wIRA_gnp'!$BX$6,$P9,1) -> 72.81 | AK9: 72.63 | AL9: 72.61 | AM9: 73.32 | AN9: 73.31 | AQ9: =OFFSET('2023_full_geo_base_sup'!$BX$6,$P9,0) -> 72.63 | AR9: =OFFSET('2023_full_geo_SCRopt_sup'!$BX$6,$P9,0) -> 72.62 | AS9: =OFFSET('2023_full_geo_SCRoptCC_sup'!$BX$6,$P9,0) -> 72.62 | AT9: =OFFSET('2023_full_geo_SNCRopt_sup'!$BX$6,$P9,0) -> 72.62 | AU9: =OFFSET('2023_full_geo_SNCRoptCC_sup'!$BX$6,$P9,0) -> 72.62 | AV9: =OFFSET('2023_full_geo_newSCR_sup'!$BX$6,$P9,0) -> 72.31 | AW9: =OFFSET('2023_full_geo_IRA_base_sup'!$BX$6,$P9,0) -> 72.67 | AX9: =OFFSET('2023_full_geo_IRA_SCR_sup'!$BX$6,$P9,0) -> 72.42 | AZ9: =OFFSET('2023_full_geo_base_sup'!$BX$6,$P9,1) -> 73.32 | BA9: =OFFSET('2023_full_geo_SCRopt_sup'!$BX$6,$P9,1) -> 73.32 | BB9: =OFFSET('2023_full_geo_SCRoptCC_sup'!$BX$6,$P9,1) -> 73.32 | BC9: =OFFSET('2023_full_geo_SNCRopt_sup'!$BX$6,$P9,1) -> 73.32 | BD9: =OFFSET('2023_full_geo_SNCRoptCC_sup'!$BX$6,$P9,1) -> 73.32 | BE9: =OFFSET('2023_full_geo_newSCR_sup'!$BX$6,$P9,1) -> 73.00 | BF9: =OFFSET('2023_full_geo_IRA_base_sup'!$BX$6,$P9,1) -> 73.37 | BG9: =OFFSET('2023_full_geo_IRA_SCR_sup'!$BX$6,$P9,1) -> 73.12 | BJ9: 81 | BK9: 83 | BL9: 87 | BM9: 78 | BN9: 0.00 | BO9: 80.98 | BP9: 82.98 | BQ9: 86.98 | BR9: 77.98 | BT9: 81.00 | BU9: 80.98 | BV9: 80.98 | BW9: 80.98 | BX9: 80.98 | BY9: 80.29 | CA9: 83.00 | CB9: 82.98 | CC9: 82.98 | CD9: 82.98 | CE9: 82.98 | CF9: 82.27 | CI9: 81.00 | CJ9: 80.99 | CK9: 80.99 | CL9: 80.99 | CM9: 80.99 | CN9: 80.64 | CP9: 83.00 | CQ9: 82.99 | CR9: 82.99 | CS9: 82.99 | CT9: 82.99 | CU9: 82.64
A10: 80590011 | B10: Colorado | C10: Jefferson | D10: 79.3 | E10: 80 | F10: 73.5 | G10: 74.1 | H10: 83 | I10: 84 | J10: 89 | K10: 77 | M10: 2 | N10: =IF(OFFSET('2023_gf_links_wflag_sup'!$N$6,O10,0)=0,"",OFFSET('2023_gf_links_wflag_sup'!$N$6,O10,0)) ->  | O10: =MATCH(A10,'2023_gf_links_wflag_sup'!$A$7:$A$86,FALSE) -> 29 | P10: =MATCH($A10,'2023_step3_base_gnp'!$A$7:$A$736,FALSE) -> 182 | Q10: =OFFSET('2023gf_All_gnp'!$F$1,$P10,0) -> 73.50 | R10: =OFFSET('2023_step3_base_gnp'!$BX$6,$P10,0) -> 73.29 | S10: =OFFSET('2023_step3_SCRopt_gnp'!$BX$6,$P10,0) -> 73.27 | T10: =OFFSET('2023_step3_SCRoptwCC_gnp'!$BX$6,$P10,0) -> 73.27 | U10: =OFFSET('2023_step3_SNCRopt_gnp'!$BX$6,$P10,0) -> 73.27 | V10: =OFFSET('2023_step3_SNCRoptwCC_gnp'!$BX$6,$P10,0) -> 73.27 | W10: =OFFSET('2023_step3_newSCR_gnp'!$BX$6,$P10,0) -> 72.42 | X10: =OFFSET('2023_step3_base_wIRA_gnp'!$BX$6,$P10,0) -> 73.35 | Y10: =OFFSET('2023_step3_newSCR_wIRA_gnp'!$BX$6,$P10,0) -> 72.60 | AA10: =OFFSET('2023gf_All_gnp'!$G$1,$P10,0) -> 74.10 | AB10: =OFFSET('2023_step3_base_gnp'!$BX$6,$P10,1) -> 73.89 | AC10: =OFFSET('2023_step3_SCRopt_gnp'!$BX$6,$P10,1) -> 73.87 | AD10: =OFFSET('2023_step3_SCRoptwCC_gnp'!$BX$6,$P10,1) -> 73.87 | AE10: =OFFSET('2023_step3_SNCRopt_gnp'!$BX$6,$P10,1) -> 73.87 | AF10: =OFFSET('2023_step3_SNCRoptwCC_gnp'!$BX$6,$P10,1) -> 73.87 | AG10: =OFFSET('2023_step3_newSCR_gnp'!$BX$6,$P10,1) -> 73.01 | AH10: =OFFSET('2023_step3_base_wIRA_gnp'!$BX$6,$P10,1) -> 73.95 | AI10: =OFFSET('2023_step3_newSCR_wIRA_gnp'!$BX$6,$P10,1) -> 73.19 | AK10: 73.29 | AL10: 73.27 | AM10: 73.89 | AN10: 73.87 | AQ10: =OFFSET('2023_full_geo_base_sup'!$BX$6,$P10,0) -> 73.29 | AR10: =OFFSET('2023_full_geo_SCRopt_sup'!$BX$6,$P10,0) -> 73.28 | AS10: =OFFSET('2023_full_geo_SCRoptCC_sup'!$BX$6,$P10,0) -> 73.28 | AT10: =OFFSET('2023_full_geo_SNCRopt_sup'!$BX$6,$P10,0) -> 73.28 | AU10: =OFFSET('2023_full_geo_SNCRoptCC_sup'!$BX$6,$P10,0) -> 73.28 | AV10: =OFFSET('2023_full_geo_newSCR_sup'!$BX$6,$P10,0) -> 72.78 | AW10: =OFFSET('2023_full_geo_IRA_base_sup'!$BX$6,$P10,0) -> 73.35 | AX10: =OFFSET('2023_full_geo_IRA_SCR_sup'!$BX$6,$P10,0) -> 72.95 | AZ10: =OFFSET('2023_full_geo_base_sup'!$BX$6,$P10,1) -> 73.89 | BA10: =OFFSET('2023_full_geo_SCRopt_sup'!$BX$6,$P10,1) -> 73.88 | BB10: =OFFSET('2023_full_geo_SCRoptCC_sup'!$BX$6,$P10,1) -> 73.88 | BC10: =OFFSET('2023_full_geo_SNCRopt_sup'!$BX$6,$P10,1) -> 73.88 | BD10: =OFFSET('2023_full_geo_SNCRoptCC_sup'!$BX$6,$P10,1) -> 73.88 | BE10: =OFFSET('2023_full_geo_newSCR_sup'!$BX$6,$P10,1) -> 73.38 | BF10: =OFFSET('2023_full_geo_IRA_base_sup'!$BX$6,$P10,1) -> 73.95 | BG10: =OFFSET('2023_full_geo_IRA_SCR_sup'!$BX$6,$P10,1) -> 73.54 | BJ10: 83 | BK10: 84 | BL10: 89 | BM10: 77 | BN10: 0.00 | BO10: 82.98 | BP10: 83.98 | BQ10: 88.98 | BR10: 76.98 | BT10: 83.00 | BU10: 82.98 | BV10: 82.98 | BW10: 82.98 | BX10: 82.98 | BY10: 82.02 | CA10: 84.00 | CB10: 83.98 | CC10: 83.98 | CD10: 83.98 | CE10: 83.98 | CF10: 83.00 | CI10: 83.00 | CJ10: 82.99 | CK10: 82.99 | CL10: 82.99 | CM10: 82.99 | CN10: 82.43 | CP10: 84.00 | CQ10: 83.99 | CR10: 83.99 | CS10: 83.99 | CT10: 83.99 | CU10: 83.42
A11: 80690011 | B11: Colorado | C11: Larimer | D11: 75.7 | E11: 77 | F11: 70.9 | G11: 72.1 | H11: 77 | I11: 77 | J11: 85 | K11: 73 | M11: 2 | N11: =IF(OFFSET('2023_gf_links_wflag_sup'!$N$6,O11,0)=0,"",OFFSET('2023_gf_links_wflag_sup'!$N$6,O11,0)) -> 4 | O11: =MATCH(A11,'2023_gf_links_wflag_sup'!$A$7:$A$86,FALSE) -> 30 | P11: =MATCH($A11,'2023_step3_base_gnp'!$A$7:$A$736,FALSE) -> 188 | Q11: =OFFSET('2023gf_All_gnp'!$F$1,$P11,0) -> 70.90 | R11: =OFFSET('2023_step3_base_gnp'!$BX$6,$P11,0) -> 70.79 | S11: =OFFSET('2023_step3_SCRopt_gnp'!$BX$6,$P11,0) -> 70.78 | T11: =OFFSET('2023_step3_SCRoptwCC_gnp'!$BX$6,$P11,0) -> 70.78 | U11: =OFFSET('2023_step3_SNCRopt_gnp'!$BX$6,$P11,0) -> 70.78 | V11: =OFFSET('2023_step3_SNCRoptwCC_gnp'!$BX$6,$P11,0) -> 70.78 | W11: =OFFSET('2023_step3_newSCR_gnp'!$BX$6,$P11,0) -> 70.25 | X11: =OFFSET('2023_step3_base_wIRA_gnp'!$BX$6,$P11,0) -> 70.83 | Y11: =OFFSET('2023_step3_newSCR_wIRA_gnp'!$BX$6,$P11,0) -> 70.36 | AA11: =OFFSET('2023gf_All_gnp'!$G$1,$P11,0) -> 72.10 | AB11: =OFFSET('2023_step3_base_gnp'!$BX$6,$P11,1) -> 71.99 | AC11: =OFFSET('2023_step3_SCRopt_gnp'!$BX$6,$P11,1) -> 71.98 | AD11: =OFFSET('2023_step3_SCRoptwCC_gnp'!$BX$6,$P11,1) -> 71.98 | AE11: =OFFSET('2023_step3_SNCRopt_gnp'!$BX$6,$P11,1) -> 71.98 | AF11: =OFFSET('2023_step3_SNCRoptwCC_gnp'!$BX$6,$P11,1) -> 71.98 | AG11: =OFFSET('2023_step3_newSCR_gnp'!$BX$6,$P11,1) -> 71.44 | AH11: =OFFSET('2023_step3_base_wIRA_gnp'!$BX$6,$P11,1) -> 72.02 | AI11: =OFFSET('2023_step3_newSCR_wIRA_gnp'!$BX$6,$P11,1) -> 71.55 | AK11: 70.79 | AL11: 70.78 | AM11: 71.99 | AN11: 71.98 | AQ11: =OFFSET('2023_full_geo_base_sup'!$BX$6,$P11,0) -> 70.79 | AR11: =OFFSET('2023_full_geo_SCRopt_sup'!$BX$6,$P11,0) -> 70.79 | AS11: =OFFSET('2023_full_geo_SCRoptCC_sup'!$BX$6,$P11,0) -> 70.79 | AT11: =OFFSET('2023_full_geo_SNCRopt_sup'!$BX$6,$P11,0) -> 70.79 | AU11: =OFFSET('2023_full_geo_SNCRoptCC_sup'!$BX$6,$P11,0) -> 70.79 | AV11: =OFFSET('2023_full_geo_newSCR_sup'!$BX$6,$P11,0) -> 70.49 | AW11: =OFFSET('2023_full_geo_IRA_base_sup'!$BX$6,$P11,0) -> 70.83 | AX11: =OFFSET('2023_full_geo_IRA_SCR_sup'!$BX$6,$P11,0) -> 70.58 | AZ11: =OFFSET('2023_full_geo_base_sup'!$BX$6,$P11,1) -> 71.99 | BA11: =OFFSET('2023_full_geo_SCRopt_sup'!$BX$6,$P11,1) -> 71.99 | BB11: =OFFSET('2023_full_geo_SCRoptCC_sup'!$BX$6,$P11,1) -> 71.98 | BC11: =OFFSET('2023_full_geo_SNCRopt_sup'!$BX$6,$P11,1) -> 71.98 | BD11: =OFFSET('2023_full_geo_SNCRoptCC_sup'!$BX$6,$P11,1) -> 71.98 | BE11: =OFFSET('2023_full_geo_newSCR_sup'!$BX$6,$P11,1) -> 71.68 | BF11: =OFFSET('2023_full_geo_IRA_base_sup'!$BX$6,$P11,1) -> 72.02 | BG11: =OFFSET('2023_full_geo_IRA_SCR_sup'!$BX$6,$P11,1) -> 71.77 | BJ11: 77 | BK11: 77 | BL11: 85 | BM11: 73 | BN11: 0.00 | BO11: 76.99 | BP11: 76.99 | BQ11: 84.98 | BR11: 72.99 | BT11: 77.00 | BU11: 76.99 | BV11: 76.99 | BW11: 76.99 | BX11: 76.99 | BY11: 76.41 | CA11: 77.00 | CB11: 76.99 | CC11: 76.99 | CD11: 76.99 | CE11: 76.99 | CF11: 76.41 | CI11: 77.00 | CJ11: 76.99 | CK11: 76.99 | CL11: 76.99 | CM11: 76.99 | CN11: 76.67 | CP11: 77.00 | CQ11: 76.99 | CR11: 76.99 | CS11: 76.99 | CT11: 76.99 | CU11: 76.67
A12: 90010017 | B12: Connecticut | C12: Fairfield | D12: 79.3 | E12: 80 | F12: 71.6 | G12: 72.2 | H12: 79 | I12: 77 | J12: 78 | K12: 77 | M12: 2 | N12: =IF(OFFSET('2023_gf_links_wflag_sup'!$N$6,O12,0)=0,"",OFFSET('2023_gf_links_wflag_sup'!$N$6,O12,0)) ->  | O12: =MATCH(A12,'2023_gf_links_wflag_sup'!$A$7:$A$86,FALSE) -> 31 | P12: =MATCH($A12,'2023_step3_base_gnp'!$A$7:$A$736,FALSE) -> 197 | Q12: =OFFSET('2023gf_All_gnp'!$F$1,$P12,0) -> 71.60 | R12: =OFFSET('2023_step3_base_gnp'!$BX$6,$P12,0) -> 71.62 | S12: =OFFSET('2023_step3_SCRopt_gnp'!$BX$6,$P12,0) -> 71.58 | T12: =OFFSET('2023_step3_SCRoptwCC_gnp'!$BX$6,$P12,0) -> 71.57 | U12: =OFFSET('2023_step3_SNCRopt_gnp'!$BX$6,$P12,0) -> 71.57 | V12: =OFFSET('2023_step3_SNCRoptwCC_gnp'!$BX$6,$P12,0) -> 71.56 | W12: =OFFSET('2023_step3_newSCR_gnp'!$BX$6,$P12,0) -> 71.42 | X12: =OFFSET('2023_step3_base_wIRA_gnp'!$BX$6,$P12,0) -> 71.57 | Y12: =OFFSET('2023_step3_newSCR_wIRA_gnp'!$BX$6,$P12,0) -> 71.38 | AA12: =OFFSET('2023gf_All_gnp'!$G$1,$P12,0) -> 72.20 | AB12: =OFFSET('2023_step3_base_gnp'!$BX$6,$P12,1) -> 72.22 | AC12: =OFFSET('2023_step3_SCRopt_gnp'!$BX$6,$P12,1) -> 72.18 | AD12: =OFFSET('2023_step3_SCRoptwCC_gnp'!$BX$6,$P12,1) -> 72.17 | AE12: =OFFSET('2023_step3_SNCRopt_gnp'!$BX$6,$P12,1) -> 72.17 | AF12: =OFFSET('2023_step3_SNCRoptwCC_gnp'!$BX$6,$P12,1) -> 72.16 | AG12: =OFFSET('2023_step3_newSCR_gnp'!$BX$6,$P12,1) -> 72.02 | AH12: =OFFSET('2023_step3_base_wIRA_gnp'!$BX$6,$P12,1) -> 72.17 | AI12: =OFFSET('2023_step3_newSCR_wIRA_gnp'!$BX$6,$P12,1) -> 71.98 | AK12: 71.62 | AL12: 71.56 | AM12: 72.22 | AN12: 72.16 | AQ12: =OFFSET('2023_full_geo_base_sup'!$BX$6,$P12,0) -> 71.62 | AR12: =OFFSET('2023_full_geo_SCRopt_sup'!$BX$6,$P12,0) -> 71.55 | AS12: =OFFSET('2023_full_geo_SCRoptCC_sup'!$BX$6,$P12,0) -> 71.54 | AT12: =OFFSET('2023_full_geo_SNCRopt_sup'!$BX$6,$P12,0) -> 71.54 | AU12: =OFFSET('2023_full_geo_SNCRoptCC_sup'!$BX$6,$P12,0) -> 71.52 | AV12: =OFFSET('2023_full_geo_newSCR_sup'!$BX$6,$P12,0) -> 71.27 | AW12: =OFFSET('2023_full_geo_IRA_base_sup'!$BX$6,$P12,0) -> 71.57 | AX12: =OFFSET('2023_full_geo_IRA_SCR_sup'!$BX$6,$P12,0) -> 71.25 | AZ12: =OFFSET('2023_full_geo_base_sup'!$BX$6,$P12,1) -> 72.22 | BA12: =OFFSET('2023_full_geo_SCRopt_sup'!$BX$6,$P12,1) -> 72.15 | BB12: =OFFSET('2023_full_geo_SCRoptCC_sup'!$BX$6,$P12,1) -> 72.13 | BC12: =OFFSET('2023_full_geo_SNCRopt_sup'!$BX$6,$P12,1) -> 72.14 | BD12: =OFFSET('2023_full_geo_SNCRoptCC_sup'!$BX$6,$P12,1) -> 72.12 | BE12: =OFFSET('2023_full_geo_newSCR_sup'!$BX$6,$P12,1) -> 71.87 | BF12: =OFFSET('2023_full_geo_IRA_base_sup'!$BX$6,$P12,1) -> 72.17 | BG12: =OFFSET('2023_full_geo_IRA_SCR_sup'!$BX$6,$P12,1) -> 71.85 | BJ12: 79 | BK12: 77 | BL12: 78 | BM12: 77 | BN12: 0.00 | BO12: 78.94 | BP12: 76.94 | BQ12: 77.94 | BR12: 76.94 | BT12: 79.00 | BU12: 78.95 | BV12: 78.95 | BW12: 78.94 | BX12: 78.94 | BY12: 78.79 | CA12: 77.00 | CB12: 76.96 | CC12: 76.95 | CD12: 76.95 | CE12: 76.94 | CF12: 76.79 | CI12: 79.00 | CJ12: 78.93 | CK12: 78.91 | CL12: 78.91 | CM12: 78.90 | CN12: 78.62 | CP12: 77.00 | CQ12: 76.93 | CR12: 76.91 | CS12: 76.92 | CT12: 76.90 | CU12: 76.63
A13: 90013007 | B13: Connecticut | C13: Fairfield | D13: 82.0 | E13: 83 | F13: 72.9 | G13: 73.8 | H13: 81 | I13: 81 | J13: 86 | K13: 81 | M13: 2 | N13: =IF(OFFSET('2023_gf_links_wflag_sup'!$N$6,O13,0)=0,"",OFFSET('2023_gf_links_wflag_sup'!$N$6,O13,0)) ->  | O13: =MATCH(A13,'2023_gf_links_wflag_sup'!$A$7:$A$86,FALSE) -> 32 | P13: =MATCH($A13,'2023_step3_base_gnp'!$A$7:$A$736,FALSE) -> 199 | Q13: =OFFSET('2023gf_All_gnp'!$F$1,$P13,0) -> 72.90 | R13: =OFFSET('2023_step3_base_gnp'!$BX$6,$P13,0) -> 72.99 | S13: =OFFSET('2023_step3_SCRopt_gnp'!$BX$6,$P13,0) -> 72.93 | T13: =OFFSET('2023_step3_SCRoptwCC_gnp'!$BX$6,$P13,0) -> 72.91 | U13: =OFFSET('2023_step3_SNCRopt_gnp'!$BX$6,$P13,0) -> 72.91 | V13: =OFFSET('2023_step3_SNCRoptwCC_gnp'!$BX$6,$P13,0) -> 72.90 | W13: =OFFSET('2023_step3_newSCR_gnp'!$BX$6,$P13,0) -> 72.68 | X13: =OFFSET('2023_step3_base_wIRA_gnp'!$BX$6,$P13,0) -> 72.95 | Y13: =OFFSET('2023_step3_newSCR_wIRA_gnp'!$BX$6,$P13,0) -> 72.66 | AA13: =OFFSET('2023gf_All_gnp'!$G$1,$P13,0) -> 73.80 | AB13: =OFFSET('2023_step3_base_gnp'!$BX$6,$P13,1) -> 73.89 | AC13: =OFFSET('2023_step3_SCRopt_gnp'!$BX$6,$P13,1) -> 73.83 | AD13: =OFFSET('2023_step3_SCRoptwCC_gnp'!$BX$6,$P13,1) -> 73.81 | AE13: =OFFSET('2023_step3_SNCRopt_gnp'!$BX$6,$P13,1) -> 73.81 | AF13: =OFFSET('2023_step3_SNCRoptwCC_gnp'!$BX$6,$P13,1) -> 73.80 | AG13: =OFFSET('2023_step3_newSCR_gnp'!$BX$6,$P13,1) -> 73.57 | AH13: =OFFSET('2023_step3_base_wIRA_gnp'!$BX$6,$P13,1) -> 73.85 | AI13: =OFFSET('2023_step3_newSCR_wIRA_gnp'!$BX$6,$P13,1) -> 73.56 | AK13: 72.99 | AL13: 72.90 | AM13: 73.89 | AN13: 73.80 | AQ13: =OFFSET('2023_full_geo_base_sup'!$BX$6,$P13,0) -> 72.99 | AR13: =OFFSET('2023_full_geo_SCRopt_sup'!$BX$6,$P13,0) -> 72.90 | AS13: =OFFSET('2023_full_geo_SCRoptCC_sup'!$BX$6,$P13,0) -> 72.88 | AT13: =OFFSET('2023_full_geo_SNCRopt_sup'!$BX$6,$P13,0) -> 72.89 | AU13: =OFFSET('2023_full_geo_SNCRoptCC_sup'!$BX$6,$P13,0) -> 72.87 | AV13: =OFFSET('2023_full_geo_newSCR_sup'!$BX$6,$P13,0) -> 72.55 | AW13: =OFFSET('2023_full_geo_IRA_base_sup'!$BX$6,$P13,0) -> 72.95 | AX13: =OFFSET('2023_full_geo_IRA_SCR_sup'!$BX$6,$P13,0) -> 72.55 | AZ13: =OFFSET('2023_full_geo_base_sup'!$BX$6,$P13,1) -> 73.89 | BA13: =OFFSET('2023_full_geo_SCRopt_sup'!$BX$6,$P13,1) -> 73.80 | BB13: =OFFSET('2023_full_geo_SCRoptCC_sup'!$BX$6,$P13,1) -> 73.78 | BC13: =OFFSET('2023_full_geo_SNCRopt_sup'!$BX$6,$P13,1) -> 73.79 | BD13: =OFFSET('2023_full_geo_SNCRoptCC_sup'!$BX$6,$P13,1) -> 73.76 | BE13: =OFFSET('2023_full_geo_newSCR_sup'!$BX$6,$P13,1) -> 73.45 | BF13: =OFFSET('2023_full_geo_IRA_base_sup'!$BX$6,$P13,1) -> 73.85 | BG13: =OFFSET('2023_full_geo_IRA_SCR_sup'!$BX$6,$P13,1) -> 73.45 | BJ13: 81 | BK13: 81 | BL13: 86 | BM13: 81 | BN13: 0.00 | BO13: 80.90 | BP13: 80.90 | BQ13: 85.89 | BR13: 80.90 | BT13: 81.00 | BU13: 80.93 | BV13: 80.91 | BW13: 80.92 | BX13: 80.90 | BY13: 80.66 | CA13: 81.00 | CB13: 80.93 | CC13: 80.91 | CD13: 80.92 | CE13: 80.90 | CF13: 80.66 | CI13: 81.00 | CJ13: 80.90 | CK13: 80.88 | CL13: 80.89 | CM13: 80.86 | CN13: 80.52 | CP13: 81.00 | CQ13: 80.90 | CR13: 80.88 | CS13: 80.89 | CT13: 80.86 | CU13: 80.52
A14: 90019003 | B14: Connecticut | C14: Fairfield | D14: 82.7 | E14: 83 | F14: 73.3 | G14: 73.6 | H14: 80 | I14: 80 | J14: 86 | K14: 81 | M14: 2 | N14: =IF(OFFSET('2023_gf_links_wflag_sup'!$N$6,O14,0)=0,"",OFFSET('2023_gf_links_wflag_sup'!$N$6,O14,0)) ->  | O14: =MATCH(A14,'2023_gf_links_wflag_sup'!$A$7:$A$86,FALSE) -> 33 | P14: =MATCH($A14,'2023_step3_base_gnp'!$A$7:$A$736,FALSE) -> 200 | Q14: =OFFSET('2023gf_All_gnp'!$F$1,$P14,0) -> 73.30 | R14: =OFFSET('2023_step3_base_gnp'!$BX$6,$P14,0) -> 73.32 | S14: =OFFSET('2023_step3_SCRopt_gnp'!$BX$6,$P14,0) -> 73.28 | T14: =OFFSET('2023_step3_SCRoptwCC_gnp'!$BX$6,$P14,0) -> 73.26 | U14: =OFFSET('2023_step3_SNCRopt_gnp'!$BX$6,$P14,0) -> 73.27 | V14: =OFFSET('2023_step3_SNCRoptwCC_gnp'!$BX$6,$P14,0) -> 73.25 | W14: =OFFSET('2023_step3_newSCR_gnp'!$BX$6,$P14,0) -> 73.05 | X14: =OFFSET('2023_step3_base_wIRA_gnp'!$BX$6,$P14,0) -> 73.28 | Y14: =OFFSET('2023_step3_newSCR_wIRA_gnp'!$BX$6,$P14,0) -> 73.03 | AA14: =OFFSET('2023gf_All_gnp'!$G$1,$P14,0) -> 73.60 | AB14: =OFFSET('2023_step3_base_gnp'!$BX$6,$P14,1) -> 73.62 | AC14: =OFFSET('2023_step3_SCRopt_gnp'!$BX$6,$P14,1) -> 73.58 | AD14: =OFFSET('2023_step3_SCRoptwCC_gnp'!$BX$6,$P14,1) -> 73.56 | AE14: =OFFSET('2023_step3_SNCRopt_gnp'!$BX$6,$P14,1) -> 73.57 | AF14: =OFFSET('2023_step3_SNCRoptwCC_gnp'!$BX$6,$P14,1) -> 73.55 | AG14: =OFFSET('2023_step3_newSCR_gnp'!$BX$6,$P14,1) -> 73.35 | AH14: =OFFSET('2023_step3_base_wIRA_gnp'!$BX$6,$P14,1) -> 73.58 | AI14: =OFFSET('2023_step3_newSCR_wIRA_gnp'!$BX$6,$P14,1) -> 73.33 | AK14: 73.32 | AL14: 73.25 | AM14: 73.62 | AN14: 73.55 | AQ14: =OFFSET('2023_full_geo_base_sup'!$BX$6,$P14,0) -> 73.32 | AR14: =OFFSET('2023_full_geo_SCRopt_sup'!$BX$6,$P14,0) -> 73.25 | AS14: =OFFSET('2023_full_geo_SCRoptCC_sup'!$BX$6,$P14,0) -> 73.23 | AT14: =OFFSET('2023_full_geo_SNCRopt_sup'!$BX$6,$P14,0) -> 73.24 | AU14: =OFFSET('2023_full_geo_SNCRoptCC_sup'!$BX$6,$P14,0) -> 73.22 | AV14: =OFFSET('2023_full_geo_newSCR_sup'!$BX$6,$P14,0) -> 72.94 | AW14: =OFFSET('2023_full_geo_IRA_base_sup'!$BX$6,$P14,0) -> 73.28 | AX14: =OFFSET('2023_full_geo_IRA_SCR_sup'!$BX$6,$P14,0) -> 72.93 | AZ14: =OFFSET('2023_full_geo_base_sup'!$BX$6,$P14,1) -> 73.62 | BA14: =OFFSET('2023_full_geo_SCRopt_sup'!$BX$6,$P14,1) -> 73.55 | BB14: =OFFSET('2023_full_geo_SCRoptCC_sup'!$BX$6,$P14,1) -> 73.53 | BC14: =OFFSET('2023_full_geo_SNCRopt_sup'!$BX$6,$P14,1) -> 73.54 | BD14: =OFFSET('2023_full_geo_SNCRoptCC_sup'!$BX$6,$P14,1) -> 73.52 | BE14: =OFFSET('2023_full_geo_newSCR_sup'!$BX$6,$P14,1) -> 73.24 | BF14: =OFFSET('2023_full_geo_IRA_base_sup'!$BX$6,$P14,1) -> 73.58 | BG14: =OFFSET('2023_full_geo_IRA_SCR_sup'!$BX$6,$P14,1) -> 73.23 | BJ14: 80 | BK14: 80 | BL14: 86 | BM14: 81 | BN14: 0.00 | BO14: 79.92 | BP14: 79.92 | BQ14: 85.91 | BR14: 80.92 | BT14: 80.00 | BU14: 79.95 | BV14: 79.93 | BW14: 79.94 | BX14: 79.92 | BY14: 79.70 | CA14: 80.00 | CB14: 79.95 | CC14: 79.93 | CD14: 79.94 | CE14: 79.92 | CF14: 79.70 | CI14: 80.00 | CJ14: 79.92 | CK14: 79.90 | CL14: 79.91 | CM14: 79.88 | CN14: 79.58 | CP14: 80.00 | CQ14: 79.92 | CR14: 79.90 | CS14: 79.91 | CT14: 79.88 | CU14: 79.58
A15: 90099002 | B15: Connecticut | C15: New Haven | D15: 79.7 | E15: 82 | F15: 70.5 | G15: 72.6 | H15: 82 | I15: 79 | J15: 83 | K15: 76 | M15: 2 | N15: =IF(OFFSET('2023_gf_links_wflag_sup'!$N$6,O15,0)=0,"",OFFSET('2023_gf_links_wflag_sup'!$N$6,O15,0)) ->  | O15: =MATCH(A15,'2023_gf_links_wflag_sup'!$A$7:$A$86,FALSE) -> 35 | P15: =MATCH($A15,'2023_step3_base_gnp'!$A$7:$A$736,FALSE) -> 205 | Q15: =OFFSET('2023gf_All_gnp'!$F$1,$P15,0) -> 70.50 | R15: =OFFSET('2023_step3_base_gnp'!$BX$6,$P15,0) -> 70.61 | S15: =OFFSET('2023_step3_SCRopt_gnp'!$BX$6,$P15,0) -> 70.54 | T15: =OFFSET('2023_step3_SCRoptwCC_gnp'!$BX$6,$P15,0) -> 70.52 | U15: =OFFSET('2023_step3_SNCRopt_gnp'!$BX$6,$P15,0) -> 70.53 | V15: =OFFSET('2023_step3_SNCRoptwCC_gnp'!$BX$6,$P15,0) -> 70.51 | W15: =OFFSET('2023_step3_newSCR_gnp'!$BX$6,$P15,0) -> 70.30 | X15: =OFFSET('2023_step3_base_wIRA_gnp'!$BX$6,$P15,0) -> 70.59 | Y15: =OFFSET('2023_step3_newSCR_wIRA_gnp'!$BX$6,$P15,0) -> 70.30 | AA15: =OFFSET('2023gf_All_gnp'!$G$1,$P15,0) -> 72.60 | AB15: =OFFSET('2023_step3_base_gnp'!$BX$6,$P15,1) -> 72.71 | AC15: =OFFSET('2023_step3_SCRopt_gnp'!$BX$6,$P15,1) -> 72.65 | AD15: =OFFSET('2023_step3_SCRoptwCC_gnp'!$BX$6,$P15,1) -> 72.62 | AE15: =OFFSET('2023_step3_SNCRopt_gnp'!$BX$6,$P15,1) -> 72.63 | AF15: =OFFSET('2023_step3_SNCRoptwCC_gnp'!$BX$6,$P15,1) -> 72.61 | AG15: =OFFSET('2023_step3_newSCR_gnp'!$BX$6,$P15,1) -> 72.39 | AH15: =OFFSET('2023_step3_base_wIRA_gnp'!$BX$6,$P15,1) -> 72.69 | AI15: =OFFSET('2023_step3_newSCR_wIRA_gnp'!$BX$6,$P15,1) -> 72.39 | AK15: 70.61 | AL15: 70.51 | AM15: 72.71 | AN15: 72.61 | AQ15: =OFFSET('2023_full_geo_base_sup'!$BX$6,$P15,0) -> 70.61 | AR15: =OFFSET('2023_full_geo_SCRopt_sup'!$BX$6,$P15,0) -> 70.52 | AS15: =OFFSET('2023_full_geo_SCRoptCC_sup'!$BX$6,$P15,0) -> 70.50 | AT15: =OFFSET('2023_full_geo_SNCRopt_sup'!$BX$6,$P15,0) -> 70.51 | AU15: =OFFSET('2023_full_geo_SNCRoptCC_sup'!$BX$6,$P15,0) -> 70.48 | AV15: =OFFSET('2023_full_geo_newSCR_sup'!$BX$6,$P15,0) -> 70.19 | AW15: =OFFSET('2023_full_geo_IRA_base_sup'!$BX$6,$P15,0) -> 70.59 | AX15: =OFFSET('2023_full_geo_IRA_SCR_sup'!$BX$6,$P15,0) -> 70.20 | AZ15: =OFFSET('2023_full_geo_base_sup'!$BX$6,$P15,1) -> 72.71 | BA15: =OFFSET('2023_full_geo_SCRopt_sup'!$BX$6,$P15,1) -> 72.62 | BB15: =OFFSET('2023_full_geo_SCRoptCC_sup'!$BX$6,$P15,1) -> 72.60 | BC15: =OFFSET('2023_full_geo_SNCRopt_sup'!$BX$6,$P15,1) -> 72.61 | BD15: =OFFSET('2023_full_geo_SNCRoptCC_sup'!$BX$6,$P15,1) -> 72.58 | BE15: =OFFSET('2023_full_geo_newSCR_sup'!$BX$6,$P15,1) -> 72.28 | BF15: =OFFSET('2023_full_geo_IRA_base_sup'!$BX$6,$P15,1) -> 72.69 | BG15: =OFFSET('2023_full_geo_IRA_SCR_sup'!$BX$6,$P15,1) -> 72.29 | BJ15: 82 | BK15: 79 | BL15: 83 | BM15: 76 | BN15: 0.00 | BO15: 81.89 | BP15: 78.89 | BQ15: 82.89 | BR15: 75.89 | BT15: 82.00 | BU15: 81.93 | BV15: 81.90 | BW15: 81.91 | BX15: 81.89 | BY15: 81.64 | CA15: 79.00 | CB15: 78.93 | CC15: 78.90 | CD15: 78.91 | CE15: 78.89 | CF15: 78.65 | CI15: 82.00 | CJ15: 81.90 | CK15: 81.87 | CL15: 81.88 | CM15: 81.85 | CN15: 81.51 | CP15: 79.00 | CQ15: 78.90 | CR15: 78.87 | CS15: 78.88 | CT15: 78.86 | CU15: 78.53
... 18 more rows

Sheet 2023_DV_summary_violating_sup
M1: Sum of the DVs | Q1: =SUM(Q7:Q41,Q42:Q56) -> 3322.60 | R1: 3323.79 | S1: 3322.17 | T1: 3321.75 | U1: 3321.71 | V1: 3321.30 | W1: 3299.66 | X1: 3323.62 | Y1: 3303.27
M2: Average DV value | Q2: =AVERAGE(Q7:Q41,Q42:Q56) -> 66.45 | R2: 66.48 | S2: 66.44 | T2: 66.44 | U2: 66.43 | V2: 66.43 | W2: 65.99 | X2: 66.47 | Y2: 66.07 | BT2: Step 3 approach | BU2: Step 3 approach | BV2: Step 3 approach | BW2: Step 3 approach | BX2: Step 3 approach | BY2: Step 3 approach | CA2: Step 3 approach | CB2: Step 3 approach | CC2: Step 3 approach | CD2: Step 3 approach | CE2: Step 3 approach | CF2: Step 3 approach | CI2: Full Geography approach | CJ2: Full Geography approach | CK2: Full Geography approach | CL2: Full Geography approach | CM2: Full Geography approach | CN2: Full Geography approach | CP2: Full Geography approach | CQ2: Full Geography approach | CR2: Full Geography approach | CS2: Full Geography approach | CT2: Full Geography approach | CU2: Full Geography approach
M3: Change in DV | R3: =$R2-R2 -> 0.00 | S3: =$R2-S2 -> 0.03 | T3: 0.04 | U3: 0.04 | V3: 0.05 | W3: 0.48 | X3: 0.00 | Y3: 0.41 | BT3: 2021 DVs with relative change from AQAT | CA3: 2022 DVs with relative change from AQAT | CI3: 2021 DVs with relative change from AQAT | CP3: 2022 DVs with relative change from AQAT
M4: Change in DV looking only at receptors for the supplemental states | R4: =AVERAGEIFS('2023_DV_summary_sup'!$R7:$R86,'2023_gf_links_wflag_sup'!$N7:$N86,4)-AVERAGEIFS('2023_DV_summary_sup'!R7:R86,'2023_gf_links_wflag_sup'!$N7:$N86,4) -> 0.00 | S4: =AVERAGEIFS('2023_DV_summary_sup'!$R7:$R86,'2023_gf_links_wflag_sup'!$N7:$N86,4)-AVERAGEIFS('2023_DV_summary_sup'!S7:S86,'2023_gf_links_wflag_sup'!$N7:$N86,4) -> 0.04 | T4: =AVERAGEIFS('2023_DV_summary_sup'!$R7:$R86,'2023_gf_links_wflag_sup'!$N7:$N86,4)-AVERAGEIFS('2023_DV_summary_sup'!T7:T86,'2023_gf_links_wflag_sup'!$N7:$N86,4) -> 0.04 | U4: =AVERAGEIFS('2023_DV_summary_sup'!$R7:$R86,'2023_gf_links_wflag_sup'!$N7:$N86,4)-AVERAGEIFS('2023_DV_summary_sup'!U7:U86,'2023_gf_links_wflag_sup'!$N7:$N86,4) -> 0.04 | V4: =AVERAGEIFS('2023_DV_summary_sup'!$R7:$R86,'2023_gf_links_wflag_sup'!$N7:$N86,4)-AVERAGEIFS('2023_DV_summary_sup'!V7:V86,'2023_gf_links_wflag_sup'!$N7:$N86,4) -> 0.04 | W4: =AVERAGEIFS('2023_DV_summary_sup'!$R7:$R86,'2023_gf_links_wflag_sup'!$N7:$N86,4)-AVERAGEIFS('2023_DV_summary_sup'!W7:W86,'2023_gf_links_wflag_sup'!$N7:$N86,4) -> 0.31 | X4: =AVERAGEIFS('2023_DV_summary_sup'!$R7:$R86,'2023_gf_links_wflag_sup'!$N7:$N86,4)-AVERAGEIFS('2023_DV_summary_sup'!X7:X86,'2023_gf_links_wflag_sup'!$N7:$N86,4) -> -0.00 | Y4: =AVERAGEIFS('2023_DV_summary_sup'!$R7:$R86,'2023_gf_links_wflag_sup'!$N7:$N86,4)-AVERAGEIFS('2023_DV_summary_sup'!Y7:Y86,'2023_gf_links_wflag_sup'!$N7:$N86,4) -> 0.28 | AK4: Avg. DV | AL4: Max. DV | AM4: Avg. DV | AN4: Max. DV | AQ4: Avg. DV | AR4: Avg. DV | AS4: Avg. DV | AT4: Avg. DV | AU4: Avg. DV | AV4: Avg. DV | AW4: Avg. DV | AX4: Avg. DV | AZ4: Max. DV | BA4: Max. DV | BB4: Max. DV | BC4: Max. DV | BD4: Max. DV | BE4: Max. DV | BF4: Max. DV | BG4: Max. DV | BT4: 2023_step3_base | BU4: 2023_step3_SCRopt | BV4: 2023_step3_SCRoptwCC | BW4: 2023_step3_SNCRopt | BX4: 2023_step3_SNCRoptwCC | BY4: 2023_step3_newSCR | CA4: 2023_step3_base | CB4: 2023_step3_SCRopt | CC4: 2023_step3_SCRoptwCC | CD4: 2023_step3_SNCRopt | CE4: 2023_step3_SNCRoptwCC | CF4: 2023_step3_newSCR | CI4: 2023_step3_base | CJ4: 2023_step3_SCRopt | CK4: 2023_step3_SCRoptwCC | CL4: 2023_step3_SNCRopt | CM4: 2023_step3_SNCRoptwCC | CN4: 2023_step3_newSCR | CP4: 2023_step3_base | CQ4: 2023_step3_SCRopt | CR4: 2023_step3_SCRoptwCC | CS4: 2023_step3_SNCRopt | CT4: 2023_step3_SNCRoptwCC | CU4: 2023_step3_newSCR
Q5: Avg. DV | R5: Avg. DV | S5: Avg. DV | T5: Avg. DV | U5: Avg. DV | V5: Avg. DV | W5: Avg. DV | X5: Avg. DV | Y5: Avg. DV | AA5: Max. DV | AB5: Max. DV | AC5: Max. DV | AD5: Max. DV | AE5: Max. DV | AF5: Max. DV | AG5: Max. DV | AH5: Max. DV | AI5: Max. DV
A6: Site ID | B6: State | C6: County | D6: 2016-Centered Avg | E6: 2016-Centered Max | F6: 2023gf Avg | G6: 2023gf Max | H6: 2021 DV | I6: 2022 DV | J6: 2021 4th | K6: 2022 4th | L6: Violating Monitor Flag (1) | M6: Modeling Receptor Flag (2) | N6: Receptor for Supplemental States (4) | O6: match to list of receptors | P6: 2023_step3_base | Q6: 2023_gf | R6: 2023_step3_base | S6: 2023_step3_SCRopt | T6: 2023_step3_SCRoptwCC | U6: 2023_step3_SNCRopt | V6: 2023_step3_SNCRoptwCC | W6: 2023_step3_newSCR | X6: 2023_step3_base_wIRA | Y6: 2023_step3_newSCR_wIRA | AA6: 2023_gf | AB6: 2023_step3_base | AC6: 2023_step3_SCRopt | AD6: 2023_step3_SCRoptwCC | AE6: 2023_step3_SNCRopt | AF6: 2023_step3_SNCRoptwCC | AG6: 2023_step3_newSCR | AH6: 2023_step3_base_wIRA | AI6: 2023_step3_newSCR_wIRA | AK6: 2023_step3_base | AL6: 2023_step3_SNCRoptwCC | AM6: 2023_step3_base | AN6: 2023_step3_SNCRoptwCC | AQ6: 2023_full_geo_base | AR6: 2023_full_geo_SCRopt | AS6: 2023_full_geo_SCRoptwCC | AT6: 2023_full_geo_SNCRopt | AU6: 2023_full_geo_SNCRoptwCC | AV6: 2023_full_geo_newSCR | AW6: 2023_full_geo_base_wIRA | AX6: 2023_full_geo_newSCR_wIRA | AZ6: 2023_full_geo_base | BA6: 2023_full_geo_SCRopt | BB6: 2023_full_geo_SCRoptwCC | BC6: 2023_full_geo_SNCRopt | BD6: 2023_full_geo_SNCRoptwCC | BE6: 2023_full_geo_newSCR | BF6: 2023_full_geo_base_wIRA | BG6: 2023_full_geo_newSCR_wIRA | BJ6: 2021 DV | BK6: 2022 DV | BL6: 2021 4th | BM6: 2022 4th | BN6: AQ delta percent improvement (EA base minus step3_SNCRoptwCC/EA base) | BO6: 2021 DV adjusted by AQ delta | BP6: 2022 DV adjusted by AQ delta | BQ6: 2021 4th adjusted by AQ delta | BR6: 2022 4th adjusted by AQ delta | BT6: 2021 DV | BU6: 2021 DV | BV6: 2021 DV | BW6: 2021 DV | BX6: 2021 DV | BY6: 2021 DV | CA6: 2022 DV | CB6: 2022 DV | CC6: 2022 DV | CD6: 2022 DV | CE6: 2022 DV | CF6: 2022 DV | CI6: 2021 DV | CJ6: 2021 DV | CK6: 2021 DV | CL6: 2021 DV | CM6: 2021 DV | CN6: 2021 DV | CP6: 2022 DV | CQ6: 2022 DV | CR6: 2022 DV | CS6: 2022 DV | CT6: 2022 DV | CU6: 2022 DV
A7: 40070010 | B7: Arizona | C7: Gila | D7: 72.3 | E7: 74 | F7: 67.9 | G7: 69.5 | H7: 77 | I7: 76 | J7: 75 | K7: 74 | L7: 1 | N7: =IF(OFFSET('2023_gf_links_wflag_sup'!$N$6,O7,0)=0,"",OFFSET('2023_gf_links_wflag_sup'!$N$6,O7,0)) ->  | O7: =MATCH(A7,'2023_gf_links_wflag_sup'!$A$7:$A$86,FALSE) -> 1 | P7: =MATCH($A7,'2023_step3_base_gnp'!$A$7:$A$736,FALSE) -> 20 | Q7: =OFFSET('2023gf_All_gnp'!$F$1,$P7,0) -> 67.90 | R7: =OFFSET('2023_step3_base_gnp'!$BX$6,$P7,0) -> 67.89 | S7: =OFFSET('2023_step3_SCRopt_gnp'!$BX$6,$P7,0) -> 67.88 | T7: =OFFSET('2023_step3_SCRoptwCC_gnp'!$BX$6,$P7,0) -> 67.88 | U7: =OFFSET('2023_step3_SNCRopt_gnp'!$BX$6,$P7,0) -> 67.88 | V7: =OFFSET('2023_step3_SNCRoptwCC_gnp'!$BX$6,$P7,0) -> 67.87 | W7: =OFFSET('2023_step3_newSCR_gnp'!$BX$6,$P7,0) -> 67.59 | X7: =OFFSET('2023_step3_base_wIRA_gnp'!$BX$6,$P7,0) -> 67.89 | Y7: =OFFSET('2023_step3_newSCR_wIRA_gnp'!$BX$6,$P7,0) -> 67.66 | AA7: =OFFSET('2023gf_All_gnp'!$G$1,$P7,0) -> 69.50 | AB7: =OFFSET('2023_step3_base_gnp'!$BX$6,$P7,1) -> 69.49 | AC7: =OFFSET('2023_step3_SCRopt_gnp'!$BX$6,$P7,1) -> 69.48 | AD7: =OFFSET('2023_step3_SCRoptwCC_gnp'!$BX$6,$P7,1) -> 69.48 | AE7: =OFFSET('2023_step3_SNCRopt_gnp'!$BX$6,$P7,1) -> 69.47 | AF7: =OFFSET('2023_step3_SNCRoptwCC_gnp'!$BX$6,$P7,1) -> 69.47 | AG7: =OFFSET('2023_step3_newSCR_gnp'!$BX$6,$P7,1) -> 69.19 | AH7: =OFFSET('2023_step3_base_wIRA_gnp'!$BX$6,$P7,1) -> 69.49 | AI7: =OFFSET('2023_step3_newSCR_wIRA_gnp'!$BX$6,$P7,1) -> 69.25 | AK7: =R7 -> 67.89 | AL7: =V7 -> 67.87 | AM7: =AB7 -> 69.49 | AN7: =AF7 -> 69.47 | AQ7: =OFFSET('2023_full_geo_base_sup'!$BX$6,$P7,0) -> 67.89 | AR7: =OFFSET('2023_full_geo_SCRopt_sup'!$BX$6,$P7,0) -> 67.88 | AS7: =OFFSET('2023_full_geo_SCRoptCC_sup'!$BX$6,$P7,0) -> 67.88 | AT7: =OFFSET('2023_full_geo_SNCRopt_sup'!$BX$6,$P7,0) -> 67.87 | AU7: =OFFSET('2023_full_geo_SNCRoptCC_sup'!$BX$6,$P7,0) -> 67.87 | AV7: =OFFSET('2023_full_geo_newSCR_sup'!$BX$6,$P7,0) -> 67.42 | AW7: =OFFSET('2023_full_geo_IRA_base_sup'!$BX$6,$P7,0) -> 67.89 | AX7: =OFFSET('2023_full_geo_IRA_SCR_sup'!$BX$6,$P7,0) -> 67.52 | AZ7: =OFFSET('2023_full_geo_base_sup'!$BX$6,$P7,1) -> 69.49 | BA7: =OFFSET('2023_full_geo_SCRopt_sup'!$BX$6,$P7,1) -> 69.48 | BB7: =OFFSET('2023_full_geo_SCRoptCC_sup'!$BX$6,$P7,1) -> 69.48 | BC7: =OFFSET('2023_full_geo_SNCRopt_sup'!$BX$6,$P7,1) -> 69.47 | BD7: =OFFSET('2023_full_geo_SNCRoptCC_sup'!$BX$6,$P7,1) -> 69.47 | BE7: =OFFSET('2023_full_geo_newSCR_sup'!$BX$6,$P7,1) -> 69.00 | BF7: =OFFSET('2023_full_geo_IRA_base_sup'!$BX$6,$P7,1) -> 69.49 | BG7: =OFFSET('2023_full_geo_IRA_SCR_sup'!$BX$6,$P7,1) -> 69.11 | BJ7: 77 | BK7: 76 | BL7: 75 | BM7: 74 | BN7: =($R7-$V7)/$R7 -> 0.00 | BO7: =H7-H7*($BN7) -> 76.97 | BP7: =I7-I7*($BN7) -> 75.97 | BQ7: =J7-J7*($BN7) -> 74.97 | BR7: =K7-K7*($BN7) -> 73.97 | BT7: =$H7-($H7*($R7-R7)/$R7) -> 77.00 | BU7: 76.99 | BV7: 76.98 | BW7: 76.98 | BX7: 76.97 | BY7: 76.66 | CA7: =$I7-($I7*($R7-R7)/$R7) -> 76.00 | CB7: 75.99 | CC7: 75.98 | CD7: 75.98 | CE7: 75.97 | CF7: 75.66 | CI7: =$H7-($H7*($AQ7-AQ7)/$AQ7) -> 77.00 | CJ7: 76.99 | CK7: 76.98 | CL7: 76.98 | CM7: 76.97 | CN7: 76.46 | CP7: =$I7-($I7*($AQ7-AQ7)/$AQ7) -> 76.00 | CQ7: 75.99 | CR7: 75.98 | CS7: 75.98 | CT7: 75.97 | CU7: 75.47
A8: 40130019 | B8: Arizona | C8: Maricopa | D8: 73.7 | E8: 74 | F8: 69.8 | G8: 70.0 | H8: 75 | I8: 77 | J8: 78 | K8: 76 | L8: 1 | N8: =IF(OFFSET('2023_gf_links_wflag_sup'!$N$6,O8,0)=0,"",OFFSET('2023_gf_links_wflag_sup'!$N$6,O8,0)) ->  | O8: =MATCH(A8,'2023_gf_links_wflag_sup'!$A$7:$A$86,FALSE) -> 2 | P8: =MATCH($A8,'2023_step3_base_gnp'!$A$7:$A$736,FALSE) -> 21 | Q8: =OFFSET('2023gf_All_gnp'!$F$1,$P8,0) -> 69.80 | R8: =OFFSET('2023_step3_base_gnp'!$BX$6,$P8,0) -> 69.82 | S8: =OFFSET('2023_step3_SCRopt_gnp'!$BX$6,$P8,0) -> 69.81 | T8: =OFFSET('2023_step3_SCRoptwCC_gnp'!$BX$6,$P8,0) -> 69.80 | U8: =OFFSET('2023_step3_SNCRopt_gnp'!$BX$6,$P8,0) -> 69.79 | V8: =OFFSET('2023_step3_SNCRoptwCC_gnp'!$BX$6,$P8,0) -> 69.79 | W8: =OFFSET('2023_step3_newSCR_gnp'!$BX$6,$P8,0) -> 69.41 | X8: =OFFSET('2023_step3_base_wIRA_gnp'!$BX$6,$P8,0) -> 69.81 | Y8: =OFFSET('2023_step3_newSCR_wIRA_gnp'!$BX$6,$P8,0) -> 69.49 | AA8: =OFFSET('2023gf_All_gnp'!$G$1,$P8,0) -> 70.00 | AB8: =OFFSET('2023_step3_base_gnp'!$BX$6,$P8,1) -> 70.02 | AC8: =OFFSET('2023_step3_SCRopt_gnp'!$BX$6,$P8,1) -> 70.01 | AD8: =OFFSET('2023_step3_SCRoptwCC_gnp'!$BX$6,$P8,1) -> 70.00 | AE8: =OFFSET('2023_step3_SNCRopt_gnp'!$BX$6,$P8,1) -> 69.99 | AF8: =OFFSET('2023_step3_SNCRoptwCC_gnp'!$BX$6,$P8,1) -> 69.99 | AG8: =OFFSET('2023_step3_newSCR_gnp'!$BX$6,$P8,1) -> 69.61 | AH8: =OFFSET('2023_step3_base_wIRA_gnp'!$BX$6,$P8,1) -> 70.01 | AI8: =OFFSET('2023_step3_newSCR_wIRA_gnp'!$BX$6,$P8,1) -> 69.69 | AK8: =R8 -> 69.82 | AL8: =V8 -> 69.79 | AM8: =AB8 -> 70.02 | AN8: =AF8 -> 69.99 | AQ8: =OFFSET('2023_full_geo_base_sup'!$BX$6,$P8,0) -> 69.82 | AR8: =OFFSET('2023_full_geo_SCRopt_sup'!$BX$6,$P8,0) -> 69.81 | AS8: =OFFSET('2023_full_geo_SCRoptCC_sup'!$BX$6,$P8,0) -> 69.80 | AT8: =OFFSET('2023_full_geo_SNCRopt_sup'!$BX$6,$P8,0) -> 69.79 | AU8: =OFFSET('2023_full_geo_SNCRoptCC_sup'!$BX$6,$P8,0) -> 69.79 | AV8: =OFFSET('2023_full_geo_newSCR_sup'!$BX$6,$P8,0) -> 69.27 | AW8: =OFFSET('2023_full_geo_IRA_base_sup'!$BX$6,$P8,0) -> 69.81 | AX8: =OFFSET('2023_full_geo_IRA_SCR_sup'!$BX$6,$P8,0) -> 69.38 | AZ8: =OFFSET('2023_full_geo_base_sup'!$BX$6,$P8,1) -> 70.02 | BA8: =OFFSET('2023_full_geo_SCRopt_sup'!$BX$6,$P8,1) -> 70.01 | BB8: =OFFSET('2023_full_geo_SCRoptCC_sup'!$BX$6,$P8,1) -> 70.00 | BC8: =OFFSET('2023_full_geo_SNCRopt_sup'!$BX$6,$P8,1) -> 69.99 | BD8: =OFFSET('2023_full_geo_SNCRoptCC_sup'!$BX$6,$P8,1) -> 69.99 | BE8: =OFFSET('2023_full_geo_newSCR_sup'!$BX$6,$P8,1) -> 69.47 | BF8: =OFFSET('2023_full_geo_IRA_base_sup'!$BX$6,$P8,1) -> 70.01 | BG8: =OFFSET('2023_full_geo_IRA_SCR_sup'!$BX$6,$P8,1) -> 69.58 | BJ8: 75 | BK8: 77 | BL8: 78 | BM8: 76 | BN8: =($R8-$V8)/$R8 -> 0.00 | BO8: =H8-H8*($BN8) -> 74.97 | BP8: 76.97 | BQ8: 77.97 | BR8: 75.97 | BT8: 75.00 | BU8: 74.99 | BV8: 74.98 | BW8: 74.97 | BX8: 74.97 | BY8: 74.56 | CA8: 77.00 | CB8: 76.99 | CC8: 76.98 | CD8: 76.97 | CE8: 76.97 | CF8: 76.55 | CI8: 75.00 | CJ8: 74.99 | CK8: 74.98 | CL8: 74.97 | CM8: 74.97 | CN8: 74.42 | CP8: 77.00 | CQ8: 76.99 | CR8: 76.98 | CS8: 76.97 | CT8: 76.96 | CU8: 76.40
A9: 40131003 | B9: Arizona | C9: Maricopa | D9: 75.3 | E9: 76 | F9: 70.1 | G9: 70.7 | H9: 80 | I9: 80 | J9: 83 | K9: 78 | L9: 1 | N9: =IF(OFFSET('2023_gf_links_wflag_sup'!$N$6,O9,0)=0,"",OFFSET('2023_gf_links_wflag_sup'!$N$6,O9,0)) ->  | O9: =MATCH(A9,'2023_gf_links_wflag_sup'!$A$7:$A$86,FALSE) -> 3 | P9: =MATCH($A9,'2023_step3_base_gnp'!$A$7:$A$736,FALSE) -> 22 | Q9: =OFFSET('2023gf_All_gnp'!$F$1,$P9,0) -> 70.10 | R9: =OFFSET('2023_step3_base_gnp'!$BX$6,$P9,0) -> 70.11 | S9: =OFFSET('2023_step3_SCRopt_gnp'!$BX$6,$P9,0) -> 70.09 | T9: =OFFSET('2023_step3_SCRoptwCC_gnp'!$BX$6,$P9,0) -> 70.09 | U9: =OFFSET('2023_step3_SNCRopt_gnp'!$BX$6,$P9,0) -> 70.08 | V9: =OFFSET('2023_step3_SNCRoptwCC_gnp'!$BX$6,$P9,0) -> 70.07 | W9: =OFFSET('2023_step3_newSCR_gnp'!$BX$6,$P9,0) -> 69.55 | X9: =OFFSET('2023_step3_base_wIRA_gnp'!$BX$6,$P9,0) -> 70.10 | Y9: =OFFSET('2023_step3_newSCR_wIRA_gnp'!$BX$6,$P9,0) -> 69.66 | AA9: =OFFSET('2023gf_All_gnp'!$G$1,$P9,0) -> 70.70 | AB9: =OFFSET('2023_step3_base_gnp'!$BX$6,$P9,1) -> 70.71 | AC9: =OFFSET('2023_step3_SCRopt_gnp'!$BX$6,$P9,1) -> 70.69 | AD9: =OFFSET('2023_step3_SCRoptwCC_gnp'!$BX$6,$P9,1) -> 70.69 | AE9: =OFFSET('2023_step3_SNCRopt_gnp'!$BX$6,$P9,1) -> 70.68 | AF9: =OFFSET('2023_step3_SNCRoptwCC_gnp'!$BX$6,$P9,1) -> 70.67 | AG9: =OFFSET('2023_step3_newSCR_gnp'!$BX$6,$P9,1) -> 70.14 | AH9: =OFFSET('2023_step3_base_wIRA_gnp'!$BX$6,$P9,1) -> 70.70 | AI9: =OFFSET('2023_step3_newSCR_wIRA_gnp'!$BX$6,$P9,1) -> 70.26 | AK9: 70.11 | AL9: 70.07 | AM9: 70.71 | AN9: 70.67 | AQ9: =OFFSET('2023_full_geo_base_sup'!$BX$6,$P9,0) -> 70.11 | AR9: =OFFSET('2023_full_geo_SCRopt_sup'!$BX$6,$P9,0) -> 70.09 | AS9: =OFFSET('2023_full_geo_SCRoptCC_sup'!$BX$6,$P9,0) -> 70.09 | AT9: =OFFSET('2023_full_geo_SNCRopt_sup'!$BX$6,$P9,0) -> 70.08 | AU9: =OFFSET('2023_full_geo_SNCRoptCC_sup'!$BX$6,$P9,0) -> 70.07 | AV9: =OFFSET('2023_full_geo_newSCR_sup'!$BX$6,$P9,0) -> 69.39 | AW9: =OFFSET('2023_full_geo_IRA_base_sup'!$BX$6,$P9,0) -> 70.10 | AX9: =OFFSET('2023_full_geo_IRA_SCR_sup'!$BX$6,$P9,0) -> 69.54 | AZ9: =OFFSET('2023_full_geo_base_sup'!$BX$6,$P9,1) -> 70.71 | BA9: =OFFSET('2023_full_geo_SCRopt_sup'!$BX$6,$P9,1) -> 70.69 | BB9: =OFFSET('2023_full_geo_SCRoptCC_sup'!$BX$6,$P9,1) -> 70.68 | BC9: =OFFSET('2023_full_geo_SNCRopt_sup'!$BX$6,$P9,1) -> 70.68 | BD9: =OFFSET('2023_full_geo_SNCRoptCC_sup'!$BX$6,$P9,1) -> 70.67 | BE9: =OFFSET('2023_full_geo_newSCR_sup'!$BX$6,$P9,1) -> 69.98 | BF9: =OFFSET('2023_full_geo_IRA_base_sup'!$BX$6,$P9,1) -> 70.70 | BG9: =OFFSET('2023_full_geo_IRA_SCR_sup'!$BX$6,$P9,1) -> 70.13 | BJ9: 80 | BK9: 80 | BL9: 83 | BM9: 78 | BN9: 0.00 | BO9: 79.95 | BP9: 79.95 | BQ9: 82.95 | BR9: 77.95 | BT9: 80.00 | BU9: 79.98 | BV9: 79.97 | BW9: 79.96 | BX9: 79.95 | BY9: 79.36 | CA9: 80.00 | CB9: 79.98 | CC9: 79.97 | CD9: 79.96 | CE9: 79.95 | CF9: 79.36 | CI9: 80.00 | CJ9: 79.98 | CK9: 79.97 | CL9: 79.96 | CM9: 79.95 | CN9: 79.18 | CP9: 80.00 | CQ9: 79.98 | CR9: 79.97 | CS9: 79.96 | CT9: 79.95 | CU9: 79.18
A10: 40131004 | B10: Arizona | C10: Maricopa | D10: 75.3 | E10: 76 | F10: 70.2 | G10: 70.8 | H10: 80 | I10: 81 | J10: 81 | K10: 77 | L10: 1 | N10: =IF(OFFSET('2023_gf_links_wflag_sup'!$N$6,O10,0)=0,"",OFFSET('2023_gf_links_wflag_sup'!$N$6,O10,0)) ->  | O10: =MATCH(A10,'2023_gf_links_wflag_sup'!$A$7:$A$86,FALSE) -> 4 | P10: =MATCH($A10,'2023_step3_base_gnp'!$A$7:$A$736,FALSE) -> 23 | Q10: =OFFSET('2023gf_All_gnp'!$F$1,$P10,0) -> 70.20 | R10: =OFFSET('2023_step3_base_gnp'!$BX$6,$P10,0) -> 70.22 | S10: =OFFSET('2023_step3_SCRopt_gnp'!$BX$6,$P10,0) -> 70.21 | T10: =OFFSET('2023_step3_SCRoptwCC_gnp'!$BX$6,$P10,0) -> 70.20 | U10: =OFFSET('2023_step3_SNCRopt_gnp'!$BX$6,$P10,0) -> 70.19 | V10: =OFFSET('2023_step3_SNCRoptwCC_gnp'!$BX$6,$P10,0) -> 70.19 | W10: =OFFSET('2023_step3_newSCR_gnp'!$BX$6,$P10,0) -> 69.72 | X10: =OFFSET('2023_step3_base_wIRA_gnp'!$BX$6,$P10,0) -> 70.21 | Y10: =OFFSET('2023_step3_newSCR_wIRA_gnp'!$BX$6,$P10,0) -> 69.82 | AA10: =OFFSET('2023gf_All_gnp'!$G$1,$P10,0) -> 70.80 | AB10: =OFFSET('2023_step3_base_gnp'!$BX$6,$P10,1) -> 70.82 | AC10: =OFFSET('2023_step3_SCRopt_gnp'!$BX$6,$P10,1) -> 70.81 | AD10: =OFFSET('2023_step3_SCRoptwCC_gnp'!$BX$6,$P10,1) -> 70.80 | AE10: =OFFSET('2023_step3_SNCRopt_gnp'!$BX$6,$P10,1) -> 70.79 | AF10: =OFFSET('2023_step3_SNCRoptwCC_gnp'!$BX$6,$P10,1) -> 70.79 | AG10: =OFFSET('2023_step3_newSCR_gnp'!$BX$6,$P10,1) -> 70.32 | AH10: =OFFSET('2023_step3_base_wIRA_gnp'!$BX$6,$P10,1) -> 70.81 | AI10: =OFFSET('2023_step3_newSCR_wIRA_gnp'!$BX$6,$P10,1) -> 70.42 | AK10: 70.22 | AL10: 70.19 | AM10: 70.82 | AN10: 70.79 | AQ10: =OFFSET('2023_full_geo_base_sup'!$BX$6,$P10,0) -> 70.22 | AR10: =OFFSET('2023_full_geo_SCRopt_sup'!$BX$6,$P10,0) -> 70.21 | AS10: =OFFSET('2023_full_geo_SCRoptCC_sup'!$BX$6,$P10,0) -> 70.20 | AT10: =OFFSET('2023_full_geo_SNCRopt_sup'!$BX$6,$P10,0) -> 70.19 | AU10: =OFFSET('2023_full_geo_SNCRoptCC_sup'!$BX$6,$P10,0) -> 70.18 | AV10: =OFFSET('2023_full_geo_newSCR_sup'!$BX$6,$P10,0) -> 69.58 | AW10: =OFFSET('2023_full_geo_IRA_base_sup'!$BX$6,$P10,0) -> 70.21 | AX10: =OFFSET('2023_full_geo_IRA_SCR_sup'!$BX$6,$P10,0) -> 69.71 | AZ10: =OFFSET('2023_full_geo_base_sup'!$BX$6,$P10,1) -> 70.82 | BA10: =OFFSET('2023_full_geo_SCRopt_sup'!$BX$6,$P10,1) -> 70.81 | BB10: =OFFSET('2023_full_geo_SCRoptCC_sup'!$BX$6,$P10,1) -> 70.80 | BC10: =OFFSET('2023_full_geo_SNCRopt_sup'!$BX$6,$P10,1) -> 70.79 | BD10: =OFFSET('2023_full_geo_SNCRoptCC_sup'!$BX$6,$P10,1) -> 70.78 | BE10: =OFFSET('2023_full_geo_newSCR_sup'!$BX$6,$P10,1) -> 70.17 | BF10: =OFFSET('2023_full_geo_IRA_base_sup'!$BX$6,$P10,1) -> 70.81 | BG10: =OFFSET('2023_full_geo_IRA_SCR_sup'!$BX$6,$P10,1) -> 70.30 | BJ10: 80 | BK10: 81 | BL10: 81 | BM10: 77 | BN10: 0.00 | BO10: 79.96 | BP10: 80.96 | BQ10: 80.96 | BR10: 76.96 | BT10: 80.00 | BU10: 79.98 | BV10: 79.98 | BW10: 79.97 | BX10: 79.96 | BY10: 79.43 | CA10: 81.00 | CB10: 80.98 | CC10: 80.97 | CD10: 80.97 | CE10: 80.96 | CF10: 80.42 | CI10: 80.00 | CJ10: 79.98 | CK10: 79.97 | CL10: 79.97 | CM10: 79.96 | CN10: 79.27 | CP10: 81.00 | CQ10: 80.98 | CR10: 80.97 | CS10: 80.97 | CT10: 80.96 | CU10: 80.26
A11: 40131010 | B11: Arizona | C11: Maricopa | D11: 74.0 | E11: 75 | F11: 68.3 | G11: 69.2 | H11: 79 | I11: 80 | J11: 80 | K11: 78 | L11: 1 | N11: =IF(OFFSET('2023_gf_links_wflag_sup'!$N$6,O11,0)=0,"",OFFSET('2023_gf_links_wflag_sup'!$N$6,O11,0)) ->  | O11: =MATCH(A11,'2023_gf_links_wflag_sup'!$A$7:$A$86,FALSE) -> 5 | P11: =MATCH($A11,'2023_step3_base_gnp'!$A$7:$A$736,FALSE) -> 24 | Q11: =OFFSET('2023gf_All_gnp'!$F$1,$P11,0) -> 68.30 | R11: =OFFSET('2023_step3_base_gnp'!$BX$6,$P11,0) -> 68.34 | S11: =OFFSET('2023_step3_SCRopt_gnp'!$BX$6,$P11,0) -> 68.32 | T11: =OFFSET('2023_step3_SCRoptwCC_gnp'!$BX$6,$P11,0) -> 68.31 | U11: =OFFSET('2023_step3_SNCRopt_gnp'!$BX$6,$P11,0) -> 68.29 | V11: =OFFSET('2023_step3_SNCRoptwCC_gnp'!$BX$6,$P11,0) -> 68.28 | W11: =OFFSET('2023_step3_newSCR_gnp'!$BX$6,$P11,0) -> 67.54 | X11: =OFFSET('2023_step3_base_wIRA_gnp'!$BX$6,$P11,0) -> 68.32 | Y11: =OFFSET('2023_step3_newSCR_wIRA_gnp'!$BX$6,$P11,0) -> 67.70 | AA11: =OFFSET('2023gf_All_gnp'!$G$1,$P11,0) -> 69.20 | AB11: =OFFSET('2023_step3_base_gnp'!$BX$6,$P11,1) -> 69.24 | AC11: =OFFSET('2023_step3_SCRopt_gnp'!$BX$6,$P11,1) -> 69.22 | AD11: =OFFSET('2023_step3_SCRoptwCC_gnp'!$BX$6,$P11,1) -> 69.21 | AE11: =OFFSET('2023_step3_SNCRopt_gnp'!$BX$6,$P11,1) -> 69.19 | AF11: =OFFSET('2023_step3_SNCRoptwCC_gnp'!$BX$6,$P11,1) -> 69.18 | AG11: =OFFSET('2023_step3_newSCR_gnp'!$BX$6,$P11,1) -> 68.43 | AH11: =OFFSET('2023_step3_base_wIRA_gnp'!$BX$6,$P11,1) -> 69.23 | AI11: =OFFSET('2023_step3_newSCR_wIRA_gnp'!$BX$6,$P11,1) -> 68.60 | AK11: 68.34 | AL11: 68.28 | AM11: 69.24 | AN11: 69.18 | AQ11: =OFFSET('2023_full_geo_base_sup'!$BX$6,$P11,0) -> 68.34 | AR11: =OFFSET('2023_full_geo_SCRopt_sup'!$BX$6,$P11,0) -> 68.32 | AS11: =OFFSET('2023_full_geo_SCRoptCC_sup'!$BX$6,$P11,0) -> 68.30 | AT11: =OFFSET('2023_full_geo_SNCRopt_sup'!$BX$6,$P11,0) -> 68.29 | AU11: =OFFSET('2023_full_geo_SNCRoptCC_sup'!$BX$6,$P11,0) -> 68.28 | AV11: =OFFSET('2023_full_geo_newSCR_sup'!$BX$6,$P11,0) -> 67.39 | AW11: =OFFSET('2023_full_geo_IRA_base_sup'!$BX$6,$P11,0) -> 68.32 | AX11: =OFFSET('2023_full_geo_IRA_SCR_sup'!$BX$6,$P11,0) -> 67.58 | AZ11: =OFFSET('2023_full_geo_base_sup'!$BX$6,$P11,1) -> 69.24 | BA11: =OFFSET('2023_full_geo_SCRopt_sup'!$BX$6,$P11,1) -> 69.22 | BB11: =OFFSET('2023_full_geo_SCRoptCC_sup'!$BX$6,$P11,1) -> 69.20 | BC11: =OFFSET('2023_full_geo_SNCRopt_sup'!$BX$6,$P11,1) -> 69.19 | BD11: =OFFSET('2023_full_geo_SNCRoptCC_sup'!$BX$6,$P11,1) -> 69.18 | BE11: =OFFSET('2023_full_geo_newSCR_sup'!$BX$6,$P11,1) -> 68.28 | BF11: =OFFSET('2023_full_geo_IRA_base_sup'!$BX$6,$P11,1) -> 69.23 | BG11: =OFFSET('2023_full_geo_IRA_SCR_sup'!$BX$6,$P11,1) -> 68.47 | BJ11: 79 | BK11: 80 | BL11: 80 | BM11: 78 | BN11: 0.00 | BO11: 78.93 | BP11: 79.93 | BQ11: 79.93 | BR11: 77.93 | BT11: 79.00 | BU11: 78.98 | BV11: 78.96 | BW11: 78.95 | BX11: 78.93 | BY11: 78.08 | CA11: 80.00 | CB11: 79.98 | CC11: 79.96 | CD11: 79.95 | CE11: 79.93 | CF11: 79.07 | CI11: 79.00 | CJ11: 78.97 | CK11: 78.96 | CL11: 78.95 | CM11: 78.93 | CN11: 77.90 | CP11: 80.00 | CQ11: 79.97 | CR11: 79.96 | CS11: 79.95 | CT11: 79.93 | CU11: 78.89
A12: 40132001 | B12: Arizona | C12: Maricopa | D12: 67.7 | E12: 68 | F12: 63.8 | G12: 64.1 | H12: 74 | I12: 78 | J12: 79 | K12: 81 | L12: 1 | N12: =IF(OFFSET('2023_gf_links_wflag_sup'!$N$6,O12,0)=0,"",OFFSET('2023_gf_links_wflag_sup'!$N$6,O12,0)) ->  | O12: =MATCH(A12,'2023_gf_links_wflag_sup'!$A$7:$A$86,FALSE) -> 6 | P12: =MATCH($A12,'2023_step3_base_gnp'!$A$7:$A$736,FALSE) -> 25 | Q12: =OFFSET('2023gf_All_gnp'!$F$1,$P12,0) -> 63.80 | R12: =OFFSET('2023_step3_base_gnp'!$BX$6,$P12,0) -> 63.82 | S12: =OFFSET('2023_step3_SCRopt_gnp'!$BX$6,$P12,0) -> 63.81 | T12: =OFFSET('2023_step3_SCRoptwCC_gnp'!$BX$6,$P12,0) -> 63.80 | U12: =OFFSET('2023_step3_SNCRopt_gnp'!$BX$6,$P12,0) -> 63.79 | V12: =OFFSET('2023_step3_SNCRoptwCC_gnp'!$BX$6,$P12,0) -> 63.79 | W12: =OFFSET('2023_step3_newSCR_gnp'!$BX$6,$P12,0) -> 63.39 | X12: =OFFSET('2023_step3_base_wIRA_gnp'!$BX$6,$P12,0) -> 63.81 | Y12: =OFFSET('2023_step3_newSCR_wIRA_gnp'!$BX$6,$P12,0) -> 63.48 | AA12: =OFFSET('2023gf_All_gnp'!$G$1,$P12,0) -> 64.10 | AB12: =OFFSET('2023_step3_base_gnp'!$BX$6,$P12,1) -> 64.12 | AC12: =OFFSET('2023_step3_SCRopt_gnp'!$BX$6,$P12,1) -> 64.11 | AD12: =OFFSET('2023_step3_SCRoptwCC_gnp'!$BX$6,$P12,1) -> 64.10 | AE12: =OFFSET('2023_step3_SNCRopt_gnp'!$BX$6,$P12,1) -> 64.09 | AF12: =OFFSET('2023_step3_SNCRoptwCC_gnp'!$BX$6,$P12,1) -> 64.09 | AG12: =OFFSET('2023_step3_newSCR_gnp'!$BX$6,$P12,1) -> 63.69 | AH12: =OFFSET('2023_step3_base_wIRA_gnp'!$BX$6,$P12,1) -> 64.11 | AI12: =OFFSET('2023_step3_newSCR_wIRA_gnp'!$BX$6,$P12,1) -> 63.78 | AK12: 63.82 | AL12: 63.79 | AM12: 64.12 | AN12: 64.09 | AQ12: =OFFSET('2023_full_geo_base_sup'!$BX$6,$P12,0) -> 63.82 | AR12: =OFFSET('2023_full_geo_SCRopt_sup'!$BX$6,$P12,0) -> 63.81 | AS12: =OFFSET('2023_full_geo_SCRoptCC_sup'!$BX$6,$P12,0) -> 63.80 | AT12: =OFFSET('2023_full_geo_SNCRopt_sup'!$BX$6,$P12,0) -> 63.79 | AU12: =OFFSET('2023_full_geo_SNCRoptCC_sup'!$BX$6,$P12,0) -> 63.79 | AV12: =OFFSET('2023_full_geo_newSCR_sup'!$BX$6,$P12,0) -> 63.26 | AW12: =OFFSET('2023_full_geo_IRA_base_sup'!$BX$6,$P12,0) -> 63.81 | AX12: =OFFSET('2023_full_geo_IRA_SCR_sup'!$BX$6,$P12,0) -> 63.37 | AZ12: =OFFSET('2023_full_geo_base_sup'!$BX$6,$P12,1) -> 64.12 | BA12: =OFFSET('2023_full_geo_SCRopt_sup'!$BX$6,$P12,1) -> 64.11 | BB12: =OFFSET('2023_full_geo_SCRoptCC_sup'!$BX$6,$P12,1) -> 64.10 | BC12: =OFFSET('2023_full_geo_SNCRopt_sup'!$BX$6,$P12,1) -> 64.09 | BD12: =OFFSET('2023_full_geo_SNCRoptCC_sup'!$BX$6,$P12,1) -> 64.09 | BE12: =OFFSET('2023_full_geo_newSCR_sup'!$BX$6,$P12,1) -> 63.56 | BF12: =OFFSET('2023_full_geo_IRA_base_sup'!$BX$6,$P12,1) -> 64.11 | BG12: =OFFSET('2023_full_geo_IRA_SCR_sup'!$BX$6,$P12,1) -> 63.67 | BJ12: 74 | BK12: 78 | BL12: 79 | BM12: 81 | BN12: 0.00 | BO12: 73.96 | BP12: 77.96 | BQ12: 78.96 | BR12: 80.96 | BT12: 74.00 | BU12: 73.99 | BV12: 73.98 | BW12: 73.97 | BX12: 73.96 | BY12: 73.50 | CA12: 78.00 | CB12: 77.99 | CC12: 77.98 | CD12: 77.97 | CE12: 77.96 | CF12: 77.48 | CI12: 74.00 | CJ12: 73.98 | CK12: 73.98 | CL12: 73.97 | CM12: 73.96 | CN12: 73.35 | CP12: 78.00 | CQ12: 77.98 | CR12: 77.98 | CS12: 77.97 | CT12: 77.96 | CU12: 77.32
A13: 40132005 | B13: Arizona | C13: Maricopa | D13: 76.0 | E13: 77 | F13: 69.6 | G13: 70.5 | H13: 78 | I13: 79 | J13: 79 | K13: 77 | L13: 1 | N13: =IF(OFFSET('2023_gf_links_wflag_sup'!$N$6,O13,0)=0,"",OFFSET('2023_gf_links_wflag_sup'!$N$6,O13,0)) ->  | O13: =MATCH(A13,'2023_gf_links_wflag_sup'!$A$7:$A$86,FALSE) -> 7 | P13: =MATCH($A13,'2023_step3_base_gnp'!$A$7:$A$736,FALSE) -> 26 | Q13: =OFFSET('2023gf_All_gnp'!$F$1,$P13,0) -> 69.60 | R13: =OFFSET('2023_step3_base_gnp'!$BX$6,$P13,0) -> 69.62 | S13: =OFFSET('2023_step3_SCRopt_gnp'!$BX$6,$P13,0) -> 69.61 | T13: =OFFSET('2023_step3_SCRoptwCC_gnp'!$BX$6,$P13,0) -> 69.60 | U13: =OFFSET('2023_step3_SNCRopt_gnp'!$BX$6,$P13,0) -> 69.59 | V13: =OFFSET('2023_step3_SNCRoptwCC_gnp'!$BX$6,$P13,0) -> 69.58 | W13: =OFFSET('2023_step3_newSCR_gnp'!$BX$6,$P13,0) -> 69.11 | X13: =OFFSET('2023_step3_base_wIRA_gnp'!$BX$6,$P13,0) -> 69.61 | Y13: =OFFSET('2023_step3_newSCR_wIRA_gnp'!$BX$6,$P13,0) -> 69.21 | AA13: =OFFSET('2023gf_All_gnp'!$G$1,$P13,0) -> 70.50 | AB13: =OFFSET('2023_step3_base_gnp'!$BX$6,$P13,1) -> 70.52 | AC13: =OFFSET('2023_step3_SCRopt_gnp'!$BX$6,$P13,1) -> 70.51 | AD13: =OFFSET('2023_step3_SCRoptwCC_gnp'!$BX$6,$P13,1) -> 70.50 | AE13: =OFFSET('2023_step3_SNCRopt_gnp'!$BX$6,$P13,1) -> 70.49 | AF13: =OFFSET('2023_step3_SNCRoptwCC_gnp'!$BX$6,$P13,1) -> 70.48 | AG13: =OFFSET('2023_step3_newSCR_gnp'!$BX$6,$P13,1) -> 70.00 | AH13: =OFFSET('2023_step3_base_wIRA_gnp'!$BX$6,$P13,1) -> 70.51 | AI13: =OFFSET('2023_step3_newSCR_wIRA_gnp'!$BX$6,$P13,1) -> 70.11 | AK13: 69.62 | AL13: 69.58 | AM13: 70.52 | AN13: 70.48 | AQ13: =OFFSET('2023_full_geo_base_sup'!$BX$6,$P13,0) -> 69.62 | AR13: =OFFSET('2023_full_geo_SCRopt_sup'!$BX$6,$P13,0) -> 69.61 | AS13: =OFFSET('2023_full_geo_SCRoptCC_sup'!$BX$6,$P13,0) -> 69.60 | AT13: =OFFSET('2023_full_geo_SNCRopt_sup'!$BX$6,$P13,0) -> 69.59 | AU13: =OFFSET('2023_full_geo_SNCRoptCC_sup'!$BX$6,$P13,0) -> 69.58 | AV13: =OFFSET('2023_full_geo_newSCR_sup'!$BX$6,$P13,0) -> 68.95 | AW13: =OFFSET('2023_full_geo_IRA_base_sup'!$BX$6,$P13,0) -> 69.61 | AX13: =OFFSET('2023_full_geo_IRA_SCR_sup'!$BX$6,$P13,0) -> 69.09 | AZ13: =OFFSET('2023_full_geo_base_sup'!$BX$6,$P13,1) -> 70.52 | BA13: =OFFSET('2023_full_geo_SCRopt_sup'!$BX$6,$P13,1) -> 70.51 | BB13: =OFFSET('2023_full_geo_SCRoptCC_sup'!$BX$6,$P13,1) -> 70.50 | BC13: =OFFSET('2023_full_geo_SNCRopt_sup'!$BX$6,$P13,1) -> 70.49 | BD13: =OFFSET('2023_full_geo_SNCRoptCC_sup'!$BX$6,$P13,1) -> 70.48 | BE13: =OFFSET('2023_full_geo_newSCR_sup'!$BX$6,$P13,1) -> 69.84 | BF13: =OFFSET('2023_full_geo_IRA_base_sup'!$BX$6,$P13,1) -> 70.51 | BG13: =OFFSET('2023_full_geo_IRA_SCR_sup'!$BX$6,$P13,1) -> 69.98 | BJ13: 78 | BK13: 79 | BL13: 79 | BM13: 77 | BN13: 0.00 | BO13: 77.96 | BP13: 78.96 | BQ13: 78.96 | BR13: 76.96 | BT13: 78.00 | BU13: 77.98 | BV13: 77.98 | BW13: 77.97 | BX13: 77.96 | BY13: 77.43 | CA13: 79.00 | CB13: 78.98 | CC13: 78.97 | CD13: 78.97 | CE13: 78.96 | CF13: 78.42 | CI13: 78.00 | CJ13: 77.98 | CK13: 77.97 | CL13: 77.97 | CM13: 77.96 | CN13: 77.25 | CP13: 79.00 | CQ13: 78.98 | CR13: 78.97 | CS13: 78.97 | CT13: 78.96 | CU13: 78.24
A14: 40133002 | B14: Arizona | C14: Maricopa | D14: 70.0 | E14: 70 | F14: 65.8 | G14: 65.8 | H14: 75 | I14: 75 | J14: 81 | K14: 72 | L14: 1 | N14: =IF(OFFSET('2023_gf_links_wflag_sup'!$N$6,O14,0)=0,"",OFFSET('2023_gf_links_wflag_sup'!$N$6,O14,0)) ->  | O14: =MATCH(A14,'2023_gf_links_wflag_sup'!$A$7:$A$86,FALSE) -> 8 | P14: =MATCH($A14,'2023_step3_base_gnp'!$A$7:$A$736,FALSE) -> 27 | Q14: =OFFSET('2023gf_All_gnp'!$F$1,$P14,0) -> 65.80 | R14: =OFFSET('2023_step3_base_gnp'!$BX$6,$P14,0) -> 65.81 | S14: =OFFSET('2023_step3_SCRopt_gnp'!$BX$6,$P14,0) -> 65.80 | T14: =OFFSET('2023_step3_SCRoptwCC_gnp'!$BX$6,$P14,0) -> 65.80 | U14: =OFFSET('2023_step3_SNCRopt_gnp'!$BX$6,$P14,0) -> 65.79 | V14: =OFFSET('2023_step3_SNCRoptwCC_gnp'!$BX$6,$P14,0) -> 65.78 | W14: =OFFSET('2023_step3_newSCR_gnp'!$BX$6,$P14,0) -> 65.42 | X14: =OFFSET('2023_step3_base_wIRA_gnp'!$BX$6,$P14,0) -> 65.81 | Y14: =OFFSET('2023_step3_newSCR_wIRA_gnp'!$BX$6,$P14,0) -> 65.50 | AA14: =OFFSET('2023gf_All_gnp'!$G$1,$P14,0) -> 65.80 | AB14: =OFFSET('2023_step3_base_gnp'!$BX$6,$P14,1) -> 65.81 | AC14: =OFFSET('2023_step3_SCRopt_gnp'!$BX$6,$P14,1) -> 65.80 | AD14: =OFFSET('2023_step3_SCRoptwCC_gnp'!$BX$6,$P14,1) -> 65.80 | AE14: =OFFSET('2023_step3_SNCRopt_gnp'!$BX$6,$P14,1) -> 65.79 | AF14: =OFFSET('2023_step3_SNCRoptwCC_gnp'!$BX$6,$P14,1) -> 65.78 | AG14: =OFFSET('2023_step3_newSCR_gnp'!$BX$6,$P14,1) -> 65.42 | AH14: =OFFSET('2023_step3_base_wIRA_gnp'!$BX$6,$P14,1) -> 65.81 | AI14: =OFFSET('2023_step3_newSCR_wIRA_gnp'!$BX$6,$P14,1) -> 65.50 | AK14: 65.81 | AL14: 65.78 | AM14: 65.81 | AN14: 65.78 | AQ14: =OFFSET('2023_full_geo_base_sup'!$BX$6,$P14,0) -> 65.81 | AR14: =OFFSET('2023_full_geo_SCRopt_sup'!$BX$6,$P14,0) -> 65.80 | AS14: =OFFSET('2023_full_geo_SCRoptCC_sup'!$BX$6,$P14,0) -> 65.80 | AT14: =OFFSET('2023_full_geo_SNCRopt_sup'!$BX$6,$P14,0) -> 65.79 | AU14: =OFFSET('2023_full_geo_SNCRoptCC_sup'!$BX$6,$P14,0) -> 65.78 | AV14: =OFFSET('2023_full_geo_newSCR_sup'!$BX$6,$P14,0) -> 65.30 | AW14: =OFFSET('2023_full_geo_IRA_base_sup'!$BX$6,$P14,0) -> 65.81 | AX14: =OFFSET('2023_full_geo_IRA_SCR_sup'!$BX$6,$P14,0) -> 65.40 | AZ14: =OFFSET('2023_full_geo_base_sup'!$BX$6,$P14,1) -> 65.81 | BA14: =OFFSET('2023_full_geo_SCRopt_sup'!$BX$6,$P14,1) -> 65.80 | BB14: =OFFSET('2023_full_geo_SCRoptCC_sup'!$BX$6,$P14,1) -> 65.80 | BC14: =OFFSET('2023_full_geo_SNCRopt_sup'!$BX$6,$P14,1) -> 65.79 | BD14: =OFFSET('2023_full_geo_SNCRoptCC_sup'!$BX$6,$P14,1) -> 65.78 | BE14: =OFFSET('2023_full_geo_newSCR_sup'!$BX$6,$P14,1) -> 65.30 | BF14: =OFFSET('2023_full_geo_IRA_base_sup'!$BX$6,$P14,1) -> 65.81 | BG14: =OFFSET('2023_full_geo_IRA_SCR_sup'!$BX$6,$P14,1) -> 65.40 | BJ14: 75 | BK14: 75 | BL14: 81 | BM14: 72 | BN14: 0.00 | BO14: 74.97 | BP14: 74.97 | BQ14: 80.96 | BR14: 71.97 | BT14: 75.00 | BU14: 74.99 | BV14: 74.98 | BW14: 74.97 | BX14: 74.97 | BY14: 74.55 | CA14: 75.00 | CB14: 74.99 | CC14: 74.98 | CD14: 74.97 | CE14: 74.97 | CF14: 74.55 | CI14: 75.00 | CJ14: 74.99 | CK14: 74.98 | CL14: 74.97 | CM14: 74.97 | CN14: 74.41 | CP14: 75.00 | CQ14: 74.99 | CR14: 74.98 | CS14: 74.97 | CT14: 74.97 | CU14: 74.41
A15: 40134004 | B15: Arizona | C15: Maricopa | D15: 70.0 | E15: 71 | F15: 65.7 | G15: 66.6 | H15: 73 | I15: 73 | J15: 73 | K15: 71 | L15: 1 | N15: =IF(OFFSET('2023_gf_links_wflag_sup'!$N$6,O15,0)=0,"",OFFSET('2023_gf_links_wflag_sup'!$N$6,O15,0)) ->  | O15: =MATCH(A15,'2023_gf_links_wflag_sup'!$A$7:$A$86,FALSE) -> 9 | P15: =MATCH($A15,'2023_step3_base_gnp'!$A$7:$A$736,FALSE) -> 30 | Q15: =OFFSET('2023gf_All_gnp'!$F$1,$P15,0) -> 65.70 | R15: =OFFSET('2023_step3_base_gnp'!$BX$6,$P15,0) -> 65.65 | S15: =OFFSET('2023_step3_SCRopt_gnp'!$BX$6,$P15,0) -> 65.65 | T15: =OFFSET('2023_step3_SCRoptwCC_gnp'!$BX$6,$P15,0) -> 65.65 | U15: =OFFSET('2023_step3_SNCRopt_gnp'!$BX$6,$P15,0) -> 65.65 | V15: =OFFSET('2023_step3_SNCRoptwCC_gnp'!$BX$6,$P15,0) -> 65.65 | W15: =OFFSET('2023_step3_newSCR_gnp'!$BX$6,$P15,0) -> 65.62 | X15: =OFFSET('2023_step3_base_wIRA_gnp'!$BX$6,$P15,0) -> 65.66 | Y15: =OFFSET('2023_step3_newSCR_wIRA_gnp'!$BX$6,$P15,0) -> 65.63 | AA15: =OFFSET('2023gf_All_gnp'!$G$1,$P15,0) -> 66.60 | AB15: =OFFSET('2023_step3_base_gnp'!$BX$6,$P15,1) -> 66.55 | AC15: =OFFSET('2023_step3_SCRopt_gnp'!$BX$6,$P15,1) -> 66.55 | AD15: =OFFSET('2023_step3_SCRoptwCC_gnp'!$BX$6,$P15,1) -> 66.55 | AE15: =OFFSET('2023_step3_SNCRopt_gnp'!$BX$6,$P15,1) -> 66.55 | AF15: =OFFSET('2023_step3_SNCRoptwCC_gnp'!$BX$6,$P15,1) -> 66.55 | AG15: =OFFSET('2023_step3_newSCR_gnp'!$BX$6,$P15,1) -> 66.51 | AH15: =OFFSET('2023_step3_base_wIRA_gnp'!$BX$6,$P15,1) -> 66.56 | AI15: =OFFSET('2023_step3_newSCR_wIRA_gnp'!$BX$6,$P15,1) -> 66.53 | AK15: 65.65 | AL15: 65.65 | AM15: 66.55 | AN15: 66.55 | AQ15: =OFFSET('2023_full_geo_base_sup'!$BX$6,$P15,0) -> 65.65 | AR15: =OFFSET('2023_full_geo_SCRopt_sup'!$BX$6,$P15,0) -> 65.65 | AS15: =OFFSET('2023_full_geo_SCRoptCC_sup'!$BX$6,$P15,0) -> 65.65 | AT15: =OFFSET('2023_full_geo_SNCRopt_sup'!$BX$6,$P15,0) -> 65.65 | AU15: =OFFSET('2023_full_geo_SNCRoptCC_sup'!$BX$6,$P15,0) -> 65.65 | AV15: =OFFSET('2023_full_geo_newSCR_sup'!$BX$6,$P15,0) -> 65.48 | AW15: =OFFSET('2023_full_geo_IRA_base_sup'!$BX$6,$P15,0) -> 65.66 | AX15: =OFFSET('2023_full_geo_IRA_SCR_sup'!$BX$6,$P15,0) -> 65.52 | AZ15: =OFFSET('2023_full_geo_base_sup'!$BX$6,$P15,1) -> 66.55 | BA15: =OFFSET('2023_full_geo_SCRopt_sup'!$BX$6,$P15,1) -> 66.55 | BB15: =OFFSET('2023_full_geo_SCRoptCC_sup'!$BX$6,$P15,1) -> 66.55 | BC15: =OFFSET('2023_full_geo_SNCRopt_sup'!$BX$6,$P15,1) -> 66.55 | BD15: =OFFSET('2023_full_geo_SNCRoptCC_sup'!$BX$6,$P15,1) -> 66.55 | BE15: =OFFSET('2023_full_geo_newSCR_sup'!$BX$6,$P15,1) -> 66.37 | BF15: =OFFSET('2023_full_geo_IRA_base_sup'!$BX$6,$P15,1) -> 66.56 | BG15: =OFFSET('2023_full_geo_IRA_SCR_sup'!$BX$6,$P15,1) -> 66.41 | BJ15: 73 | BK15: 73 | BL15: 73 | BM15: 71 | BN15: 0.00 | BO15: 72.99 | BP15: 72.99 | BQ15: 72.99 | BR15: 70.99 | BT15: 73.00 | BU15: 72.99 | BV15: 72.99 | BW15: 72.99 | BX15: 72.99 | BY15: 72.96 | CA15: 73.00 | CB15: 72.99 | CC15: 72.99 | CD15: 72.99 | CE15: 72.99 | CF15: 72.96 | CI15: 73.00 | CJ15: 72.99 | CK15: 72.99 | CL15: 72.99 | CM15: 72.99 | CN15: 72.80 | CP15: 73.00 | CQ15: 72.99 | CR15: 72.99 | CS15: 72.99 | CT15: 72.99 | CU15: 72.80
... 18 more rows

Sheet 2023_DV_summary_sup
M1: Sum of the DVs | Q1: =SUM(Q7:Q55,Q58:Q86) -> 5311.50 | R1: =SUM(R7:R55,R58:R86) -> 5313.14 | S1: 5310.22 | T1: 5309.67 | U1: 5309.61 | V1: 5309.06 | W1: 5272.58 | X1: 5312.93 | Y1: 5278.25
M2: Average DV value | Q2: =AVERAGE(Q7:Q55,Q58:Q86) -> 68.10 | R2: =AVERAGE(R7:R55,R58:R86) -> 68.12 | S2: 68.08 | T2: 68.07 | U2: 68.07 | V2: 68.06 | W2: 67.60 | X2: 68.11 | Y2: 67.67 | BT2: Step 3 approach | BU2: Step 3 approach | BV2: Step 3 approach | BW2: Step 3 approach | BX2: Step 3 approach | BY2: Step 3 approach | CA2: Step 3 approach | CB2: Step 3 approach | CC2: Step 3 approach | CD2: Step 3 approach | CE2: Step 3 approach | CF2: Step 3 approach | CI2: Full Geography approach | CJ2: Full Geography approach | CK2: Full Geography approach | CL2: Full Geography approach | CM2: Full Geography approach | CN2: Full Geography approach | CP2: Full Geography approach | CQ2: Full Geography approach | CR2: Full Geography approach | CS2: Full Geography approach | CT2: Full Geography approach | CU2: Full Geography approach
M3: Change in DV | R3: =$R2-R2 -> 0.00 | S3: =$R2-S2 -> 0.04 | T3: 0.04 | U3: 0.05 | V3: 0.05 | W3: 0.52 | X3: 0.00 | Y3: 0.45 | BT3: 2021 DVs with relative change from AQAT | CA3: 2022 DVs with relative change from AQAT | CI3: 2021 DVs with relative change from AQAT | CP3: 2022 DVs with relative change from AQAT
M4: Change in DV looking only at receptors for the supplemental states | R4: =AVERAGEIFS($R7:$R86,'2023_gf_links_wflag_sup'!$N7:$N86,4)-AVERAGEIFS(R7:R86,'2023_gf_links_wflag_sup'!$N7:$N86,4) -> 0.00 | S4: =AVERAGEIFS($R7:$R86,'2023_gf_links_wflag_sup'!$N7:$N86,4)-AVERAGEIFS(S7:S86,'2023_gf_links_wflag_sup'!$N7:$N86,4) -> 0.04 | T4: =AVERAGEIFS($R7:$R86,'2023_gf_links_wflag_sup'!$N7:$N86,4)-AVERAGEIFS(T7:T86,'2023_gf_links_wflag_sup'!$N7:$N86,4) -> 0.04 | U4: =AVERAGEIFS($R7:$R86,'2023_gf_links_wflag_sup'!$N7:$N86,4)-AVERAGEIFS(U7:U86,'2023_gf_links_wflag_sup'!$N7:$N86,4) -> 0.04 | V4: =AVERAGEIFS($R7:$R86,'2023_gf_links_wflag_sup'!$N7:$N86,4)-AVERAGEIFS(V7:V86,'2023_gf_links_wflag_sup'!$N7:$N86,4) -> 0.04 | W4: =AVERAGEIFS($R7:$R86,'2023_gf_links_wflag_sup'!$N7:$N86,4)-AVERAGEIFS(W7:W86,'2023_gf_links_wflag_sup'!$N7:$N86,4) -> 0.31 | X4: =AVERAGEIFS($R7:$R86,'2023_gf_links_wflag_sup'!$N7:$N86,4)-AVERAGEIFS(X7:X86,'2023_gf_links_wflag_sup'!$N7:$N86,4) -> -0.00 | Y4: =AVERAGEIFS($R7:$R86,'2023_gf_links_wflag_sup'!$N7:$N86,4)-AVERAGEIFS(Y7:Y86,'2023_gf_links_wflag_sup'!$N7:$N86,4) -> 0.28 | AK4: Avg. DV | AL4: Max. DV | AM4: Avg. DV | AN4: Max. DV | AQ4: Avg. DV | AR4: Avg. DV | AS4: Avg. DV | AT4: Avg. DV | AU4: Avg. DV | AV4: Avg. DV | AW4: Avg. DV | AX4: Avg. DV | AZ4: Max. DV | BA4: Max. DV | BB4: Max. DV | BC4: Max. DV | BD4: Max. DV | BE4: Max. DV | BF4: Max. DV | BG4: Max. DV | BT4: 2023_step3_base | BU4: 2023_step3_SCRopt | BV4: 2023_step3_SCRoptwCC | BW4: 2023_step3_SNCRopt | BX4: 2023_step3_SNCRoptwCC | BY4: 2023_step3_newSCR | CA4: 2023_step3_base | CB4: 2023_step3_SCRopt | CC4: 2023_step3_SCRoptwCC | CD4: 2023_step3_SNCRopt | CE4: 2023_step3_SNCRoptwCC | CF4: 2023_step3_newSCR | CI4: 2023_step3_base | CJ4: 2023_step3_SCRopt | CK4: 2023_step3_SCRoptwCC | CL4: 2023_step3_SNCRopt | CM4: 2023_step3_SNCRoptwCC | CN4: 2023_step3_newSCR | CP4: 2023_step3_base | CQ4: 2023_step3_SCRopt | CR4: 2023_step3_SCRoptwCC | CS4: 2023_step3_SNCRopt | CT4: 2023_step3_SNCRoptwCC | CU4: 2023_step3_newSCR
Q5: Avg. DV | R5: Avg. DV | S5: Avg. DV | T5: Avg. DV | U5: Avg. DV | V5: Avg. DV | W5: Avg. DV | X5: Avg. DV | Y5: Avg. DV | AA5: Max. DV | AB5: Max. DV | AC5: Max. DV | AD5: Max. DV | AE5: Max. DV | AF5: Max. DV | AG5: Max. DV | AH5: Max. DV | AI5: Max. DV
A6: Site ID | B6: State | C6: County | D6: 2016-Centered Avg | E6: 2016-Centered Max | F6: 2023gf Avg | G6: 2023gf Max | H6: 2021 DV | I6: 2022 DV | J6: 2021 4th | K6: 2022 4th | L6: Violating Monitor Flag (1) | M6: Modeling Receptor Flag (2) | N6: Receptor for Supplemental States (4) | O6: match to list of receptors | P6: 2023_step3_base | Q6: 2023_gf | R6: 2023_step3_base | S6: 2023_step3_SCRopt | T6: 2023_step3_SCRoptwCC | U6: 2023_step3_SNCRopt | V6: 2023_step3_SNCRoptwCC | W6: 2023_step3_newSCR | X6: 2023_step3_base_wIRA | Y6: 2023_step3_newSCR_wIRA | AA6: 2023_gf | AB6: 2023_step3_base | AC6: 2023_step3_SCRopt | AD6: 2023_step3_SCRoptwCC | AE6: 2023_step3_SNCRopt | AF6: 2023_step3_SNCRoptwCC | AG6: 2023_step3_newSCR | AH6: 2023_step3_base_wIRA | AI6: 2023_step3_newSCR_wIRA | AK6: 2023_step3_base | AL6: 2023_step3_SNCRoptwCC | AM6: 2023_step3_base | AN6: 2023_step3_SNCRoptwCC | AQ6: 2023_full_geo_base | AR6: 2023_full_geo_SCRopt | AS6: 2023_full_geo_SCRoptwCC | AT6: 2023_full_geo_SNCRopt | AU6: 2023_full_geo_SNCRoptwCC | AV6: 2023_full_geo_newSCR | AW6: 2023_full_geo_base_wIRA | AX6: 2023_full_geo_newSCR_wIRA | AZ6: 2023_full_geo_base | BA6: 2023_full_geo_SCRopt | BB6: 2023_full_geo_SCRoptwCC | BC6: 2023_full_geo_SNCRopt | BD6: 2023_full_geo_SNCRoptwCC | BE6: 2023_full_geo_newSCR | BF6: 2023_full_geo_base_wIRA | BG6: 2023_full_geo_newSCR_wIRA | BJ6: 2021 DV | BK6: 2022 DV | BL6: 2021 4th | BM6: 2022 4th | BN6: AQ delta percent improvement (EA base minus step3_SNCRoptwCC/EA base) | BO6: 2021 DV adjusted by AQ delta | BP6: 2022 DV adjusted by AQ delta | BQ6: 2021 4th adjusted by AQ delta | BR6: 2022 4th adjusted by AQ delta | BT6: 2021 DV | BU6: 2021 DV | BV6: 2021 DV | BW6: 2021 DV | BX6: 2021 DV | BY6: 2021 DV | CA6: 2022 DV | CB6: 2022 DV | CC6: 2022 DV | CD6: 2022 DV | CE6: 2022 DV | CF6: 2022 DV | CI6: 2021 DV | CJ6: 2021 DV | CK6: 2021 DV | CL6: 2021 DV | CM6: 2021 DV | CN6: 2021 DV | CP6: 2022 DV | CQ6: 2022 DV | CR6: 2022 DV | CS6: 2022 DV | CT6: 2022 DV | CU6: 2022 DV
A7: 40070010 | B7: Arizona | C7: Gila | D7: 72.3 | E7: 74 | F7: 67.9 | G7: 69.5 | H7: 77 | I7: 76 | J7: 75 | K7: 74 | L7: 1 | N7: =IF(OFFSET('2023_gf_links_wflag_sup'!$N$6,O7,0)=0,"",OFFSET('2023_gf_links_wflag_sup'!$N$6,O7,0)) ->  | O7: =MATCH(A7,'2023_gf_links_wflag_sup'!$A$7:$A$86,FALSE) -> 1 | P7: =MATCH($A7,'2023_step3_base_gnp'!$A$7:$A$736,FALSE) -> 20 | Q7: =OFFSET('2023gf_All_gnp'!$F$1,$P7,0) -> 67.90 | R7: =OFFSET('2023_step3_base_gnp'!$BX$6,$P7,0) -> 67.89 | S7: =OFFSET('2023_step3_SCRopt_gnp'!$BX$6,$P7,0) -> 67.88 | T7: =OFFSET('2023_step3_SCRoptwCC_gnp'!$BX$6,$P7,0) -> 67.88 | U7: =OFFSET('2023_step3_SNCRopt_gnp'!$BX$6,$P7,0) -> 67.88 | V7: =OFFSET('2023_step3_SNCRoptwCC_gnp'!$BX$6,$P7,0) -> 67.87 | W7: =OFFSET('2023_step3_newSCR_gnp'!$BX$6,$P7,0) -> 67.59 | X7: =OFFSET('2023_step3_base_wIRA_gnp'!$BX$6,$P7,0) -> 67.89 | Y7: =OFFSET('2023_step3_newSCR_wIRA_gnp'!$BX$6,$P7,0) -> 67.66 | AA7: =OFFSET('2023gf_All_gnp'!$G$1,$P7,0) -> 69.50 | AB7: =OFFSET('2023_step3_base_gnp'!$BX$6,$P7,1) -> 69.49 | AC7: =OFFSET('2023_step3_SCRopt_gnp'!$BX$6,$P7,1) -> 69.48 | AD7: =OFFSET('2023_step3_SCRoptwCC_gnp'!$BX$6,$P7,1) -> 69.48 | AE7: =OFFSET('2023_step3_SNCRopt_gnp'!$BX$6,$P7,1) -> 69.47 | AF7: =OFFSET('2023_step3_SNCRoptwCC_gnp'!$BX$6,$P7,1) -> 69.47 | AG7: =OFFSET('2023_step3_newSCR_gnp'!$BX$6,$P7,1) -> 69.19 | AH7: =OFFSET('2023_step3_base_wIRA_gnp'!$BX$6,$P7,1) -> 69.49 | AI7: =OFFSET('2023_step3_newSCR_wIRA_gnp'!$BX$6,$P7,1) -> 69.25 | AK7: =R7 -> 67.89 | AL7: =V7 -> 67.87 | AM7: =AB7 -> 69.49 | AN7: =AF7 -> 69.47 | AQ7: =OFFSET('2023_full_geo_base_sup'!$BX$6,$P7,0) -> 67.89 | AR7: =OFFSET('2023_full_geo_SCRopt_sup'!$BX$6,$P7,0) -> 67.88 | AS7: =OFFSET('2023_full_geo_SCRoptCC_sup'!$BX$6,$P7,0) -> 67.88 | AT7: =OFFSET('2023_full_geo_SNCRopt_sup'!$BX$6,$P7,0) -> 67.87 | AU7: =OFFSET('2023_full_geo_SNCRoptCC_sup'!$BX$6,$P7,0) -> 67.87 | AV7: =OFFSET('2023_full_geo_newSCR_sup'!$BX$6,$P7,0) -> 67.42 | AW7: =OFFSET('2023_full_geo_IRA_base_sup'!$BX$6,$P7,0) -> 67.89 | AX7: =OFFSET('2023_full_geo_IRA_SCR_sup'!$BX$6,$P7,0) -> 67.52 | AZ7: =OFFSET('2023_full_geo_base_sup'!$BX$6,$P7,1) -> 69.49 | BA7: =OFFSET('2023_full_geo_SCRopt_sup'!$BX$6,$P7,1) -> 69.48 | BB7: =OFFSET('2023_full_geo_SCRoptCC_sup'!$BX$6,$P7,1) -> 69.48 | BC7: =OFFSET('2023_full_geo_SNCRopt_sup'!$BX$6,$P7,1) -> 69.47 | BD7: =OFFSET('2023_full_geo_SNCRoptCC_sup'!$BX$6,$P7,1) -> 69.47 | BE7: =OFFSET('2023_full_geo_newSCR_sup'!$BX$6,$P7,1) -> 69.00 | BF7: =OFFSET('2023_full_geo_IRA_base_sup'!$BX$6,$P7,1) -> 69.49 | BG7: =OFFSET('2023_full_geo_IRA_SCR_sup'!$BX$6,$P7,1) -> 69.11 | BJ7: 77 | BK7: 76 | BL7: 75 | BM7: 74 | BN7: =($R7-$V7)/$R7 -> 0.00 | BO7: =H7-H7*($BN7) -> 76.97 | BP7: =I7-I7*($BN7) -> 75.97 | BQ7: =J7-J7*($BN7) -> 74.97 | BR7: =K7-K7*($BN7) -> 73.97 | BT7: =$H7-($H7*($R7-R7)/$R7) -> 77.00 | BU7: 76.99 | BV7: 76.98 | BW7: 76.98 | BX7: 76.97 | BY7: 76.66 | CA7: =$I7-($I7*($R7-R7)/$R7) -> 76.00 | CB7: 75.99 | CC7: 75.98 | CD7: 75.98 | CE7: 75.97 | CF7: 75.66 | CI7: =$H7-($H7*($AQ7-AQ7)/$AQ7) -> 77.00 | CJ7: 76.99 | CK7: 76.98 | CL7: 76.98 | CM7: 76.97 | CN7: 76.46 | CP7: =$I7-($I7*($AQ7-AQ7)/$AQ7) -> 76.00 | CQ7: 75.99 | CR7: 75.98 | CS7: 75.98 | CT7: 75.97 | CU7: 75.47
A8: 40130019 | B8: Arizona | C8: Maricopa | D8: 73.7 | E8: 74 | F8: 69.8 | G8: 70.0 | H8: 75 | I8: 77 | J8: 78 | K8: 76 | L8: 1 | N8: =IF(OFFSET('2023_gf_links_wflag_sup'!$N$6,O8,0)=0,"",OFFSET('2023_gf_links_wflag_sup'!$N$6,O8,0)) ->  | O8: =MATCH(A8,'2023_gf_links_wflag_sup'!$A$7:$A$86,FALSE) -> 2 | P8: =MATCH($A8,'2023_step3_base_gnp'!$A$7:$A$736,FALSE) -> 21 | Q8: =OFFSET('2023gf_All_gnp'!$F$1,$P8,0) -> 69.80 | R8: =OFFSET('2023_step3_base_gnp'!$BX$6,$P8,0) -> 69.82 | S8: =OFFSET('2023_step3_SCRopt_gnp'!$BX$6,$P8,0) -> 69.81 | T8: =OFFSET('2023_step3_SCRoptwCC_gnp'!$BX$6,$P8,0) -> 69.80 | U8: =OFFSET('2023_step3_SNCRopt_gnp'!$BX$6,$P8,0) -> 69.79 | V8: =OFFSET('2023_step3_SNCRoptwCC_gnp'!$BX$6,$P8,0) -> 69.79 | W8: =OFFSET('2023_step3_newSCR_gnp'!$BX$6,$P8,0) -> 69.41 | X8: =OFFSET('2023_step3_base_wIRA_gnp'!$BX$6,$P8,0) -> 69.81 | Y8: =OFFSET('2023_step3_newSCR_wIRA_gnp'!$BX$6,$P8,0) -> 69.49 | AA8: =OFFSET('2023gf_All_gnp'!$G$1,$P8,0) -> 70.00 | AB8: =OFFSET('2023_step3_base_gnp'!$BX$6,$P8,1) -> 70.02 | AC8: =OFFSET('2023_step3_SCRopt_gnp'!$BX$6,$P8,1) -> 70.01 | AD8: =OFFSET('2023_step3_SCRoptwCC_gnp'!$BX$6,$P8,1) -> 70.00 | AE8: =OFFSET('2023_step3_SNCRopt_gnp'!$BX$6,$P8,1) -> 69.99 | AF8: =OFFSET('2023_step3_SNCRoptwCC_gnp'!$BX$6,$P8,1) -> 69.99 | AG8: =OFFSET('2023_step3_newSCR_gnp'!$BX$6,$P8,1) -> 69.61 | AH8: =OFFSET('2023_step3_base_wIRA_gnp'!$BX$6,$P8,1) -> 70.01 | AI8: =OFFSET('2023_step3_newSCR_wIRA_gnp'!$BX$6,$P8,1) -> 69.69 | AK8: =R8 -> 69.82 | AL8: =V8 -> 69.79 | AM8: =AB8 -> 70.02 | AN8: =AF8 -> 69.99 | AQ8: =OFFSET('2023_full_geo_base_sup'!$BX$6,$P8,0) -> 69.82 | AR8: =OFFSET('2023_full_geo_SCRopt_sup'!$BX$6,$P8,0) -> 69.81 | AS8: =OFFSET('2023_full_geo_SCRoptCC_sup'!$BX$6,$P8,0) -> 69.80 | AT8: =OFFSET('2023_full_geo_SNCRopt_sup'!$BX$6,$P8,0) -> 69.79 | AU8: =OFFSET('2023_full_geo_SNCRoptCC_sup'!$BX$6,$P8,0) -> 69.79 | AV8: =OFFSET('2023_full_geo_newSCR_sup'!$BX$6,$P8,0) -> 69.27 | AW8: =OFFSET('2023_full_geo_IRA_base_sup'!$BX$6,$P8,0) -> 69.81 | AX8: =OFFSET('2023_full_geo_IRA_SCR_sup'!$BX$6,$P8,0) -> 69.38 | AZ8: =OFFSET('2023_full_geo_base_sup'!$BX$6,$P8,1) -> 70.02 | BA8: =OFFSET('2023_full_geo_SCRopt_sup'!$BX$6,$P8,1) -> 70.01 | BB8: =OFFSET('2023_full_geo_SCRoptCC_sup'!$BX$6,$P8,1) -> 70.00 | BC8: =OFFSET('2023_full_geo_SNCRopt_sup'!$BX$6,$P8,1) -> 69.99 | BD8: =OFFSET('2023_full_geo_SNCRoptCC_sup'!$BX$6,$P8,1) -> 69.99 | BE8: =OFFSET('2023_full_geo_newSCR_sup'!$BX$6,$P8,1) -> 69.47 | BF8: =OFFSET('2023_full_geo_IRA_base_sup'!$BX$6,$P8,1) -> 70.01 | BG8: =OFFSET('2023_full_geo_IRA_SCR_sup'!$BX$6,$P8,1) -> 69.58 | BJ8: 75 | BK8: 77 | BL8: 78 | BM8: 76 | BN8: =($R8-$V8)/$R8 -> 0.00 | BO8: =H8-H8*($BN8) -> 74.97 | BP8: =I8-I8*($BN8) -> 76.97 | BQ8: =J8-J8*($BN8) -> 77.97 | BR8: =K8-K8*($BN8) -> 75.97 | BT8: =$H8-($H8*($R8-R8)/$R8) -> 75.00 | BU8: =$H8-($H8*($R8-S8)/$R8) -> 74.99 | BV8: =$H8-($H8*($R8-T8)/$R8) -> 74.98 | BW8: =$H8-($H8*($R8-U8)/$R8) -> 74.97 | BX8: =$H8-($H8*($R8-V8)/$R8) -> 74.97 | BY8: =$H8-($H8*($R8-W8)/$R8) -> 74.56 | CA8: =$I8-($I8*($R8-R8)/$R8) -> 77.00 | CB8: =$I8-($I8*($R8-S8)/$R8) -> 76.99 | CC8: =$I8-($I8*($R8-T8)/$R8) -> 76.98 | CD8: =$I8-($I8*($R8-U8)/$R8) -> 76.97 | CE8: =$I8-($I8*($R8-V8)/$R8) -> 76.97 | CF8: =$I8-($I8*($R8-W8)/$R8) -> 76.55 | CI8: =$H8-($H8*($AQ8-AQ8)/$AQ8) -> 75.00 | CJ8: =$H8-($H8*($AQ8-AR8)/$AQ8) -> 74.99 | CK8: =$H8-($H8*($AQ8-AS8)/$AQ8) -> 74.98 | CL8: =$H8-($H8*($AQ8-AT8)/$AQ8) -> 74.97 | CM8: =$H8-($H8*($AQ8-AU8)/$AQ8) -> 74.97 | CN8: =$H8-($H8*($AQ8-AV8)/$AQ8) -> 74.42 | CP8: =$I8-($I8*($AQ8-AQ8)/$AQ8) -> 77.00 | CQ8: =$I8-($I8*($AQ8-AR8)/$AQ8) -> 76.99 | CR8: =$I8-($I8*($AQ8-AS8)/$AQ8) -> 76.98 | CS8: =$I8-($I8*($AQ8-AT8)/$AQ8) -> 76.97 | CT8: =$I8-($I8*($AQ8-AU8)/$AQ8) -> 76.96 | CU8: =$I8-($I8*($AQ8-AV8)/$AQ8) -> 76.40
A9: 40131003 | B9: Arizona | C9: Maricopa | D9: 75.3 | E9: 76 | F9: 70.1 | G9: 70.7 | H9: 80 | I9: 80 | J9: 83 | K9: 78 | L9: 1 | N9: =IF(OFFSET('2023_gf_links_wflag_sup'!$N$6,O9,0)=0,"",OFFSET('2023_gf_links_wflag_sup'!$N$6,O9,0)) ->  | O9: =MATCH(A9,'2023_gf_links_wflag_sup'!$A$7:$A$86,FALSE) -> 3 | P9: =MATCH($A9,'2023_step3_base_gnp'!$A$7:$A$736,FALSE) -> 22 | Q9: =OFFSET('2023gf_All_gnp'!$F$1,$P9,0) -> 70.10 | R9: =OFFSET('2023_step3_base_gnp'!$BX$6,$P9,0) -> 70.11 | S9: =OFFSET('2023_step3_SCRopt_gnp'!$BX$6,$P9,0) -> 70.09 | T9: =OFFSET('2023_step3_SCRoptwCC_gnp'!$BX$6,$P9,0) -> 70.09 | U9: =OFFSET('2023_step3_SNCRopt_gnp'!$BX$6,$P9,0) -> 70.08 | V9: =OFFSET('2023_step3_SNCRoptwCC_gnp'!$BX$6,$P9,0) -> 70.07 | W9: =OFFSET('2023_step3_newSCR_gnp'!$BX$6,$P9,0) -> 69.55 | X9: =OFFSET('2023_step3_base_wIRA_gnp'!$BX$6,$P9,0) -> 70.10 | Y9: =OFFSET('2023_step3_newSCR_wIRA_gnp'!$BX$6,$P9,0) -> 69.66 | AA9: =OFFSET('2023gf_All_gnp'!$G$1,$P9,0) -> 70.70 | AB9: =OFFSET('2023_step3_base_gnp'!$BX$6,$P9,1) -> 70.71 | AC9: =OFFSET('2023_step3_SCRopt_gnp'!$BX$6,$P9,1) -> 70.69 | AD9: =OFFSET('2023_step3_SCRoptwCC_gnp'!$BX$6,$P9,1) -> 70.69 | AE9: =OFFSET('2023_step3_SNCRopt_gnp'!$BX$6,$P9,1) -> 70.68 | AF9: =OFFSET('2023_step3_SNCRoptwCC_gnp'!$BX$6,$P9,1) -> 70.67 | AG9: =OFFSET('2023_step3_newSCR_gnp'!$BX$6,$P9,1) -> 70.14 | AH9: =OFFSET('2023_step3_base_wIRA_gnp'!$BX$6,$P9,1) -> 70.70 | AI9: =OFFSET('2023_step3_newSCR_wIRA_gnp'!$BX$6,$P9,1) -> 70.26 | AK9: 70.11 | AL9: 70.07 | AM9: 70.71 | AN9: 70.67 | AQ9: =OFFSET('2023_full_geo_base_sup'!$BX$6,$P9,0) -> 70.11 | AR9: =OFFSET('2023_full_geo_SCRopt_sup'!$BX$6,$P9,0) -> 70.09 | AS9: =OFFSET('2023_full_geo_SCRoptCC_sup'!$BX$6,$P9,0) -> 70.09 | AT9: =OFFSET('2023_full_geo_SNCRopt_sup'!$BX$6,$P9,0) -> 70.08 | AU9: =OFFSET('2023_full_geo_SNCRoptCC_sup'!$BX$6,$P9,0) -> 70.07 | AV9: =OFFSET('2023_full_geo_newSCR_sup'!$BX$6,$P9,0) -> 69.39 | AW9: =OFFSET('2023_full_geo_IRA_base_sup'!$BX$6,$P9,0) -> 70.10 | AX9: =OFFSET('2023_full_geo_IRA_SCR_sup'!$BX$6,$P9,0) -> 69.54 | AZ9: =OFFSET('2023_full_geo_base_sup'!$BX$6,$P9,1) -> 70.71 | BA9: =OFFSET('2023_full_geo_SCRopt_sup'!$BX$6,$P9,1) -> 70.69 | BB9: =OFFSET('2023_full_geo_SCRoptCC_sup'!$BX$6,$P9,1) -> 70.68 | BC9: =OFFSET('2023_full_geo_SNCRopt_sup'!$BX$6,$P9,1) -> 70.68 | BD9: =OFFSET('2023_full_geo_SNCRoptCC_sup'!$BX$6,$P9,1) -> 70.67 | BE9: =OFFSET('2023_full_geo_newSCR_sup'!$BX$6,$P9,1) -> 69.98 | BF9: =OFFSET('2023_full_geo_IRA_base_sup'!$BX$6,$P9,1) -> 70.70 | BG9: =OFFSET('2023_full_geo_IRA_SCR_sup'!$BX$6,$P9,1) -> 70.13 | BJ9: 80 | BK9: 80 | BL9: 83 | BM9: 78 | BN9: 0.00 | BO9: 79.95 | BP9: 79.95 | BQ9: 82.95 | BR9: 77.95 | BT9: 80.00 | BU9: 79.98 | BV9: 79.97 | BW9: 79.96 | BX9: 79.95 | BY9: 79.36 | CA9: 80.00 | CB9: 79.98 | CC9: 79.97 | CD9: 79.96 | CE9: 79.95 | CF9: 79.36 | CI9: 80.00 | CJ9: 79.98 | CK9: 79.97 | CL9: 79.96 | CM9: 79.95 | CN9: 79.18 | CP9: 80.00 | CQ9: 79.98 | CR9: 79.97 | CS9: 79.96 | CT9: 79.95 | CU9: 79.18
A10: 40131004 | B10: Arizona | C10: Maricopa | D10: 75.3 | E10: 76 | F10: 70.2 | G10: 70.8 | H10: 80 | I10: 81 | J10: 81 | K10: 77 | L10: 1 | N10: =IF(OFFSET('2023_gf_links_wflag_sup'!$N$6,O10,0)=0,"",OFFSET('2023_gf_links_wflag_sup'!$N$6,O10,0)) ->  | O10: =MATCH(A10,'2023_gf_links_wflag_sup'!$A$7:$A$86,FALSE) -> 4 | P10: =MATCH($A10,'2023_step3_base_gnp'!$A$7:$A$736,FALSE) -> 23 | Q10: =OFFSET('2023gf_All_gnp'!$F$1,$P10,0) -> 70.20 | R10: =OFFSET('2023_step3_base_gnp'!$BX$6,$P10,0) -> 70.22 | S10: =OFFSET('2023_step3_SCRopt_gnp'!$BX$6,$P10,0) -> 70.21 | T10: =OFFSET('2023_step3_SCRoptwCC_gnp'!$BX$6,$P10,0) -> 70.20 | U10: =OFFSET('2023_step3_SNCRopt_gnp'!$BX$6,$P10,0) -> 70.19 | V10: =OFFSET('2023_step3_SNCRoptwCC_gnp'!$BX$6,$P10,0) -> 70.19 | W10: =OFFSET('2023_step3_newSCR_gnp'!$BX$6,$P10,0) -> 69.72 | X10: =OFFSET('2023_step3_base_wIRA_gnp'!$BX$6,$P10,0) -> 70.21 | Y10: =OFFSET('2023_step3_newSCR_wIRA_gnp'!$BX$6,$P10,0) -> 69.82 | AA10: =OFFSET('2023gf_All_gnp'!$G$1,$P10,0) -> 70.80 | AB10: =OFFSET('2023_step3_base_gnp'!$BX$6,$P10,1) -> 70.82 | AC10: =OFFSET('2023_step3_SCRopt_gnp'!$BX$6,$P10,1) -> 70.81 | AD10: =OFFSET('2023_step3_SCRoptwCC_gnp'!$BX$6,$P10,1) -> 70.80 | AE10: =OFFSET('2023_step3_SNCRopt_gnp'!$BX$6,$P10,1) -> 70.79 | AF10: =OFFSET('2023_step3_SNCRoptwCC_gnp'!$BX$6,$P10,1) -> 70.79 | AG10: =OFFSET('2023_step3_newSCR_gnp'!$BX$6,$P10,1) -> 70.32 | AH10: =OFFSET('2023_step3_base_wIRA_gnp'!$BX$6,$P10,1) -> 70.81 | AI10: =OFFSET('2023_step3_newSCR_wIRA_gnp'!$BX$6,$P10,1) -> 70.42 | AK10: 70.22 | AL10: 70.19 | AM10: 70.82 | AN10: 70.79 | AQ10: =OFFSET('2023_full_geo_base_sup'!$BX$6,$P10,0) -> 70.22 | AR10: =OFFSET('2023_full_geo_SCRopt_sup'!$BX$6,$P10,0) -> 70.21 | AS10: =OFFSET('2023_full_geo_SCRoptCC_sup'!$BX$6,$P10,0) -> 70.20 | AT10: =OFFSET('2023_full_geo_SNCRopt_sup'!$BX$6,$P10,0) -> 70.19 | AU10: =OFFSET('2023_full_geo_SNCRoptCC_sup'!$BX$6,$P10,0) -> 70.18 | AV10: =OFFSET('2023_full_geo_newSCR_sup'!$BX$6,$P10,0) -> 69.58 | AW10: =OFFSET('2023_full_geo_IRA_base_sup'!$BX$6,$P10,0) -> 70.21 | AX10: =OFFSET('2023_full_geo_IRA_SCR_sup'!$BX$6,$P10,0) -> 69.71 | AZ10: =OFFSET('2023_full_geo_base_sup'!$BX$6,$P10,1) -> 70.82 | BA10: =OFFSET('2023_full_geo_SCRopt_sup'!$BX$6,$P10,1) -> 70.81 | BB10: =OFFSET('2023_full_geo_SCRoptCC_sup'!$BX$6,$P10,1) -> 70.80 | BC10: =OFFSET('2023_full_geo_SNCRopt_sup'!$BX$6,$P10,1) -> 70.79 | BD10: =OFFSET('2023_full_geo_SNCRoptCC_sup'!$BX$6,$P10,1) -> 70.78 | BE10: =OFFSET('2023_full_geo_newSCR_sup'!$BX$6,$P10,1) -> 70.17 | BF10: =OFFSET('2023_full_geo_IRA_base_sup'!$BX$6,$P10,1) -> 70.81 | BG10: =OFFSET('2023_full_geo_IRA_SCR_sup'!$BX$6,$P10,1) -> 70.30 | BJ10: 80 | BK10: 81 | BL10: 81 | BM10: 77 | BN10: 0.00 | BO10: 79.96 | BP10: 80.96 | BQ10: 80.96 | BR10: 76.96 | BT10: 80.00 | BU10: 79.98 | BV10: 79.98 | BW10: 79.97 | BX10: 79.96 | BY10: 79.43 | CA10: 81.00 | CB10: 80.98 | CC10: 80.97 | CD10: 80.97 | CE10: 80.96 | CF10: 80.42 | CI10: 80.00 | CJ10: 79.98 | CK10: 79.97 | CL10: 79.97 | CM10: 79.96 | CN10: 79.27 | CP10: 81.00 | CQ10: 80.98 | CR10: 80.97 | CS10: 80.97 | CT10: 80.96 | CU10: 80.26
A11: 40131010 | B11: Arizona | C11: Maricopa | D11: 74.0 | E11: 75 | F11: 68.3 | G11: 69.2 | H11: 79 | I11: 80 | J11: 80 | K11: 78 | L11: 1 | N11: =IF(OFFSET('2023_gf_links_wflag_sup'!$N$6,O11,0)=0,"",OFFSET('2023_gf_links_wflag_sup'!$N$6,O11,0)) ->  | O11: =MATCH(A11,'2023_gf_links_wflag_sup'!$A$7:$A$86,FALSE) -> 5 | P11: =MATCH($A11,'2023_step3_base_gnp'!$A$7:$A$736,FALSE) -> 24 | Q11: =OFFSET('2023gf_All_gnp'!$F$1,$P11,0) -> 68.30 | R11: =OFFSET('2023_step3_base_gnp'!$BX$6,$P11,0) -> 68.34 | S11: =OFFSET('2023_step3_SCRopt_gnp'!$BX$6,$P11,0) -> 68.32 | T11: =OFFSET('2023_step3_SCRoptwCC_gnp'!$BX$6,$P11,0) -> 68.31 | U11: =OFFSET('2023_step3_SNCRopt_gnp'!$BX$6,$P11,0) -> 68.29 | V11: =OFFSET('2023_step3_SNCRoptwCC_gnp'!$BX$6,$P11,0) -> 68.28 | W11: =OFFSET('2023_step3_newSCR_gnp'!$BX$6,$P11,0) -> 67.54 | X11: =OFFSET('2023_step3_base_wIRA_gnp'!$BX$6,$P11,0) -> 68.32 | Y11: =OFFSET('2023_step3_newSCR_wIRA_gnp'!$BX$6,$P11,0) -> 67.70 | AA11: =OFFSET('2023gf_All_gnp'!$G$1,$P11,0) -> 69.20 | AB11: =OFFSET('2023_step3_base_gnp'!$BX$6,$P11,1) -> 69.24 | AC11: =OFFSET('2023_step3_SCRopt_gnp'!$BX$6,$P11,1) -> 69.22 | AD11: =OFFSET('2023_step3_SCRoptwCC_gnp'!$BX$6,$P11,1) -> 69.21 | AE11: =OFFSET('2023_step3_SNCRopt_gnp'!$BX$6,$P11,1) -> 69.19 | AF11: =OFFSET('2023_step3_SNCRoptwCC_gnp'!$BX$6,$P11,1) -> 69.18 | AG11: =OFFSET('2023_step3_newSCR_gnp'!$BX$6,$P11,1) -> 68.43 | AH11: =OFFSET('2023_step3_base_wIRA_gnp'!$BX$6,$P11,1) -> 69.23 | AI11: =OFFSET('2023_step3_newSCR_wIRA_gnp'!$BX$6,$P11,1) -> 68.60 | AK11: 68.34 | AL11: 68.28 | AM11: 69.24 | AN11: 69.18 | AQ11: =OFFSET('2023_full_geo_base_sup'!$BX$6,$P11,0) -> 68.34 | AR11: =OFFSET('2023_full_geo_SCRopt_sup'!$BX$6,$P11,0) -> 68.32 | AS11: =OFFSET('2023_full_geo_SCRoptCC_sup'!$BX$6,$P11,0) -> 68.30 | AT11: =OFFSET('2023_full_geo_SNCRopt_sup'!$BX$6,$P11,0) -> 68.29 | AU11: =OFFSET('2023_full_geo_SNCRoptCC_sup'!$BX$6,$P11,0) -> 68.28 | AV11: =OFFSET('2023_full_geo_newSCR_sup'!$BX$6,$P11,0) -> 67.39 | AW11: =OFFSET('2023_full_geo_IRA_base_sup'!$BX$6,$P11,0) -> 68.32 | AX11: =OFFSET('2023_full_geo_IRA_SCR_sup'!$BX$6,$P11,0) -> 67.58 | AZ11: =OFFSET('2023_full_geo_base_sup'!$BX$6,$P11,1) -> 69.24 | BA11: =OFFSET('2023_full_geo_SCRopt_sup'!$BX$6,$P11,1) -> 69.22 | BB11: =OFFSET('2023_full_geo_SCRoptCC_sup'!$BX$6,$P11,1) -> 69.20 | BC11: =OFFSET('2023_full_geo_SNCRopt_sup'!$BX$6,$P11,1) -> 69.19 | BD11: =OFFSET('2023_full_geo_SNCRoptCC_sup'!$BX$6,$P11,1) -> 69.18 | BE11: =OFFSET('2023_full_geo_newSCR_sup'!$BX$6,$P11,1) -> 68.28 | BF11: =OFFSET('2023_full_geo_IRA_base_sup'!$BX$6,$P11,1) -> 69.23 | BG11: =OFFSET('2023_full_geo_IRA_SCR_sup'!$BX$6,$P11,1) -> 68.47 | BJ11: 79 | BK11: 80 | BL11: 80 | BM11: 78 | BN11: 0.00 | BO11: 78.93 | BP11: 79.93 | BQ11: 79.93 | BR11: 77.93 | BT11: 79.00 | BU11: 78.98 | BV11: 78.96 | BW11: 78.95 | BX11: 78.93 | BY11: 78.08 | CA11: 80.00 | CB11: 79.98 | CC11: 79.96 | CD11: 79.95 | CE11: 79.93 | CF11: 79.07 | CI11: 79.00 | CJ11: 78.97 | CK11: 78.96 | CL11: 78.95 | CM11: 78.93 | CN11: 77.90 | CP11: 80.00 | CQ11: 79.97 | CR11: 79.96 | CS11: 79.95 | CT11: 79.93 | CU11: 78.89
A12: 40132001 | B12: Arizona | C12: Maricopa | D12: 67.7 | E12: 68 | F12: 63.8 | G12: 64.1 | H12: 74 | I12: 78 | J12: 79 | K12: 81 | L12: 1 | N12: =IF(OFFSET('2023_gf_links_wflag_sup'!$N$6,O12,0)=0,"",OFFSET('2023_gf_links_wflag_sup'!$N$6,O12,0)) ->  | O12: =MATCH(A12,'2023_gf_links_wflag_sup'!$A$7:$A$86,FALSE) -> 6 | P12: =MATCH($A12,'2023_step3_base_gnp'!$A$7:$A$736,FALSE) -> 25 | Q12: =OFFSET('2023gf_All_gnp'!$F$1,$P12,0) -> 63.80 | R12: =OFFSET('2023_step3_base_gnp'!$BX$6,$P12,0) -> 63.82 | S12: =OFFSET('2023_step3_SCRopt_gnp'!$BX$6,$P12,0) -> 63.81 | T12: =OFFSET('2023_step3_SCRoptwCC_gnp'!$BX$6,$P12,0) -> 63.80 | U12: =OFFSET('2023_step3_SNCRopt_gnp'!$BX$6,$P12,0) -> 63.79 | V12: =OFFSET('2023_step3_SNCRoptwCC_gnp'!$BX$6,$P12,0) -> 63.79 | W12: =OFFSET('2023_step3_newSCR_gnp'!$BX$6,$P12,0) -> 63.39 | X12: =OFFSET('2023_step3_base_wIRA_gnp'!$BX$6,$P12,0) -> 63.81 | Y12: =OFFSET('2023_step3_newSCR_wIRA_gnp'!$BX$6,$P12,0) -> 63.48 | AA12: =OFFSET('2023gf_All_gnp'!$G$1,$P12,0) -> 64.10 | AB12: =OFFSET('2023_step3_base_gnp'!$BX$6,$P12,1) -> 64.12 | AC12: =OFFSET('2023_step3_SCRopt_gnp'!$BX$6,$P12,1) -> 64.11 | AD12: =OFFSET('2023_step3_SCRoptwCC_gnp'!$BX$6,$P12,1) -> 64.10 | AE12: =OFFSET('2023_step3_SNCRopt_gnp'!$BX$6,$P12,1) -> 64.09 | AF12: =OFFSET('2023_step3_SNCRoptwCC_gnp'!$BX$6,$P12,1) -> 64.09 | AG12: =OFFSET('2023_step3_newSCR_gnp'!$BX$6,$P12,1) -> 63.69 | AH12: =OFFSET('2023_step3_base_wIRA_gnp'!$BX$6,$P12,1) -> 64.11 | AI12: =OFFSET('2023_step3_newSCR_wIRA_gnp'!$BX$6,$P12,1) -> 63.78 | AK12: 63.82 | AL12: 63.79 | AM12: 64.12 | AN12: 64.09 | AQ12: =OFFSET('2023_full_geo_base_sup'!$BX$6,$P12,0) -> 63.82 | AR12: =OFFSET('2023_full_geo_SCRopt_sup'!$BX$6,$P12,0) -> 63.81 | AS12: =OFFSET('2023_full_geo_SCRoptCC_sup'!$BX$6,$P12,0) -> 63.80 | AT12: =OFFSET('2023_full_geo_SNCRopt_sup'!$BX$6,$P12,0) -> 63.79 | AU12: =OFFSET('2023_full_geo_SNCRoptCC_sup'!$BX$6,$P12,0) -> 63.79 | AV12: =OFFSET('2023_full_geo_newSCR_sup'!$BX$6,$P12,0) -> 63.26 | AW12: =OFFSET('2023_full_geo_IRA_base_sup'!$BX$6,$P12,0) -> 63.81 | AX12: =OFFSET('2023_full_geo_IRA_SCR_sup'!$BX$6,$P12,0) -> 63.37 | AZ12: =OFFSET('2023_full_geo_base_sup'!$BX$6,$P12,1) -> 64.12 | BA12: =OFFSET('2023_full_geo_SCRopt_sup'!$BX$6,$P12,1) -> 64.11 | BB12: =OFFSET('2023_full_geo_SCRoptCC_sup'!$BX$6,$P12,1) -> 64.10 | BC12: =OFFSET('2023_full_geo_SNCRopt_sup'!$BX$6,$P12,1) -> 64.09 | BD12: =OFFSET('2023_full_geo_SNCRoptCC_sup'!$BX$6,$P12,1) -> 64.09 | BE12: =OFFSET('2023_full_geo_newSCR_sup'!$BX$6,$P12,1) -> 63.56 | BF12: =OFFSET('2023_full_geo_IRA_base_sup'!$BX$6,$P12,1) -> 64.11 | BG12: =OFFSET('2023_full_geo_IRA_SCR_sup'!$BX$6,$P12,1) -> 63.67 | BJ12: 74 | BK12: 78 | BL12: 79 | BM12: 81 | BN12: 0.00 | BO12: 73.96 | BP12: 77.96 | BQ12: 78.96 | BR12: 80.96 | BT12: 74.00 | BU12: 73.99 | BV12: 73.98 | BW12: 73.97 | BX12: 73.96 | BY12: 73.50 | CA12: 78.00 | CB12: 77.99 | CC12: 77.98 | CD12: 77.97 | CE12: 77.96 | CF12: 77.48 | CI12: 74.00 | CJ12: 73.98 | CK12: 73.98 | CL12: 73.97 | CM12: 73.96 | CN12: 73.35 | CP12: 78.00 | CQ12: 77.98 | CR12: 77.98 | CS12: 77.97 | CT12: 77.96 | CU12: 77.32
A13: 40132005 | B13: Arizona | C13: Maricopa | D13: 76.0 | E13: 77 | F13: 69.6 | G13: 70.5 | H13: 78 | I13: 79 | J13: 79 | K13: 77 | L13: 1 | N13: =IF(OFFSET('2023_gf_links_wflag_sup'!$N$6,O13,0)=0,"",OFFSET('2023_gf_links_wflag_sup'!$N$6,O13,0)) ->  | O13: =MATCH(A13,'2023_gf_links_wflag_sup'!$A$7:$A$86,FALSE) -> 7 | P13: =MATCH($A13,'2023_step3_base_gnp'!$A$7:$A$736,FALSE) -> 26 | Q13: =OFFSET('2023gf_All_gnp'!$F$1,$P13,0) -> 69.60 | R13: =OFFSET('2023_step3_base_gnp'!$BX$6,$P13,0) -> 69.62 | S13: =OFFSET('2023_step3_SCRopt_gnp'!$BX$6,$P13,0) -> 69.61 | T13: =OFFSET('2023_step3_SCRoptwCC_gnp'!$BX$6,$P13,0) -> 69.60 | U13: =OFFSET('2023_step3_SNCRopt_gnp'!$BX$6,$P13,0) -> 69.59 | V13: =OFFSET('2023_step3_SNCRoptwCC_gnp'!$BX$6,$P13,0) -> 69.58 | W13: =OFFSET('2023_step3_newSCR_gnp'!$BX$6,$P13,0) -> 69.11 | X13: =OFFSET('2023_step3_base_wIRA_gnp'!$BX$6,$P13,0) -> 69.61 | Y13: =OFFSET('2023_step3_newSCR_wIRA_gnp'!$BX$6,$P13,0) -> 69.21 | AA13: =OFFSET('2023gf_All_gnp'!$G$1,$P13,0) -> 70.50 | AB13: =OFFSET('2023_step3_base_gnp'!$BX$6,$P13,1) -> 70.52 | AC13: =OFFSET('2023_step3_SCRopt_gnp'!$BX$6,$P13,1) -> 70.51 | AD13: =OFFSET('2023_step3_SCRoptwCC_gnp'!$BX$6,$P13,1) -> 70.50 | AE13: =OFFSET('2023_step3_SNCRopt_gnp'!$BX$6,$P13,1) -> 70.49 | AF13: =OFFSET('2023_step3_SNCRoptwCC_gnp'!$BX$6,$P13,1) -> 70.48 | AG13: =OFFSET('2023_step3_newSCR_gnp'!$BX$6,$P13,1) -> 70.00 | AH13: =OFFSET('2023_step3_base_wIRA_gnp'!$BX$6,$P13,1) -> 70.51 | AI13: =OFFSET('2023_step3_newSCR_wIRA_gnp'!$BX$6,$P13,1) -> 70.11 | AK13: 69.62 | AL13: 69.58 | AM13: 70.52 | AN13: 70.48 | AQ13: =OFFSET('2023_full_geo_base_sup'!$BX$6,$P13,0) -> 69.62 | AR13: =OFFSET('2023_full_geo_SCRopt_sup'!$BX$6,$P13,0) -> 69.61 | AS13: =OFFSET('2023_full_geo_SCRoptCC_sup'!$BX$6,$P13,0) -> 69.60 | AT13: =OFFSET('2023_full_geo_SNCRopt_sup'!$BX$6,$P13,0) -> 69.59 | AU13: =OFFSET('2023_full_geo_SNCRoptCC_sup'!$BX$6,$P13,0) -> 69.58 | AV13: =OFFSET('2023_full_geo_newSCR_sup'!$BX$6,$P13,0) -> 68.95 | AW13: =OFFSET('2023_full_geo_IRA_base_sup'!$BX$6,$P13,0) -> 69.61 | AX13: =OFFSET('2023_full_geo_IRA_SCR_sup'!$BX$6,$P13,0) -> 69.09 | AZ13: =OFFSET('2023_full_geo_base_sup'!$BX$6,$P13,1) -> 70.52 | BA13: =OFFSET('2023_full_geo_SCRopt_sup'!$BX$6,$P13,1) -> 70.51 | BB13: =OFFSET('2023_full_geo_SCRoptCC_sup'!$BX$6,$P13,1) -> 70.50 | BC13: =OFFSET('2023_full_geo_SNCRopt_sup'!$BX$6,$P13,1) -> 70.49 | BD13: =OFFSET('2023_full_geo_SNCRoptCC_sup'!$BX$6,$P13,1) -> 70.48 | BE13: =OFFSET('2023_full_geo_newSCR_sup'!$BX$6,$P13,1) -> 69.84 | BF13: =OFFSET('2023_full_geo_IRA_base_sup'!$BX$6,$P13,1) -> 70.51 | BG13: =OFFSET('2023_full_geo_IRA_SCR_sup'!$BX$6,$P13,1) -> 69.98 | BJ13: 78 | BK13: 79 | BL13: 79 | BM13: 77 | BN13: 0.00 | BO13: 77.96 | BP13: 78.96 | BQ13: 78.96 | BR13: 76.96 | BT13: 78.00 | BU13: 77.98 | BV13: 77.98 | BW13: 77.97 | BX13: 77.96 | BY13: 77.43 | CA13: 79.00 | CB13: 78.98 | CC13: 78.97 | CD13: 78.97 | CE13: 78.96 | CF13: 78.42 | CI13: 78.00 | CJ13: 77.98 | CK13: 77.97 | CL13: 77.97 | CM13: 77.96 | CN13: 77.25 | CP13: 79.00 | CQ13: 78.98 | CR13: 78.97 | CS13: 78.97 | CT13: 78.96 | CU13: 78.24
A14: 40133002 | B14: Arizona | C14: Maricopa | D14: 70.0 | E14: 70 | F14: 65.8 | G14: 65.8 | H14: 75 | I14: 75 | J14: 81 | K14: 72 | L14: 1 | N14: =IF(OFFSET('2023_gf_links_wflag_sup'!$N$6,O14,0)=0,"",OFFSET('2023_gf_links_wflag_sup'!$N$6,O14,0)) ->  | O14: =MATCH(A14,'2023_gf_links_wflag_sup'!$A$7:$A$86,FALSE) -> 8 | P14: =MATCH($A14,'2023_step3_base_gnp'!$A$7:$A$736,FALSE) -> 27 | Q14: =OFFSET('2023gf_All_gnp'!$F$1,$P14,0) -> 65.80 | R14: =OFFSET('2023_step3_base_gnp'!$BX$6,$P14,0) -> 65.81 | S14: =OFFSET('2023_step3_SCRopt_gnp'!$BX$6,$P14,0) -> 65.80 | T14: =OFFSET('2023_step3_SCRoptwCC_gnp'!$BX$6,$P14,0) -> 65.80 | U14: =OFFSET('2023_step3_SNCRopt_gnp'!$BX$6,$P14,0) -> 65.79 | V14: =OFFSET('2023_step3_SNCRoptwCC_gnp'!$BX$6,$P14,0) -> 65.78 | W14: =OFFSET('2023_step3_newSCR_gnp'!$BX$6,$P14,0) -> 65.42 | X14: =OFFSET('2023_step3_base_wIRA_gnp'!$BX$6,$P14,0) -> 65.81 | Y14: =OFFSET('2023_step3_newSCR_wIRA_gnp'!$BX$6,$P14,0) -> 65.50 | AA14: =OFFSET('2023gf_All_gnp'!$G$1,$P14,0) -> 65.80 | AB14: =OFFSET('2023_step3_base_gnp'!$BX$6,$P14,1) -> 65.81 | AC14: =OFFSET('2023_step3_SCRopt_gnp'!$BX$6,$P14,1) -> 65.80 | AD14: =OFFSET('2023_step3_SCRoptwCC_gnp'!$BX$6,$P14,1) -> 65.80 | AE14: =OFFSET('2023_step3_SNCRopt_gnp'!$BX$6,$P14,1) -> 65.79 | AF14: =OFFSET('2023_step3_SNCRoptwCC_gnp'!$BX$6,$P14,1) -> 65.78 | AG14: =OFFSET('2023_step3_newSCR_gnp'!$BX$6,$P14,1) -> 65.42 | AH14: =OFFSET('2023_step3_base_wIRA_gnp'!$BX$6,$P14,1) -> 65.81 | AI14: =OFFSET('2023_step3_newSCR_wIRA_gnp'!$BX$6,$P14,1) -> 65.50 | AK14: 65.81 | AL14: 65.78 | AM14: 65.81 | AN14: 65.78 | AQ14: =OFFSET('2023_full_geo_base_sup'!$BX$6,$P14,0) -> 65.81 | AR14: =OFFSET('2023_full_geo_SCRopt_sup'!$BX$6,$P14,0) -> 65.80 | AS14: =OFFSET('2023_full_geo_SCRoptCC_sup'!$BX$6,$P14,0) -> 65.80 | AT14: =OFFSET('2023_full_geo_SNCRopt_sup'!$BX$6,$P14,0) -> 65.79 | AU14: =OFFSET('2023_full_geo_SNCRoptCC_sup'!$BX$6,$P14,0) -> 65.78 | AV14: =OFFSET('2023_full_geo_newSCR_sup'!$BX$6,$P14,0) -> 65.30 | AW14: =OFFSET('2023_full_geo_IRA_base_sup'!$BX$6,$P14,0) -> 65.81 | AX14: =OFFSET('2023_full_geo_IRA_SCR_sup'!$BX$6,$P14,0) -> 65.40 | AZ14: =OFFSET('2023_full_geo_base_sup'!$BX$6,$P14,1) -> 65.81 | BA14: =OFFSET('2023_full_geo_SCRopt_sup'!$BX$6,$P14,1) -> 65.80 | BB14: =OFFSET('2023_full_geo_SCRoptCC_sup'!$BX$6,$P14,1) -> 65.80 | BC14: =OFFSET('2023_full_geo_SNCRopt_sup'!$BX$6,$P14,1) -> 65.79 | BD14: =OFFSET('2023_full_geo_SNCRoptCC_sup'!$BX$6,$P14,1) -> 65.78 | BE14: =OFFSET('2023_full_geo_newSCR_sup'!$BX$6,$P14,1) -> 65.30 | BF14: =OFFSET('2023_full_geo_IRA_base_sup'!$BX$6,$P14,1) -> 65.81 | BG14: =OFFSET('2023_full_geo_IRA_SCR_sup'!$BX$6,$P14,1) -> 65.40 | BJ14: 75 | BK14: 75 | BL14: 81 | BM14: 72 | BN14: 0.00 | BO14: 74.97 | BP14: 74.97 | BQ14: 80.96 | BR14: 71.97 | BT14: 75.00 | BU14: 74.99 | BV14: 74.98 | BW14: 74.97 | BX14: 74.97 | BY14: 74.55 | CA14: 75.00 | CB14: 74.99 | CC14: 74.98 | CD14: 74.97 | CE14: 74.97 | CF14: 74.55 | CI14: 75.00 | CJ14: 74.99 | CK14: 74.98 | CL14: 74.97 | CM14: 74.97 | CN14: 74.41 | CP14: 75.00 | CQ14: 74.99 | CR14: 74.98 | CS14: 74.97 | CT14: 74.97 | CU14: 74.41
A15: 40134004 | B15: Arizona | C15: Maricopa | D15: 70.0 | E15: 71 | F15: 65.7 | G15: 66.6 | H15: 73 | I15: 73 | J15: 73 | K15: 71 | L15: 1 | N15: =IF(OFFSET('2023_gf_links_wflag_sup'!$N$6,O15,0)=0,"",OFFSET('2023_gf_links_wflag_sup'!$N$6,O15,0)) ->  | O15: =MATCH(A15,'2023_gf_links_wflag_sup'!$A$7:$A$86,FALSE) -> 9 | P15: =MATCH($A15,'2023_step3_base_gnp'!$A$7:$A$736,FALSE) -> 30 | Q15: =OFFSET('2023gf_All_gnp'!$F$1,$P15,0) -> 65.70 | R15: =OFFSET('2023_step3_base_gnp'!$BX$6,$P15,0) -> 65.65 | S15: =OFFSET('2023_step3_SCRopt_gnp'!$BX$6,$P15,0) -> 65.65 | T15: =OFFSET('2023_step3_SCRoptwCC_gnp'!$BX$6,$P15,0) -> 65.65 | U15: =OFFSET('2023_step3_SNCRopt_gnp'!$BX$6,$P15,0) -> 65.65 | V15: =OFFSET('2023_step3_SNCRoptwCC_gnp'!$BX$6,$P15,0) -> 65.65 | W15: =OFFSET('2023_step3_newSCR_gnp'!$BX$6,$P15,0) -> 65.62 | X15: =OFFSET('2023_step3_base_wIRA_gnp'!$BX$6,$P15,0) -> 65.66 | Y15: =OFFSET('2023_step3_newSCR_wIRA_gnp'!$BX$6,$P15,0) -> 65.63 | AA15: =OFFSET('2023gf_All_gnp'!$G$1,$P15,0) -> 66.60 | AB15: =OFFSET('2023_step3_base_gnp'!$BX$6,$P15,1) -> 66.55 | AC15: =OFFSET('2023_step3_SCRopt_gnp'!$BX$6,$P15,1) -> 66.55 | AD15: =OFFSET('2023_step3_SCRoptwCC_gnp'!$BX$6,$P15,1) -> 66.55 | AE15: =OFFSET('2023_step3_SNCRopt_gnp'!$BX$6,$P15,1) -> 66.55 | AF15: =OFFSET('2023_step3_SNCRoptwCC_gnp'!$BX$6,$P15,1) -> 66.55 | AG15: =OFFSET('2023_step3_newSCR_gnp'!$BX$6,$P15,1) -> 66.51 | AH15: =OFFSET('2023_step3_base_wIRA_gnp'!$BX$6,$P15,1) -> 66.56 | AI15: =OFFSET('2023_step3_newSCR_wIRA_gnp'!$BX$6,$P15,1) -> 66.53 | AK15: 65.65 | AL15: 65.65 | AM15: 66.55 | AN15: 66.55 | AQ15: =OFFSET('2023_full_geo_base_sup'!$BX$6,$P15,0) -> 65.65 | AR15: =OFFSET('2023_full_geo_SCRopt_sup'!$BX$6,$P15,0) -> 65.65 | AS15: =OFFSET('2023_full_geo_SCRoptCC_sup'!$BX$6,$P15,0) -> 65.65 | AT15: =OFFSET('2023_full_geo_SNCRopt_sup'!$BX$6,$P15,0) -> 65.65 | AU15: =OFFSET('2023_full_geo_SNCRoptCC_sup'!$BX$6,$P15,0) -> 65.65 | AV15: =OFFSET('2023_full_geo_newSCR_sup'!$BX$6,$P15,0) -> 65.48 | AW15: =OFFSET('2023_full_geo_IRA_base_sup'!$BX$6,$P15,0) -> 65.66 | AX15: =OFFSET('2023_full_geo_IRA_SCR_sup'!$BX$6,$P15,0) -> 65.52 | AZ15: =OFFSET('2023_full_geo_base_sup'!$BX$6,$P15,1) -> 66.55 | BA15: =OFFSET('2023_full_geo_SCRopt_sup'!$BX$6,$P15,1) -> 66.55 | BB15: =OFFSET('2023_full_geo_SCRoptCC_sup'!$BX$6,$P15,1) -> 66.55 | BC15: =OFFSET('2023_full_geo_SNCRopt_sup'!$BX$6,$P15,1) -> 66.55 | BD15: =OFFSET('2023_full_geo_SNCRoptCC_sup'!$BX$6,$P15,1) -> 66.55 | BE15: =OFFSET('2023_full_geo_newSCR_sup'!$BX$6,$P15,1) -> 66.37 | BF15: =OFFSET('2023_full_geo_IRA_base_sup'!$BX$6,$P15,1) -> 66.56 | BG15: =OFFSET('2023_full_geo_IRA_SCR_sup'!$BX$6,$P15,1) -> 66.41 | BJ15: 73 | BK15: 73 | BL15: 73 | BM15: 71 | BN15: 0.00 | BO15: 72.99 | BP15: 72.99 | BQ15: 72.99 | BR15: 70.99 | BT15: 73.00 | BU15: 72.99 | BV15: 72.99 | BW15: 72.99 | BX15: 72.99 | BY15: 72.96 | CA15: 73.00 | CB15: 72.99 | CC15: 72.99 | CD15: 72.99 | CE15: 72.99 | CF15: 72.96 | CI15: 73.00 | CJ15: 72.99 | CK15: 72.99 | CL15: 72.99 | CM15: 72.99 | CN15: 72.80 | CP15: 73.00 | CQ15: 72.99 | CR15: 72.99 | CS15: 72.99 | CT15: 72.99 | CU15: 72.80
... 18 more rows

Sheet 2026_linkages_linked_states_sup
D1: max to a modeling receptor | E1: 2026_gf | F1: 2026_step3_base | G1: 2026_step3_SCR_sup | H1: 2026_step3_SCRoptwCC_sup | I1: 2026_step3_SNCRopt_sup | J1: 2026_step3_SNCRopwCC_sup | K1: 2026_step3_newSCR_sup | L1: 2026_step3_newSCRwnonEGU_sup | M1: 2026_step3_nonEGU1st_supp | N1: 2026_step3_IRA_base | O1: 2026_step3_SCRnon_IRA_sup | Q1: notes:
B2: State | C2: State abbreviation | Q2: these contributions are for all the remaining modeled receptors in 2026. Contributions below 0.7 ppb have been zeroed out.
A3: 2 | B3: Arizona | C3: AZ | E3: =OFFSET('2026_gf_links_sup'!$P$2,2,$A3) -> 0.82 | F3: =OFFSET('2026_step3_base_links_sup'!$P$2,2,$A3) -> 0.88 | G3: =OFFSET('2026_step3_SCR_links_sup'!$P$2,2,$A3) -> 0.88 | H3: =OFFSET('2026_step3_SCRoptwCC_links_sup'!$P$2,2,$A3) -> 0.88 | I3: =OFFSET('2026_step3_SNCRopt_links_sup'!$P$2,2,$A3) -> 0.88 | J3: =OFFSET('2026_step3_SNCRopwCC_links_sup'!$P$2,2,$A3) -> 0.88 | K3: =OFFSET('2026_step3_newSCR_links_sup'!$P$2,2,$A3) -> 0.84 | L3: =OFFSET('2026_step3_SCRnonEGU_links_sup'!$P$2,2,$A3) -> 0.83 | M3: =OFFSET('2026_step3_nonEGU1st_links_sup'!$P$2,2,$A3) -> 0.87 | N3: =OFFSET('2026_step3_IRA_base_links_sup'!$P$2,2,$A3) -> 0.90 | O3: =OFFSET('2026_step3_SCRnon_IRA_links_sup'!$P$2,2,$A3) -> 0.85 | Q3: ignores Arizona's contribution to Edy and Lea Counties in New Mexico
A4: 3 | B4: Arkansas | C4: AR | E4: =OFFSET('2026_gf_links_sup'!$P$2,2,$A4) -> 1.17 | F4: =OFFSET('2026_step3_base_links_sup'!$P$2,2,$A4) -> 1.12 | G4: =OFFSET('2026_step3_SCR_links_sup'!$P$2,2,$A4) -> 1.12 | H4: =OFFSET('2026_step3_SCRoptwCC_links_sup'!$P$2,2,$A4) -> 1.12 | I4: =OFFSET('2026_step3_SNCRopt_links_sup'!$P$2,2,$A4) -> 1.12 | J4: =OFFSET('2026_step3_SNCRopwCC_links_sup'!$P$2,2,$A4) -> 1.12 | K4: =OFFSET('2026_step3_newSCR_links_sup'!$P$2,2,$A4) -> 1.01 | L4: =OFFSET('2026_step3_SCRnonEGU_links_sup'!$P$2,2,$A4) -> 0.97 | M4: =OFFSET('2026_step3_nonEGU1st_links_sup'!$P$2,2,$A4) -> 1.08 | N4: =OFFSET('2026_step3_IRA_base_links_sup'!$P$2,2,$A4) -> 1.12 | O4: =OFFSET('2026_step3_SCRnon_IRA_links_sup'!$P$2,2,$A4) -> 0.97
A5: 4 | B5: California | C5: CA | E5: =OFFSET('2026_gf_links_sup'!$P$2,2,$A5) -> 6.16 | F5: =OFFSET('2026_step3_base_links_sup'!$P$2,2,$A5) -> 6.09 | G5: =OFFSET('2026_step3_SCR_links_sup'!$P$2,2,$A5) -> 6.08 | H5: =OFFSET('2026_step3_SCRoptwCC_links_sup'!$P$2,2,$A5) -> 6.08 | I5: =OFFSET('2026_step3_SNCRopt_links_sup'!$P$2,2,$A5) -> 6.08 | J5: =OFFSET('2026_step3_SNCRopwCC_links_sup'!$P$2,2,$A5) -> 6.08 | K5: =OFFSET('2026_step3_newSCR_links_sup'!$P$2,2,$A5) -> 6.08 | L5: =OFFSET('2026_step3_SCRnonEGU_links_sup'!$P$2,2,$A5) -> 6.04 | M5: =OFFSET('2026_step3_nonEGU1st_links_sup'!$P$2,2,$A5) -> 6.04 | N5: =OFFSET('2026_step3_IRA_base_links_sup'!$P$2,2,$A5) -> 6.10 | O5: =OFFSET('2026_step3_SCRnon_IRA_links_sup'!$P$2,2,$A5) -> 6.05
A6: 12 | B6: Illinois | C6: IL | E6: =OFFSET('2026_gf_links_sup'!$P$2,2,$A6) -> 13.58 | F6: =OFFSET('2026_step3_base_links_sup'!$P$2,2,$A6) -> 13.60 | G6: =OFFSET('2026_step3_SCR_links_sup'!$P$2,2,$A6) -> 13.60 | H6: =OFFSET('2026_step3_SCRoptwCC_links_sup'!$P$2,2,$A6) -> 13.60 | I6: =OFFSET('2026_step3_SNCRopt_links_sup'!$P$2,2,$A6) -> 13.60 | J6: =OFFSET('2026_step3_SNCRopwCC_links_sup'!$P$2,2,$A6) -> 13.60 | K6: =OFFSET('2026_step3_newSCR_links_sup'!$P$2,2,$A6) -> 13.59 | L6: =OFFSET('2026_step3_SCRnonEGU_links_sup'!$P$2,2,$A6) -> 13.57 | M6: =OFFSET('2026_step3_nonEGU1st_links_sup'!$P$2,2,$A6) -> 13.58 | N6: =OFFSET('2026_step3_IRA_base_links_sup'!$P$2,2,$A6) -> 13.60 | O6: =OFFSET('2026_step3_SCRnon_IRA_links_sup'!$P$2,2,$A6) -> 13.56
A7: 13 | B7: Indiana | C7: IN | E7: =OFFSET('2026_gf_links_sup'!$P$2,2,$A7) -> 8.53 | F7: =OFFSET('2026_step3_base_links_sup'!$P$2,2,$A7) -> 8.34 | G7: =OFFSET('2026_step3_SCR_links_sup'!$P$2,2,$A7) -> 8.27 | H7: =OFFSET('2026_step3_SCRoptwCC_links_sup'!$P$2,2,$A7) -> 8.27 | I7: =OFFSET('2026_step3_SNCRopt_links_sup'!$P$2,2,$A7) -> 8.27 | J7: =OFFSET('2026_step3_SNCRopwCC_links_sup'!$P$2,2,$A7) -> 8.27 | K7: =OFFSET('2026_step3_newSCR_links_sup'!$P$2,2,$A7) -> 8.22 | L7: =OFFSET('2026_step3_SCRnonEGU_links_sup'!$P$2,2,$A7) -> 8.05 | M7: =OFFSET('2026_step3_nonEGU1st_links_sup'!$P$2,2,$A7) -> 8.10 | N7: =OFFSET('2026_step3_IRA_base_links_sup'!$P$2,2,$A7) -> 8.31 | O7: =OFFSET('2026_step3_SCRnon_IRA_links_sup'!$P$2,2,$A7) -> 8.05
A8: 16 | B8: Kentucky | C8: KY | E8: =OFFSET('2026_gf_links_sup'!$P$2,2,$A8) -> 0.79 | F8: =OFFSET('2026_step3_base_links_sup'!$P$2,2,$A8) -> 0.81 | G8: =OFFSET('2026_step3_SCR_links_sup'!$P$2,2,$A8) -> 0.80 | H8: =OFFSET('2026_step3_SCRoptwCC_links_sup'!$P$2,2,$A8) -> 0.80 | I8: =OFFSET('2026_step3_SNCRopt_links_sup'!$P$2,2,$A8) -> 0.80 | J8: =OFFSET('2026_step3_SNCRopwCC_links_sup'!$P$2,2,$A8) -> 0.80 | K8: =OFFSET('2026_step3_newSCR_links_sup'!$P$2,2,$A8) -> 0.75 | L8: =OFFSET('2026_step3_SCRnonEGU_links_sup'!$P$2,2,$A8) -> 0.72 | M8: =OFFSET('2026_step3_nonEGU1st_links_sup'!$P$2,2,$A8) -> 0.77 | N8: =OFFSET('2026_step3_IRA_base_links_sup'!$P$2,2,$A8) -> 0.82 | O8: =OFFSET('2026_step3_SCRnon_IRA_links_sup'!$P$2,2,$A8) -> 0.72
A9: 17 | B9: Louisiana | C9: LA | E9: =OFFSET('2026_gf_links_sup'!$P$2,2,$A9) -> 9.37 | F9: =OFFSET('2026_step3_base_links_sup'!$P$2,2,$A9) -> 9.67 | G9: =OFFSET('2026_step3_SCR_links_sup'!$P$2,2,$A9) -> 9.64 | H9: =OFFSET('2026_step3_SCRoptwCC_links_sup'!$P$2,2,$A9) -> 9.64 | I9: =OFFSET('2026_step3_SNCRopt_links_sup'!$P$2,2,$A9) -> 9.63 | J9: =OFFSET('2026_step3_SNCRopwCC_links_sup'!$P$2,2,$A9) -> 9.63 | K9: =OFFSET('2026_step3_newSCR_links_sup'!$P$2,2,$A9) -> 9.29 | L9: =OFFSET('2026_step3_SCRnonEGU_links_sup'!$P$2,2,$A9) -> 8.82 | M9: =OFFSET('2026_step3_nonEGU1st_links_sup'!$P$2,2,$A9) -> 9.16 | N9: =OFFSET('2026_step3_IRA_base_links_sup'!$P$2,2,$A9) -> 9.64 | O9: =OFFSET('2026_step3_SCRnon_IRA_links_sup'!$P$2,2,$A9) -> 8.82
A10: 19 | B10: Maryland | C10: MD | E10: =OFFSET('2026_gf_links_sup'!$P$2,2,$A10) -> 1.07 | F10: =OFFSET('2026_step3_base_links_sup'!$P$2,2,$A10) -> 1.08 | G10: =OFFSET('2026_step3_SCR_links_sup'!$P$2,2,$A10) -> 1.08 | H10: =OFFSET('2026_step3_SCRoptwCC_links_sup'!$P$2,2,$A10) -> 1.08 | I10: =OFFSET('2026_step3_SNCRopt_links_sup'!$P$2,2,$A10) -> 1.08 | J10: =OFFSET('2026_step3_SNCRopwCC_links_sup'!$P$2,2,$A10) -> 1.08 | K10: =OFFSET('2026_step3_newSCR_links_sup'!$P$2,2,$A10) -> 1.08 | L10: =OFFSET('2026_step3_SCRnonEGU_links_sup'!$P$2,2,$A10) -> 1.08 | M10: =OFFSET('2026_step3_nonEGU1st_links_sup'!$P$2,2,$A10) -> 1.08 | N10: =OFFSET('2026_step3_IRA_base_links_sup'!$P$2,2,$A10) -> 1.09 | O10: =OFFSET('2026_step3_SCRnon_IRA_links_sup'!$P$2,2,$A10) -> 1.09
A11: 21 | B11: Michigan | C11: MI | E11: =OFFSET('2026_gf_links_sup'!$P$2,2,$A11) -> 1.48 | F11: =OFFSET('2026_step3_base_links_sup'!$P$2,2,$A11) -> 1.47 | G11: =OFFSET('2026_step3_SCR_links_sup'!$P$2,2,$A11) -> 1.47 | H11: =OFFSET('2026_step3_SCRoptwCC_links_sup'!$P$2,2,$A11) -> 1.47 | I11: =OFFSET('2026_step3_SNCRopt_links_sup'!$P$2,2,$A11) -> 1.47 | J11: =OFFSET('2026_step3_SNCRopwCC_links_sup'!$P$2,2,$A11) -> 1.47 | K11: =OFFSET('2026_step3_newSCR_links_sup'!$P$2,2,$A11) -> 1.46 | L11: =OFFSET('2026_step3_SCRnonEGU_links_sup'!$P$2,2,$A11) -> 1.45 | M11: =OFFSET('2026_step3_nonEGU1st_links_sup'!$P$2,2,$A11) -> 1.46 | N11: =OFFSET('2026_step3_IRA_base_links_sup'!$P$2,2,$A11) -> 1.46 | O11: =OFFSET('2026_step3_SCRnon_IRA_links_sup'!$P$2,2,$A11) -> 1.45
A12: 23 | B12: Mississippi | C12: MS | E12: =OFFSET('2026_gf_links_sup'!$P$2,2,$A12) -> 1.16 | F12: =OFFSET('2026_step3_base_links_sup'!$P$2,2,$A12) -> 1.32 | G12: =OFFSET('2026_step3_SCR_links_sup'!$P$2,2,$A12) -> 1.32 | H12: =OFFSET('2026_step3_SCRoptwCC_links_sup'!$P$2,2,$A12) -> 1.29 | I12: =OFFSET('2026_step3_SNCRopt_links_sup'!$P$2,2,$A12) -> 1.32 | J12: =OFFSET('2026_step3_SNCRopwCC_links_sup'!$P$2,2,$A12) -> 1.29 | K12: =OFFSET('2026_step3_newSCR_links_sup'!$P$2,2,$A12) -> 1.21 | L12: =OFFSET('2026_step3_SCRnonEGU_links_sup'!$P$2,2,$A12) -> 1.14 | M12: =OFFSET('2026_step3_nonEGU1st_links_sup'!$P$2,2,$A12) -> 1.22 | N12: =OFFSET('2026_step3_IRA_base_links_sup'!$P$2,2,$A12) -> 1.32 | O12: =OFFSET('2026_step3_SCRnon_IRA_links_sup'!$P$2,2,$A12) -> 1.14
A13: 24 | B13: Missouri | C13: MO | E13: =OFFSET('2026_gf_links_sup'!$P$2,2,$A13) -> 1.69 | F13: =OFFSET('2026_step3_base_links_sup'!$P$2,2,$A13) -> 1.78 | G13: =OFFSET('2026_step3_SCR_links_sup'!$P$2,2,$A13) -> 1.65 | H13: =OFFSET('2026_step3_SCRoptwCC_links_sup'!$P$2,2,$A13) -> 1.65 | I13: =OFFSET('2026_step3_SNCRopt_links_sup'!$P$2,2,$A13) -> 1.65 | J13: =OFFSET('2026_step3_SNCRopwCC_links_sup'!$P$2,2,$A13) -> 1.65 | K13: =OFFSET('2026_step3_newSCR_links_sup'!$P$2,2,$A13) -> 1.59 | L13: =OFFSET('2026_step3_SCRnonEGU_links_sup'!$P$2,2,$A13) -> 1.55 | M13: =OFFSET('2026_step3_nonEGU1st_links_sup'!$P$2,2,$A13) -> 1.62 | N13: =OFFSET('2026_step3_IRA_base_links_sup'!$P$2,2,$A13) -> 1.78 | O13: =OFFSET('2026_step3_SCRnon_IRA_links_sup'!$P$2,2,$A13) -> 1.55
A14: 27 | B14: Nevada | C14: NV | E14: =OFFSET('2026_gf_links_sup'!$P$2,2,$A14) -> 0.91 | F14: =OFFSET('2026_step3_base_links_sup'!$P$2,2,$A14) -> 0.90 | G14: =OFFSET('2026_step3_SCR_links_sup'!$P$2,2,$A14) -> 0.90 | H14: =OFFSET('2026_step3_SCRoptwCC_links_sup'!$P$2,2,$A14) -> 0.90 | I14: =OFFSET('2026_step3_SNCRopt_links_sup'!$P$2,2,$A14) -> 0.90 | J14: =OFFSET('2026_step3_SNCRopwCC_links_sup'!$P$2,2,$A14) -> 0.90 | K14: =OFFSET('2026_step3_newSCR_links_sup'!$P$2,2,$A14) -> 0.90 | L14: =OFFSET('2026_step3_SCRnonEGU_links_sup'!$P$2,2,$A14) -> 0.90 | M14: =OFFSET('2026_step3_nonEGU1st_links_sup'!$P$2,2,$A14) -> 0.90 | N14: =OFFSET('2026_step3_IRA_base_links_sup'!$P$2,2,$A14) -> 0.90 | O14: =OFFSET('2026_step3_SCRnon_IRA_links_sup'!$P$2,2,$A14) -> 0.90
A15: 29 | B15: New Jersey | C15: NJ | E15: =OFFSET('2026_gf_links_sup'!$P$2,2,$A15) -> 8.10 | F15: =OFFSET('2026_step3_base_links_sup'!$P$2,2,$A15) -> 8.09 | G15: =OFFSET('2026_step3_SCR_links_sup'!$P$2,2,$A15) -> 8.10 | H15: =OFFSET('2026_step3_SCRoptwCC_links_sup'!$P$2,2,$A15) -> 8.10 | I15: =OFFSET('2026_step3_SNCRopt_links_sup'!$P$2,2,$A15) -> 8.10 | J15: =OFFSET('2026_step3_SNCRopwCC_links_sup'!$P$2,2,$A15) -> 8.10 | K15: =OFFSET('2026_step3_newSCR_links_sup'!$P$2,2,$A15) -> 8.10 | L15: =OFFSET('2026_step3_SCRnonEGU_links_sup'!$P$2,2,$A15) -> 8.11 | M15: =OFFSET('2026_step3_nonEGU1st_links_sup'!$P$2,2,$A15) -> 8.11 | N15: =OFFSET('2026_step3_IRA_base_links_sup'!$P$2,2,$A15) -> 8.09 | O15: =OFFSET('2026_step3_SCRnon_IRA_links_sup'!$P$2,2,$A15) -> 8.11
A16: 31 | B16: New York | C16: NY | E16: =OFFSET('2026_gf_links_sup'!$P$2,2,$A16) -> 12.66 | F16: =OFFSET('2026_step3_base_links_sup'!$P$2,2,$A16) -> 12.68 | G16: =OFFSET('2026_step3_SCR_links_sup'!$P$2,2,$A16) -> 12.67 | H16: =OFFSET('2026_step3_SCRoptwCC_links_sup'!$P$2,2,$A16) -> 12.67 | I16: =OFFSET('2026_step3_SNCRopt_links_sup'!$P$2,2,$A16) -> 12.67 | J16: =OFFSET('2026_step3_SNCRopwCC_links_sup'!$P$2,2,$A16) -> 12.67 | K16: =OFFSET('2026_step3_newSCR_links_sup'!$P$2,2,$A16) -> 12.66 | L16: =OFFSET('2026_step3_SCRnonEGU_links_sup'!$P$2,2,$A16) -> 12.64 | M16: =OFFSET('2026_step3_nonEGU1st_links_sup'!$P$2,2,$A16) -> 12.65 | N16: =OFFSET('2026_step3_IRA_base_links_sup'!$P$2,2,$A16) -> 12.68 | O16: =OFFSET('2026_step3_SCRnon_IRA_links_sup'!$P$2,2,$A16) -> 12.64
A17: 34 | B17: Ohio | C17: OH | E17: =OFFSET('2026_gf_links_sup'!$P$2,2,$A17) -> 1.95 | F17: =OFFSET('2026_step3_base_links_sup'!$P$2,2,$A17) -> 1.92 | G17: =OFFSET('2026_step3_SCR_links_sup'!$P$2,2,$A17) -> 1.90 | H17: =OFFSET('2026_step3_SCRoptwCC_links_sup'!$P$2,2,$A17) -> 1.90 | I17: =OFFSET('2026_step3_SNCRopt_links_sup'!$P$2,2,$A17) -> 1.90 | J17: =OFFSET('2026_step3_SNCRopwCC_links_sup'!$P$2,2,$A17) -> 1.90 | K17: =OFFSET('2026_step3_newSCR_links_sup'!$P$2,2,$A17) -> 1.90 | L17: =OFFSET('2026_step3_SCRnonEGU_links_sup'!$P$2,2,$A17) -> 1.85 | M17: =OFFSET('2026_step3_nonEGU1st_links_sup'!$P$2,2,$A17) -> 1.85 | N17: =OFFSET('2026_step3_IRA_base_links_sup'!$P$2,2,$A17) -> 1.90 | O17: =OFFSET('2026_step3_SCRnon_IRA_links_sup'!$P$2,2,$A17) -> 1.85
A18: 35 | B18: Oklahoma | C18: OK | E18: =OFFSET('2026_gf_links_sup'!$P$2,2,$A18) -> 0.75 | F18: =OFFSET('2026_step3_base_links_sup'!$P$2,2,$A18) -> 0.77 | G18: =OFFSET('2026_step3_SCR_links_sup'!$P$2,2,$A18) -> 0.77 | H18: =OFFSET('2026_step3_SCRoptwCC_links_sup'!$P$2,2,$A18) -> 0.77 | I18: =OFFSET('2026_step3_SNCRopt_links_sup'!$P$2,2,$A18) -> 0.77 | J18: =OFFSET('2026_step3_SNCRopwCC_links_sup'!$P$2,2,$A18) -> 0.77 | K18: =OFFSET('2026_step3_newSCR_links_sup'!$P$2,2,$A18) -> 0.72 | L18: =OFFSET('2026_step3_SCRnonEGU_links_sup'!$P$2,2,$A18) -> 0.00 | M18: =OFFSET('2026_step3_nonEGU1st_links_sup'!$P$2,2,$A18) -> 0.73 | N18: =OFFSET('2026_step3_IRA_base_links_sup'!$P$2,2,$A18) -> 0.77 | O18: =OFFSET('2026_step3_SCRnon_IRA_links_sup'!$P$2,2,$A18) -> 0.00
A19: 37 | B19: Pennsylvania | C19: PA | E19: =OFFSET('2026_gf_links_sup'!$P$2,2,$A19) -> 5.47 | F19: =OFFSET('2026_step3_base_links_sup'!$P$2,2,$A19) -> 5.70 | G19: =OFFSET('2026_step3_SCR_links_sup'!$P$2,2,$A19) -> 5.68 | H19: =OFFSET('2026_step3_SCRoptwCC_links_sup'!$P$2,2,$A19) -> 5.68 | I19: =OFFSET('2026_step3_SNCRopt_links_sup'!$P$2,2,$A19) -> 5.68 | J19: =OFFSET('2026_step3_SNCRopwCC_links_sup'!$P$2,2,$A19) -> 5.68 | K19: =OFFSET('2026_step3_newSCR_links_sup'!$P$2,2,$A19) -> 5.65 | L19: =OFFSET('2026_step3_SCRnonEGU_links_sup'!$P$2,2,$A19) -> 5.55 | M19: =OFFSET('2026_step3_nonEGU1st_links_sup'!$P$2,2,$A19) -> 5.58 | N19: =OFFSET('2026_step3_IRA_base_links_sup'!$P$2,2,$A19) -> 5.66 | O19: =OFFSET('2026_step3_SCRnon_IRA_links_sup'!$P$2,2,$A19) -> 5.52
A20: 42 | B20: Texas | C20: TX | E20: =OFFSET('2026_gf_links_sup'!$P$2,2,$A20) -> 4.35 | F20: =OFFSET('2026_step3_base_links_sup'!$P$2,2,$A20) -> 4.44 | G20: =OFFSET('2026_step3_SCR_links_sup'!$P$2,2,$A20) -> 4.44 | H20: =OFFSET('2026_step3_SCRoptwCC_links_sup'!$P$2,2,$A20) -> 4.44 | I20: =OFFSET('2026_step3_SNCRopt_links_sup'!$P$2,2,$A20) -> 4.43 | J20: =OFFSET('2026_step3_SNCRopwCC_links_sup'!$P$2,2,$A20) -> 4.43 | K20: =OFFSET('2026_step3_newSCR_links_sup'!$P$2,2,$A20) -> 4.34 | L20: =OFFSET('2026_step3_SCRnonEGU_links_sup'!$P$2,2,$A20) -> 4.30 | M20: =OFFSET('2026_step3_nonEGU1st_links_sup'!$P$2,2,$A20) -> 4.40 | N20: =OFFSET('2026_step3_IRA_base_links_sup'!$P$2,2,$A20) -> 4.45 | O20: =OFFSET('2026_step3_SCRnon_IRA_links_sup'!$P$2,2,$A20) -> 4.31
A21: 43 | B21: Utah | C21: UT | E21: =OFFSET('2026_gf_links_sup'!$P$2,2,$A21) -> 1.06 | F21: =OFFSET('2026_step3_base_links_sup'!$P$2,2,$A21) -> 1.07 | G21: =OFFSET('2026_step3_SCR_links_sup'!$P$2,2,$A21) -> 1.07 | H21: =OFFSET('2026_step3_SCRoptwCC_links_sup'!$P$2,2,$A21) -> 1.07 | I21: =OFFSET('2026_step3_SNCRopt_links_sup'!$P$2,2,$A21) -> 1.07 | J21: =OFFSET('2026_step3_SNCRopwCC_links_sup'!$P$2,2,$A21) -> 1.07 | K21: =OFFSET('2026_step3_newSCR_links_sup'!$P$2,2,$A21) -> 0.89 | L21: =OFFSET('2026_step3_SCRnonEGU_links_sup'!$P$2,2,$A21) -> 0.88 | M21: =OFFSET('2026_step3_nonEGU1st_links_sup'!$P$2,2,$A21) -> 1.06 | N21: =OFFSET('2026_step3_IRA_base_links_sup'!$P$2,2,$A21) -> 1.07 | O21: =OFFSET('2026_step3_SCRnon_IRA_links_sup'!$P$2,2,$A21) -> 0.89
A22: 45 | B22: Virginia | C22: VA | E22: =OFFSET('2026_gf_links_sup'!$P$2,2,$A22) -> 1.11 | F22: =OFFSET('2026_step3_base_links_sup'!$P$2,2,$A22) -> 1.14 | G22: =OFFSET('2026_step3_SCR_links_sup'!$P$2,2,$A22) -> 1.14 | H22: =OFFSET('2026_step3_SCRoptwCC_links_sup'!$P$2,2,$A22) -> 1.14 | I22: =OFFSET('2026_step3_SNCRopt_links_sup'!$P$2,2,$A22) -> 1.14 | J22: =OFFSET('2026_step3_SNCRopwCC_links_sup'!$P$2,2,$A22) -> 1.13 | K22: =OFFSET('2026_step3_newSCR_links_sup'!$P$2,2,$A22) -> 1.13 | L22: =OFFSET('2026_step3_SCRnonEGU_links_sup'!$P$2,2,$A22) -> 1.10 | M22: =OFFSET('2026_step3_nonEGU1st_links_sup'!$P$2,2,$A22) -> 1.10 | N22: =OFFSET('2026_step3_IRA_base_links_sup'!$P$2,2,$A22) -> 1.14 | O22: =OFFSET('2026_step3_SCRnon_IRA_links_sup'!$P$2,2,$A22) -> 1.10
A23: 47 | B23: West Virginia | C23: WV | E23: =OFFSET('2026_gf_links_sup'!$P$2,2,$A23) -> 1.36 | F23: =OFFSET('2026_step3_base_links_sup'!$P$2,2,$A23) -> 1.36 | G23: =OFFSET('2026_step3_SCR_links_sup'!$P$2,2,$A23) -> 1.35 | H23: =OFFSET('2026_step3_SCRoptwCC_links_sup'!$P$2,2,$A23) -> 1.34 | I23: =OFFSET('2026_step3_SNCRopt_links_sup'!$P$2,2,$A23) -> 1.34 | J23: =OFFSET('2026_step3_SNCRopwCC_links_sup'!$P$2,2,$A23) -> 1.33 | K23: =OFFSET('2026_step3_newSCR_links_sup'!$P$2,2,$A23) -> 1.28 | L23: =OFFSET('2026_step3_SCRnonEGU_links_sup'!$P$2,2,$A23) -> 1.24 | M23: =OFFSET('2026_step3_nonEGU1st_links_sup'!$P$2,2,$A23) -> 1.29 | N23: =OFFSET('2026_step3_IRA_base_links_sup'!$P$2,2,$A23) -> 1.35 | O23: =OFFSET('2026_step3_SCRnon_IRA_links_sup'!$P$2,2,$A23) -> 1.24

Sheet 2023_linkages_linked_states_sup
C1: max to any monitor | D1: 2023_gf | E1: 2023_step3_base | F1: 2023_step3_SCRopt | G1: 2023_step3_SCRoptwCC | H1: 2023_step3_SNCRopt | I1: 2023_step3_SNCRoptwCC | J1: 2023_step3_newSCR | K1: 2023_step3_base_wIRA | L1: 2023_step3_newSCR_wIRA | N1: max to a violating monitor | O1: 2023_gf | P1: 2023_step3_base | Q1: 2023_step3_SCRopt | R1: 2023_step3_SCRoptwCC | S1: 2023_step3_SNCRopt | T1: 2023_step3_SNCRoptwCC | U1: 2023_step3_newSCR | V1: 2023_step3_base_wIRA | W1: 2023_step3_newSCR_wIRA | Y1: max to a modeling receptor | Z1: 2023_gf | AA1: 2023_step3_base | AB1: 2023_step3_SCRopt | AC1: 2023_step3_SCRoptwCC | AD1: 2023_step3_SNCRopt | AE1: 2023_step3_SNCRoptwCC | AF1: 2023_step3_newSCR | AG1: 2023_step3_base_wIRA | AH1: 2023_step3_newSCR_wIRA | AJ1: notes:
B2: State | C2: State abbreviation | AJ2: these contributions are for various groupings of receptors in 2023. Contributions below 0.7 ppb have been zeroed out.
A3: 1 | B3: Alabama | C3: AL | D3: =OFFSET('2023_gf_links_sup'!$O$2,0,$A3) -> 0.79 | E3: =OFFSET('2023_step3_base_link_sup'!$O$2,0,$A3) -> 0.80 | F3: =OFFSET('2023_step3_SCRopt_link_sup'!$O$2,0,$A3) -> 0.80 | G3: =OFFSET('2023_step3_SCRoptwCC_link_sup'!$O$2,0,$A3) -> 0.80 | H3: =OFFSET('2023_step3_SNCRopt_link_sup'!$O$2,0,$A3) -> 0.80 | I3: =OFFSET('2023_step3_SNCRoptwCC_link_sup'!$O$2,0,$A3) -> 0.80 | J3: =OFFSET('2023_step3_newSCR_link_sup'!$O$2,0,$A3) -> 0.80 | K3: =OFFSET('2023_step3_base_wIRA_link_sup'!$O$2,0,$A3) -> 0.80 | L3: =OFFSET('2023_step3_newSCR_wIRA_link_sup'!$O$2,0,$A3) -> 0.80 | O3: =OFFSET('2023_gf_links_sup'!$O$2,1,$A3) -> 0.79 | P3: =OFFSET('2023_step3_base_link_sup'!$O$2,1,$A3) -> 0.80 | Q3: =OFFSET('2023_step3_SCRopt_link_sup'!$O$2,1,$A3) -> 0.80 | R3: =OFFSET('2023_step3_SCRoptwCC_link_sup'!$O$2,1,$A3) -> 0.80 | S3: =OFFSET('2023_step3_SNCRopt_link_sup'!$O$2,1,$A3) -> 0.80 | T3: =OFFSET('2023_step3_SNCRoptwCC_link_sup'!$O$2,1,$A3) -> 0.80 | U3: =OFFSET('2023_step3_newSCR_link_sup'!$O$2,1,$A3) -> 0.80 | V3: =OFFSET('2023_step3_base_wIRA_link_sup'!$O$2,1,$A3) -> 0.80 | W3: =OFFSET('2023_step3_newSCR_wIRA_link_sup'!$O$2,1,$A3) -> 0.80 | Z3: =OFFSET('2023_gf_links_sup'!$O$2,2,$A3) -> 0.76 | AA3: =OFFSET('2023_step3_base_link_sup'!$O$2,2,$A3) -> 0.77 | AB3: =OFFSET('2023_step3_SCRopt_link_sup'!$O$2,2,$A3) -> 0.77 | AC3: =OFFSET('2023_step3_SCRoptwCC_link_sup'!$O$2,2,$A3) -> 0.77 | AD3: =OFFSET('2023_step3_SNCRopt_link_sup'!$O$2,2,$A3) -> 0.77 | AE3: =OFFSET('2023_step3_SNCRoptwCC_link_sup'!$O$2,2,$A3) -> 0.77 | AF3: =OFFSET('2023_step3_newSCR_link_sup'!$O$2,2,$A3) -> 0.76 | AG3: =OFFSET('2023_step3_base_wIRA_link_sup'!$O$2,2,$A3) -> 0.77 | AH3: =OFFSET('2023_step3_newSCR_wIRA_link_sup'!$O$2,2,$A3) -> 0.76
A4: 2 | B4: Arizona | C4: AZ | D4: =OFFSET('2023_gf_links_sup'!$O$2,0,$A4) -> 1.70 | E4: =OFFSET('2023_step3_base_link_sup'!$O$2,0,$A4) -> 1.71 | F4: =OFFSET('2023_step3_SCRopt_link_sup'!$O$2,0,$A4) -> 1.71 | G4: =OFFSET('2023_step3_SCRoptwCC_link_sup'!$O$2,0,$A4) -> 1.71 | H4: =OFFSET('2023_step3_SNCRopt_link_sup'!$O$2,0,$A4) -> 1.71 | I4: =OFFSET('2023_step3_SNCRoptwCC_link_sup'!$O$2,0,$A4) -> 1.70 | J4: =OFFSET('2023_step3_newSCR_link_sup'!$O$2,0,$A4) -> 1.80 | K4: =OFFSET('2023_step3_base_wIRA_link_sup'!$O$2,0,$A4) -> 1.71 | L4: =OFFSET('2023_step3_newSCR_wIRA_link_sup'!$O$2,0,$A4) -> 1.76 | O4: =OFFSET('2023_gf_links_sup'!$O$2,1,$A4) -> 1.62 | P4: =OFFSET('2023_step3_base_link_sup'!$O$2,1,$A4) -> 1.60 | Q4: =OFFSET('2023_step3_SCRopt_link_sup'!$O$2,1,$A4) -> 1.60 | R4: =OFFSET('2023_step3_SCRoptwCC_link_sup'!$O$2,1,$A4) -> 1.61 | S4: =OFFSET('2023_step3_SNCRopt_link_sup'!$O$2,1,$A4) -> 1.61 | T4: =OFFSET('2023_step3_SNCRoptwCC_link_sup'!$O$2,1,$A4) -> 1.61 | U4: =OFFSET('2023_step3_newSCR_link_sup'!$O$2,1,$A4) -> 1.80 | V4: =OFFSET('2023_step3_base_wIRA_link_sup'!$O$2,1,$A4) -> 1.61 | W4: =OFFSET('2023_step3_newSCR_wIRA_link_sup'!$O$2,1,$A4) -> 1.76 | Z4: =OFFSET('2023_gf_links_sup'!$O$2,2,$A4) -> 1.70 | AA4: =OFFSET('2023_step3_base_link_sup'!$O$2,2,$A4) -> 1.71 | AB4: =OFFSET('2023_step3_SCRopt_link_sup'!$O$2,2,$A4) -> 1.71 | AC4: =OFFSET('2023_step3_SCRoptwCC_link_sup'!$O$2,2,$A4) -> 1.71 | AD4: =OFFSET('2023_step3_SNCRopt_link_sup'!$O$2,2,$A4) -> 1.71 | AE4: =OFFSET('2023_step3_SNCRoptwCC_link_sup'!$O$2,2,$A4) -> 1.70 | AF4: =OFFSET('2023_step3_newSCR_link_sup'!$O$2,2,$A4) -> 1.66 | AG4: =OFFSET('2023_step3_base_wIRA_link_sup'!$O$2,2,$A4) -> 1.71 | AH4: =OFFSET('2023_step3_newSCR_wIRA_link_sup'!$O$2,2,$A4) -> 1.66
A5: 3 | B5: Arkansas | C5: AR | D5: =OFFSET('2023_gf_links_sup'!$O$2,0,$A5) -> 1.22 | E5: =OFFSET('2023_step3_base_link_sup'!$O$2,0,$A5) -> 1.18 | F5: =OFFSET('2023_step3_SCRopt_link_sup'!$O$2,0,$A5) -> 1.18 | G5: =OFFSET('2023_step3_SCRoptwCC_link_sup'!$O$2,0,$A5) -> 1.18 | H5: =OFFSET('2023_step3_SNCRopt_link_sup'!$O$2,0,$A5) -> 1.18 | I5: =OFFSET('2023_step3_SNCRoptwCC_link_sup'!$O$2,0,$A5) -> 1.18 | J5: =OFFSET('2023_step3_newSCR_link_sup'!$O$2,0,$A5) -> 1.06 | K5: =OFFSET('2023_step3_base_wIRA_link_sup'!$O$2,0,$A5) -> 1.18 | L5: =OFFSET('2023_step3_newSCR_wIRA_link_sup'!$O$2,0,$A5) -> 1.07 | O5: =OFFSET('2023_gf_links_sup'!$O$2,1,$A5) -> 1.16 | P5: =OFFSET('2023_step3_base_link_sup'!$O$2,1,$A5) -> 1.13 | Q5: =OFFSET('2023_step3_SCRopt_link_sup'!$O$2,1,$A5) -> 1.13 | R5: =OFFSET('2023_step3_SCRoptwCC_link_sup'!$O$2,1,$A5) -> 1.13 | S5: =OFFSET('2023_step3_SNCRopt_link_sup'!$O$2,1,$A5) -> 1.13 | T5: =OFFSET('2023_step3_SNCRoptwCC_link_sup'!$O$2,1,$A5) -> 1.13 | U5: =OFFSET('2023_step3_newSCR_link_sup'!$O$2,1,$A5) -> 1.03 | V5: =OFFSET('2023_step3_base_wIRA_link_sup'!$O$2,1,$A5) -> 1.13 | W5: =OFFSET('2023_step3_newSCR_wIRA_link_sup'!$O$2,1,$A5) -> 1.04 | Z5: =OFFSET('2023_gf_links_sup'!$O$2,2,$A5) -> 1.22 | AA5: =OFFSET('2023_step3_base_link_sup'!$O$2,2,$A5) -> 1.18 | AB5: =OFFSET('2023_step3_SCRopt_link_sup'!$O$2,2,$A5) -> 1.18 | AC5: =OFFSET('2023_step3_SCRoptwCC_link_sup'!$O$2,2,$A5) -> 1.18 | AD5: =OFFSET('2023_step3_SNCRopt_link_sup'!$O$2,2,$A5) -> 1.18 | AE5: =OFFSET('2023_step3_SNCRoptwCC_link_sup'!$O$2,2,$A5) -> 1.18 | AF5: =OFFSET('2023_step3_newSCR_link_sup'!$O$2,2,$A5) -> 1.06 | AG5: =OFFSET('2023_step3_base_wIRA_link_sup'!$O$2,2,$A5) -> 1.18 | AH5: =OFFSET('2023_step3_newSCR_wIRA_link_sup'!$O$2,2,$A5) -> 1.07
A6: 4 | B6: California | C6: CA | D6: =OFFSET('2023_gf_links_sup'!$O$2,0,$A6) -> 6.97 | E6: =OFFSET('2023_step3_base_link_sup'!$O$2,0,$A6) -> 6.89 | F6: =OFFSET('2023_step3_SCRopt_link_sup'!$O$2,0,$A6) -> 6.87 | G6: =OFFSET('2023_step3_SCRoptwCC_link_sup'!$O$2,0,$A6) -> 6.87 | H6: =OFFSET('2023_step3_SNCRopt_link_sup'!$O$2,0,$A6) -> 6.87 | I6: =OFFSET('2023_step3_SNCRoptwCC_link_sup'!$O$2,0,$A6) -> 6.87 | J6: =OFFSET('2023_step3_newSCR_link_sup'!$O$2,0,$A6) -> 6.87 | K6: =OFFSET('2023_step3_base_wIRA_link_sup'!$O$2,0,$A6) -> 6.89 | L6: =OFFSET('2023_step3_newSCR_wIRA_link_sup'!$O$2,0,$A6) -> 6.87 | O6: =OFFSET('2023_gf_links_sup'!$O$2,1,$A6) -> 6.97 | P6: =OFFSET('2023_step3_base_link_sup'!$O$2,1,$A6) -> 6.89 | Q6: =OFFSET('2023_step3_SCRopt_link_sup'!$O$2,1,$A6) -> 6.87 | R6: =OFFSET('2023_step3_SCRoptwCC_link_sup'!$O$2,1,$A6) -> 6.87 | S6: =OFFSET('2023_step3_SNCRopt_link_sup'!$O$2,1,$A6) -> 6.87 | T6: =OFFSET('2023_step3_SNCRoptwCC_link_sup'!$O$2,1,$A6) -> 6.87 | U6: =OFFSET('2023_step3_newSCR_link_sup'!$O$2,1,$A6) -> 6.87 | V6: =OFFSET('2023_step3_base_wIRA_link_sup'!$O$2,1,$A6) -> 6.89 | W6: =OFFSET('2023_step3_newSCR_wIRA_link_sup'!$O$2,1,$A6) -> 6.87 | Z6: =OFFSET('2023_gf_links_sup'!$O$2,2,$A6) -> 6.31 | AA6: =OFFSET('2023_step3_base_link_sup'!$O$2,2,$A6) -> 6.27 | AB6: =OFFSET('2023_step3_SCRopt_link_sup'!$O$2,2,$A6) -> 6.26 | AC6: =OFFSET('2023_step3_SCRoptwCC_link_sup'!$O$2,2,$A6) -> 6.26 | AD6: =OFFSET('2023_step3_SNCRopt_link_sup'!$O$2,2,$A6) -> 6.26 | AE6: =OFFSET('2023_step3_SNCRoptwCC_link_sup'!$O$2,2,$A6) -> 6.26 | AF6: =OFFSET('2023_step3_newSCR_link_sup'!$O$2,2,$A6) -> 6.26 | AG6: =OFFSET('2023_step3_base_wIRA_link_sup'!$O$2,2,$A6) -> 6.27 | AH6: =OFFSET('2023_step3_newSCR_wIRA_link_sup'!$O$2,2,$A6) -> 6.26
A7: 12 | B7: Illinois | C7: IL | D7: =OFFSET('2023_gf_links_sup'!$O$2,0,$A7) -> 19.09 | E7: =OFFSET('2023_step3_base_link_sup'!$O$2,0,$A7) -> 19.08 | F7: =OFFSET('2023_step3_SCRopt_link_sup'!$O$2,0,$A7) -> 19.08 | G7: =OFFSET('2023_step3_SCRoptwCC_link_sup'!$O$2,0,$A7) -> 19.08 | H7: =OFFSET('2023_step3_SNCRopt_link_sup'!$O$2,0,$A7) -> 19.08 | I7: =OFFSET('2023_step3_SNCRoptwCC_link_sup'!$O$2,0,$A7) -> 19.08 | J7: =OFFSET('2023_step3_newSCR_link_sup'!$O$2,0,$A7) -> 19.09 | K7: =OFFSET('2023_step3_base_wIRA_link_sup'!$O$2,0,$A7) -> 19.08 | L7: =OFFSET('2023_step3_newSCR_wIRA_link_sup'!$O$2,0,$A7) -> 19.09 | O7: =OFFSET('2023_gf_links_sup'!$O$2,1,$A7) -> 16.53 | P7: =OFFSET('2023_step3_base_link_sup'!$O$2,1,$A7) -> 16.55 | Q7: =OFFSET('2023_step3_SCRopt_link_sup'!$O$2,1,$A7) -> 16.55 | R7: =OFFSET('2023_step3_SCRoptwCC_link_sup'!$O$2,1,$A7) -> 16.55 | S7: =OFFSET('2023_step3_SNCRopt_link_sup'!$O$2,1,$A7) -> 16.55 | T7: =OFFSET('2023_step3_SNCRoptwCC_link_sup'!$O$2,1,$A7) -> 16.55 | U7: =OFFSET('2023_step3_newSCR_link_sup'!$O$2,1,$A7) -> 16.54 | V7: =OFFSET('2023_step3_base_wIRA_link_sup'!$O$2,1,$A7) -> 16.55 | W7: =OFFSET('2023_step3_newSCR_wIRA_link_sup'!$O$2,1,$A7) -> 16.54 | Z7: =OFFSET('2023_gf_links_sup'!$O$2,2,$A7) -> 19.09 | AA7: =OFFSET('2023_step3_base_link_sup'!$O$2,2,$A7) -> 19.08 | AB7: =OFFSET('2023_step3_SCRopt_link_sup'!$O$2,2,$A7) -> 19.08 | AC7: =OFFSET('2023_step3_SCRoptwCC_link_sup'!$O$2,2,$A7) -> 19.08 | AD7: =OFFSET('2023_step3_SNCRopt_link_sup'!$O$2,2,$A7) -> 19.08 | AE7: =OFFSET('2023_step3_SNCRoptwCC_link_sup'!$O$2,2,$A7) -> 19.08 | AF7: =OFFSET('2023_step3_newSCR_link_sup'!$O$2,2,$A7) -> 19.09 | AG7: =OFFSET('2023_step3_base_wIRA_link_sup'!$O$2,2,$A7) -> 19.08 | AH7: =OFFSET('2023_step3_newSCR_wIRA_link_sup'!$O$2,2,$A7) -> 19.09
A8: 13 | B8: Indiana | C8: IN | D8: =OFFSET('2023_gf_links_sup'!$O$2,0,$A8) -> 10.03 | E8: =OFFSET('2023_step3_base_link_sup'!$O$2,0,$A8) -> 9.88 | F8: =OFFSET('2023_step3_SCRopt_link_sup'!$O$2,0,$A8) -> 9.82 | G8: =OFFSET('2023_step3_SCRoptwCC_link_sup'!$O$2,0,$A8) -> 9.82 | H8: =OFFSET('2023_step3_SNCRopt_link_sup'!$O$2,0,$A8) -> 9.82 | I8: =OFFSET('2023_step3_SNCRoptwCC_link_sup'!$O$2,0,$A8) -> 9.82 | J8: =OFFSET('2023_step3_newSCR_link_sup'!$O$2,0,$A8) -> 9.66 | K8: =OFFSET('2023_step3_base_wIRA_link_sup'!$O$2,0,$A8) -> 9.90 | L8: =OFFSET('2023_step3_newSCR_wIRA_link_sup'!$O$2,0,$A8) -> 9.70 | O8: =OFFSET('2023_gf_links_sup'!$O$2,1,$A8) -> 9.40 | P8: =OFFSET('2023_step3_base_link_sup'!$O$2,1,$A8) -> 9.31 | Q8: =OFFSET('2023_step3_SCRopt_link_sup'!$O$2,1,$A8) -> 9.28 | R8: =OFFSET('2023_step3_SCRoptwCC_link_sup'!$O$2,1,$A8) -> 9.28 | S8: =OFFSET('2023_step3_SNCRopt_link_sup'!$O$2,1,$A8) -> 9.28 | T8: =OFFSET('2023_step3_SNCRoptwCC_link_sup'!$O$2,1,$A8) -> 9.28 | U8: =OFFSET('2023_step3_newSCR_link_sup'!$O$2,1,$A8) -> 9.20 | V8: =OFFSET('2023_step3_base_wIRA_link_sup'!$O$2,1,$A8) -> 9.32 | W8: =OFFSET('2023_step3_newSCR_wIRA_link_sup'!$O$2,1,$A8) -> 9.22 | Z8: =OFFSET('2023_gf_links_sup'!$O$2,2,$A8) -> 10.03 | AA8: =OFFSET('2023_step3_base_link_sup'!$O$2,2,$A8) -> 9.88 | AB8: =OFFSET('2023_step3_SCRopt_link_sup'!$O$2,2,$A8) -> 9.82 | AC8: =OFFSET('2023_step3_SCRoptwCC_link_sup'!$O$2,2,$A8) -> 9.82 | AD8: =OFFSET('2023_step3_SNCRopt_link_sup'!$O$2,2,$A8) -> 9.82 | AE8: =OFFSET('2023_step3_SNCRoptwCC_link_sup'!$O$2,2,$A8) -> 9.82 | AF8: =OFFSET('2023_step3_newSCR_link_sup'!$O$2,2,$A8) -> 9.66 | AG8: =OFFSET('2023_step3_base_wIRA_link_sup'!$O$2,2,$A8) -> 9.90 | AH8: =OFFSET('2023_step3_newSCR_wIRA_link_sup'!$O$2,2,$A8) -> 9.70
A9: 14 | B9: Iowa | C9: IA | D9: =OFFSET('2023_gf_links_sup'!$O$2,0,$A9) -> 1.13 | E9: =OFFSET('2023_step3_base_link_sup'!$O$2,0,$A9) -> 1.13 | F9: =OFFSET('2023_step3_SCRopt_link_sup'!$O$2,0,$A9) -> 1.13 | G9: =OFFSET('2023_step3_SCRoptwCC_link_sup'!$O$2,0,$A9) -> 1.13 | H9: =OFFSET('2023_step3_SNCRopt_link_sup'!$O$2,0,$A9) -> 1.13 | I9: =OFFSET('2023_step3_SNCRoptwCC_link_sup'!$O$2,0,$A9) -> 1.13 | J9: =OFFSET('2023_step3_newSCR_link_sup'!$O$2,0,$A9) -> 1.03 | K9: =OFFSET('2023_step3_base_wIRA_link_sup'!$O$2,0,$A9) -> 1.13 | L9: =OFFSET('2023_step3_newSCR_wIRA_link_sup'!$O$2,0,$A9) -> 1.04 | O9: =OFFSET('2023_gf_links_sup'!$O$2,1,$A9) -> 1.13 | P9: =OFFSET('2023_step3_base_link_sup'!$O$2,1,$A9) -> 1.13 | Q9: =OFFSET('2023_step3_SCRopt_link_sup'!$O$2,1,$A9) -> 1.13 | R9: =OFFSET('2023_step3_SCRoptwCC_link_sup'!$O$2,1,$A9) -> 1.13 | S9: =OFFSET('2023_step3_SNCRopt_link_sup'!$O$2,1,$A9) -> 1.13 | T9: =OFFSET('2023_step3_SNCRoptwCC_link_sup'!$O$2,1,$A9) -> 1.13 | U9: =OFFSET('2023_step3_newSCR_link_sup'!$O$2,1,$A9) -> 1.03 | V9: =OFFSET('2023_step3_base_wIRA_link_sup'!$O$2,1,$A9) -> 1.13 | W9: =OFFSET('2023_step3_newSCR_wIRA_link_sup'!$O$2,1,$A9) -> 1.04 | Z9: =OFFSET('2023_gf_links_sup'!$O$2,2,$A9) -> 0.90 | AA9: =OFFSET('2023_step3_base_link_sup'!$O$2,2,$A9) -> 0.90 | AB9: =OFFSET('2023_step3_SCRopt_link_sup'!$O$2,2,$A9) -> 0.90 | AC9: =OFFSET('2023_step3_SCRoptwCC_link_sup'!$O$2,2,$A9) -> 0.90 | AD9: =OFFSET('2023_step3_SNCRopt_link_sup'!$O$2,2,$A9) -> 0.90 | AE9: =OFFSET('2023_step3_SNCRoptwCC_link_sup'!$O$2,2,$A9) -> 0.90 | AF9: =OFFSET('2023_step3_newSCR_link_sup'!$O$2,2,$A9) -> 0.81 | AG9: =OFFSET('2023_step3_base_wIRA_link_sup'!$O$2,2,$A9) -> 0.90 | AH9: =OFFSET('2023_step3_newSCR_wIRA_link_sup'!$O$2,2,$A9) -> 0.82
A10: 15 | B10: Kansas | C10: KS | D10: =OFFSET('2023_gf_links_sup'!$O$2,0,$A10) -> 0.83 | E10: =OFFSET('2023_step3_base_link_sup'!$O$2,0,$A10) -> 0.83 | F10: =OFFSET('2023_step3_SCRopt_link_sup'!$O$2,0,$A10) -> 0.82 | G10: =OFFSET('2023_step3_SCRoptwCC_link_sup'!$O$2,0,$A10) -> 0.82 | H10: =OFFSET('2023_step3_SNCRopt_link_sup'!$O$2,0,$A10) -> 0.82 | I10: =OFFSET('2023_step3_SNCRoptwCC_link_sup'!$O$2,0,$A10) -> 0.82 | J10: =OFFSET('2023_step3_newSCR_link_sup'!$O$2,0,$A10) -> 0.81 | K10: =OFFSET('2023_step3_base_wIRA_link_sup'!$O$2,0,$A10) -> 0.83 | L10: =OFFSET('2023_step3_newSCR_wIRA_link_sup'!$O$2,0,$A10) -> 0.81 | O10: =OFFSET('2023_gf_links_sup'!$O$2,1,$A10) -> 0.83 | P10: =OFFSET('2023_step3_base_link_sup'!$O$2,1,$A10) -> 0.83 | Q10: =OFFSET('2023_step3_SCRopt_link_sup'!$O$2,1,$A10) -> 0.82 | R10: =OFFSET('2023_step3_SCRoptwCC_link_sup'!$O$2,1,$A10) -> 0.82 | S10: =OFFSET('2023_step3_SNCRopt_link_sup'!$O$2,1,$A10) -> 0.82 | T10: =OFFSET('2023_step3_SNCRoptwCC_link_sup'!$O$2,1,$A10) -> 0.82 | U10: =OFFSET('2023_step3_newSCR_link_sup'!$O$2,1,$A10) -> 0.81 | V10: =OFFSET('2023_step3_base_wIRA_link_sup'!$O$2,1,$A10) -> 0.83 | W10: =OFFSET('2023_step3_newSCR_wIRA_link_sup'!$O$2,1,$A10) -> 0.81 | Z10: =OFFSET('2023_gf_links_sup'!$O$2,2,$A10) -> 0.00 | AA10: =OFFSET('2023_step3_base_link_sup'!$O$2,2,$A10) -> 0.00 | AB10: =OFFSET('2023_step3_SCRopt_link_sup'!$O$2,2,$A10) -> 0.00 | AC10: =OFFSET('2023_step3_SCRoptwCC_link_sup'!$O$2,2,$A10) -> 0.00 | AD10: =OFFSET('2023_step3_SNCRopt_link_sup'!$O$2,2,$A10) -> 0.00 | AE10: =OFFSET('2023_step3_SNCRoptwCC_link_sup'!$O$2,2,$A10) -> 0.00 | AF10: =OFFSET('2023_step3_newSCR_link_sup'!$O$2,2,$A10) -> 0.00 | AG10: =OFFSET('2023_step3_base_wIRA_link_sup'!$O$2,2,$A10) -> 0.00 | AH10: =OFFSET('2023_step3_newSCR_wIRA_link_sup'!$O$2,2,$A10) -> 0.00
A11: 16 | B11: Kentucky | C11: KY | D11: =OFFSET('2023_gf_links_sup'!$O$2,0,$A11) -> 1.57 | E11: =OFFSET('2023_step3_base_link_sup'!$O$2,0,$A11) -> 1.59 | F11: =OFFSET('2023_step3_SCRopt_link_sup'!$O$2,0,$A11) -> 1.58 | G11: =OFFSET('2023_step3_SCRoptwCC_link_sup'!$O$2,0,$A11) -> 1.57 | H11: =OFFSET('2023_step3_SNCRopt_link_sup'!$O$2,0,$A11) -> 1.58 | I11: =OFFSET('2023_step3_SNCRoptwCC_link_sup'!$O$2,0,$A11) -> 1.57 | J11: =OFFSET('2023_step3_newSCR_link_sup'!$O$2,0,$A11) -> 1.48 | K11: =OFFSET('2023_step3_base_wIRA_link_sup'!$O$2,0,$A11) -> 1.59 | L11: =OFFSET('2023_step3_newSCR_wIRA_link_sup'!$O$2,0,$A11) -> 1.50 | O11: =OFFSET('2023_gf_links_sup'!$O$2,1,$A11) -> 1.57 | P11: =OFFSET('2023_step3_base_link_sup'!$O$2,1,$A11) -> 1.59 | Q11: =OFFSET('2023_step3_SCRopt_link_sup'!$O$2,1,$A11) -> 1.58 | R11: =OFFSET('2023_step3_SCRoptwCC_link_sup'!$O$2,1,$A11) -> 1.57 | S11: =OFFSET('2023_step3_SNCRopt_link_sup'!$O$2,1,$A11) -> 1.58 | T11: =OFFSET('2023_step3_SNCRoptwCC_link_sup'!$O$2,1,$A11) -> 1.57 | U11: =OFFSET('2023_step3_newSCR_link_sup'!$O$2,1,$A11) -> 1.48 | V11: =OFFSET('2023_step3_base_wIRA_link_sup'!$O$2,1,$A11) -> 1.59 | W11: =OFFSET('2023_step3_newSCR_wIRA_link_sup'!$O$2,1,$A11) -> 1.50 | Z11: =OFFSET('2023_gf_links_sup'!$O$2,2,$A11) -> 0.84 | AA11: =OFFSET('2023_step3_base_link_sup'!$O$2,2,$A11) -> 0.85 | AB11: =OFFSET('2023_step3_SCRopt_link_sup'!$O$2,2,$A11) -> 0.85 | AC11: =OFFSET('2023_step3_SCRoptwCC_link_sup'!$O$2,2,$A11) -> 0.84 | AD11: =OFFSET('2023_step3_SNCRopt_link_sup'!$O$2,2,$A11) -> 0.85 | AE11: =OFFSET('2023_step3_SNCRoptwCC_link_sup'!$O$2,2,$A11) -> 0.84 | AF11: =OFFSET('2023_step3_newSCR_link_sup'!$O$2,2,$A11) -> 0.79 | AG11: =OFFSET('2023_step3_base_wIRA_link_sup'!$O$2,2,$A11) -> 0.86 | AH11: =OFFSET('2023_step3_newSCR_wIRA_link_sup'!$O$2,2,$A11) -> 0.79
A12: 17 | B12: Louisiana | C12: LA | D12: =OFFSET('2023_gf_links_sup'!$O$2,0,$A12) -> 9.51 | E12: =OFFSET('2023_step3_base_link_sup'!$O$2,0,$A12) -> 9.70 | F12: =OFFSET('2023_step3_SCRopt_link_sup'!$O$2,0,$A12) -> 9.66 | G12: =OFFSET('2023_step3_SCRoptwCC_link_sup'!$O$2,0,$A12) -> 9.66 | H12: =OFFSET('2023_step3_SNCRopt_link_sup'!$O$2,0,$A12) -> 9.66 | I12: =OFFSET('2023_step3_SNCRoptwCC_link_sup'!$O$2,0,$A12) -> 9.66 | J12: =OFFSET('2023_step3_newSCR_link_sup'!$O$2,0,$A12) -> 9.30 | K12: =OFFSET('2023_step3_base_wIRA_link_sup'!$O$2,0,$A12) -> 9.68 | L12: =OFFSET('2023_step3_newSCR_wIRA_link_sup'!$O$2,0,$A12) -> 9.31 | O12: =OFFSET('2023_gf_links_sup'!$O$2,1,$A12) -> 5.06 | P12: =OFFSET('2023_step3_base_link_sup'!$O$2,1,$A12) -> 5.18 | Q12: =OFFSET('2023_step3_SCRopt_link_sup'!$O$2,1,$A12) -> 5.16 | R12: =OFFSET('2023_step3_SCRoptwCC_link_sup'!$O$2,1,$A12) -> 5.16 | S12: =OFFSET('2023_step3_SNCRopt_link_sup'!$O$2,1,$A12) -> 5.15 | T12: =OFFSET('2023_step3_SNCRoptwCC_link_sup'!$O$2,1,$A12) -> 5.15 | U12: =OFFSET('2023_step3_newSCR_link_sup'!$O$2,1,$A12) -> 4.93 | V12: =OFFSET('2023_step3_base_wIRA_link_sup'!$O$2,1,$A12) -> 5.17 | W12: =OFFSET('2023_step3_newSCR_wIRA_link_sup'!$O$2,1,$A12) -> 4.94 | Z12: =OFFSET('2023_gf_links_sup'!$O$2,2,$A12) -> 9.51 | AA12: =OFFSET('2023_step3_base_link_sup'!$O$2,2,$A12) -> 9.70 | AB12: =OFFSET('2023_step3_SCRopt_link_sup'!$O$2,2,$A12) -> 9.66 | AC12: =OFFSET('2023_step3_SCRoptwCC_link_sup'!$O$2,2,$A12) -> 9.66 | AD12: =OFFSET('2023_step3_SNCRopt_link_sup'!$O$2,2,$A12) -> 9.66 | AE12: =OFFSET('2023_step3_SNCRoptwCC_link_sup'!$O$2,2,$A12) -> 9.66 | AF12: =OFFSET('2023_step3_newSCR_link_sup'!$O$2,2,$A12) -> 9.30 | AG12: =OFFSET('2023_step3_base_wIRA_link_sup'!$O$2,2,$A12) -> 9.68 | AH12: =OFFSET('2023_step3_newSCR_wIRA_link_sup'!$O$2,2,$A12) -> 9.31
A13: 19 | B13: Maryland | C13: MD | D13: =OFFSET('2023_gf_links_sup'!$O$2,0,$A13) -> 1.29 | E13: =OFFSET('2023_step3_base_link_sup'!$O$2,0,$A13) -> 1.31 | F13: =OFFSET('2023_step3_SCRopt_link_sup'!$O$2,0,$A13) -> 1.31 | G13: =OFFSET('2023_step3_SCRoptwCC_link_sup'!$O$2,0,$A13) -> 1.31 | H13: =OFFSET('2023_step3_SNCRopt_link_sup'!$O$2,0,$A13) -> 1.31 | I13: =OFFSET('2023_step3_SNCRoptwCC_link_sup'!$O$2,0,$A13) -> 1.31 | J13: =OFFSET('2023_step3_newSCR_link_sup'!$O$2,0,$A13) -> 1.31 | K13: =OFFSET('2023_step3_base_wIRA_link_sup'!$O$2,0,$A13) -> 1.31 | L13: =OFFSET('2023_step3_newSCR_wIRA_link_sup'!$O$2,0,$A13) -> 1.31 | O13: =OFFSET('2023_gf_links_sup'!$O$2,1,$A13) -> 1.15 | P13: =OFFSET('2023_step3_base_link_sup'!$O$2,1,$A13) -> 1.17 | Q13: =OFFSET('2023_step3_SCRopt_link_sup'!$O$2,1,$A13) -> 1.17 | R13: =OFFSET('2023_step3_SCRoptwCC_link_sup'!$O$2,1,$A13) -> 1.17 | S13: =OFFSET('2023_step3_SNCRopt_link_sup'!$O$2,1,$A13) -> 1.17 | T13: =OFFSET('2023_step3_SNCRoptwCC_link_sup'!$O$2,1,$A13) -> 1.17 | U13: =OFFSET('2023_step3_newSCR_link_sup'!$O$2,1,$A13) -> 1.17 | V13: =OFFSET('2023_step3_base_wIRA_link_sup'!$O$2,1,$A13) -> 1.17 | W13: =OFFSET('2023_step3_newSCR_wIRA_link_sup'!$O$2,1,$A13) -> 1.17 | Z13: =OFFSET('2023_gf_links_sup'!$O$2,2,$A13) -> 1.29 | AA13: =OFFSET('2023_step3_base_link_sup'!$O$2,2,$A13) -> 1.31 | AB13: =OFFSET('2023_step3_SCRopt_link_sup'!$O$2,2,$A13) -> 1.31 | AC13: =OFFSET('2023_step3_SCRoptwCC_link_sup'!$O$2,2,$A13) -> 1.31 | AD13: =OFFSET('2023_step3_SNCRopt_link_sup'!$O$2,2,$A13) -> 1.31 | AE13: =OFFSET('2023_step3_SNCRoptwCC_link_sup'!$O$2,2,$A13) -> 1.31 | AF13: =OFFSET('2023_step3_newSCR_link_sup'!$O$2,2,$A13) -> 1.31 | AG13: =OFFSET('2023_step3_base_wIRA_link_sup'!$O$2,2,$A13) -> 1.31 | AH13: =OFFSET('2023_step3_newSCR_wIRA_link_sup'!$O$2,2,$A13) -> 1.31
A14: 21 | B14: Michigan | C14: MI | D14: =OFFSET('2023_gf_links_sup'!$O$2,0,$A14) -> 3.47 | E14: =OFFSET('2023_step3_base_link_sup'!$O$2,0,$A14) -> 3.50 | F14: =OFFSET('2023_step3_SCRopt_link_sup'!$O$2,0,$A14) -> 3.50 | G14: =OFFSET('2023_step3_SCRoptwCC_link_sup'!$O$2,0,$A14) -> 3.50 | H14: =OFFSET('2023_step3_SNCRopt_link_sup'!$O$2,0,$A14) -> 3.50 | I14: =OFFSET('2023_step3_SNCRoptwCC_link_sup'!$O$2,0,$A14) -> 3.50 | J14: =OFFSET('2023_step3_newSCR_link_sup'!$O$2,0,$A14) -> 3.39 | K14: =OFFSET('2023_step3_base_wIRA_link_sup'!$O$2,0,$A14) -> 3.49 | L14: =OFFSET('2023_step3_newSCR_wIRA_link_sup'!$O$2,0,$A14) -> 3.40 | O14: =OFFSET('2023_gf_links_sup'!$O$2,1,$A14) -> 3.47 | P14: =OFFSET('2023_step3_base_link_sup'!$O$2,1,$A14) -> 3.50 | Q14: =OFFSET('2023_step3_SCRopt_link_sup'!$O$2,1,$A14) -> 3.50 | R14: =OFFSET('2023_step3_SCRoptwCC_link_sup'!$O$2,1,$A14) -> 3.50 | S14: =OFFSET('2023_step3_SNCRopt_link_sup'!$O$2,1,$A14) -> 3.50 | T14: =OFFSET('2023_step3_SNCRoptwCC_link_sup'!$O$2,1,$A14) -> 3.50 | U14: =OFFSET('2023_step3_newSCR_link_sup'!$O$2,1,$A14) -> 3.39 | V14: =OFFSET('2023_step3_base_wIRA_link_sup'!$O$2,1,$A14) -> 3.49 | W14: =OFFSET('2023_step3_newSCR_wIRA_link_sup'!$O$2,1,$A14) -> 3.40 | Z14: =OFFSET('2023_gf_links_sup'!$O$2,2,$A14) -> 1.60 | AA14: =OFFSET('2023_step3_base_link_sup'!$O$2,2,$A14) -> 1.60 | AB14: =OFFSET('2023_step3_SCRopt_link_sup'!$O$2,2,$A14) -> 1.60 | AC14: =OFFSET('2023_step3_SCRoptwCC_link_sup'!$O$2,2,$A14) -> 1.60 | AD14: =OFFSET('2023_step3_SNCRopt_link_sup'!$O$2,2,$A14) -> 1.60 | AE14: =OFFSET('2023_step3_SNCRoptwCC_link_sup'!$O$2,2,$A14) -> 1.60 | AF14: =OFFSET('2023_step3_newSCR_link_sup'!$O$2,2,$A14) -> 1.58 | AG14: =OFFSET('2023_step3_base_wIRA_link_sup'!$O$2,2,$A14) -> 1.60 | AH14: =OFFSET('2023_step3_newSCR_wIRA_link_sup'!$O$2,2,$A14) -> 1.58
A15: 22 | B15: Minnesota | C15: MN | D15: =OFFSET('2023_gf_links_sup'!$O$2,0,$A15) -> 0.86 | E15: =OFFSET('2023_step3_base_link_sup'!$O$2,0,$A15) -> 0.85 | F15: =OFFSET('2023_step3_SCRopt_link_sup'!$O$2,0,$A15) -> 0.85 | G15: =OFFSET('2023_step3_SCRoptwCC_link_sup'!$O$2,0,$A15) -> 0.85 | H15: =OFFSET('2023_step3_SNCRopt_link_sup'!$O$2,0,$A15) -> 0.85 | I15: =OFFSET('2023_step3_SNCRoptwCC_link_sup'!$O$2,0,$A15) -> 0.85 | J15: =OFFSET('2023_step3_newSCR_link_sup'!$O$2,0,$A15) -> 0.84 | K15: =OFFSET('2023_step3_base_wIRA_link_sup'!$O$2,0,$A15) -> 0.85 | L15: =OFFSET('2023_step3_newSCR_wIRA_link_sup'!$O$2,0,$A15) -> 0.84 | O15: =OFFSET('2023_gf_links_sup'!$O$2,1,$A15) -> 0.00 | P15: =OFFSET('2023_step3_base_link_sup'!$O$2,1,$A15) -> 0.00 | Q15: =OFFSET('2023_step3_SCRopt_link_sup'!$O$2,1,$A15) -> 0.00 | R15: =OFFSET('2023_step3_SCRoptwCC_link_sup'!$O$2,1,$A15) -> 0.00 | S15: =OFFSET('2023_step3_SNCRopt_link_sup'!$O$2,1,$A15) -> 0.00 | T15: =OFFSET('2023_step3_SNCRoptwCC_link_sup'!$O$2,1,$A15) -> 0.00 | U15: =OFFSET('2023_step3_newSCR_link_sup'!$O$2,1,$A15) -> 0.00 | V15: =OFFSET('2023_step3_base_wIRA_link_sup'!$O$2,1,$A15) -> 0.00 | W15: =OFFSET('2023_step3_newSCR_wIRA_link_sup'!$O$2,1,$A15) -> 0.00 | Z15: =OFFSET('2023_gf_links_sup'!$O$2,2,$A15) -> 0.86 | AA15: =OFFSET('2023_step3_base_link_sup'!$O$2,2,$A15) -> 0.85 | AB15: =OFFSET('2023_step3_SCRopt_link_sup'!$O$2,2,$A15) -> 0.85 | AC15: =OFFSET('2023_step3_SCRoptwCC_link_sup'!$O$2,2,$A15) -> 0.85 | AD15: =OFFSET('2023_step3_SNCRopt_link_sup'!$O$2,2,$A15) -> 0.85 | AE15: =OFFSET('2023_step3_SNCRoptwCC_link_sup'!$O$2,2,$A15) -> 0.85 | AF15: =OFFSET('2023_step3_newSCR_link_sup'!$O$2,2,$A15) -> 0.84 | AG15: =OFFSET('2023_step3_base_wIRA_link_sup'!$O$2,2,$A15) -> 0.85 | AH15: =OFFSET('2023_step3_newSCR_wIRA_link_sup'!$O$2,2,$A15) -> 0.84
A16: 23 | B16: Mississippi | C16: MS | D16: =OFFSET('2023_gf_links_sup'!$O$2,0,$A16) -> 1.32 | E16: =OFFSET('2023_step3_base_link_sup'!$O$2,0,$A16) -> 1.42 | F16: =OFFSET('2023_step3_SCRopt_link_sup'!$O$2,0,$A16) -> 1.42 | G16: =OFFSET('2023_step3_SCRoptwCC_link_sup'!$O$2,0,$A16) -> 1.39 | H16: =OFFSET('2023_step3_SNCRopt_link_sup'!$O$2,0,$A16) -> 1.42 | I16: =OFFSET('2023_step3_SNCRoptwCC_link_sup'!$O$2,0,$A16) -> 1.39 | J16: =OFFSET('2023_step3_newSCR_link_sup'!$O$2,0,$A16) -> 1.31 | K16: =OFFSET('2023_step3_base_wIRA_link_sup'!$O$2,0,$A16) -> 1.41 | L16: =OFFSET('2023_step3_newSCR_wIRA_link_sup'!$O$2,0,$A16) -> 1.31 | O16: =OFFSET('2023_gf_links_sup'!$O$2,1,$A16) -> 1.03 | P16: =OFFSET('2023_step3_base_link_sup'!$O$2,1,$A16) -> 1.10 | Q16: =OFFSET('2023_step3_SCRopt_link_sup'!$O$2,1,$A16) -> 1.10 | R16: =OFFSET('2023_step3_SCRoptwCC_link_sup'!$O$2,1,$A16) -> 1.08 | S16: =OFFSET('2023_step3_SNCRopt_link_sup'!$O$2,1,$A16) -> 1.10 | T16: =OFFSET('2023_step3_SNCRoptwCC_link_sup'!$O$2,1,$A16) -> 1.08 | U16: =OFFSET('2023_step3_newSCR_link_sup'!$O$2,1,$A16) -> 1.02 | V16: =OFFSET('2023_step3_base_wIRA_link_sup'!$O$2,1,$A16) -> 1.09 | W16: =OFFSET('2023_step3_newSCR_wIRA_link_sup'!$O$2,1,$A16) -> 1.02 | Z16: =OFFSET('2023_gf_links_sup'!$O$2,2,$A16) -> 1.32 | AA16: =OFFSET('2023_step3_base_link_sup'!$O$2,2,$A16) -> 1.42 | AB16: =OFFSET('2023_step3_SCRopt_link_sup'!$O$2,2,$A16) -> 1.42 | AC16: =OFFSET('2023_step3_SCRoptwCC_link_sup'!$O$2,2,$A16) -> 1.39 | AD16: =OFFSET('2023_step3_SNCRopt_link_sup'!$O$2,2,$A16) -> 1.42 | AE16: =OFFSET('2023_step3_SNCRoptwCC_link_sup'!$O$2,2,$A16) -> 1.39 | AF16: =OFFSET('2023_step3_newSCR_link_sup'!$O$2,2,$A16) -> 1.31 | AG16: =OFFSET('2023_step3_base_wIRA_link_sup'!$O$2,2,$A16) -> 1.41 | AH16: =OFFSET('2023_step3_newSCR_wIRA_link_sup'!$O$2,2,$A16) -> 1.31
A17: 24 | B17: Missouri | C17: MO | D17: =OFFSET('2023_gf_links_sup'!$O$2,0,$A17) -> 2.95 | E17: =OFFSET('2023_step3_base_link_sup'!$O$2,0,$A17) -> 2.98 | F17: =OFFSET('2023_step3_SCRopt_link_sup'!$O$2,0,$A17) -> 2.93 | G17: =OFFSET('2023_step3_SCRoptwCC_link_sup'!$O$2,0,$A17) -> 2.93 | H17: =OFFSET('2023_step3_SNCRopt_link_sup'!$O$2,0,$A17) -> 2.93 | I17: =OFFSET('2023_step3_SNCRoptwCC_link_sup'!$O$2,0,$A17) -> 2.93 | J17: =OFFSET('2023_step3_newSCR_link_sup'!$O$2,0,$A17) -> 2.90 | K17: =OFFSET('2023_step3_base_wIRA_link_sup'!$O$2,0,$A17) -> 2.98 | L17: =OFFSET('2023_step3_newSCR_wIRA_link_sup'!$O$2,0,$A17) -> 2.91 | O17: =OFFSET('2023_gf_links_sup'!$O$2,1,$A17) -> 2.95 | P17: =OFFSET('2023_step3_base_link_sup'!$O$2,1,$A17) -> 2.98 | Q17: =OFFSET('2023_step3_SCRopt_link_sup'!$O$2,1,$A17) -> 2.93 | R17: =OFFSET('2023_step3_SCRoptwCC_link_sup'!$O$2,1,$A17) -> 2.93 | S17: =OFFSET('2023_step3_SNCRopt_link_sup'!$O$2,1,$A17) -> 2.93 | T17: =OFFSET('2023_step3_SNCRoptwCC_link_sup'!$O$2,1,$A17) -> 2.93 | U17: =OFFSET('2023_step3_newSCR_link_sup'!$O$2,1,$A17) -> 2.90 | V17: =OFFSET('2023_step3_base_wIRA_link_sup'!$O$2,1,$A17) -> 2.98 | W17: =OFFSET('2023_step3_newSCR_wIRA_link_sup'!$O$2,1,$A17) -> 2.91 | Z17: =OFFSET('2023_gf_links_sup'!$O$2,2,$A17) -> 1.87 | AA17: =OFFSET('2023_step3_base_link_sup'!$O$2,2,$A17) -> 1.95 | AB17: =OFFSET('2023_step3_SCRopt_link_sup'!$O$2,2,$A17) -> 1.82 | AC17: =OFFSET('2023_step3_SCRoptwCC_link_sup'!$O$2,2,$A17) -> 1.82 | AD17: =OFFSET('2023_step3_SNCRopt_link_sup'!$O$2,2,$A17) -> 1.82 | AE17: =OFFSET('2023_step3_SNCRoptwCC_link_sup'!$O$2,2,$A17) -> 1.82 | AF17: =OFFSET('2023_step3_newSCR_link_sup'!$O$2,2,$A17) -> 1.74 | AG17: =OFFSET('2023_step3_base_wIRA_link_sup'!$O$2,2,$A17) -> 1.94 | AH17: =OFFSET('2023_step3_newSCR_wIRA_link_sup'!$O$2,2,$A17) -> 1.76
A18: 27 | B18: Nevada | C18: NV | D18: =OFFSET('2023_gf_links_sup'!$O$2,0,$A18) -> 1.12 | E18: =OFFSET('2023_step3_base_link_sup'!$O$2,0,$A18) -> 1.06 | F18: =OFFSET('2023_step3_SCRopt_link_sup'!$O$2,0,$A18) -> 1.06 | G18: =OFFSET('2023_step3_SCRoptwCC_link_sup'!$O$2,0,$A18) -> 1.06 | H18: =OFFSET('2023_step3_SNCRopt_link_sup'!$O$2,0,$A18) -> 1.06 | I18: =OFFSET('2023_step3_SNCRoptwCC_link_sup'!$O$2,0,$A18) -> 1.06 | J18: =OFFSET('2023_step3_newSCR_link_sup'!$O$2,0,$A18) -> 1.02 | K18: =OFFSET('2023_step3_base_wIRA_link_sup'!$O$2,0,$A18) -> 1.08 | L18: =OFFSET('2023_step3_newSCR_wIRA_link_sup'!$O$2,0,$A18) -> 1.04 | O18: =OFFSET('2023_gf_links_sup'!$O$2,1,$A18) -> 1.12 | P18: =OFFSET('2023_step3_base_link_sup'!$O$2,1,$A18) -> 1.06 | Q18: =OFFSET('2023_step3_SCRopt_link_sup'!$O$2,1,$A18) -> 1.06 | R18: =OFFSET('2023_step3_SCRoptwCC_link_sup'!$O$2,1,$A18) -> 1.06 | S18: =OFFSET('2023_step3_SNCRopt_link_sup'!$O$2,1,$A18) -> 1.06 | T18: =OFFSET('2023_step3_SNCRoptwCC_link_sup'!$O$2,1,$A18) -> 1.06 | U18: =OFFSET('2023_step3_newSCR_link_sup'!$O$2,1,$A18) -> 1.02 | V18: =OFFSET('2023_step3_base_wIRA_link_sup'!$O$2,1,$A18) -> 1.08 | W18: =OFFSET('2023_step3_newSCR_wIRA_link_sup'!$O$2,1,$A18) -> 1.04 | Z18: =OFFSET('2023_gf_links_sup'!$O$2,2,$A18) -> 1.11 | AA18: =OFFSET('2023_step3_base_link_sup'!$O$2,2,$A18) -> 1.05 | AB18: =OFFSET('2023_step3_SCRopt_link_sup'!$O$2,2,$A18) -> 1.05 | AC18: =OFFSET('2023_step3_SCRoptwCC_link_sup'!$O$2,2,$A18) -> 1.05 | AD18: =OFFSET('2023_step3_SNCRopt_link_sup'!$O$2,2,$A18) -> 1.05 | AE18: =OFFSET('2023_step3_SNCRoptwCC_link_sup'!$O$2,2,$A18) -> 1.05 | AF18: =OFFSET('2023_step3_newSCR_link_sup'!$O$2,2,$A18) -> 0.99 | AG18: =OFFSET('2023_step3_base_wIRA_link_sup'!$O$2,2,$A18) -> 1.06 | AH18: =OFFSET('2023_step3_newSCR_wIRA_link_sup'!$O$2,2,$A18) -> 1.02
A19: 29 | B19: New Jersey | C19: NJ | D19: =OFFSET('2023_gf_links_sup'!$O$2,0,$A19) -> 8.39 | E19: =OFFSET('2023_step3_base_link_sup'!$O$2,0,$A19) -> 8.37 | F19: =OFFSET('2023_step3_SCRopt_link_sup'!$O$2,0,$A19) -> 8.38 | G19: =OFFSET('2023_step3_SCRoptwCC_link_sup'!$O$2,0,$A19) -> 8.38 | H19: =OFFSET('2023_step3_SNCRopt_link_sup'!$O$2,0,$A19) -> 8.38 | I19: =OFFSET('2023_step3_SNCRoptwCC_link_sup'!$O$2,0,$A19) -> 8.38 | J19: =OFFSET('2023_step3_newSCR_link_sup'!$O$2,0,$A19) -> 8.38 | K19: =OFFSET('2023_step3_base_wIRA_link_sup'!$O$2,0,$A19) -> 8.37 | L19: =OFFSET('2023_step3_newSCR_wIRA_link_sup'!$O$2,0,$A19) -> 8.38 | O19: =OFFSET('2023_gf_links_sup'!$O$2,1,$A19) -> 8.00 | P19: =OFFSET('2023_step3_base_link_sup'!$O$2,1,$A19) -> 8.00 | Q19: =OFFSET('2023_step3_SCRopt_link_sup'!$O$2,1,$A19) -> 8.00 | R19: =OFFSET('2023_step3_SCRoptwCC_link_sup'!$O$2,1,$A19) -> 8.00 | S19: =OFFSET('2023_step3_SNCRopt_link_sup'!$O$2,1,$A19) -> 8.00 | T19: =OFFSET('2023_step3_SNCRoptwCC_link_sup'!$O$2,1,$A19) -> 8.00 | U19: =OFFSET('2023_step3_newSCR_link_sup'!$O$2,1,$A19) -> 8.00 | V19: =OFFSET('2023_step3_base_wIRA_link_sup'!$O$2,1,$A19) -> 8.00 | W19: =OFFSET('2023_step3_newSCR_wIRA_link_sup'!$O$2,1,$A19) -> 8.00 | Z19: =OFFSET('2023_gf_links_sup'!$O$2,2,$A19) -> 8.39 | AA19: =OFFSET('2023_step3_base_link_sup'!$O$2,2,$A19) -> 8.37 | AB19: =OFFSET('2023_step3_SCRopt_link_sup'!$O$2,2,$A19) -> 8.38 | AC19: =OFFSET('2023_step3_SCRoptwCC_link_sup'!$O$2,2,$A19) -> 8.38 | AD19: =OFFSET('2023_step3_SNCRopt_link_sup'!$O$2,2,$A19) -> 8.38 | AE19: =OFFSET('2023_step3_SNCRoptwCC_link_sup'!$O$2,2,$A19) -> 8.38 | AF19: =OFFSET('2023_step3_newSCR_link_sup'!$O$2,2,$A19) -> 8.38 | AG19: =OFFSET('2023_step3_base_wIRA_link_sup'!$O$2,2,$A19) -> 8.37 | AH19: =OFFSET('2023_step3_newSCR_wIRA_link_sup'!$O$2,2,$A19) -> 8.38
A20: 30 | B20: New Mexico | C20: NM | D20: =OFFSET('2023_gf_links_sup'!$O$2,0,$A20) -> 1.60 | E20: =OFFSET('2023_step3_base_link_sup'!$O$2,0,$A20) -> 1.60 | F20: =OFFSET('2023_step3_SCRopt_link_sup'!$O$2,0,$A20) -> 1.60 | G20: =OFFSET('2023_step3_SCRoptwCC_link_sup'!$O$2,0,$A20) -> 1.60 | H20: =OFFSET('2023_step3_SNCRopt_link_sup'!$O$2,0,$A20) -> 1.60 | I20: =OFFSET('2023_step3_SNCRoptwCC_link_sup'!$O$2,0,$A20) -> 1.60 | J20: =OFFSET('2023_step3_newSCR_link_sup'!$O$2,0,$A20) -> 1.59 | K20: =OFFSET('2023_step3_base_wIRA_link_sup'!$O$2,0,$A20) -> 1.60 | L20: =OFFSET('2023_step3_newSCR_wIRA_link_sup'!$O$2,0,$A20) -> 1.59 | O20: =OFFSET('2023_gf_links_sup'!$O$2,1,$A20) -> 0.00 | P20: =OFFSET('2023_step3_base_link_sup'!$O$2,1,$A20) -> 0.00 | Q20: =OFFSET('2023_step3_SCRopt_link_sup'!$O$2,1,$A20) -> 0.00 | R20: =OFFSET('2023_step3_SCRoptwCC_link_sup'!$O$2,1,$A20) -> 0.00 | S20: =OFFSET('2023_step3_SNCRopt_link_sup'!$O$2,1,$A20) -> 0.00 | T20: =OFFSET('2023_step3_SNCRoptwCC_link_sup'!$O$2,1,$A20) -> 0.00 | U20: =OFFSET('2023_step3_newSCR_link_sup'!$O$2,1,$A20) -> 0.00 | V20: =OFFSET('2023_step3_base_wIRA_link_sup'!$O$2,1,$A20) -> 0.00 | W20: =OFFSET('2023_step3_newSCR_wIRA_link_sup'!$O$2,1,$A20) -> 0.00 | Z20: =OFFSET('2023_gf_links_sup'!$O$2,2,$A20) -> 1.60 | AA20: =OFFSET('2023_step3_base_link_sup'!$O$2,2,$A20) -> 1.60 | AB20: =OFFSET('2023_step3_SCRopt_link_sup'!$O$2,2,$A20) -> 1.60 | AC20: =OFFSET('2023_step3_SCRoptwCC_link_sup'!$O$2,2,$A20) -> 1.60 | AD20: =OFFSET('2023_step3_SNCRopt_link_sup'!$O$2,2,$A20) -> 1.60 | AE20: =OFFSET('2023_step3_SNCRoptwCC_link_sup'!$O$2,2,$A20) -> 1.60 | AF20: =OFFSET('2023_step3_newSCR_link_sup'!$O$2,2,$A20) -> 1.59 | AG20: =OFFSET('2023_step3_base_wIRA_link_sup'!$O$2,2,$A20) -> 1.60 | AH20: =OFFSET('2023_step3_newSCR_wIRA_link_sup'!$O$2,2,$A20) -> 1.59
A21: 31 | B21: New York | C21: NY | D21: =OFFSET('2023_gf_links_sup'!$O$2,0,$A21) -> 16.10 | E21: =OFFSET('2023_step3_base_link_sup'!$O$2,0,$A21) -> 16.12 | F21: =OFFSET('2023_step3_SCRopt_link_sup'!$O$2,0,$A21) -> 16.12 | G21: =OFFSET('2023_step3_SCRoptwCC_link_sup'!$O$2,0,$A21) -> 16.12 | H21: =OFFSET('2023_step3_SNCRopt_link_sup'!$O$2,0,$A21) -> 16.12 | I21: =OFFSET('2023_step3_SNCRoptwCC_link_sup'!$O$2,0,$A21) -> 16.12 | J21: =OFFSET('2023_step3_newSCR_link_sup'!$O$2,0,$A21) -> 16.10 | K21: =OFFSET('2023_step3_base_wIRA_link_sup'!$O$2,0,$A21) -> 16.12 | L21: =OFFSET('2023_step3_newSCR_wIRA_link_sup'!$O$2,0,$A21) -> 16.10 | O21: =OFFSET('2023_gf_links_sup'!$O$2,1,$A21) -> 12.09 | P21: =OFFSET('2023_step3_base_link_sup'!$O$2,1,$A21) -> 12.10 | Q21: =OFFSET('2023_step3_SCRopt_link_sup'!$O$2,1,$A21) -> 12.10 | R21: =OFFSET('2023_step3_SCRoptwCC_link_sup'!$O$2,1,$A21) -> 12.10 | S21: =OFFSET('2023_step3_SNCRopt_link_sup'!$O$2,1,$A21) -> 12.10 | T21: =OFFSET('2023_step3_SNCRoptwCC_link_sup'!$O$2,1,$A21) -> 12.10 | U21: =OFFSET('2023_step3_newSCR_link_sup'!$O$2,1,$A21) -> 12.08 | V21: =OFFSET('2023_step3_base_wIRA_link_sup'!$O$2,1,$A21) -> 12.10 | W21: =OFFSET('2023_step3_newSCR_wIRA_link_sup'!$O$2,1,$A21) -> 12.08 | Z21: =OFFSET('2023_gf_links_sup'!$O$2,2,$A21) -> 16.10 | AA21: =OFFSET('2023_step3_base_link_sup'!$O$2,2,$A21) -> 16.12 | AB21: =OFFSET('2023_step3_SCRopt_link_sup'!$O$2,2,$A21) -> 16.12 | AC21: =OFFSET('2023_step3_SCRoptwCC_link_sup'!$O$2,2,$A21) -> 16.12 | AD21: =OFFSET('2023_step3_SNCRopt_link_sup'!$O$2,2,$A21) -> 16.12 | AE21: =OFFSET('2023_step3_SNCRoptwCC_link_sup'!$O$2,2,$A21) -> 16.12 | AF21: =OFFSET('2023_step3_newSCR_link_sup'!$O$2,2,$A21) -> 16.10 | AG21: =OFFSET('2023_step3_base_wIRA_link_sup'!$O$2,2,$A21) -> 16.12 | AH21: =OFFSET('2023_step3_newSCR_wIRA_link_sup'!$O$2,2,$A21) -> 16.10
A22: 34 | B22: Ohio | C22: OH | D22: =OFFSET('2023_gf_links_sup'!$O$2,0,$A22) -> 2.26 | E22: =OFFSET('2023_step3_base_link_sup'!$O$2,0,$A22) -> 2.24 | F22: =OFFSET('2023_step3_SCRopt_link_sup'!$O$2,0,$A22) -> 2.21 | G22: =OFFSET('2023_step3_SCRoptwCC_link_sup'!$O$2,0,$A22) -> 2.21 | H22: =OFFSET('2023_step3_SNCRopt_link_sup'!$O$2,0,$A22) -> 2.21 | I22: =OFFSET('2023_step3_SNCRoptwCC_link_sup'!$O$2,0,$A22) -> 2.21 | J22: =OFFSET('2023_step3_newSCR_link_sup'!$O$2,0,$A22) -> 2.21 | K22: =OFFSET('2023_step3_base_wIRA_link_sup'!$O$2,0,$A22) -> 2.24 | L22: =OFFSET('2023_step3_newSCR_wIRA_link_sup'!$O$2,0,$A22) -> 2.21 | O22: =OFFSET('2023_gf_links_sup'!$O$2,1,$A22) -> 2.26 | P22: =OFFSET('2023_step3_base_link_sup'!$O$2,1,$A22) -> 2.24 | Q22: =OFFSET('2023_step3_SCRopt_link_sup'!$O$2,1,$A22) -> 2.21 | R22: =OFFSET('2023_step3_SCRoptwCC_link_sup'!$O$2,1,$A22) -> 2.21 | S22: =OFFSET('2023_step3_SNCRopt_link_sup'!$O$2,1,$A22) -> 2.21 | T22: =OFFSET('2023_step3_SNCRoptwCC_link_sup'!$O$2,1,$A22) -> 2.21 | U22: =OFFSET('2023_step3_newSCR_link_sup'!$O$2,1,$A22) -> 2.21 | V22: =OFFSET('2023_step3_base_wIRA_link_sup'!$O$2,1,$A22) -> 2.24 | W22: =OFFSET('2023_step3_newSCR_wIRA_link_sup'!$O$2,1,$A22) -> 2.21 | Z22: =OFFSET('2023_gf_links_sup'!$O$2,2,$A22) -> 2.05 | AA22: =OFFSET('2023_step3_base_link_sup'!$O$2,2,$A22) -> 2.04 | AB22: =OFFSET('2023_step3_SCRopt_link_sup'!$O$2,2,$A22) -> 2.02 | AC22: =OFFSET('2023_step3_SCRoptwCC_link_sup'!$O$2,2,$A22) -> 2.02 | AD22: =OFFSET('2023_step3_SNCRopt_link_sup'!$O$2,2,$A22) -> 2.02 | AE22: =OFFSET('2023_step3_SNCRoptwCC_link_sup'!$O$2,2,$A22) -> 2.02 | AF22: =OFFSET('2023_step3_newSCR_link_sup'!$O$2,2,$A22) -> 2.02 | AG22: =OFFSET('2023_step3_base_wIRA_link_sup'!$O$2,2,$A22) -> 2.04 | AH22: =OFFSET('2023_step3_newSCR_wIRA_link_sup'!$O$2,2,$A22) -> 2.02
A23: 35 | B23: Oklahoma | C23: OK | D23: =OFFSET('2023_gf_links_sup'!$O$2,0,$A23) -> 1.58 | E23: =OFFSET('2023_step3_base_link_sup'!$O$2,0,$A23) -> 1.60 | F23: =OFFSET('2023_step3_SCRopt_link_sup'!$O$2,0,$A23) -> 1.60 | G23: =OFFSET('2023_step3_SCRoptwCC_link_sup'!$O$2,0,$A23) -> 1.59 | H23: =OFFSET('2023_step3_SNCRopt_link_sup'!$O$2,0,$A23) -> 1.60 | I23: =OFFSET('2023_step3_SNCRoptwCC_link_sup'!$O$2,0,$A23) -> 1.59 | J23: =OFFSET('2023_step3_newSCR_link_sup'!$O$2,0,$A23) -> 1.51 | K23: =OFFSET('2023_step3_base_wIRA_link_sup'!$O$2,0,$A23) -> 1.60 | L23: =OFFSET('2023_step3_newSCR_wIRA_link_sup'!$O$2,0,$A23) -> 1.52 | O23: =OFFSET('2023_gf_links_sup'!$O$2,1,$A23) -> 1.58 | P23: =OFFSET('2023_step3_base_link_sup'!$O$2,1,$A23) -> 1.60 | Q23: =OFFSET('2023_step3_SCRopt_link_sup'!$O$2,1,$A23) -> 1.60 | R23: =OFFSET('2023_step3_SCRoptwCC_link_sup'!$O$2,1,$A23) -> 1.59 | S23: =OFFSET('2023_step3_SNCRopt_link_sup'!$O$2,1,$A23) -> 1.60 | T23: =OFFSET('2023_step3_SNCRoptwCC_link_sup'!$O$2,1,$A23) -> 1.59 | U23: =OFFSET('2023_step3_newSCR_link_sup'!$O$2,1,$A23) -> 1.51 | V23: =OFFSET('2023_step3_base_wIRA_link_sup'!$O$2,1,$A23) -> 1.60 | W23: =OFFSET('2023_step3_newSCR_wIRA_link_sup'!$O$2,1,$A23) -> 1.52 | Z23: =OFFSET('2023_gf_links_sup'!$O$2,2,$A23) -> 1.01 | AA23: =OFFSET('2023_step3_base_link_sup'!$O$2,2,$A23) -> 1.03 | AB23: =OFFSET('2023_step3_SCRopt_link_sup'!$O$2,2,$A23) -> 1.02 | AC23: =OFFSET('2023_step3_SCRoptwCC_link_sup'!$O$2,2,$A23) -> 1.02 | AD23: =OFFSET('2023_step3_SNCRopt_link_sup'!$O$2,2,$A23) -> 1.02 | AE23: =OFFSET('2023_step3_SNCRoptwCC_link_sup'!$O$2,2,$A23) -> 1.02 | AF23: =OFFSET('2023_step3_newSCR_link_sup'!$O$2,2,$A23) -> 0.98 | AG23: =OFFSET('2023_step3_base_wIRA_link_sup'!$O$2,2,$A23) -> 1.02 | AH23: =OFFSET('2023_step3_newSCR_wIRA_link_sup'!$O$2,2,$A23) -> 0.98
A24: 37 | B24: Pennsylvania | C24: PA | D24: =OFFSET('2023_gf_links_sup'!$O$2,0,$A24) -> 6.01 | E24: =OFFSET('2023_step3_base_link_sup'!$O$2,0,$A24) -> 5.99 | F24: =OFFSET('2023_step3_SCRopt_link_sup'!$O$2,0,$A24) -> 5.97 | G24: =OFFSET('2023_step3_SCRoptwCC_link_sup'!$O$2,0,$A24) -> 5.97 | H24: =OFFSET('2023_step3_SNCRopt_link_sup'!$O$2,0,$A24) -> 5.97 | I24: =OFFSET('2023_step3_SNCRoptwCC_link_sup'!$O$2,0,$A24) -> 5.97 | J24: =OFFSET('2023_step3_newSCR_link_sup'!$O$2,0,$A24) -> 5.94 | K24: =OFFSET('2023_step3_base_wIRA_link_sup'!$O$2,0,$A24) -> 5.93 | L24: =OFFSET('2023_step3_newSCR_wIRA_link_sup'!$O$2,0,$A24) -> 5.89 | O24: =OFFSET('2023_gf_links_sup'!$O$2,1,$A24) -> 5.20 | P24: =OFFSET('2023_step3_base_link_sup'!$O$2,1,$A24) -> 5.18 | Q24: =OFFSET('2023_step3_SCRopt_link_sup'!$O$2,1,$A24) -> 5.16 | R24: =OFFSET('2023_step3_SCRoptwCC_link_sup'!$O$2,1,$A24) -> 5.16 | S24: =OFFSET('2023_step3_SNCRopt_link_sup'!$O$2,1,$A24) -> 5.16 | T24: =OFFSET('2023_step3_SNCRoptwCC_link_sup'!$O$2,1,$A24) -> 5.16 | U24: =OFFSET('2023_step3_newSCR_link_sup'!$O$2,1,$A24) -> 5.13 | V24: =OFFSET('2023_step3_base_wIRA_link_sup'!$O$2,1,$A24) -> 5.13 | W24: =OFFSET('2023_step3_newSCR_wIRA_link_sup'!$O$2,1,$A24) -> 5.08 | Z24: =OFFSET('2023_gf_links_sup'!$O$2,2,$A24) -> 6.01 | AA24: =OFFSET('2023_step3_base_link_sup'!$O$2,2,$A24) -> 5.99 | AB24: =OFFSET('2023_step3_SCRopt_link_sup'!$O$2,2,$A24) -> 5.97 | AC24: =OFFSET('2023_step3_SCRoptwCC_link_sup'!$O$2,2,$A24) -> 5.97 | AD24: =OFFSET('2023_step3_SNCRopt_link_sup'!$O$2,2,$A24) -> 5.97 | AE24: =OFFSET('2023_step3_SNCRoptwCC_link_sup'!$O$2,2,$A24) -> 5.97 | AF24: =OFFSET('2023_step3_newSCR_link_sup'!$O$2,2,$A24) -> 5.94 | AG24: =OFFSET('2023_step3_base_wIRA_link_sup'!$O$2,2,$A24) -> 5.93 | AH24: =OFFSET('2023_step3_newSCR_wIRA_link_sup'!$O$2,2,$A24) -> 5.89
A25: 41 | B25: Tennessee | C25: TN | D25: =OFFSET('2023_gf_links_sup'!$O$2,0,$A25) -> 0.87 | E25: =OFFSET('2023_step3_base_link_sup'!$O$2,0,$A25) -> 0.86 | F25: =OFFSET('2023_step3_SCRopt_link_sup'!$O$2,0,$A25) -> 0.86 | G25: =OFFSET('2023_step3_SCRoptwCC_link_sup'!$O$2,0,$A25) -> 0.86 | H25: =OFFSET('2023_step3_SNCRopt_link_sup'!$O$2,0,$A25) -> 0.86 | I25: =OFFSET('2023_step3_SNCRoptwCC_link_sup'!$O$2,0,$A25) -> 0.86 | J25: =OFFSET('2023_step3_newSCR_link_sup'!$O$2,0,$A25) -> 0.86 | K25: =OFFSET('2023_step3_base_wIRA_link_sup'!$O$2,0,$A25) -> 0.86 | L25: =OFFSET('2023_step3_newSCR_wIRA_link_sup'!$O$2,0,$A25) -> 0.86 | O25: =OFFSET('2023_gf_links_sup'!$O$2,1,$A25) -> 0.87 | P25: =OFFSET('2023_step3_base_link_sup'!$O$2,1,$A25) -> 0.86 | Q25: =OFFSET('2023_step3_SCRopt_link_sup'!$O$2,1,$A25) -> 0.86 | R25: =OFFSET('2023_step3_SCRoptwCC_link_sup'!$O$2,1,$A25) -> 0.86 | S25: =OFFSET('2023_step3_SNCRopt_link_sup'!$O$2,1,$A25) -> 0.86 | T25: =OFFSET('2023_step3_SNCRoptwCC_link_sup'!$O$2,1,$A25) -> 0.86 | U25: =OFFSET('2023_step3_newSCR_link_sup'!$O$2,1,$A25) -> 0.86 | V25: =OFFSET('2023_step3_base_wIRA_link_sup'!$O$2,1,$A25) -> 0.86 | W25: =OFFSET('2023_step3_newSCR_wIRA_link_sup'!$O$2,1,$A25) -> 0.86 | Z25: =OFFSET('2023_gf_links_sup'!$O$2,2,$A25) -> 0.00 | AA25: =OFFSET('2023_step3_base_link_sup'!$O$2,2,$A25) -> 0.00 | AB25: =OFFSET('2023_step3_SCRopt_link_sup'!$O$2,2,$A25) -> 0.00 | AC25: =OFFSET('2023_step3_SCRoptwCC_link_sup'!$O$2,2,$A25) -> 0.00 | AD25: =OFFSET('2023_step3_SNCRopt_link_sup'!$O$2,2,$A25) -> 0.00 | AE25: =OFFSET('2023_step3_SNCRoptwCC_link_sup'!$O$2,2,$A25) -> 0.00 | AF25: =OFFSET('2023_step3_newSCR_link_sup'!$O$2,2,$A25) -> 0.00 | AG25: =OFFSET('2023_step3_base_wIRA_link_sup'!$O$2,2,$A25) -> 0.00 | AH25: =OFFSET('2023_step3_newSCR_wIRA_link_sup'!$O$2,2,$A25) -> 0.00
A26: 42 | B26: Texas | C26: TX | D26: =OFFSET('2023_gf_links_sup'!$O$2,0,$A26) -> 4.74 | E26: =OFFSET('2023_step3_base_link_sup'!$O$2,0,$A26) -> 4.75 | F26: =OFFSET('2023_step3_SCRopt_link_sup'!$O$2,0,$A26) -> 4.75 | G26: =OFFSET('2023_step3_SCRoptwCC_link_sup'!$O$2,0,$A26) -> 4.75 | H26: =OFFSET('2023_step3_SNCRopt_link_sup'!$O$2,0,$A26) -> 4.75 | I26: =OFFSET('2023_step3_SNCRoptwCC_link_sup'!$O$2,0,$A26) -> 4.75 | J26: =OFFSET('2023_step3_newSCR_link_sup'!$O$2,0,$A26) -> 4.64 | K26: =OFFSET('2023_step3_base_wIRA_link_sup'!$O$2,0,$A26) -> 4.75 | L26: =OFFSET('2023_step3_newSCR_wIRA_link_sup'!$O$2,0,$A26) -> 4.65 | O26: =OFFSET('2023_gf_links_sup'!$O$2,1,$A26) -> 3.83 | P26: =OFFSET('2023_step3_base_link_sup'!$O$2,1,$A26) -> 3.85 | Q26: =OFFSET('2023_step3_SCRopt_link_sup'!$O$2,1,$A26) -> 3.84 | R26: =OFFSET('2023_step3_SCRoptwCC_link_sup'!$O$2,1,$A26) -> 3.84 | S26: =OFFSET('2023_step3_SNCRopt_link_sup'!$O$2,1,$A26) -> 3.84 | T26: =OFFSET('2023_step3_SNCRoptwCC_link_sup'!$O$2,1,$A26) -> 3.84 | U26: =OFFSET('2023_step3_newSCR_link_sup'!$O$2,1,$A26) -> 3.69 | V26: =OFFSET('2023_step3_base_wIRA_link_sup'!$O$2,1,$A26) -> 3.84 | W26: =OFFSET('2023_step3_newSCR_wIRA_link_sup'!$O$2,1,$A26) -> 3.70 | Z26: =OFFSET('2023_gf_links_sup'!$O$2,2,$A26) -> 4.74 | AA26: =OFFSET('2023_step3_base_link_sup'!$O$2,2,$A26) -> 4.75 | AB26: =OFFSET('2023_step3_SCRopt_link_sup'!$O$2,2,$A26) -> 4.75 | AC26: =OFFSET('2023_step3_SCRoptwCC_link_sup'!$O$2,2,$A26) -> 4.75 | AD26: =OFFSET('2023_step3_SNCRopt_link_sup'!$O$2,2,$A26) -> 4.75 | AE26: =OFFSET('2023_step3_SNCRoptwCC_link_sup'!$O$2,2,$A26) -> 4.75 | AF26: =OFFSET('2023_step3_newSCR_link_sup'!$O$2,2,$A26) -> 4.64 | AG26: =OFFSET('2023_step3_base_wIRA_link_sup'!$O$2,2,$A26) -> 4.75 | AH26: =OFFSET('2023_step3_newSCR_wIRA_link_sup'!$O$2,2,$A26) -> 4.65
A27: 43 | B27: Utah | C27: UT | D27: =OFFSET('2023_gf_links_sup'!$O$2,0,$A27) -> 1.46 | E27: =OFFSET('2023_step3_base_link_sup'!$O$2,0,$A27) -> 1.45 | F27: =OFFSET('2023_step3_SCRopt_link_sup'!$O$2,0,$A27) -> 1.45 | G27: =OFFSET('2023_step3_SCRoptwCC_link_sup'!$O$2,0,$A27) -> 1.45 | H27: =OFFSET('2023_step3_SNCRopt_link_sup'!$O$2,0,$A27) -> 1.45 | I27: =OFFSET('2023_step3_SNCRoptwCC_link_sup'!$O$2,0,$A27) -> 1.45 | J27: =OFFSET('2023_step3_newSCR_link_sup'!$O$2,0,$A27) -> 1.11 | K27: =OFFSET('2023_step3_base_wIRA_link_sup'!$O$2,0,$A27) -> 1.45 | L27: =OFFSET('2023_step3_newSCR_wIRA_link_sup'!$O$2,0,$A27) -> 1.19 | O27: =OFFSET('2023_gf_links_sup'!$O$2,1,$A27) -> 1.46 | P27: =OFFSET('2023_step3_base_link_sup'!$O$2,1,$A27) -> 1.45 | Q27: =OFFSET('2023_step3_SCRopt_link_sup'!$O$2,1,$A27) -> 1.45 | R27: =OFFSET('2023_step3_SCRoptwCC_link_sup'!$O$2,1,$A27) -> 1.45 | S27: =OFFSET('2023_step3_SNCRopt_link_sup'!$O$2,1,$A27) -> 1.45 | T27: =OFFSET('2023_step3_SNCRoptwCC_link_sup'!$O$2,1,$A27) -> 1.45 | U27: =OFFSET('2023_step3_newSCR_link_sup'!$O$2,1,$A27) -> 1.11 | V27: =OFFSET('2023_step3_base_wIRA_link_sup'!$O$2,1,$A27) -> 1.45 | W27: =OFFSET('2023_step3_newSCR_wIRA_link_sup'!$O$2,1,$A27) -> 1.19 | Z27: =OFFSET('2023_gf_links_sup'!$O$2,2,$A27) -> 1.30 | AA27: =OFFSET('2023_step3_base_link_sup'!$O$2,2,$A27) -> 1.29 | AB27: =OFFSET('2023_step3_SCRopt_link_sup'!$O$2,2,$A27) -> 1.29 | AC27: =OFFSET('2023_step3_SCRoptwCC_link_sup'!$O$2,2,$A27) -> 1.29 | AD27: =OFFSET('2023_step3_SNCRopt_link_sup'!$O$2,2,$A27) -> 1.29 | AE27: =OFFSET('2023_step3_SNCRoptwCC_link_sup'!$O$2,2,$A27) -> 1.29 | AF27: =OFFSET('2023_step3_newSCR_link_sup'!$O$2,2,$A27) -> 1.00 | AG27: =OFFSET('2023_step3_base_wIRA_link_sup'!$O$2,2,$A27) -> 1.29 | AH27: =OFFSET('2023_step3_newSCR_wIRA_link_sup'!$O$2,2,$A27) -> 1.07
A28: 45 | B28: Virginia | C28: VA | D28: =OFFSET('2023_gf_links_sup'!$O$2,0,$A28) -> 1.76 | E28: =OFFSET('2023_step3_base_link_sup'!$O$2,0,$A28) -> 1.82 | F28: =OFFSET('2023_step3_SCRopt_link_sup'!$O$2,0,$A28) -> 1.81 | G28: =OFFSET('2023_step3_SCRoptwCC_link_sup'!$O$2,0,$A28) -> 1.81 | H28: =OFFSET('2023_step3_SNCRopt_link_sup'!$O$2,0,$A28) -> 1.81 | I28: =OFFSET('2023_step3_SNCRoptwCC_link_sup'!$O$2,0,$A28) -> 1.81 | J28: =OFFSET('2023_step3_newSCR_link_sup'!$O$2,0,$A28) -> 1.80 | K28: =OFFSET('2023_step3_base_wIRA_link_sup'!$O$2,0,$A28) -> 1.83 | L28: =OFFSET('2023_step3_newSCR_wIRA_link_sup'!$O$2,0,$A28) -> 1.82 | O28: =OFFSET('2023_gf_links_sup'!$O$2,1,$A28) -> 1.39 | P28: =OFFSET('2023_step3_base_link_sup'!$O$2,1,$A28) -> 1.43 | Q28: =OFFSET('2023_step3_SCRopt_link_sup'!$O$2,1,$A28) -> 1.43 | R28: =OFFSET('2023_step3_SCRoptwCC_link_sup'!$O$2,1,$A28) -> 1.43 | S28: =OFFSET('2023_step3_SNCRopt_link_sup'!$O$2,1,$A28) -> 1.43 | T28: =OFFSET('2023_step3_SNCRoptwCC_link_sup'!$O$2,1,$A28) -> 1.43 | U28: =OFFSET('2023_step3_newSCR_link_sup'!$O$2,1,$A28) -> 1.42 | V28: =OFFSET('2023_step3_base_wIRA_link_sup'!$O$2,1,$A28) -> 1.45 | W28: =OFFSET('2023_step3_newSCR_wIRA_link_sup'!$O$2,1,$A28) -> 1.44 | Z28: =OFFSET('2023_gf_links_sup'!$O$2,2,$A28) -> 1.76 | AA28: =OFFSET('2023_step3_base_link_sup'!$O$2,2,$A28) -> 1.82 | AB28: =OFFSET('2023_step3_SCRopt_link_sup'!$O$2,2,$A28) -> 1.81 | AC28: =OFFSET('2023_step3_SCRoptwCC_link_sup'!$O$2,2,$A28) -> 1.81 | AD28: =OFFSET('2023_step3_SNCRopt_link_sup'!$O$2,2,$A28) -> 1.81 | AE28: =OFFSET('2023_step3_SNCRoptwCC_link_sup'!$O$2,2,$A28) -> 1.81 | AF28: =OFFSET('2023_step3_newSCR_link_sup'!$O$2,2,$A28) -> 1.80 | AG28: =OFFSET('2023_step3_base_wIRA_link_sup'!$O$2,2,$A28) -> 1.83 | AH28: =OFFSET('2023_step3_newSCR_wIRA_link_sup'!$O$2,2,$A28) -> 1.82
A29: 47 | B29: West Virginia | C29: WV | D29: =OFFSET('2023_gf_links_sup'!$O$2,0,$A29) -> 1.80 | E29: =OFFSET('2023_step3_base_link_sup'!$O$2,0,$A29) -> 1.82 | F29: =OFFSET('2023_step3_SCRopt_link_sup'!$O$2,0,$A29) -> 1.81 | G29: =OFFSET('2023_step3_SCRoptwCC_link_sup'!$O$2,0,$A29) -> 1.79 | H29: =OFFSET('2023_step3_SNCRopt_link_sup'!$O$2,0,$A29) -> 1.79 | I29: =OFFSET('2023_step3_SNCRoptwCC_link_sup'!$O$2,0,$A29) -> 1.78 | J29: =OFFSET('2023_step3_newSCR_link_sup'!$O$2,0,$A29) -> 1.71 | K29: =OFFSET('2023_step3_base_wIRA_link_sup'!$O$2,0,$A29) -> 1.82 | L29: =OFFSET('2023_step3_newSCR_wIRA_link_sup'!$O$2,0,$A29) -> 1.70 | O29: =OFFSET('2023_gf_links_sup'!$O$2,1,$A29) -> 1.80 | P29: =OFFSET('2023_step3_base_link_sup'!$O$2,1,$A29) -> 1.82 | Q29: =OFFSET('2023_step3_SCRopt_link_sup'!$O$2,1,$A29) -> 1.81 | R29: =OFFSET('2023_step3_SCRoptwCC_link_sup'!$O$2,1,$A29) -> 1.79 | S29: =OFFSET('2023_step3_SNCRopt_link_sup'!$O$2,1,$A29) -> 1.79 | T29: =OFFSET('2023_step3_SNCRoptwCC_link_sup'!$O$2,1,$A29) -> 1.78 | U29: =OFFSET('2023_step3_newSCR_link_sup'!$O$2,1,$A29) -> 1.71 | V29: =OFFSET('2023_step3_base_wIRA_link_sup'!$O$2,1,$A29) -> 1.82 | W29: =OFFSET('2023_step3_newSCR_wIRA_link_sup'!$O$2,1,$A29) -> 1.70 | Z29: =OFFSET('2023_gf_links_sup'!$O$2,2,$A29) -> 1.50 | AA29: =OFFSET('2023_step3_base_link_sup'!$O$2,2,$A29) -> 1.52 | AB29: =OFFSET('2023_step3_SCRopt_link_sup'!$O$2,2,$A29) -> 1.50 | AC29: =OFFSET('2023_step3_SCRoptwCC_link_sup'!$O$2,2,$A29) -> 1.49 | AD29: =OFFSET('2023_step3_SNCRopt_link_sup'!$O$2,2,$A29) -> 1.50 | AE29: =OFFSET('2023_step3_SNCRoptwCC_link_sup'!$O$2,2,$A29) -> 1.48 | AF29: =OFFSET('2023_step3_newSCR_link_sup'!$O$2,2,$A29) -> 1.43 | AG29: =OFFSET('2023_step3_base_wIRA_link_sup'!$O$2,2,$A29) -> 1.51 | AH29: =OFFSET('2023_step3_newSCR_wIRA_link_sup'!$O$2,2,$A29) -> 1.42
A30: 48 | B30: Wisconsin | C30: WI | D30: =OFFSET('2023_gf_links_sup'!$O$2,0,$A30) -> 5.11 | E30: =OFFSET('2023_step3_base_link_sup'!$O$2,0,$A30) -> 5.12 | F30: =OFFSET('2023_step3_SCRopt_link_sup'!$O$2,0,$A30) -> 5.12 | G30: =OFFSET('2023_step3_SCRoptwCC_link_sup'!$O$2,0,$A30) -> 5.12 | H30: =OFFSET('2023_step3_SNCRopt_link_sup'!$O$2,0,$A30) -> 5.12 | I30: =OFFSET('2023_step3_SNCRoptwCC_link_sup'!$O$2,0,$A30) -> 5.12 | J30: =OFFSET('2023_step3_newSCR_link_sup'!$O$2,0,$A30) -> 5.08 | K30: =OFFSET('2023_step3_base_wIRA_link_sup'!$O$2,0,$A30) -> 5.13 | L30: =OFFSET('2023_step3_newSCR_wIRA_link_sup'!$O$2,0,$A30) -> 5.09 | O30: =OFFSET('2023_gf_links_sup'!$O$2,1,$A30) -> 5.11 | P30: =OFFSET('2023_step3_base_link_sup'!$O$2,1,$A30) -> 5.12 | Q30: =OFFSET('2023_step3_SCRopt_link_sup'!$O$2,1,$A30) -> 5.12 | R30: =OFFSET('2023_step3_SCRoptwCC_link_sup'!$O$2,1,$A30) -> 5.12 | S30: =OFFSET('2023_step3_SNCRopt_link_sup'!$O$2,1,$A30) -> 5.12 | T30: =OFFSET('2023_step3_SNCRoptwCC_link_sup'!$O$2,1,$A30) -> 5.12 | U30: =OFFSET('2023_step3_newSCR_link_sup'!$O$2,1,$A30) -> 5.08 | V30: =OFFSET('2023_step3_base_wIRA_link_sup'!$O$2,1,$A30) -> 5.13 | W30: =OFFSET('2023_step3_newSCR_wIRA_link_sup'!$O$2,1,$A30) -> 5.09 | Z30: =OFFSET('2023_gf_links_sup'!$O$2,2,$A30) -> 2.87 | AA30: =OFFSET('2023_step3_base_link_sup'!$O$2,2,$A30) -> 2.87 | AB30: =OFFSET('2023_step3_SCRopt_link_sup'!$O$2,2,$A30) -> 2.87 | AC30: =OFFSET('2023_step3_SCRoptwCC_link_sup'!$O$2,2,$A30) -> 2.87 | AD30: =OFFSET('2023_step3_SNCRopt_link_sup'!$O$2,2,$A30) -> 2.87 | AE30: =OFFSET('2023_step3_SNCRoptwCC_link_sup'!$O$2,2,$A30) -> 2.87 | AF30: =OFFSET('2023_step3_newSCR_link_sup'!$O$2,2,$A30) -> 2.85 | AG30: =OFFSET('2023_step3_base_wIRA_link_sup'!$O$2,2,$A30) -> 2.88 | AH30: =OFFSET('2023_step3_newSCR_wIRA_link_sup'!$O$2,2,$A30) -> 2.85

Sheet 2023_gf_links_wflag_sup
P1: matching to emissions | Q1: 1 | R1: 2 | S1: 3 | T1: 4 | U1: 5 | V1: 6 | W1: 7 | X1: 8 | Y1: 9 | Z1: 10 | AA1: 11 | AB1: 12 | AC1: 13 | AD1: 14 | AE1: 15 | AF1: 16 | AG1: 17 | AH1: 18 | AI1: 19 | AJ1: 20 | AK1: 21 | AL1: 22 | AM1: 23 | AN1: 24 | AO1: 25 | AP1: 26 | AQ1: 27 | AR1: 28 | AS1: 29 | AT1: 30 | AU1: 31 | AV1: 32 | AW1: 33 | AX1: 34 | AY1: 35 | AZ1: 36 | BA1: 37 | BB1: 38 | BC1: 39 | BD1: 40 | BE1: 41 | BF1: 42 | BG1: 43 | BH1: 44 | BI1: 45 | BJ1: 46 | BK1: 47 | BL1: 48 | BM1: 49 | BN1: 53
O2: max to any monitor | Q2: =MAX(Q7:Q86) -> 0.7930 | R2: =MAX(R7:R86) -> 1.6977 | S2: 1.2193 | T2: 6.9750 | U2: 0.0000 | V2: 0.0000 | W2: 0.0000 | X2: 0.0000 | Y2: 0.0000 | Z2: 0.0000 | AA2: 0.0000 | AB2: 19.0919 | AC2: 10.0341 | AD2: 1.1331 | AE2: 0.8280 | AF2: 1.5701 | AG2: 9.5116 | AH2: 0.0000 | AI2: 1.2866 | AJ2: 0.0000 | AK2: 3.4740 | AL2: 0.8599 | AM2: 1.3210 | AN2: 2.9532 | AO2: 0.0000 | AP2: 0.0000 | AQ2: 1.1192 | AR2: 0.0000 | AS2: 8.3867 | AT2: 1.5951 | AU2: 16.1041 | AV2: 0.0000 | AW2: 0.0000 | AX2: 2.2556 | AY2: 1.5764 | AZ2: 0.0000 | BA2: 6.0094 | BB2: 0.0000 | BC2: 0.0000 | BD2: 0.0000 | BE2: 0.8656 | BF2: 4.7414 | BG2: 1.4624 | BH2: 0.0000 | BI2: 1.7650 | BJ2: 0.0000 | BK2: 1.7985 | BL2: 5.1068 | BM2: 0.0000 | BN2: 0.0000
O3: max to a violating monitor | Q3: =MAX(Q7:Q27,Q29:Q32,Q40,Q42,Q44:Q45,Q48:Q53,Q58:Q60,Q62:Q63,Q65,Q69,Q71,Q74:Q77,Q81,Q83:Q84) -> 0.7930 | R3: =MAX(R7:R27,R29:R32,R40,R42,R44:R45,R48:R53,R58:R60,R62:R63,R65,R69,R71,R74:R77,R81,R83:R84) -> 1.6225 | S3: 1.1634 | T3: 6.9750 | U3: 0.0000 | V3: 0.0000 | W3: 0.0000 | X3: 0.0000 | Y3: 0.0000 | Z3: 0.0000 | AA3: 0.0000 | AB3: 16.5335 | AC3: 9.3974 | AD3: 1.1331 | AE3: 0.8280 | AF3: 1.5701 | AG3: 5.0628 | AH3: 0.0000 | AI3: 1.1490 | AJ3: 0.0000 | AK3: 3.4740 | AL3: 0.0000 | AM3: 1.0257 | AN3: 2.9532 | AO3: 0.0000 | AP3: 0.0000 | AQ3: 1.1192 | AR3: 0.0000 | AS3: 8.0032 | AT3: 0.0000 | AU3: 12.0857 | AV3: 0.0000 | AW3: 0.0000 | AX3: 2.2556 | AY3: 1.5764 | AZ3: 0.0000 | BA3: 5.2023 | BB3: 0.0000 | BC3: 0.0000 | BD3: 0.0000 | BE3: 0.8656 | BF3: 3.8304 | BG3: 1.4624 | BH3: 0.0000 | BI3: 1.3914 | BJ3: 0.0000 | BK3: 1.7985 | BL3: 5.1068 | BM3: 0.0000 | BN3: 0.0000
O4: max to a modeling receptor | Q4: =MAX(Q28,Q33:Q39,Q41,Q43,Q46:Q47,Q54:Q57,Q61,Q64,Q66:Q68,Q70,Q72:Q73,Q78:Q80,Q82,Q85:Q86) -> 0.7582 | R4: =MAX(R28,R33:R39,R41,R43,R46:R47,R54:R57,R61,R64,R66:R68,R70,R72:R73,R78:R80,R82,R85:R86) -> 1.6977 | S4: 1.2193 | T4: 6.3146 | U4: 0.0000 | V4: 0.0000 | W4: 0.0000 | X4: 0.0000 | Y4: 0.0000 | Z4: 0.0000 | AA4: 0.0000 | AB4: 19.0919 | AC4: 10.0341 | AD4: 0.9034 | AE4: 0.0000 | AF4: 0.8412 | AG4: 9.5116 | AH4: 0.0000 | AI4: 1.2866 | AJ4: 0.0000 | AK4: 1.5961 | AL4: 0.8599 | AM4: 1.3210 | AN4: 1.8743 | AO4: 0.0000 | AP4: 0.0000 | AQ4: 1.1123 | AR4: 0.0000 | AS4: 8.3867 | AT4: 1.5951 | AU4: 16.1041 | AV4: 0.0000 | AW4: 0.0000 | AX4: 2.0545 | AY4: 1.0108 | AZ4: 0.0000 | BA4: 6.0094 | BB4: 0.0000 | BC4: 0.0000 | BD4: 0.0000 | BE4: 0.0000 | BF4: 4.7414 | BG4: 1.2988 | BH4: 0.0000 | BI4: 1.7650 | BJ4: 0.0000 | BK4: 1.4983 | BL4: 2.8652 | BM4: 0.0000 | BN4: 0.0000
P5: State | Q5: Alabama | R5: Arizona | S5: Arkansas | T5: California | U5: Colorado | V5: Connecticut | W5: Delaware | X5: District of Columbia | Y5: Florida | Z5: Georgia | AA5: Idaho | AB5: Illinois | AC5: Indiana | AD5: Iowa | AE5: Kansas | AF5: Kentucky | AG5: Louisiana | AH5: Maine | AI5: Maryland | AJ5: Massachusetts | AK5: Michigan | AL5: Minnesota | AM5: Mississippi | AN5: Missouri | AO5: Montana | AP5: Nebraska | AQ5: Nevada | AR5: New Hampshire | AS5: New Jersey | AT5: New Mexico | AU5: New York | AV5: North Carolina | AW5: North Dakota | AX5: Ohio | AY5: Oklahoma | AZ5: Oregon | BA5: Pennsylvania | BB5: Rhode Island | BC5: South Carolina | BD5: South Dakota | BE5: Tennessee | BF5: Texas | BG5: Utah | BH5: Vermont | BI5: Virginia | BJ5: Washington | BK5: West Virginia | BL5: Wisconsin | BM5: Wyoming | BN5: Tribal Data
A6: Site ID | B6: State | C6: County | D6: 2016-Centered Avg | E6: 2016-Centered Max | F6: 2023gf Avg | G6: 2023gf Max | H6: 2021 DV | I6: 2022 DV | J6: 2021 4th | K6: 2022 4th | L6: Violating Monitor Flag (1) | M6: Modeling Receptor Flag (2) | N6: Receptor for Supplemental State | O6: offset rows | Q6: AL | R6: AZ | S6: AR | T6: CA | U6: CO | V6: CT | W6: DE | X6: DC | Y6: FL | Z6: GA | AA6: ID | AB6: IL | AC6: IN | AD6: IA | AE6: KS | AF6: KY | AG6: LA | AH6: ME | AI6: MD | AJ6: MA | AK6: MI | AL6: MN | AM6: MS | AN6: MO | AO6: MT | AP6: NE | AQ6: NV | AR6: NH | AS6: NJ | AT6: NM | AU6: NY | AV6: NC | AW6: ND | AX6: OH | AY6: OK | AZ6: OR | BA6: PA | BB6: RI | BC6: SC | BD6: SD | BE6: TN | BF6: TX | BG6: UT | BH6: VT | BI6: VA | BJ6: WA | BK6: WV | BL6: WI | BM6: WY | BN6: TRIBAL
A7: 40070010 | B7: Arizona | C7: Gila | D7: 72.3 | E7: 74 | F7: 67.9 | G7: 69.5 | H7: 77 | I7: 76 | J7: 75 | K7: 74 | L7: 1 | O7: =MATCH(A7,'2023_step3_base_gnp'!$A$7:$A$736) -> 20 | Q7: =IF(OR(OFFSET('2023gf_All_gnp'!I$1,$O7,0)<0.7,OFFSET('2023gf_All_gnp'!I$1,$O7,0)<0.7,$B7=Q$5),0,OFFSET('2023gf_All_gnp'!I$1,$O7,0)) -> 0.0000 | R7: =IF(OR(OFFSET('2023gf_All_gnp'!J$1,$O7,0)<0.7,OFFSET('2023gf_All_gnp'!J$1,$O7,0)<0.7,$B7=R$5),0,OFFSET('2023gf_All_gnp'!J$1,$O7,0)) -> 0.0000 | S7: =IF(OR(OFFSET('2023gf_All_gnp'!K$1,$O7,0)<0.7,OFFSET('2023gf_All_gnp'!K$1,$O7,0)<0.7,$B7=S$5),0,OFFSET('2023gf_All_gnp'!K$1,$O7,0)) -> 0.0000 | T7: =IF(OR(OFFSET('2023gf_All_gnp'!L$1,$O7,0)<0.7,OFFSET('2023gf_All_gnp'!L$1,$O7,0)<0.7,$B7=T$5),0,OFFSET('2023gf_All_gnp'!L$1,$O7,0)) -> 1.5583 | U7: =IF(OR(OFFSET('2023gf_All_gnp'!M$1,$O7,0)<0.7,OFFSET('2023gf_All_gnp'!M$1,$O7,0)<0.7,$B7=U$5),0,OFFSET('2023gf_All_gnp'!M$1,$O7,0)) -> 0.0000 | V7: =IF(OR(OFFSET('2023gf_All_gnp'!N$1,$O7,0)<0.7,OFFSET('2023gf_All_gnp'!N$1,$O7,0)<0.7,$B7=V$5),0,OFFSET('2023gf_All_gnp'!N$1,$O7,0)) -> 0.0000 | W7: =IF(OR(OFFSET('2023gf_All_gnp'!O$1,$O7,0)<0.7,OFFSET('2023gf_All_gnp'!O$1,$O7,0)<0.7,$B7=W$5),0,OFFSET('2023gf_All_gnp'!O$1,$O7,0)) -> 0.0000 | X7: =IF(OR(OFFSET('2023gf_All_gnp'!P$1,$O7,0)<0.7,OFFSET('2023gf_All_gnp'!P$1,$O7,0)<0.7,$B7=X$5),0,OFFSET('2023gf_All_gnp'!P$1,$O7,0)) -> 0.0000 | Y7: =IF(OR(OFFSET('2023gf_All_gnp'!Q$1,$O7,0)<0.7,OFFSET('2023gf_All_gnp'!Q$1,$O7,0)<0.7,$B7=Y$5),0,OFFSET('2023gf_All_gnp'!Q$1,$O7,0)) -> 0.0000 | Z7: =IF(OR(OFFSET('2023gf_All_gnp'!R$1,$O7,0)<0.7,OFFSET('2023gf_All_gnp'!R$1,$O7,0)<0.7,$B7=Z$5),0,OFFSET('2023gf_All_gnp'!R$1,$O7,0)) -> 0.0000 | AA7: =IF(OR(OFFSET('2023gf_All_gnp'!S$1,$O7,0)<0.7,OFFSET('2023gf_All_gnp'!S$1,$O7,0)<0.7,$B7=AA$5),0,OFFSET('2023gf_All_gnp'!S$1,$O7,0)) -> 0.0000 | AB7: =IF(OR(OFFSET('2023gf_All_gnp'!T$1,$O7,0)<0.7,OFFSET('2023gf_All_gnp'!T$1,$O7,0)<0.7,$B7=AB$5),0,OFFSET('2023gf_All_gnp'!T$1,$O7,0)) -> 0.0000 | AC7: =IF(OR(OFFSET('2023gf_All_gnp'!U$1,$O7,0)<0.7,OFFSET('2023gf_All_gnp'!U$1,$O7,0)<0.7,$B7=AC$5),0,OFFSET('2023gf_All_gnp'!U$1,$O7,0)) -> 0.0000 | AD7: =IF(OR(OFFSET('2023gf_All_gnp'!V$1,$O7,0)<0.7,OFFSET('2023gf_All_gnp'!V$1,$O7,0)<0.7,$B7=AD$5),0,OFFSET('2023gf_All_gnp'!V$1,$O7,0)) -> 0.0000 | AE7: =IF(OR(OFFSET('2023gf_All_gnp'!W$1,$O7,0)<0.7,OFFSET('2023gf_All_gnp'!W$1,$O7,0)<0.7,$B7=AE$5),0,OFFSET('2023gf_All_gnp'!W$1,$O7,0)) -> 0.0000 | AF7: =IF(OR(OFFSET('2023gf_All_gnp'!X$1,$O7,0)<0.7,OFFSET('2023gf_All_gnp'!X$1,$O7,0)<0.7,$B7=AF$5),0,OFFSET('2023gf_All_gnp'!X$1,$O7,0)) -> 0.0000 | AG7: =IF(OR(OFFSET('2023gf_All_gnp'!Y$1,$O7,0)<0.7,OFFSET('2023gf_All_gnp'!Y$1,$O7,0)<0.7,$B7=AG$5),0,OFFSET('2023gf_All_gnp'!Y$1,$O7,0)) -> 0.0000 | AH7: =IF(OR(OFFSET('2023gf_All_gnp'!Z$1,$O7,0)<0.7,OFFSET('2023gf_All_gnp'!Z$1,$O7,0)<0.7,$B7=AH$5),0,OFFSET('2023gf_All_gnp'!Z$1,$O7,0)) -> 0.0000 | AI7: =IF(OR(OFFSET('2023gf_All_gnp'!AA$1,$O7,0)<0.7,OFFSET('2023gf_All_gnp'!AA$1,$O7,0)<0.7,$B7=AI$5),0,OFFSET('2023gf_All_gnp'!AA$1,$O7,0)) -> 0.0000 | AJ7: =IF(OR(OFFSET('2023gf_All_gnp'!AB$1,$O7,0)<0.7,OFFSET('2023gf_All_gnp'!AB$1,$O7,0)<0.7,$B7=AJ$5),0,OFFSET('2023gf_All_gnp'!AB$1,$O7,0)) -> 0.0000 | AK7: =IF(OR(OFFSET('2023gf_All_gnp'!AC$1,$O7,0)<0.7,OFFSET('2023gf_All_gnp'!AC$1,$O7,0)<0.7,$B7=AK$5),0,OFFSET('2023gf_All_gnp'!AC$1,$O7,0)) -> 0.0000 | AL7: =IF(OR(OFFSET('2023gf_All_gnp'!AD$1,$O7,0)<0.7,OFFSET('2023gf_All_gnp'!AD$1,$O7,0)<0.7,$B7=AL$5),0,OFFSET('2023gf_All_gnp'!AD$1,$O7,0)) -> 0.0000 | AM7: =IF(OR(OFFSET('2023gf_All_gnp'!AE$1,$O7,0)<0.7,OFFSET('2023gf_All_gnp'!AE$1,$O7,0)<0.7,$B7=AM$5),0,OFFSET('2023gf_All_gnp'!AE$1,$O7,0)) -> 0.0000 | AN7: =IF(OR(OFFSET('2023gf_All_gnp'!AF$1,$O7,0)<0.7,OFFSET('2023gf_All_gnp'!AF$1,$O7,0)<0.7,$B7=AN$5),0,OFFSET('2023gf_All_gnp'!AF$1,$O7,0)) -> 0.0000 | AO7: =IF(OR(OFFSET('2023gf_All_gnp'!AG$1,$O7,0)<0.7,OFFSET('2023gf_All_gnp'!AG$1,$O7,0)<0.7,$B7=AO$5),0,OFFSET('2023gf_All_gnp'!AG$1,$O7,0)) -> 0.0000 | AP7: =IF(OR(OFFSET('2023gf_All_gnp'!AH$1,$O7,0)<0.7,OFFSET('2023gf_All_gnp'!AH$1,$O7,0)<0.7,$B7=AP$5),0,OFFSET('2023gf_All_gnp'!AH$1,$O7,0)) -> 0.0000 | AQ7: =IF(OR(OFFSET('2023gf_All_gnp'!AI$1,$O7,0)<0.7,OFFSET('2023gf_All_gnp'!AI$1,$O7,0)<0.7,$B7=AQ$5),0,OFFSET('2023gf_All_gnp'!AI$1,$O7,0)) -> 0.0000 | AR7: =IF(OR(OFFSET('2023gf_All_gnp'!AJ$1,$O7,0)<0.7,OFFSET('2023gf_All_gnp'!AJ$1,$O7,0)<0.7,$B7=AR$5),0,OFFSET('2023gf_All_gnp'!AJ$1,$O7,0)) -> 0.0000 | AS7: =IF(OR(OFFSET('2023gf_All_gnp'!AK$1,$O7,0)<0.7,OFFSET('2023gf_All_gnp'!AK$1,$O7,0)<0.7,$B7=AS$5),0,OFFSET('2023gf_All_gnp'!AK$1,$O7,0)) -> 0.0000 | AT7: =IF(OR(OFFSET('2023gf_All_gnp'!AL$1,$O7,0)<0.7,OFFSET('2023gf_All_gnp'!AL$1,$O7,0)<0.7,$B7=AT$5),0,OFFSET('2023gf_All_gnp'!AL$1,$O7,0)) -> 0.0000 | AU7: =IF(OR(OFFSET('2023gf_All_gnp'!AM$1,$O7,0)<0.7,OFFSET('2023gf_All_gnp'!AM$1,$O7,0)<0.7,$B7=AU$5),0,OFFSET('2023gf_All_gnp'!AM$1,$O7,0)) -> 0.0000 | AV7: =IF(OR(OFFSET('2023gf_All_gnp'!AN$1,$O7,0)<0.7,OFFSET('2023gf_All_gnp'!AN$1,$O7,0)<0.7,$B7=AV$5),0,OFFSET('2023gf_All_gnp'!AN$1,$O7,0)) -> 0.0000 | AW7: =IF(OR(OFFSET('2023gf_All_gnp'!AO$1,$O7,0)<0.7,OFFSET('2023gf_All_gnp'!AO$1,$O7,0)<0.7,$B7=AW$5),0,OFFSET('2023gf_All_gnp'!AO$1,$O7,0)) -> 0.0000 | AX7: =IF(OR(OFFSET('2023gf_All_gnp'!AP$1,$O7,0)<0.7,OFFSET('2023gf_All_gnp'!AP$1,$O7,0)<0.7,$B7=AX$5),0,OFFSET('2023gf_All_gnp'!AP$1,$O7,0)) -> 0.0000 | AY7: =IF(OR(OFFSET('2023gf_All_gnp'!AQ$1,$O7,0)<0.7,OFFSET('2023gf_All_gnp'!AQ$1,$O7,0)<0.7,$B7=AY$5),0,OFFSET('2023gf_All_gnp'!AQ$1,$O7,0)) -> 0.0000 | AZ7: =IF(OR(OFFSET('2023gf_All_gnp'!AR$1,$O7,0)<0.7,OFFSET('2023gf_All_gnp'!AR$1,$O7,0)<0.7,$B7=AZ$5),0,OFFSET('2023gf_All_gnp'!AR$1,$O7,0)) -> 0.0000 | BA7: =IF(OR(OFFSET('2023gf_All_gnp'!AS$1,$O7,0)<0.7,OFFSET('2023gf_All_gnp'!AS$1,$O7,0)<0.7,$B7=BA$5),0,OFFSET('2023gf_All_gnp'!AS$1,$O7,0)) -> 0.0000 | BB7: =IF(OR(OFFSET('2023gf_All_gnp'!AT$1,$O7,0)<0.7,OFFSET('2023gf_All_gnp'!AT$1,$O7,0)<0.7,$B7=BB$5),0,OFFSET('2023gf_All_gnp'!AT$1,$O7,0)) -> 0.0000 | BC7: =IF(OR(OFFSET('2023gf_All_gnp'!AU$1,$O7,0)<0.7,OFFSET('2023gf_All_gnp'!AU$1,$O7,0)<0.7,$B7=BC$5),0,OFFSET('2023gf_All_gnp'!AU$1,$O7,0)) -> 0.0000 | BD7: =IF(OR(OFFSET('2023gf_All_gnp'!AV$1,$O7,0)<0.7,OFFSET('2023gf_All_gnp'!AV$1,$O7,0)<0.7,$B7=BD$5),0,OFFSET('2023gf_All_gnp'!AV$1,$O7,0)) -> 0.0000 | BE7: =IF(OR(OFFSET('2023gf_All_gnp'!AW$1,$O7,0)<0.7,OFFSET('2023gf_All_gnp'!AW$1,$O7,0)<0.7,$B7=BE$5),0,OFFSET('2023gf_All_gnp'!AW$1,$O7,0)) -> 0.0000 | BF7: =IF(OR(OFFSET('2023gf_All_gnp'!AX$1,$O7,0)<0.7,OFFSET('2023gf_All_gnp'!AX$1,$O7,0)<0.7,$B7=BF$5),0,OFFSET('2023gf_All_gnp'!AX$1,$O7,0)) -> 0.0000 | BG7: =IF(OR(OFFSET('2023gf_All_gnp'!AY$1,$O7,0)<0.7,OFFSET('2023gf_All_gnp'!AY$1,$O7,0)<0.7,$B7=BG$5),0,OFFSET('2023gf_All_gnp'!AY$1,$O7,0)) -> 0.0000 | BH7: =IF(OR(OFFSET('2023gf_All_gnp'!AZ$1,$O7,0)<0.7,OFFSET('2023gf_All_gnp'!AZ$1,$O7,0)<0.7,$B7=BH$5),0,OFFSET('2023gf_All_gnp'!AZ$1,$O7,0)) -> 0.0000 | BI7: =IF(OR(OFFSET('2023gf_All_gnp'!BA$1,$O7,0)<0.7,OFFSET('2023gf_All_gnp'!BA$1,$O7,0)<0.7,$B7=BI$5),0,OFFSET('2023gf_All_gnp'!BA$1,$O7,0)) -> 0.0000 | BJ7: =IF(OR(OFFSET('2023gf_All_gnp'!BB$1,$O7,0)<0.7,OFFSET('2023gf_All_gnp'!BB$1,$O7,0)<0.7,$B7=BJ$5),0,OFFSET('2023gf_All_gnp'!BB$1,$O7,0)) -> 0.0000 | BK7: =IF(OR(OFFSET('2023gf_All_gnp'!BC$1,$O7,0)<0.7,OFFSET('2023gf_All_gnp'!BC$1,$O7,0)<0.7,$B7=BK$5),0,OFFSET('2023gf_All_gnp'!BC$1,$O7,0)) -> 0.0000 | BL7: =IF(OR(OFFSET('2023gf_All_gnp'!BD$1,$O7,0)<0.7,OFFSET('2023gf_All_gnp'!BD$1,$O7,0)<0.7,$B7=BL$5),0,OFFSET('2023gf_All_gnp'!BD$1,$O7,0)) -> 0.0000 | BM7: =IF(OR(OFFSET('2023gf_All_gnp'!BE$1,$O7,0)<0.7,OFFSET('2023gf_All_gnp'!BE$1,$O7,0)<0.7,$B7=BM$5),0,OFFSET('2023gf_All_gnp'!BE$1,$O7,0)) -> 0.0000 | BN7: =IF(OR(OFFSET('2023gf_All_gnp'!BF$1,$O7,0)<0.7,OFFSET('2023gf_All_gnp'!BF$1,$O7,0)<0.7,$B7=BN$5),0,OFFSET('2023gf_All_gnp'!BF$1,$O7,0)) -> 0.0000
A8: 40130019 | B8: Arizona | C8: Maricopa | D8: 73.7 | E8: 74 | F8: 69.8 | G8: 70.0 | H8: 75 | I8: 77 | J8: 78 | K8: 76 | L8: 1 | O8: =MATCH(A8,'2023_step3_base_gnp'!$A$7:$A$736) -> 21 | Q8: =IF(OR(OFFSET('2023gf_All_gnp'!I$1,$O8,0)<0.7,OFFSET('2023gf_All_gnp'!I$1,$O8,0)<0.7,$B8=Q$5),0,OFFSET('2023gf_All_gnp'!I$1,$O8,0)) -> 0.0000 | R8: =IF(OR(OFFSET('2023gf_All_gnp'!J$1,$O8,0)<0.7,OFFSET('2023gf_All_gnp'!J$1,$O8,0)<0.7,$B8=R$5),0,OFFSET('2023gf_All_gnp'!J$1,$O8,0)) -> 0.0000 | S8: =IF(OR(OFFSET('2023gf_All_gnp'!K$1,$O8,0)<0.7,OFFSET('2023gf_All_gnp'!K$1,$O8,0)<0.7,$B8=S$5),0,OFFSET('2023gf_All_gnp'!K$1,$O8,0)) -> 0.0000 | T8: =IF(OR(OFFSET('2023gf_All_gnp'!L$1,$O8,0)<0.7,OFFSET('2023gf_All_gnp'!L$1,$O8,0)<0.7,$B8=T$5),0,OFFSET('2023gf_All_gnp'!L$1,$O8,0)) -> 1.6864 | U8: =IF(OR(OFFSET('2023gf_All_gnp'!M$1,$O8,0)<0.7,OFFSET('2023gf_All_gnp'!M$1,$O8,0)<0.7,$B8=U$5),0,OFFSET('2023gf_All_gnp'!M$1,$O8,0)) -> 0.0000 | V8: =IF(OR(OFFSET('2023gf_All_gnp'!N$1,$O8,0)<0.7,OFFSET('2023gf_All_gnp'!N$1,$O8,0)<0.7,$B8=V$5),0,OFFSET('2023gf_All_gnp'!N$1,$O8,0)) -> 0.0000 | W8: =IF(OR(OFFSET('2023gf_All_gnp'!O$1,$O8,0)<0.7,OFFSET('2023gf_All_gnp'!O$1,$O8,0)<0.7,$B8=W$5),0,OFFSET('2023gf_All_gnp'!O$1,$O8,0)) -> 0.0000 | X8: =IF(OR(OFFSET('2023gf_All_gnp'!P$1,$O8,0)<0.7,OFFSET('2023gf_All_gnp'!P$1,$O8,0)<0.7,$B8=X$5),0,OFFSET('2023gf_All_gnp'!P$1,$O8,0)) -> 0.0000 | Y8: =IF(OR(OFFSET('2023gf_All_gnp'!Q$1,$O8,0)<0.7,OFFSET('2023gf_All_gnp'!Q$1,$O8,0)<0.7,$B8=Y$5),0,OFFSET('2023gf_All_gnp'!Q$1,$O8,0)) -> 0.0000 | Z8: =IF(OR(OFFSET('2023gf_All_gnp'!R$1,$O8,0)<0.7,OFFSET('2023gf_All_gnp'!R$1,$O8,0)<0.7,$B8=Z$5),0,OFFSET('2023gf_All_gnp'!R$1,$O8,0)) -> 0.0000 | AA8: =IF(OR(OFFSET('2023gf_All_gnp'!S$1,$O8,0)<0.7,OFFSET('2023gf_All_gnp'!S$1,$O8,0)<0.7,$B8=AA$5),0,OFFSET('2023gf_All_gnp'!S$1,$O8,0)) -> 0.0000 | AB8: =IF(OR(OFFSET('2023gf_All_gnp'!T$1,$O8,0)<0.7,OFFSET('2023gf_All_gnp'!T$1,$O8,0)<0.7,$B8=AB$5),0,OFFSET('2023gf_All_gnp'!T$1,$O8,0)) -> 0.0000 | AC8: =IF(OR(OFFSET('2023gf_All_gnp'!U$1,$O8,0)<0.7,OFFSET('2023gf_All_gnp'!U$1,$O8,0)<0.7,$B8=AC$5),0,OFFSET('2023gf_All_gnp'!U$1,$O8,0)) -> 0.0000 | AD8: =IF(OR(OFFSET('2023gf_All_gnp'!V$1,$O8,0)<0.7,OFFSET('2023gf_All_gnp'!V$1,$O8,0)<0.7,$B8=AD$5),0,OFFSET('2023gf_All_gnp'!V$1,$O8,0)) -> 0.0000 | AE8: =IF(OR(OFFSET('2023gf_All_gnp'!W$1,$O8,0)<0.7,OFFSET('2023gf_All_gnp'!W$1,$O8,0)<0.7,$B8=AE$5),0,OFFSET('2023gf_All_gnp'!W$1,$O8,0)) -> 0.0000 | AF8: =IF(OR(OFFSET('2023gf_All_gnp'!X$1,$O8,0)<0.7,OFFSET('2023gf_All_gnp'!X$1,$O8,0)<0.7,$B8=AF$5),0,OFFSET('2023gf_All_gnp'!X$1,$O8,0)) -> 0.0000 | AG8: =IF(OR(OFFSET('2023gf_All_gnp'!Y$1,$O8,0)<0.7,OFFSET('2023gf_All_gnp'!Y$1,$O8,0)<0.7,$B8=AG$5),0,OFFSET('2023gf_All_gnp'!Y$1,$O8,0)) -> 0.0000 | AH8: =IF(OR(OFFSET('2023gf_All_gnp'!Z$1,$O8,0)<0.7,OFFSET('2023gf_All_gnp'!Z$1,$O8,0)<0.7,$B8=AH$5),0,OFFSET('2023gf_All_gnp'!Z$1,$O8,0)) -> 0.0000 | AI8: =IF(OR(OFFSET('2023gf_All_gnp'!AA$1,$O8,0)<0.7,OFFSET('2023gf_All_gnp'!AA$1,$O8,0)<0.7,$B8=AI$5),0,OFFSET('2023gf_All_gnp'!AA$1,$O8,0)) -> 0.0000 | AJ8: =IF(OR(OFFSET('2023gf_All_gnp'!AB$1,$O8,0)<0.7,OFFSET('2023gf_All_gnp'!AB$1,$O8,0)<0.7,$B8=AJ$5),0,OFFSET('2023gf_All_gnp'!AB$1,$O8,0)) -> 0.0000 | AK8: =IF(OR(OFFSET('2023gf_All_gnp'!AC$1,$O8,0)<0.7,OFFSET('2023gf_All_gnp'!AC$1,$O8,0)<0.7,$B8=AK$5),0,OFFSET('2023gf_All_gnp'!AC$1,$O8,0)) -> 0.0000 | AL8: =IF(OR(OFFSET('2023gf_All_gnp'!AD$1,$O8,0)<0.7,OFFSET('2023gf_All_gnp'!AD$1,$O8,0)<0.7,$B8=AL$5),0,OFFSET('2023gf_All_gnp'!AD$1,$O8,0)) -> 0.0000 | AM8: =IF(OR(OFFSET('2023gf_All_gnp'!AE$1,$O8,0)<0.7,OFFSET('2023gf_All_gnp'!AE$1,$O8,0)<0.7,$B8=AM$5),0,OFFSET('2023gf_All_gnp'!AE$1,$O8,0)) -> 0.0000 | AN8: =IF(OR(OFFSET('2023gf_All_gnp'!AF$1,$O8,0)<0.7,OFFSET('2023gf_All_gnp'!AF$1,$O8,0)<0.7,$B8=AN$5),0,OFFSET('2023gf_All_gnp'!AF$1,$O8,0)) -> 0.0000 | AO8: =IF(OR(OFFSET('2023gf_All_gnp'!AG$1,$O8,0)<0.7,OFFSET('2023gf_All_gnp'!AG$1,$O8,0)<0.7,$B8=AO$5),0,OFFSET('2023gf_All_gnp'!AG$1,$O8,0)) -> 0.0000 | AP8: =IF(OR(OFFSET('2023gf_All_gnp'!AH$1,$O8,0)<0.7,OFFSET('2023gf_All_gnp'!AH$1,$O8,0)<0.7,$B8=AP$5),0,OFFSET('2023gf_All_gnp'!AH$1,$O8,0)) -> 0.0000 | AQ8: =IF(OR(OFFSET('2023gf_All_gnp'!AI$1,$O8,0)<0.7,OFFSET('2023gf_All_gnp'!AI$1,$O8,0)<0.7,$B8=AQ$5),0,OFFSET('2023gf_All_gnp'!AI$1,$O8,0)) -> 0.0000 | AR8: =IF(OR(OFFSET('2023gf_All_gnp'!AJ$1,$O8,0)<0.7,OFFSET('2023gf_All_gnp'!AJ$1,$O8,0)<0.7,$B8=AR$5),0,OFFSET('2023gf_All_gnp'!AJ$1,$O8,0)) -> 0.0000 | AS8: =IF(OR(OFFSET('2023gf_All_gnp'!AK$1,$O8,0)<0.7,OFFSET('2023gf_All_gnp'!AK$1,$O8,0)<0.7,$B8=AS$5),0,OFFSET('2023gf_All_gnp'!AK$1,$O8,0)) -> 0.0000 | AT8: =IF(OR(OFFSET('2023gf_All_gnp'!AL$1,$O8,0)<0.7,OFFSET('2023gf_All_gnp'!AL$1,$O8,0)<0.7,$B8=AT$5),0,OFFSET('2023gf_All_gnp'!AL$1,$O8,0)) -> 0.0000 | AU8: =IF(OR(OFFSET('2023gf_All_gnp'!AM$1,$O8,0)<0.7,OFFSET('2023gf_All_gnp'!AM$1,$O8,0)<0.7,$B8=AU$5),0,OFFSET('2023gf_All_gnp'!AM$1,$O8,0)) -> 0.0000 | AV8: =IF(OR(OFFSET('2023gf_All_gnp'!AN$1,$O8,0)<0.7,OFFSET('2023gf_All_gnp'!AN$1,$O8,0)<0.7,$B8=AV$5),0,OFFSET('2023gf_All_gnp'!AN$1,$O8,0)) -> 0.0000 | AW8: =IF(OR(OFFSET('2023gf_All_gnp'!AO$1,$O8,0)<0.7,OFFSET('2023gf_All_gnp'!AO$1,$O8,0)<0.7,$B8=AW$5),0,OFFSET('2023gf_All_gnp'!AO$1,$O8,0)) -> 0.0000 | AX8: =IF(OR(OFFSET('2023gf_All_gnp'!AP$1,$O8,0)<0.7,OFFSET('2023gf_All_gnp'!AP$1,$O8,0)<0.7,$B8=AX$5),0,OFFSET('2023gf_All_gnp'!AP$1,$O8,0)) -> 0.0000 | AY8: =IF(OR(OFFSET('2023gf_All_gnp'!AQ$1,$O8,0)<0.7,OFFSET('2023gf_All_gnp'!AQ$1,$O8,0)<0.7,$B8=AY$5),0,OFFSET('2023gf_All_gnp'!AQ$1,$O8,0)) -> 0.0000 | AZ8: =IF(OR(OFFSET('2023gf_All_gnp'!AR$1,$O8,0)<0.7,OFFSET('2023gf_All_gnp'!AR$1,$O8,0)<0.7,$B8=AZ$5),0,OFFSET('2023gf_All_gnp'!AR$1,$O8,0)) -> 0.0000 | BA8: =IF(OR(OFFSET('2023gf_All_gnp'!AS$1,$O8,0)<0.7,OFFSET('2023gf_All_gnp'!AS$1,$O8,0)<0.7,$B8=BA$5),0,OFFSET('2023gf_All_gnp'!AS$1,$O8,0)) -> 0.0000 | BB8: =IF(OR(OFFSET('2023gf_All_gnp'!AT$1,$O8,0)<0.7,OFFSET('2023gf_All_gnp'!AT$1,$O8,0)<0.7,$B8=BB$5),0,OFFSET('2023gf_All_gnp'!AT$1,$O8,0)) -> 0.0000 | BC8: =IF(OR(OFFSET('2023gf_All_gnp'!AU$1,$O8,0)<0.7,OFFSET('2023gf_All_gnp'!AU$1,$O8,0)<0.7,$B8=BC$5),0,OFFSET('2023gf_All_gnp'!AU$1,$O8,0)) -> 0.0000 | BD8: =IF(OR(OFFSET('2023gf_All_gnp'!AV$1,$O8,0)<0.7,OFFSET('2023gf_All_gnp'!AV$1,$O8,0)<0.7,$B8=BD$5),0,OFFSET('2023gf_All_gnp'!AV$1,$O8,0)) -> 0.0000 | BE8: =IF(OR(OFFSET('2023gf_All_gnp'!AW$1,$O8,0)<0.7,OFFSET('2023gf_All_gnp'!AW$1,$O8,0)<0.7,$B8=BE$5),0,OFFSET('2023gf_All_gnp'!AW$1,$O8,0)) -> 0.0000 | BF8: =IF(OR(OFFSET('2023gf_All_gnp'!AX$1,$O8,0)<0.7,OFFSET('2023gf_All_gnp'!AX$1,$O8,0)<0.7,$B8=BF$5),0,OFFSET('2023gf_All_gnp'!AX$1,$O8,0)) -> 0.0000 | BG8: =IF(OR(OFFSET('2023gf_All_gnp'!AY$1,$O8,0)<0.7,OFFSET('2023gf_All_gnp'!AY$1,$O8,0)<0.7,$B8=BG$5),0,OFFSET('2023gf_All_gnp'!AY$1,$O8,0)) -> 0.0000 | BH8: =IF(OR(OFFSET('2023gf_All_gnp'!AZ$1,$O8,0)<0.7,OFFSET('2023gf_All_gnp'!AZ$1,$O8,0)<0.7,$B8=BH$5),0,OFFSET('2023gf_All_gnp'!AZ$1,$O8,0)) -> 0.0000 | BI8: =IF(OR(OFFSET('2023gf_All_gnp'!BA$1,$O8,0)<0.7,OFFSET('2023gf_All_gnp'!BA$1,$O8,0)<0.7,$B8=BI$5),0,OFFSET('2023gf_All_gnp'!BA$1,$O8,0)) -> 0.0000 | BJ8: =IF(OR(OFFSET('2023gf_All_gnp'!BB$1,$O8,0)<0.7,OFFSET('2023gf_All_gnp'!BB$1,$O8,0)<0.7,$B8=BJ$5),0,OFFSET('2023gf_All_gnp'!BB$1,$O8,0)) -> 0.0000 | BK8: =IF(OR(OFFSET('2023gf_All_gnp'!BC$1,$O8,0)<0.7,OFFSET('2023gf_All_gnp'!BC$1,$O8,0)<0.7,$B8=BK$5),0,OFFSET('2023gf_All_gnp'!BC$1,$O8,0)) -> 0.0000 | BL8: =IF(OR(OFFSET('2023gf_All_gnp'!BD$1,$O8,0)<0.7,OFFSET('2023gf_All_gnp'!BD$1,$O8,0)<0.7,$B8=BL$5),0,OFFSET('2023gf_All_gnp'!BD$1,$O8,0)) -> 0.0000 | BM8: =IF(OR(OFFSET('2023gf_All_gnp'!BE$1,$O8,0)<0.7,OFFSET('2023gf_All_gnp'!BE$1,$O8,0)<0.7,$B8=BM$5),0,OFFSET('2023gf_All_gnp'!BE$1,$O8,0)) -> 0.0000 | BN8: =IF(OR(OFFSET('2023gf_All_gnp'!BF$1,$O8,0)<0.7,OFFSET('2023gf_All_gnp'!BF$1,$O8,0)<0.7,$B8=BN$5),0,OFFSET('2023gf_All_gnp'!BF$1,$O8,0)) -> 0.0000
A9: 40131003 | B9: Arizona | C9: Maricopa | D9: 75.3 | E9: 76 | F9: 70.1 | G9: 70.7 | H9: 80 | I9: 80 | J9: 83 | K9: 78 | L9: 1 | O9: =MATCH(A9,'2023_step3_base_gnp'!$A$7:$A$736) -> 22 | Q9: =IF(OR(OFFSET('2023gf_All_gnp'!I$1,$O9,0)<0.7,OFFSET('2023gf_All_gnp'!I$1,$O9,0)<0.7,$B9=Q$5),0,OFFSET('2023gf_All_gnp'!I$1,$O9,0)) -> 0.0000 | R9: =IF(OR(OFFSET('2023gf_All_gnp'!J$1,$O9,0)<0.7,OFFSET('2023gf_All_gnp'!J$1,$O9,0)<0.7,$B9=R$5),0,OFFSET('2023gf_All_gnp'!J$1,$O9,0)) -> 0.0000 | S9: =IF(OR(OFFSET('2023gf_All_gnp'!K$1,$O9,0)<0.7,OFFSET('2023gf_All_gnp'!K$1,$O9,0)<0.7,$B9=S$5),0,OFFSET('2023gf_All_gnp'!K$1,$O9,0)) -> 0.0000 | T9: =IF(OR(OFFSET('2023gf_All_gnp'!L$1,$O9,0)<0.7,OFFSET('2023gf_All_gnp'!L$1,$O9,0)<0.7,$B9=T$5),0,OFFSET('2023gf_All_gnp'!L$1,$O9,0)) -> 2.6921 | U9: =IF(OR(OFFSET('2023gf_All_gnp'!M$1,$O9,0)<0.7,OFFSET('2023gf_All_gnp'!M$1,$O9,0)<0.7,$B9=U$5),0,OFFSET('2023gf_All_gnp'!M$1,$O9,0)) -> 0.0000 | V9: =IF(OR(OFFSET('2023gf_All_gnp'!N$1,$O9,0)<0.7,OFFSET('2023gf_All_gnp'!N$1,$O9,0)<0.7,$B9=V$5),0,OFFSET('2023gf_All_gnp'!N$1,$O9,0)) -> 0.0000 | W9: =IF(OR(OFFSET('2023gf_All_gnp'!O$1,$O9,0)<0.7,OFFSET('2023gf_All_gnp'!O$1,$O9,0)<0.7,$B9=W$5),0,OFFSET('2023gf_All_gnp'!O$1,$O9,0)) -> 0.0000 | X9: =IF(OR(OFFSET('2023gf_All_gnp'!P$1,$O9,0)<0.7,OFFSET('2023gf_All_gnp'!P$1,$O9,0)<0.7,$B9=X$5),0,OFFSET('2023gf_All_gnp'!P$1,$O9,0)) -> 0.0000 | Y9: =IF(OR(OFFSET('2023gf_All_gnp'!Q$1,$O9,0)<0.7,OFFSET('2023gf_All_gnp'!Q$1,$O9,0)<0.7,$B9=Y$5),0,OFFSET('2023gf_All_gnp'!Q$1,$O9,0)) -> 0.0000 | Z9: =IF(OR(OFFSET('2023gf_All_gnp'!R$1,$O9,0)<0.7,OFFSET('2023gf_All_gnp'!R$1,$O9,0)<0.7,$B9=Z$5),0,OFFSET('2023gf_All_gnp'!R$1,$O9,0)) -> 0.0000 | AA9: =IF(OR(OFFSET('2023gf_All_gnp'!S$1,$O9,0)<0.7,OFFSET('2023gf_All_gnp'!S$1,$O9,0)<0.7,$B9=AA$5),0,OFFSET('2023gf_All_gnp'!S$1,$O9,0)) -> 0.0000 | AB9: =IF(OR(OFFSET('2023gf_All_gnp'!T$1,$O9,0)<0.7,OFFSET('2023gf_All_gnp'!T$1,$O9,0)<0.7,$B9=AB$5),0,OFFSET('2023gf_All_gnp'!T$1,$O9,0)) -> 0.0000 | AC9: =IF(OR(OFFSET('2023gf_All_gnp'!U$1,$O9,0)<0.7,OFFSET('2023gf_All_gnp'!U$1,$O9,0)<0.7,$B9=AC$5),0,OFFSET('2023gf_All_gnp'!U$1,$O9,0)) -> 0.0000 | AD9: =IF(OR(OFFSET('2023gf_All_gnp'!V$1,$O9,0)<0.7,OFFSET('2023gf_All_gnp'!V$1,$O9,0)<0.7,$B9=AD$5),0,OFFSET('2023gf_All_gnp'!V$1,$O9,0)) -> 0.0000 | AE9: =IF(OR(OFFSET('2023gf_All_gnp'!W$1,$O9,0)<0.7,OFFSET('2023gf_All_gnp'!W$1,$O9,0)<0.7,$B9=AE$5),0,OFFSET('2023gf_All_gnp'!W$1,$O9,0)) -> 0.0000 | AF9: =IF(OR(OFFSET('2023gf_All_gnp'!X$1,$O9,0)<0.7,OFFSET('2023gf_All_gnp'!X$1,$O9,0)<0.7,$B9=AF$5),0,OFFSET('2023gf_All_gnp'!X$1,$O9,0)) -> 0.0000 | AG9: =IF(OR(OFFSET('2023gf_All_gnp'!Y$1,$O9,0)<0.7,OFFSET('2023gf_All_gnp'!Y$1,$O9,0)<0.7,$B9=AG$5),0,OFFSET('2023gf_All_gnp'!Y$1,$O9,0)) -> 0.0000 | AH9: =IF(OR(OFFSET('2023gf_All_gnp'!Z$1,$O9,0)<0.7,OFFSET('2023gf_All_gnp'!Z$1,$O9,0)<0.7,$B9=AH$5),0,OFFSET('2023gf_All_gnp'!Z$1,$O9,0)) -> 0.0000 | AI9: =IF(OR(OFFSET('2023gf_All_gnp'!AA$1,$O9,0)<0.7,OFFSET('2023gf_All_gnp'!AA$1,$O9,0)<0.7,$B9=AI$5),0,OFFSET('2023gf_All_gnp'!AA$1,$O9,0)) -> 0.0000 | AJ9: =IF(OR(OFFSET('2023gf_All_gnp'!AB$1,$O9,0)<0.7,OFFSET('2023gf_All_gnp'!AB$1,$O9,0)<0.7,$B9=AJ$5),0,OFFSET('2023gf_All_gnp'!AB$1,$O9,0)) -> 0.0000 | AK9: =IF(OR(OFFSET('2023gf_All_gnp'!AC$1,$O9,0)<0.7,OFFSET('2023gf_All_gnp'!AC$1,$O9,0)<0.7,$B9=AK$5),0,OFFSET('2023gf_All_gnp'!AC$1,$O9,0)) -> 0.0000 | AL9: =IF(OR(OFFSET('2023gf_All_gnp'!AD$1,$O9,0)<0.7,OFFSET('2023gf_All_gnp'!AD$1,$O9,0)<0.7,$B9=AL$5),0,OFFSET('2023gf_All_gnp'!AD$1,$O9,0)) -> 0.0000 | AM9: =IF(OR(OFFSET('2023gf_All_gnp'!AE$1,$O9,0)<0.7,OFFSET('2023gf_All_gnp'!AE$1,$O9,0)<0.7,$B9=AM$5),0,OFFSET('2023gf_All_gnp'!AE$1,$O9,0)) -> 0.0000 | AN9: =IF(OR(OFFSET('2023gf_All_gnp'!AF$1,$O9,0)<0.7,OFFSET('2023gf_All_gnp'!AF$1,$O9,0)<0.7,$B9=AN$5),0,OFFSET('2023gf_All_gnp'!AF$1,$O9,0)) -> 0.0000 | AO9: =IF(OR(OFFSET('2023gf_All_gnp'!AG$1,$O9,0)<0.7,OFFSET('2023gf_All_gnp'!AG$1,$O9,0)<0.7,$B9=AO$5),0,OFFSET('2023gf_All_gnp'!AG$1,$O9,0)) -> 0.0000 | AP9: =IF(OR(OFFSET('2023gf_All_gnp'!AH$1,$O9,0)<0.7,OFFSET('2023gf_All_gnp'!AH$1,$O9,0)<0.7,$B9=AP$5),0,OFFSET('2023gf_All_gnp'!AH$1,$O9,0)) -> 0.0000 | AQ9: =IF(OR(OFFSET('2023gf_All_gnp'!AI$1,$O9,0)<0.7,OFFSET('2023gf_All_gnp'!AI$1,$O9,0)<0.7,$B9=AQ$5),0,OFFSET('2023gf_All_gnp'!AI$1,$O9,0)) -> 0.0000 | AR9: =IF(OR(OFFSET('2023gf_All_gnp'!AJ$1,$O9,0)<0.7,OFFSET('2023gf_All_gnp'!AJ$1,$O9,0)<0.7,$B9=AR$5),0,OFFSET('2023gf_All_gnp'!AJ$1,$O9,0)) -> 0.0000 | AS9: =IF(OR(OFFSET('2023gf_All_gnp'!AK$1,$O9,0)<0.7,OFFSET('2023gf_All_gnp'!AK$1,$O9,0)<0.7,$B9=AS$5),0,OFFSET('2023gf_All_gnp'!AK$1,$O9,0)) -> 0.0000 | AT9: =IF(OR(OFFSET('2023gf_All_gnp'!AL$1,$O9,0)<0.7,OFFSET('2023gf_All_gnp'!AL$1,$O9,0)<0.7,$B9=AT$5),0,OFFSET('2023gf_All_gnp'!AL$1,$O9,0)) -> 0.0000 | AU9: =IF(OR(OFFSET('2023gf_All_gnp'!AM$1,$O9,0)<0.7,OFFSET('2023gf_All_gnp'!AM$1,$O9,0)<0.7,$B9=AU$5),0,OFFSET('2023gf_All_gnp'!AM$1,$O9,0)) -> 0.0000 | AV9: =IF(OR(OFFSET('2023gf_All_gnp'!AN$1,$O9,0)<0.7,OFFSET('2023gf_All_gnp'!AN$1,$O9,0)<0.7,$B9=AV$5),0,OFFSET('2023gf_All_gnp'!AN$1,$O9,0)) -> 0.0000 | AW9: =IF(OR(OFFSET('2023gf_All_gnp'!AO$1,$O9,0)<0.7,OFFSET('2023gf_All_gnp'!AO$1,$O9,0)<0.7,$B9=AW$5),0,OFFSET('2023gf_All_gnp'!AO$1,$O9,0)) -> 0.0000 | AX9: =IF(OR(OFFSET('2023gf_All_gnp'!AP$1,$O9,0)<0.7,OFFSET('2023gf_All_gnp'!AP$1,$O9,0)<0.7,$B9=AX$5),0,OFFSET('2023gf_All_gnp'!AP$1,$O9,0)) -> 0.0000 | AY9: =IF(OR(OFFSET('2023gf_All_gnp'!AQ$1,$O9,0)<0.7,OFFSET('2023gf_All_gnp'!AQ$1,$O9,0)<0.7,$B9=AY$5),0,OFFSET('2023gf_All_gnp'!AQ$1,$O9,0)) -> 0.0000 | AZ9: =IF(OR(OFFSET('2023gf_All_gnp'!AR$1,$O9,0)<0.7,OFFSET('2023gf_All_gnp'!AR$1,$O9,0)<0.7,$B9=AZ$5),0,OFFSET('2023gf_All_gnp'!AR$1,$O9,0)) -> 0.0000 | BA9: =IF(OR(OFFSET('2023gf_All_gnp'!AS$1,$O9,0)<0.7,OFFSET('2023gf_All_gnp'!AS$1,$O9,0)<0.7,$B9=BA$5),0,OFFSET('2023gf_All_gnp'!AS$1,$O9,0)) -> 0.0000 | BB9: =IF(OR(OFFSET('2023gf_All_gnp'!AT$1,$O9,0)<0.7,OFFSET('2023gf_All_gnp'!AT$1,$O9,0)<0.7,$B9=BB$5),0,OFFSET('2023gf_All_gnp'!AT$1,$O9,0)) -> 0.0000 | BC9: =IF(OR(OFFSET('2023gf_All_gnp'!AU$1,$O9,0)<0.7,OFFSET('2023gf_All_gnp'!AU$1,$O9,0)<0.7,$B9=BC$5),0,OFFSET('2023gf_All_gnp'!AU$1,$O9,0)) -> 0.0000 | BD9: =IF(OR(OFFSET('2023gf_All_gnp'!AV$1,$O9,0)<0.7,OFFSET('2023gf_All_gnp'!AV$1,$O9,0)<0.7,$B9=BD$5),0,OFFSET('2023gf_All_gnp'!AV$1,$O9,0)) -> 0.0000 | BE9: =IF(OR(OFFSET('2023gf_All_gnp'!AW$1,$O9,0)<0.7,OFFSET('2023gf_All_gnp'!AW$1,$O9,0)<0.7,$B9=BE$5),0,OFFSET('2023gf_All_gnp'!AW$1,$O9,0)) -> 0.0000 | BF9: =IF(OR(OFFSET('2023gf_All_gnp'!AX$1,$O9,0)<0.7,OFFSET('2023gf_All_gnp'!AX$1,$O9,0)<0.7,$B9=BF$5),0,OFFSET('2023gf_All_gnp'!AX$1,$O9,0)) -> 0.0000 | BG9: =IF(OR(OFFSET('2023gf_All_gnp'!AY$1,$O9,0)<0.7,OFFSET('2023gf_All_gnp'!AY$1,$O9,0)<0.7,$B9=BG$5),0,OFFSET('2023gf_All_gnp'!AY$1,$O9,0)) -> 0.0000 | BH9: =IF(OR(OFFSET('2023gf_All_gnp'!AZ$1,$O9,0)<0.7,OFFSET('2023gf_All_gnp'!AZ$1,$O9,0)<0.7,$B9=BH$5),0,OFFSET('2023gf_All_gnp'!AZ$1,$O9,0)) -> 0.0000 | BI9: =IF(OR(OFFSET('2023gf_All_gnp'!BA$1,$O9,0)<0.7,OFFSET('2023gf_All_gnp'!BA$1,$O9,0)<0.7,$B9=BI$5),0,OFFSET('2023gf_All_gnp'!BA$1,$O9,0)) -> 0.0000 | BJ9: =IF(OR(OFFSET('2023gf_All_gnp'!BB$1,$O9,0)<0.7,OFFSET('2023gf_All_gnp'!BB$1,$O9,0)<0.7,$B9=BJ$5),0,OFFSET('2023gf_All_gnp'!BB$1,$O9,0)) -> 0.0000 | BK9: =IF(OR(OFFSET('2023gf_All_gnp'!BC$1,$O9,0)<0.7,OFFSET('2023gf_All_gnp'!BC$1,$O9,0)<0.7,$B9=BK$5),0,OFFSET('2023gf_All_gnp'!BC$1,$O9,0)) -> 0.0000 | BL9: =IF(OR(OFFSET('2023gf_All_gnp'!BD$1,$O9,0)<0.7,OFFSET('2023gf_All_gnp'!BD$1,$O9,0)<0.7,$B9=BL$5),0,OFFSET('2023gf_All_gnp'!BD$1,$O9,0)) -> 0.0000 | BM9: =IF(OR(OFFSET('2023gf_All_gnp'!BE$1,$O9,0)<0.7,OFFSET('2023gf_All_gnp'!BE$1,$O9,0)<0.7,$B9=BM$5),0,OFFSET('2023gf_All_gnp'!BE$1,$O9,0)) -> 0.0000 | BN9: =IF(OR(OFFSET('2023gf_All_gnp'!BF$1,$O9,0)<0.7,OFFSET('2023gf_All_gnp'!BF$1,$O9,0)<0.7,$B9=BN$5),0,OFFSET('2023gf_All_gnp'!BF$1,$O9,0)) -> 0.0000
A10: 40131004 | B10: Arizona | C10: Maricopa | D10: 75.3 | E10: 76 | F10: 70.2 | G10: 70.8 | H10: 80 | I10: 81 | J10: 81 | K10: 77 | L10: 1 | O10: =MATCH(A10,'2023_step3_base_gnp'!$A$7:$A$736) -> 23 | Q10: =IF(OR(OFFSET('2023gf_All_gnp'!I$1,$O10,0)<0.7,OFFSET('2023gf_All_gnp'!I$1,$O10,0)<0.7,$B10=Q$5),0,OFFSET('2023gf_All_gnp'!I$1,$O10,0)) -> 0.0000 | R10: =IF(OR(OFFSET('2023gf_All_gnp'!J$1,$O10,0)<0.7,OFFSET('2023gf_All_gnp'!J$1,$O10,0)<0.7,$B10=R$5),0,OFFSET('2023gf_All_gnp'!J$1,$O10,0)) -> 0.0000 | S10: =IF(OR(OFFSET('2023gf_All_gnp'!K$1,$O10,0)<0.7,OFFSET('2023gf_All_gnp'!K$1,$O10,0)<0.7,$B10=S$5),0,OFFSET('2023gf_All_gnp'!K$1,$O10,0)) -> 0.0000 | T10: =IF(OR(OFFSET('2023gf_All_gnp'!L$1,$O10,0)<0.7,OFFSET('2023gf_All_gnp'!L$1,$O10,0)<0.7,$B10=T$5),0,OFFSET('2023gf_All_gnp'!L$1,$O10,0)) -> 1.5454 | U10: =IF(OR(OFFSET('2023gf_All_gnp'!M$1,$O10,0)<0.7,OFFSET('2023gf_All_gnp'!M$1,$O10,0)<0.7,$B10=U$5),0,OFFSET('2023gf_All_gnp'!M$1,$O10,0)) -> 0.0000 | V10: =IF(OR(OFFSET('2023gf_All_gnp'!N$1,$O10,0)<0.7,OFFSET('2023gf_All_gnp'!N$1,$O10,0)<0.7,$B10=V$5),0,OFFSET('2023gf_All_gnp'!N$1,$O10,0)) -> 0.0000 | W10: =IF(OR(OFFSET('2023gf_All_gnp'!O$1,$O10,0)<0.7,OFFSET('2023gf_All_gnp'!O$1,$O10,0)<0.7,$B10=W$5),0,OFFSET('2023gf_All_gnp'!O$1,$O10,0)) -> 0.0000 | X10: =IF(OR(OFFSET('2023gf_All_gnp'!P$1,$O10,0)<0.7,OFFSET('2023gf_All_gnp'!P$1,$O10,0)<0.7,$B10=X$5),0,OFFSET('2023gf_All_gnp'!P$1,$O10,0)) -> 0.0000 | Y10: =IF(OR(OFFSET('2023gf_All_gnp'!Q$1,$O10,0)<0.7,OFFSET('2023gf_All_gnp'!Q$1,$O10,0)<0.7,$B10=Y$5),0,OFFSET('2023gf_All_gnp'!Q$1,$O10,0)) -> 0.0000 | Z10: =IF(OR(OFFSET('2023gf_All_gnp'!R$1,$O10,0)<0.7,OFFSET('2023gf_All_gnp'!R$1,$O10,0)<0.7,$B10=Z$5),0,OFFSET('2023gf_All_gnp'!R$1,$O10,0)) -> 0.0000 | AA10: =IF(OR(OFFSET('2023gf_All_gnp'!S$1,$O10,0)<0.7,OFFSET('2023gf_All_gnp'!S$1,$O10,0)<0.7,$B10=AA$5),0,OFFSET('2023gf_All_gnp'!S$1,$O10,0)) -> 0.0000 | AB10: =IF(OR(OFFSET('2023gf_All_gnp'!T$1,$O10,0)<0.7,OFFSET('2023gf_All_gnp'!T$1,$O10,0)<0.7,$B10=AB$5),0,OFFSET('2023gf_All_gnp'!T$1,$O10,0)) -> 0.0000 | AC10: =IF(OR(OFFSET('2023gf_All_gnp'!U$1,$O10,0)<0.7,OFFSET('2023gf_All_gnp'!U$1,$O10,0)<0.7,$B10=AC$5),0,OFFSET('2023gf_All_gnp'!U$1,$O10,0)) -> 0.0000 | AD10: =IF(OR(OFFSET('2023gf_All_gnp'!V$1,$O10,0)<0.7,OFFSET('2023gf_All_gnp'!V$1,$O10,0)<0.7,$B10=AD$5),0,OFFSET('2023gf_All_gnp'!V$1,$O10,0)) -> 0.0000 | AE10: =IF(OR(OFFSET('2023gf_All_gnp'!W$1,$O10,0)<0.7,OFFSET('2023gf_All_gnp'!W$1,$O10,0)<0.7,$B10=AE$5),0,OFFSET('2023gf_All_gnp'!W$1,$O10,0)) -> 0.0000 | AF10: =IF(OR(OFFSET('2023gf_All_gnp'!X$1,$O10,0)<0.7,OFFSET('2023gf_All_gnp'!X$1,$O10,0)<0.7,$B10=AF$5),0,OFFSET('2023gf_All_gnp'!X$1,$O10,0)) -> 0.0000 | AG10: =IF(OR(OFFSET('2023gf_All_gnp'!Y$1,$O10,0)<0.7,OFFSET('2023gf_All_gnp'!Y$1,$O10,0)<0.7,$B10=AG$5),0,OFFSET('2023gf_All_gnp'!Y$1,$O10,0)) -> 0.0000 | AH10: =IF(OR(OFFSET('2023gf_All_gnp'!Z$1,$O10,0)<0.7,OFFSET('2023gf_All_gnp'!Z$1,$O10,0)<0.7,$B10=AH$5),0,OFFSET('2023gf_All_gnp'!Z$1,$O10,0)) -> 0.0000 | AI10: =IF(OR(OFFSET('2023gf_All_gnp'!AA$1,$O10,0)<0.7,OFFSET('2023gf_All_gnp'!AA$1,$O10,0)<0.7,$B10=AI$5),0,OFFSET('2023gf_All_gnp'!AA$1,$O10,0)) -> 0.0000 | AJ10: =IF(OR(OFFSET('2023gf_All_gnp'!AB$1,$O10,0)<0.7,OFFSET('2023gf_All_gnp'!AB$1,$O10,0)<0.7,$B10=AJ$5),0,OFFSET('2023gf_All_gnp'!AB$1,$O10,0)) -> 0.0000 | AK10: =IF(OR(OFFSET('2023gf_All_gnp'!AC$1,$O10,0)<0.7,OFFSET('2023gf_All_gnp'!AC$1,$O10,0)<0.7,$B10=AK$5),0,OFFSET('2023gf_All_gnp'!AC$1,$O10,0)) -> 0.0000 | AL10: =IF(OR(OFFSET('2023gf_All_gnp'!AD$1,$O10,0)<0.7,OFFSET('2023gf_All_gnp'!AD$1,$O10,0)<0.7,$B10=AL$5),0,OFFSET('2023gf_All_gnp'!AD$1,$O10,0)) -> 0.0000 | AM10: =IF(OR(OFFSET('2023gf_All_gnp'!AE$1,$O10,0)<0.7,OFFSET('2023gf_All_gnp'!AE$1,$O10,0)<0.7,$B10=AM$5),0,OFFSET('2023gf_All_gnp'!AE$1,$O10,0)) -> 0.0000 | AN10: =IF(OR(OFFSET('2023gf_All_gnp'!AF$1,$O10,0)<0.7,OFFSET('2023gf_All_gnp'!AF$1,$O10,0)<0.7,$B10=AN$5),0,OFFSET('2023gf_All_gnp'!AF$1,$O10,0)) -> 0.0000 | AO10: =IF(OR(OFFSET('2023gf_All_gnp'!AG$1,$O10,0)<0.7,OFFSET('2023gf_All_gnp'!AG$1,$O10,0)<0.7,$B10=AO$5),0,OFFSET('2023gf_All_gnp'!AG$1,$O10,0)) -> 0.0000 | AP10: =IF(OR(OFFSET('2023gf_All_gnp'!AH$1,$O10,0)<0.7,OFFSET('2023gf_All_gnp'!AH$1,$O10,0)<0.7,$B10=AP$5),0,OFFSET('2023gf_All_gnp'!AH$1,$O10,0)) -> 0.0000 | AQ10: =IF(OR(OFFSET('2023gf_All_gnp'!AI$1,$O10,0)<0.7,OFFSET('2023gf_All_gnp'!AI$1,$O10,0)<0.7,$B10=AQ$5),0,OFFSET('2023gf_All_gnp'!AI$1,$O10,0)) -> 0.0000 | AR10: =IF(OR(OFFSET('2023gf_All_gnp'!AJ$1,$O10,0)<0.7,OFFSET('2023gf_All_gnp'!AJ$1,$O10,0)<0.7,$B10=AR$5),0,OFFSET('2023gf_All_gnp'!AJ$1,$O10,0)) -> 0.0000 | AS10: =IF(OR(OFFSET('2023gf_All_gnp'!AK$1,$O10,0)<0.7,OFFSET('2023gf_All_gnp'!AK$1,$O10,0)<0.7,$B10=AS$5),0,OFFSET('2023gf_All_gnp'!AK$1,$O10,0)) -> 0.0000 | AT10: =IF(OR(OFFSET('2023gf_All_gnp'!AL$1,$O10,0)<0.7,OFFSET('2023gf_All_gnp'!AL$1,$O10,0)<0.7,$B10=AT$5),0,OFFSET('2023gf_All_gnp'!AL$1,$O10,0)) -> 0.0000 | AU10: =IF(OR(OFFSET('2023gf_All_gnp'!AM$1,$O10,0)<0.7,OFFSET('2023gf_All_gnp'!AM$1,$O10,0)<0.7,$B10=AU$5),0,OFFSET('2023gf_All_gnp'!AM$1,$O10,0)) -> 0.0000 | AV10: =IF(OR(OFFSET('2023gf_All_gnp'!AN$1,$O10,0)<0.7,OFFSET('2023gf_All_gnp'!AN$1,$O10,0)<0.7,$B10=AV$5),0,OFFSET('2023gf_All_gnp'!AN$1,$O10,0)) -> 0.0000 | AW10: =IF(OR(OFFSET('2023gf_All_gnp'!AO$1,$O10,0)<0.7,OFFSET('2023gf_All_gnp'!AO$1,$O10,0)<0.7,$B10=AW$5),0,OFFSET('2023gf_All_gnp'!AO$1,$O10,0)) -> 0.0000 | AX10: =IF(OR(OFFSET('2023gf_All_gnp'!AP$1,$O10,0)<0.7,OFFSET('2023gf_All_gnp'!AP$1,$O10,0)<0.7,$B10=AX$5),0,OFFSET('2023gf_All_gnp'!AP$1,$O10,0)) -> 0.0000 | AY10: =IF(OR(OFFSET('2023gf_All_gnp'!AQ$1,$O10,0)<0.7,OFFSET('2023gf_All_gnp'!AQ$1,$O10,0)<0.7,$B10=AY$5),0,OFFSET('2023gf_All_gnp'!AQ$1,$O10,0)) -> 0.0000 | AZ10: =IF(OR(OFFSET('2023gf_All_gnp'!AR$1,$O10,0)<0.7,OFFSET('2023gf_All_gnp'!AR$1,$O10,0)<0.7,$B10=AZ$5),0,OFFSET('2023gf_All_gnp'!AR$1,$O10,0)) -> 0.0000 | BA10: =IF(OR(OFFSET('2023gf_All_gnp'!AS$1,$O10,0)<0.7,OFFSET('2023gf_All_gnp'!AS$1,$O10,0)<0.7,$B10=BA$5),0,OFFSET('2023gf_All_gnp'!AS$1,$O10,0)) -> 0.0000 | BB10: =IF(OR(OFFSET('2023gf_All_gnp'!AT$1,$O10,0)<0.7,OFFSET('2023gf_All_gnp'!AT$1,$O10,0)<0.7,$B10=BB$5),0,OFFSET('2023gf_All_gnp'!AT$1,$O10,0)) -> 0.0000 | BC10: =IF(OR(OFFSET('2023gf_All_gnp'!AU$1,$O10,0)<0.7,OFFSET('2023gf_All_gnp'!AU$1,$O10,0)<0.7,$B10=BC$5),0,OFFSET('2023gf_All_gnp'!AU$1,$O10,0)) -> 0.0000 | BD10: =IF(OR(OFFSET('2023gf_All_gnp'!AV$1,$O10,0)<0.7,OFFSET('2023gf_All_gnp'!AV$1,$O10,0)<0.7,$B10=BD$5),0,OFFSET('2023gf_All_gnp'!AV$1,$O10,0)) -> 0.0000 | BE10: =IF(OR(OFFSET('2023gf_All_gnp'!AW$1,$O10,0)<0.7,OFFSET('2023gf_All_gnp'!AW$1,$O10,0)<0.7,$B10=BE$5),0,OFFSET('2023gf_All_gnp'!AW$1,$O10,0)) -> 0.0000 | BF10: =IF(OR(OFFSET('2023gf_All_gnp'!AX$1,$O10,0)<0.7,OFFSET('2023gf_All_gnp'!AX$1,$O10,0)<0.7,$B10=BF$5),0,OFFSET('2023gf_All_gnp'!AX$1,$O10,0)) -> 0.0000 | BG10: =IF(OR(OFFSET('2023gf_All_gnp'!AY$1,$O10,0)<0.7,OFFSET('2023gf_All_gnp'!AY$1,$O10,0)<0.7,$B10=BG$5),0,OFFSET('2023gf_All_gnp'!AY$1,$O10,0)) -> 0.0000 | BH10: =IF(OR(OFFSET('2023gf_All_gnp'!AZ$1,$O10,0)<0.7,OFFSET('2023gf_All_gnp'!AZ$1,$O10,0)<0.7,$B10=BH$5),0,OFFSET('2023gf_All_gnp'!AZ$1,$O10,0)) -> 0.0000 | BI10: =IF(OR(OFFSET('2023gf_All_gnp'!BA$1,$O10,0)<0.7,OFFSET('2023gf_All_gnp'!BA$1,$O10,0)<0.7,$B10=BI$5),0,OFFSET('2023gf_All_gnp'!BA$1,$O10,0)) -> 0.0000 | BJ10: =IF(OR(OFFSET('2023gf_All_gnp'!BB$1,$O10,0)<0.7,OFFSET('2023gf_All_gnp'!BB$1,$O10,0)<0.7,$B10=BJ$5),0,OFFSET('2023gf_All_gnp'!BB$1,$O10,0)) -> 0.0000 | BK10: =IF(OR(OFFSET('2023gf_All_gnp'!BC$1,$O10,0)<0.7,OFFSET('2023gf_All_gnp'!BC$1,$O10,0)<0.7,$B10=BK$5),0,OFFSET('2023gf_All_gnp'!BC$1,$O10,0)) -> 0.0000 | BL10: =IF(OR(OFFSET('2023gf_All_gnp'!BD$1,$O10,0)<0.7,OFFSET('2023gf_All_gnp'!BD$1,$O10,0)<0.7,$B10=BL$5),0,OFFSET('2023gf_All_gnp'!BD$1,$O10,0)) -> 0.0000 | BM10: =IF(OR(OFFSET('2023gf_All_gnp'!BE$1,$O10,0)<0.7,OFFSET('2023gf_All_gnp'!BE$1,$O10,0)<0.7,$B10=BM$5),0,OFFSET('2023gf_All_gnp'!BE$1,$O10,0)) -> 0.0000 | BN10: =IF(OR(OFFSET('2023gf_All_gnp'!BF$1,$O10,0)<0.7,OFFSET('2023gf_All_gnp'!BF$1,$O10,0)<0.7,$B10=BN$5),0,OFFSET('2023gf_All_gnp'!BF$1,$O10,0)) -> 0.0000
